Workbook

Sheet START2
A1: =muni -> DC47 Sekhukhune

Sheet START
A1: Choose name from list

Sheet Instructions
D2: 2020
X4: Yes
X5: No
W7: Type of Entities Range: | X7: Parent Municipality
X8: Consolidated Information
W10: Date of Adjustment | X10: 28/02/2024
W19: MTREF Range: | X19: 2013
X20: 2014
X21: 2015
X22: 2016
X23: 2017
X24: 2018
X25: 2019
X26: 2020
X27: 2021
X28: 2022
X29: 2023
X30: 2024
X31: 2025
X32: 2026
W33: MTREF Linked:
W34: MTREF:
X35: 11
W36: Fin Year: | X36: =INDEX(X19:X33,X35,1) -> 2023
X38: =MTREF&"/"&RIGHT(MTREF,2)+1 -> 2023/24

Sheet Template names (hidden)
A1: Common sheet headings
A2: Head1 | B2: =HLOOKUP(MTREF,Headings,2) -> 2022/23 | C2: Prior year -1
A3: Head1A | B3: =HLOOKUP(MTREF,Headings,3) -> 2021/22 | C3: Prior year -2
A4: Head1B | B4: =HLOOKUP(MTREF,Headings,4) -> 2020/21 | C4: Prior year -3
A5: Head2 | B5: =HLOOKUP(MTREF,Headings,7) -> Budget Year 2023/24 | C5: Year of approved budget
A6: Head2A | B6: =HLOOKUP(MTREF,Headings,6) -> 2023/24 | C6: Approved budget year
A7: Head3 | B7: =HLOOKUP(MTREF,Headings,5) -> 2023/24 Medium Term Revenue & Expenditure Framework | C7: MTREF header name
A8: Head3A | B8: Medium Term Revenue and Expenditure Framework
A9: Head4 | B9: Current year
A10: Head5 | B10: Audited Outcome
A11: Head5A | B11: Outcome
A12: Head5B | B12: Pre-audit outcome
A13: Head6 | B13: Original Budget
A14: Head7 | B14: Adjusted Budget
A15: Head8 | B15: Full Year Forecast
A16: Head9 | B16: =HLOOKUP(MTREF,Headings,7) -> Budget Year 2023/24 | C16: 1st year of MTREF | D16: Year1
A17: Head10 | B17: =HLOOKUP(MTREF,Headings,8) -> Budget Year +1 2024/25 | C17: 2nd year of MTREF | D17: Year2
A18: Head11 | B18: =HLOOKUP(MTREF,Headings,9) -> Budget Year +2 2025/26 | C18: 3rd year of MTREF | D18: Year3
A19: Head24 | B19: Description | D19: Desc
A20: Head26 | B20: Vote Description | D20: VDesc
A21: Head27 | B21: Ref
A22: Head27a | B22: References
A23: Head28 | B23: Surplus/ (Deficit) for the year | D23: Result
A24: Head29 | B24: Annual target 2007/08
A25: Head30 | B25: Revised target 2007/08
A26: Head31 | B26: Quarter ended 30 September
A27: Head32 | B27: Quarter ended 31 December
A28: Head33 | B28: Quarter ended 31 March
A29: Head34 | B29: Quarter ended 30 June
A30: Head35 | B30: Variance explanation
A31: Head36 | B31: YTD Actual 31 Dec
A32: Head37 | B32: YTD Budget 31 Dec
A33: Head38 | B33: Monthly actual
A34: Head39 | B34: YearTD actual
A35: Head40 | B35: YearTD budget
A36: Head41 | B36: YTD variance
A37: Head42 | B37: Surplus/ (Deficit) for the yr/period
A38: Head43 | B38: =Head3&" Summary" -> 2023/24 Medium Term Revenue & Expenditure Framework Summary
A39: Head44 | B39: 2001 Census
A40: Head45 | B40: 2011 Census
A41: Head46 | B41: - Adjustments Budget - January 2007
A42: Head47 | B42: Previous target year to complete
A43: Head48 | B43: Present value
A44: Head49
A45: Head50 | B45: Other Adjusts.
A46: Head51 | B46: Accum. Funds
A47: Head52 | B47: Multi-year capital
A48: Head53 | B48: Unfore. Unavoid.
A49: Head54 | B49: Prior Adjusted
A50: Head55 | B50: Nat. or Prov. Govt
A51: Head56 | B51: Total Adjusts.
A52: Head57 | B52: Month DD, YYYY -
A53: Head58 | B53: Parent muni.
A54: Head59 | B54: Downward adjusts
A55: SFPerf1 | B55: Budgeted Financial Performance
A56: SFPerf2 | B56: Forecast Financial Performance
A57: SFPos1 | B57: Budgeted Financial Position
A58: SFPos2 | B58: Forecast Financial Position
A59: Cash1 | B59: Budget Cash Flow
A60: Cash2 | B60: Forecast Cash Flow
A61: RandM | B61: Expenditure includes repairs & maintenance of R'000
A62: Standard nomenclature
A63: Muni | B63: ='Lookup and lists'!B28 -> DC47 Sekhukhune
A64: Municipal Entities | B64: 2 | C64: Type of report: | D64: 1
A65: =IF((MuniEntities=1)*(MuniType=2),"YES","NO") -> NO | B65: Does this municipality have entities (consolidated budget and entity budgets required)? YES/NO
A66: Mid Year Review/Adjustment Budget schedules & tables | E66: Consolidated header | F66: Parent municipality header
A67: ADJSum | B67: =D67&IF(Consolques="YES",E67,F67) -> Table B1 Adjustments Budget Summary | D67: Table B1 | E67: ="Consolidated "&F67 -> Consolidated Adjustments Budget Summary | F67: ="Adjustments Budget Summary" -> Adjustments Budget Summary
A68: ADJ2 | B68: Table B3 Adjustments Budget Financial Performance (revenue and expenditure by municipal vote) | D68: Table B3 | E68: ="Consolidated "&F68 -> Consolidated Adjustments Budget Financial Performance (revenue and expenditure by municipal vote) | F68: ="Adjustments Budget Financial Performance (revenue and expenditure by municipal vote)" -> Adjustments Budget Financial Performance (revenue and expenditure by municipal vote)
A69: ADJ3 | B69: Table B2 Adjustments Budget Financial Performance (functional classification) | D69: Table B2 | E69: Consolidated Adjustments Budget Financial Performance (functional classification) | F69: ="Adjustments Budget Financial Performance (functional classification)" -> Adjustments Budget Financial Performance (functional classification)
A70: ADJ4 | B70: Table B4 Adjustments Budget Financial Performance (revenue and expenditure) | D70: Table B4 | E70: Consolidated Adjustments Budget Financial Performance (revenue and expenditure) | F70: ="Adjustments Budget Financial Performance (revenue and expenditure)" -> Adjustments Budget Financial Performance (revenue and expenditure)
A71: ADJ5 | B71: Table B5 Adjustments Capital Expenditure Budget by vote and funding | D71: Table B5 | E71: Consolidated Adjustments Capital Expenditure Budget by vote and funding | F71: ="Adjustments Capital Expenditure Budget by vote and funding" -> Adjustments Capital Expenditure Budget by vote and funding
A72: ADJ6 | B72: Table B6 Adjustments Budget Financial Position | D72: Table B6 | E72: Consolidated Adjustments Budget Financial Position | F72: ="Adjustments Budget Financial Position" -> Adjustments Budget Financial Position
A73: ADJ7 | B73: Table B7 Adjustments Budget Cash Flows | D73: Table B7 | E73: Consolidated Adjustments Budget Cash Flows | F73: ="Adjustments Budget Cash Flows" -> Adjustments Budget Cash Flows
A74: ADJ8 | B74: Table B8 Cash backed reserves/accumulated surplus reconciliation | D74: Table B8 | E74: Consolidated Cash backed reserves/accumulated surplus reconciliation | F74: ="Cash backed reserves/accumulated surplus reconciliation" -> Cash backed reserves/accumulated surplus reconciliation
A75: ADJ9 | B75: Table B9 Asset Management | D75: Table B9 | E75: Consolidated Asset Management | F75: ="Asset Management" -> Asset Management
A76: ADJ10 | B76: Table B10 Basic service delivery measurement | D76: Table B10 | E76: Consolidated Basic service delivery measurement | F76: ="Basic service delivery measurement" -> Basic service delivery measurement
A77: ADJB1 | B77: Supporting Table SB1 Supporting detail to 'Budgeted Financial Performance' | D77: =D101&"Table SB1 " -> Supporting Table SB1 | E77: Consolidated Supporting detail to 'Budgeted Financial Performance' | F77: ="Supporting detail to 'Budgeted Financial Performance'" -> Supporting detail to 'Budgeted Financial Performance'
A78: ADJB2 | B78: Supporting Table SB2 Supporting detail to 'Financial Position Budget' | D78: =D101&"Table SB2 " -> Supporting Table SB2 | E78: Consolidated Supporting detail to 'Financial Position Budget' | F78: ="Supporting detail to 'Financial Position Budget'" -> Supporting detail to 'Financial Position Budget'
A79: ADJB3 | B79: Supporting Table SB3 Adjustments to the SDBIP - performance objectives | D79: =D101&"Table SB3 " -> Supporting Table SB3 | E79: Consolidated Adjustments to the SDBIP - performance objectives | F79: ="Adjustments to the SDBIP - performance objectives" -> Adjustments to the SDBIP - performance objectives
A80: ADJB4 | B80: Supporting Table SB4 Adjustments to budgeted performance indicators and benchmarks | D80: =D101&"Table SB4 " -> Supporting Table SB4 | E80: Consolidated Adjustments to budgeted performance indicators and benchmarks | F80: ="Adjustments to budgeted performance indicators and benchmarks" -> Adjustments to budgeted performance indicators and benchmarks
A81: ADJB5 | B81: Supporting Table SB5 Adjustments Budget - social, economic and demographic statistics and assumptions | D81: =D101&"Table SB5 " -> Supporting Table SB5 | E81: Consolidated Adjustments Budget - social, economic and demographic statistics and assumptions | F81: ="Adjustments Budget - social, economic and demographic statistics and assumptions" -> Adjustments Budget - social, economic and demographic statistics and assumptions
A82: ADJB6 | B82: Supporting Table SB6 Adjustments Budget - funding measurement | D82: =D101&"Table SB6 " -> Supporting Table SB6 | E82: Consolidated Adjustments Budget - funding measurement | F82: ="Adjustments Budget - funding measurement" -> Adjustments Budget - funding measurement
A83: ADJB7 | B83: Supporting Table SB7 Adjustments Budget - transfers and grant receipts | D83: =D101&"Table SB7 " -> Supporting Table SB7 | E83: Consolidated Adjustments Budget - transfers and grant receipts | F83: ="Adjustments Budget - transfers and grant receipts" -> Adjustments Budget - transfers and grant receipts
A84: ADJB8 | B84: Supporting Table SB8 Adjustments Budget - expenditure on transfers and grant programme | D84: =D101&"Table SB8 " -> Supporting Table SB8 | E84: Consolidated Adjustments Budget - expenditure on transfers and grant programme | F84: ="Adjustments Budget - expenditure on transfers and grant programme" -> Adjustments Budget - expenditure on transfers and grant programme
A85: ADJB9 | B85: Supporting Table SB9 Adjustments Budget - reconciliation of transfers, grant receipts, and unspent funds | D85: =D101&"Table SB9 " -> Supporting Table SB9 | E85: Consolidated Adjustments Budget - reconciliation of transfers, grant receipts, and unspent funds | F85: ="Adjustments Budget - reconciliation of transfers, grant receipts, and unspent funds" -> Adjustments Budget - reconciliation of transfers, grant receipts, and unspent funds
A86: ADJB10 | B86: Supporting Table SB10 Adjustments Budget - transfers and grants made by the municipality | D86: =D101&"Table SB10 " -> Supporting Table SB10 | E86: Consolidated Adjustments Budget - transfers and grants made by the municipality | F86: ="Adjustments Budget - transfers and grants made by the municipality" -> Adjustments Budget - transfers and grants made by the municipality
A87: ADJB11 | B87: Supporting Table SB11 Adjustments Budget - councillor and staff benefits | D87: =D101&"Table SB11 " -> Supporting Table SB11 | E87: Consolidated Adjustments Budget - councillor and staff benefits | F87: ="Adjustments Budget - councillor and staff benefits" -> Adjustments Budget - councillor and staff benefits
A88: ADJB12 | B88: Supporting Table SB12 Adjustments Budget - monthly revenue and expenditure (municipal vote) | D88: =D101&"Table SB12 " -> Supporting Table SB12 | E88: Consolidated Adjustments Budget - monthly revenue and expenditure (municipal vote) | F88: ="Adjustments Budget - monthly revenue and expenditure (municipal vote)" -> Adjustments Budget - monthly revenue and expenditure (municipal vote)
A89: ADJB13 | B89: Supporting Table SB13 Adjustments Budget - monthly revenue and expenditure (functional classification) | D89: =D101&"Table SB13 " -> Supporting Table SB13 | E89: Consolidated Adjustments Budget - monthly revenue and expenditure (functional classification) | F89: ="Adjustments Budget - monthly revenue and expenditure (functional classification)" -> Adjustments Budget - monthly revenue and expenditure (functional classification)
A90: ADJB14 | B90: Supporting Table SB14 Adjustments Budget - monthly revenue and expenditure | D90: =D101&"Table SB14 " -> Supporting Table SB14 | E90: Consolidated Adjustments Budget - monthly revenue and expenditure | F90: ="Adjustments Budget - monthly revenue and expenditure" -> Adjustments Budget - monthly revenue and expenditure
A91: ADJB15 | B91: Supporting Table SB15 Adjustments Budget - monthly cash flow | D91: =D101&"Table SB15 " -> Supporting Table SB15 | E91: Consolidated Adjustments Budget - monthly cash flow | F91: ="Adjustments Budget - monthly cash flow" -> Adjustments Budget - monthly cash flow
A92: ADJB16 | B92: Supporting Table SB16 Adjustments Budget - monthly capital expenditure (municipal vote) | D92: =D101&"Table SB16 " -> Supporting Table SB16 | E92: Consolidated Adjustments Budget - monthly capital expenditure (municipal vote) | F92: ="Adjustments Budget - monthly capital expenditure (municipal vote)" -> Adjustments Budget - monthly capital expenditure (municipal vote)
A93: ADJB17 | B93: Supporting Table SB17 Adjustments Budget - monthly capital expenditure (functional classification) | D93: =D101&"Table SB17 " -> Supporting Table SB17 | E93: Consolidated Adjustments Budget - monthly capital expenditure (functional classification) | F93: ="Adjustments Budget - monthly capital expenditure (functional classification)" -> Adjustments Budget - monthly capital expenditure (functional classification)
A94: ADJB18a | B94: Supporting Table SB18a Adjustments Budget - capital expenditure on new assets by asset class | D94: =D101&"Table SB18a " -> Supporting Table SB18a | E94: Consolidated Adjustments Budget - capital expenditure on new assets by asset class | F94: ="Adjustments Budget - capital expenditure on new assets by asset class" -> Adjustments Budget - capital expenditure on new assets by asset class
A95: ADJB18b | B95: Supporting Table SB18b Adjustments Budget - capital expenditure on renewal of existing assets by asset class | D95: =D101&"Table SB18b " -> Supporting Table SB18b | E95: ="Consolidated "&F95 -> Consolidated Adjustments Budget - capital expenditure on renewal of existing assets by asset class | F95: ="Adjustments Budget - capital expenditure on renewal of existing assets by asset class" -> Adjustments Budget - capital expenditure on renewal of existing assets by asset class
A96: ADJB18c | B96: Supporting Table SB18c Adjustments Budget - expenditure on repairs and maintenance by asset class | D96: =D101&"Table SB18c " -> Supporting Table SB18c | E96: ="Consolidated "&F96 -> Consolidated Adjustments Budget - expenditure on repairs and maintenance by asset class | F96: ="Adjustments Budget - expenditure on repairs and maintenance by asset class" -> Adjustments Budget - expenditure on repairs and maintenance by asset class
A97: ADJB18d | B97: Supporting Table SB18d Adjustments Budget - depreciation by asset class | D97: =D101&"Table SB18d " -> Supporting Table SB18d | E97: ="Consolidated "&F97 -> Consolidated Adjustments Budget - depreciation by asset class | F97: ="Adjustments Budget - depreciation by asset class" -> Adjustments Budget - depreciation by asset class
A98: ADJB18e | B98: Supporting Table SB18e Adjustments Budget - capital expenditure on upgrading of existing assets by asset class | D98: =D101&"Table SB18e " -> Supporting Table SB18e | E98: ="Consolidated "&F98 -> Consolidated Adjustments Budget - capital expenditure on upgrading of existing assets by asset class | F98: ="Adjustments Budget - capital expenditure on upgrading of existing assets by asset class" -> Adjustments Budget - capital expenditure on upgrading of existing assets by asset class
A99: ADJB19 | B99: Supporting Table SB19 List of capital programmes and projects affected by Adjustments Budget | D99: =D101&"Table SB19 " -> Supporting Table SB19 | E99: Consolidated List of capital programmes and projects affected by Adjustments Budget | F99: ="List of capital programmes and projects affected by Adjustments Budget" -> List of capital programmes and projects affected by Adjustments Budget
A100: ADJB20 | B100: Supporting Table SB20 Not required | D100: =D101&"Table SB20 " -> Supporting Table SB20 | E100: ="Adjusted Budget Municipal Entity Performance Summary" -> Adjusted Budget Municipal Entity Performance Summary | F100: Not required
D101: Supporting

Sheet Lookup and lists (hidden)
A1: Description | B1: 2013 | C1: 2014 | D1: 2015 | E1: 2016 | F1: 2017 | G1: 2018 | H1: 2019 | I1: 2020 | J1: 2021 | K1: 2022 | L1: 2023 | M1: 2024 | N1: 2025 | O1: 2026 | Q1: Grants: | R1: National - opex | S1: Provincial - opex | T1: National - capex | U1: Provincial - capex | V1: YESNO
A2: ='Template names'!C2 -> Prior year -1 | B2: =B1-1&"/"&RIGHT(B1,2)-0 -> 2012/13 | C2: =C1-1&"/"&RIGHT(C1,2)-0 -> 2013/14 | D2: =D1-1&"/"&RIGHT(D1,2)-0 -> 2014/15 | E2: =E1-1&"/"&RIGHT(E1,2)-0 -> 2015/16 | F2: 2016/17 | G2: 2017/18 | H2: 2018/19 | I2: 2019/20 | J2: 2020/21 | K2: 2021/22 | L2: 2022/23 | M2: 2023/24 | N2: 2024/25 | O2: 2025/26 | R2: Local Government Equitable Share | S2: Health subsidy | T2: Municipal Infrastructure Grant (MIG) | U2: Agriculture | V2: Yes
A3: ='Template names'!C3 -> Prior year -2 | B3: =B1-2&"/"&RIGHT(B1,2)-1 -> 2011/12 | C3: =C1-2&"/"&RIGHT(C1,2)-1 -> 2012/13 | D3: =D1-2&"/"&RIGHT(D1,2)-1 -> 2013/14 | E3: =E1-2&"/"&RIGHT(E1,2)-1 -> 2014/15 | F3: 2015/16 | G3: 2016/17 | H3: 2017/18 | I3: 2018/19 | J3: 2019/20 | K3: 2020/21 | L3: 2021/22 | M3: 2022/23 | N3: 2023/24 | O3: 2024/25 | R3: RSC Levy Replacement | S3: Ambulance subsidy | T3: Public Transport and Systems | U3: Education | V3: No
A4: ='Template names'!C4 -> Prior year -3 | B4: =B1-3&"/"&RIGHT(B1,2)-2 -> 2010/11 | C4: =C1-3&"/"&RIGHT(C1,2)-2 -> 2011/12 | D4: =D1-3&"/"&RIGHT(D1,2)-2 -> 2012/13 | E4: =E1-3&"/"&RIGHT(E1,2)-2 -> 2013/14 | F4: 2014/15 | G4: 2015/16 | H4: 2016/17 | I4: 2017/18 | J4: 2018/19 | K4: 2019/20 | L4: 2020/21 | M4: 2021/22 | N4: 2022/23 | O4: 2023/24 | R4: Finance Management | S4: Housing | T4: Rural Transport Services and Infrastructure | U4: Health
A5: ='Template names'!C7 -> MTREF header name | B5: =B1&"/"&RIGHT(B1,2)+1&" Medium Term Revenue & Expenditure Framework" -> 2013/14 Medium Term Revenue & Expenditure Framework | C5: =C1&"/"&RIGHT(C1,2)+1&" Medium Term Revenue & Expenditure Framework" -> 2014/15 Medium Term Revenue & Expenditure Framework | D5: =D1&"/"&RIGHT(D1,2)+1&" Medium Term Revenue & Expenditure Framework" -> 2015/16 Medium Term Revenue & Expenditure Framework | E5: =E1&"/"&RIGHT(E1,2)+1&" Medium Term Revenue & Expenditure Framework" -> 2016/17 Medium Term Revenue & Expenditure Framework | F5: 2017/18 Medium Term Revenue & Expenditure Framework | G5: 2018/19 Medium Term Revenue & Expenditure Framework | H5: 2019/20 Medium Term Revenue & Expenditure Framework | I5: 2020/21 Medium Term Revenue & Expenditure Framework | J5: 2021/22 Medium Term Revenue & Expenditure Framework | K5: 2022/23 Medium Term Revenue & Expenditure Framework | L5: 2023/24 Medium Term Revenue & Expenditure Framework | M5: 2024/25 Medium Term Revenue & Expenditure Framework | N5: 2025/26 Medium Term Revenue & Expenditure Framework | O5: 2026/27 Medium Term Revenue & Expenditure Framework | R5: Municipal Systems Improvement | S5: Sport and Recreation | T5: Regional Bulk Infrastructure | U5: Housing and Local Government
A6: ='Template names'!C6 -> Approved budget year | B6: =B1&"/"&RIGHT(B1,2)+1 -> 2013/14 | C6: =C1&"/"&RIGHT(C1,2)+1 -> 2014/15 | D6: =D1&"/"&RIGHT(D1,2)+1 -> 2015/16 | E6: =E1&"/"&RIGHT(E1,2)+1 -> 2016/17 | F6: 2017/18 | G6: 2018/19 | H6: 2019/20 | I6: 2020/21 | J6: 2021/22 | K6: 2022/23 | L6: 2023/24 | M6: 2024/25 | N6: 2025/26 | O6: 2026/27 | R6: Water Services Operating Subsidy | T6: Rural Households Infrastructure | U6: Other Departments
A7: ='Template names'!C16 -> 1st year of MTREF | B7: ="Budget Year "&B1&"/"&RIGHT(B1,2)+1 -> Budget Year 2013/14 | C7: ="Budget Year "&C1&"/"&RIGHT(C1,2)+1 -> Budget Year 2014/15 | D7: ="Budget Year "&D1&"/"&RIGHT(D1,2)+1 -> Budget Year 2015/16 | E7: ="Budget Year "&E1&"/"&RIGHT(E1,2)+1 -> Budget Year 2016/17 | F7: Budget Year 2017/18 | G7: Budget Year 2018/19 | H7: Budget Year 2019/20 | I7: Budget Year 2020/21 | J7: Budget Year 2021/22 | K7: Budget Year 2022/23 | L7: Budget Year 2023/24 | M7: Budget Year 2024/25 | N7: Budget Year 2025/26 | O7: Budget Year 2026/27 | R7: Energy Efficiency and Demand Management | T7: Neighbourhood Development Partnership | U7: Public Works, Roads, Transport
A8: ='Template names'!C17 -> 2nd year of MTREF | B8: ="Budget Year +1 "&B1+1&"/"&RIGHT(B1,2)+2 -> Budget Year +1 2014/15 | C8: ="Budget Year +1 "&C1+1&"/"&RIGHT(C1,2)+2 -> Budget Year +1 2015/16 | D8: ="Budget Year +1 "&D1+1&"/"&RIGHT(D1,2)+2 -> Budget Year +1 2016/17 | E8: ="Budget Year +1 "&E1+1&"/"&RIGHT(E1,2)+2 -> Budget Year +1 2017/18 | F8: Budget Year +1 2018/19 | G8: Budget Year +1 2019/20 | H8: Budget Year +1 2020/21 | I8: Budget Year +1 2021/22 | J8: Budget Year +1 2022/23 | K8: Budget Year +1 2023/24 | L8: Budget Year +1 2024/25 | M8: Budget Year +1 2025/26 | N8: Budget Year +1 2026/27 | O8: Budget Year +1 2027/28 | R8: Integrated National Electrification Programme | T8: 2010 FIFA World Cup Stadiums Development | U8: Sport and Recreation
A9: ='Template names'!C18 -> 3rd year of MTREF | B9: ="Budget Year +2 "&B1+2&"/"&RIGHT(B1,2)+3 -> Budget Year +2 2015/16 | C9: ="Budget Year +2 "&C1+2&"/"&RIGHT(C1,2)+3 -> Budget Year +2 2016/17 | D9: ="Budget Year +2 "&D1+2&"/"&RIGHT(D1,2)+3 -> Budget Year +2 2017/18 | E9: ="Budget Year +2 "&E1+2&"/"&RIGHT(E1,2)+3 -> Budget Year +2 2018/19 | F9: Budget Year +2 2019/20 | G9: Budget Year +2 2020/21 | H9: Budget Year +2 2021/22 | I9: Budget Year +2 2022/23 | J9: Budget Year +2 2023/24 | K9: Budget Year +2 2024/25 | L9: Budget Year +2 2025/26 | M9: Budget Year +2 2026/27 | N9: Budget Year +2 2027/28 | O9: Budget Year +2 2028/29 | R9: Municipal Drought Relief
A10: Adjustments Budget | B10: ="Annual target " & B1&"/"&RIGHT(B1,2)+1 -> Annual target 2013/14 | C10: ="Annual target " & C1&"/"&RIGHT(C1,2)+1 -> Annual target 2014/15 | D10: ="Annual target " & D1&"/"&RIGHT(D1,2)+1 -> Annual target 2015/16 | E10: ="Annual target " & E1&"/"&RIGHT(E1,2)+1 -> Annual target 2016/17 | F10: Annual target 2017/18 | G10: Annual target 2018/19 | H10: Annual target 2019/20 | I10: Annual target 2020/21 | J10: Annual target 2021/22 | K10: Annual target 2022/23 | L10: Annual target 2023/24 | M10: Annual target 2024/25 | N10: Annual target 2025/26 | O10: Annual target 2026/27 | R10: 2010 FIFA World Cup Operating
A11: NOTE: This sheet should not be directly amended - select headings from sheet 'S' | R11: Electricity Demand Side Management
R12: EPWP Incentive
R15: Asset Class | S15: Asset sub-class Old | T15: Asset sub-class | U15: IUDF | V15: MTSF
R17: Roads Infrastructure | S17: Roads, Pavements & Bridges | T17: Roads | U17: Spatial integration | V17: Quality basic education
R18: Storm water Infrastructure | S18: Storm water | T18: Road Structures | U18: Inclusion and access | V18: A long and healthy life for all South Africans
R19: Electrical Infrastructure | S19: Generation | T19: Road Furniture | U19: Growth | V19: All people in South Africa are and feel safe
R20: Water Supply Infrastructure | S20: Transmission & Reticulation | T20: Capital Spares | U20: Governance | V20: Decent employment through inclusive growth
R21: Sanitation Infrastructure | S21: Street Lighting | T21: Drainage Collection | V21: A skilled and capable workforce to support an inclusive growth path
R22: Solid Waste Infrastructure | S22: Dams & Reservoirs | T22: Storm water Conveyance | V22: An efficient, competitive and responsive economic infrastructure network
R23: Rail Infrastructure | S23: Water purification | T23: Attenuation | V23: Vibrant, equitable, sustainable rural communities contributing towards food security for all
R24: Coastal Infrastructure | S24: Reticulation | T24: Power Plants | V24: Sustainable human settlements and improved quality of household life
R25: Information and Communication Infrastructure | S25: Sewerage purification | T25: HV Substations | V25: Responsive, accountable, effective and efficient local government
R26: Community Facilities | S26: Waste Management | T26: HV Switching Station | V26: Protect and enhance our environmental assets and natural resources
A27: Name link | B27: 155 | R27: Sport and Recreation Facilities | S27: Transportation | T27: HV Transmission Conductors | V27: Create a better South Africa and contribute to a better Africa and a better world
A28: Name of Muni | B28: =INDEX(B29:B312,B27,1) -> DC47 Sekhukhune | R28: Heritage assets | S28: Gas | T28: MV Substations | V28: An efficient, effective and development-oriented public service
B29: Choose name from list | C29: Set name on 'Instructions' sheet | R29: Revenue Generating | S29: Parks & gardens | T29: MV Switching Stations | V29: A comprehensive, responsive and sustainable social protection system
B30: BUF Buffalo City | C30: EC EASTERN CAPE | R30: Non-revenue Generating | S30: Sportsfields & stadia | T30: MV Networks | V30: A diverse, socially cohesive society with a common national identity
B31: NMA Nelson Mandela Bay | C31: EC EASTERN CAPE | R31: Operational Buildings | S31: Swimming pools | T31: LV Networks
B32: EC101 Dr Beyers Naude | C32: EC EASTERN CAPE | R32: Housing | S32: Community halls | T32: Capital Spares
B33: EC102 Blue Crane Route | C33: EC EASTERN CAPE | R33: Biological or Cultivated Assets | S33: Libraries | T33: Dams and Weirs
B34: EC104 Makana | C34: EC EASTERN CAPE | R34: Servitudes | S34: Recreational facilities | T34: Boreholes
B35: EC105 Ndlambe | C35: EC EASTERN CAPE | R35: Licences and Rights | S35: Fire, safety & emergency | T35: Reservoirs
B36: EC106 Sundays River Valley | C36: EC EASTERN CAPE | R36: Computer Equipment | S36: Security and policing | T36: Pump Stations
B37: EC108 Kouga | C37: EC EASTERN CAPE | R37: Furniture and Office Equipment | S37: Buses | T37: Water Treatment Works
B38: EC109 Kou-Kamma | C38: EC EASTERN CAPE | R38: Machinery and Equipment | S38: Clinics | T38: Bulk Mains
B39: DC10 Sarah Baartman | C39: EC EASTERN CAPE | R39: Transport Assets | S39: Museums & Art Galleries | T39: Distribution
B40: EC121 Mbhashe | C40: EC EASTERN CAPE | R40: Land | S40: Cemeteries | T40: Distribution Points
B41: EC122 Mnquma | C41: EC EASTERN CAPE | R41: Zoo's, Marine and Non-biological Animals | S41: Social rental housing | T41: PRV Stations
B42: EC123 Great Kei | C42: EC EASTERN CAPE | S42: Buildings | T42: Capital Spares
B43: EC124 Amahlathi | C43: EC EASTERN CAPE | S43: Housing development | T43: Pump Station
B44: EC126 Ngqushwa | C44: EC EASTERN CAPE | S44: General vehicles | T44: Reticulation
B45: EC129 Raymond Mhlaba | C45: EC EASTERN CAPE | S45: Specialised vehicles - Refuse | T45: Waste Water Treatment Works
B46: DC12 Amathole | C46: EC EASTERN CAPE | S46: Specialised vehicles - Fire | T46: Outfall Sewers
B47: EC131 Inxuba Yethemba | C47: EC EASTERN CAPE | S47: Specialised vehicles - Conservancy | T47: Toilet Facilities
B48: EC135 Intsika Yethu | C48: EC EASTERN CAPE | S48: Specialised vehicles - Ambulances | T48: Capital Spares
B49: EC136 Emalahleni (Ec) | C49: EC EASTERN CAPE | S49: Plant & equipment | T49: Landfill Sites
B50: EC137 Engcobo | C50: EC EASTERN CAPE | S50: Computers - hardware/equipment | T50: Waste Transfer Stations
B51: EC138 Sakhisizwe | C51: EC EASTERN CAPE | S51: Furniture and other office equipment | T51: Waste Processing Facilities
B52: EC139 Enoch Mgijima | C52: EC EASTERN CAPE | S52: Abattoirs | T52: Waste Drop-off Points
B53: DC13 Chris Hani | C53: EC EASTERN CAPE | S53: Markets | T53: Waste Separation Facilities
B54: EC141 Elundini | C54: EC EASTERN CAPE | S54: Civic Land and Buildings | T54: Electricity Generation Facilities
B55: EC142 Senqu | C55: EC EASTERN CAPE | S55: Other Buildings | T55: Capital Spares
B56: EC145 Walter Sisulu | C56: EC EASTERN CAPE | S56: Other Land | T56: Rail Lines
B57: DC14 Joe Gqabi | C57: EC EASTERN CAPE | S57: Surplus Assets - (Investment or Inventory) | T57: Rail Structures
B58: EC153 Ngquza Hills | C58: EC EASTERN CAPE | S58: Computers - software & programming | T58: Rail Furniture
B59: EC154 Port St Johns | C59: EC EASTERN CAPE | S59: Other | T59: Drainage Collection
B60: EC155 Nyandeni | C60: EC EASTERN CAPE | T60: Storm water Conveyance
B61: EC156 Mhlontlo | C61: EC EASTERN CAPE | R61: SB 19 | T61: Attenuation
B62: EC157 King Sabata Dalindyebo | C62: EC EASTERN CAPE | R62: Yes | T62: MV Substations
B63: DC15 O .R. Tambo | C63: EC EASTERN CAPE | R63: No | T63: LV Networks
B64: EC441 Matatiele | C64: EC EASTERN CAPE | T64: Capital Spares
B65: EC442 Umzimvubu | C65: EC EASTERN CAPE | T65: Sand Pumps
B66: EC443 Winnie Madikizela Mandela | C66: EC EASTERN CAPE | T66: Piers
B67: EC444 Ntabankulu | C67: EC EASTERN CAPE | T67: Revetments
B68: DC44 Alfred Nzo | C68: EC EASTERN CAPE | T68: Promenades
B69: MAN Mangaung | C69: FS FREE STATE | T69: Capital Spares
B70: FS161 Letsemeng | C70: FS FREE STATE | T70: Data Centres
B71: FS162 Kopanong | C71: FS FREE STATE | T71: Core Layers
B72: FS163 Mohokare | C72: FS FREE STATE | T72: Distribution Layers
B73: DC16 Xhariep | C73: FS FREE STATE | T73: Capital Spares
B74: FS181 Masilonyana | C74: FS FREE STATE | T74: Halls
B75: FS182 Tokologo | C75: FS FREE STATE | T75: Centres
B76: FS183 Tswelopele | C76: FS FREE STATE | T76: Crèches
B77: FS184 Matjhabeng | C77: FS FREE STATE | T77: Clinics/Care Centres
B78: FS185 Nala | C78: FS FREE STATE | T78: Fire/Ambulance Stations
B79: DC18 Lejweleputswa | C79: FS FREE STATE | T79: Testing Stations
B80: FS191 Setsoto | C80: FS FREE STATE | T80: Museums
B81: FS192 Dihlabeng | C81: FS FREE STATE | T81: Galleries
B82: FS193 Nketoana | C82: FS FREE STATE | T82: Theatres
B83: FS194 Maluti-a-Phofung | C83: FS FREE STATE | T83: Libraries
B84: FS195 Phumelela | C84: FS FREE STATE | T84: Cemeteries/Crematoria
B85: FS196 Mantsopa | C85: FS FREE STATE | T85: Police
B86: DC19 Thabo Mofutsanyana | C86: FS FREE STATE | T86: Purls
B87: FS201 Moqhaka | C87: FS FREE STATE | T87: Public Open Space
B88: FS203 Ngwathe | C88: FS FREE STATE | T88: Nature Reserves
B89: FS204 Metsimaholo | C89: FS FREE STATE | T89: Public Ablution Facilities
B90: FS205 Mafube | C90: FS FREE STATE | T90: Markets
B91: DC20 Fezile Dabi | C91: FS FREE STATE | T91: Stalls
B92: EKU City of Ekurhuleni | C92: GT GAUTENG | T92: Abattoirs
B93: JHB City Of Johannesburg | C93: GT GAUTENG | T93: Airports
B94: TSH City Of Tshwane | C94: GT GAUTENG | T94: Taxi Ranks/Bus Terminals
B95: GT421 Emfuleni | C95: GT GAUTENG | T95: Capital Spares
B96: GT422 Midvaal | C96: GT GAUTENG | T96: Indoor Facilities
B97: GT423 Lesedi | C97: GT GAUTENG | T97: Outdoor Facilities
B98: DC42 Sedibeng | C98: GT GAUTENG | T98: Capital Spares
B99: GT481 Mogale City | C99: GT GAUTENG | T99: Monuments
B100: GT484 Merafong City | C100: GT GAUTENG | T100: Historic Buildings
B101: GT485 Rand West City | C101: GT GAUTENG | T101: Works of Art
B102: DC48 West Rand | C102: GT GAUTENG | T102: Conservation Areas
B103: ETH eThekwini | C103: KZN KWAZULU-NATAL | T103: Other Heritage
B104: KZN212 Umdoni | C104: KZN KWAZULU-NATAL | T104: Improved Property
B105: KZN213 Umzumbe | C105: KZN KWAZULU-NATAL | T105: Unimproved Property
B106: KZN214 uMuziwabantu | C106: KZN KWAZULU-NATAL | T106: Municipal Offices
B107: KZN216 Ray Nkonyeni | C107: KZN KWAZULU-NATAL | T107: Pay/Enquiry Points
B108: DC21 Ugu | C108: KZN KWAZULU-NATAL | T108: Building Plan Offices
B109: KZN221 uMshwathi | C109: KZN KWAZULU-NATAL | T109: Workshops
B110: KZN222 uMngeni | C110: KZN KWAZULU-NATAL | T110: Yards
B111: KZN223 Mpofana | C111: KZN KWAZULU-NATAL | T111: Stores
B112: KZN224 Impendle | C112: KZN KWAZULU-NATAL | T112: Laboratories
B113: KZN225 Msunduzi | C113: KZN KWAZULU-NATAL | T113: Training Centres
B114: KZN226 Mkhambathini | C114: KZN KWAZULU-NATAL | T114: Manufacturing Plant
B115: KZN227 Richmond | C115: KZN KWAZULU-NATAL | T115: Depots
B116: DC22 uMgungundlovu | C116: KZN KWAZULU-NATAL | T116: Capital Spares
B117: KZN235 Okhahlamba | C117: KZN KWAZULU-NATAL | T117: Staff Housing
B118: KZN237 Inkosi Langalibalele | C118: KZN KWAZULU-NATAL | T118: Social Housing
B119: KZN238 Alfred Duma | C119: KZN KWAZULU-NATAL | T119: Capital Spares
B120: DC23 Uthukela | C120: KZN KWAZULU-NATAL | T120: Water Rights
B121: KZN241 Endumeni | C121: KZN KWAZULU-NATAL | T121: Effluent Licenses
B122: KZN242 Nquthu | C122: KZN KWAZULU-NATAL | T122: Solid Waste Licenses
B123: KZN244 Msinga | C123: KZN KWAZULU-NATAL | T123: Computer Software and Applications
B124: KZN245 Umvoti | C124: KZN KWAZULU-NATAL | T124: Load Settlement Software Applications
B125: DC24 Umzinyathi | C125: KZN KWAZULU-NATAL | T125: Unspecified
B126: KZN252 Newcastle | C126: KZN KWAZULU-NATAL
B127: KZN253 Emadlangeni | C127: KZN KWAZULU-NATAL
B128: KZN254 Dannhauser | C128: KZN KWAZULU-NATAL
B129: DC25 Amajuba | C129: KZN KWAZULU-NATAL
B130: KZN261 eDumbe | C130: KZN KWAZULU-NATAL
B131: KZN262 uPhongolo | C131: KZN KWAZULU-NATAL
B132: KZN263 Abaqulusi | C132: KZN KWAZULU-NATAL
B133: KZN265 Nongoma | C133: KZN KWAZULU-NATAL
B134: KZN266 Ulundi | C134: KZN KWAZULU-NATAL
B135: DC26 Zululand | C135: KZN KWAZULU-NATAL
B136: KZN271 Umhlabuyalingana | C136: KZN KWAZULU-NATAL
B137: KZN272 Jozini | C137: KZN KWAZULU-NATAL
B138: KZN275 Mtubatuba | C138: KZN KWAZULU-NATAL
B139: KZN276 Hlabisa Big Five | C139: KZN KWAZULU-NATAL
B140: DC27 Umkhanyakude | C140: KZN KWAZULU-NATAL
B141: KZN281 Mfolozi | C141: KZN KWAZULU-NATAL
B142: KZN282 uMhlathuze | C142: KZN KWAZULU-NATAL
B143: KZN284 uMlalazi | C143: KZN KWAZULU-NATAL
B144: KZN285 Mthonjaneni | C144: KZN KWAZULU-NATAL
B145: KZN286 Nkandla | C145: KZN KWAZULU-NATAL
B146: DC28 King Cetshwayo | C146: KZN KWAZULU-NATAL
B147: KZN291 Mandeni | C147: KZN KWAZULU-NATAL
B148: KZN292 KwaDukuza | C148: KZN KWAZULU-NATAL
B149: KZN293 Ndwedwe | C149: KZN KWAZULU-NATAL
B150: KZN294 Maphumulo | C150: KZN KWAZULU-NATAL
B151: DC29 iLembe | C151: KZN KWAZULU-NATAL
B152: KZN433 Greater Kokstad | C152: KZN KWAZULU-NATAL
B153: KZN434 Ubuhlebezwe | C153: KZN KWAZULU-NATAL
B154: KZN435 Umzimkhulu | C154: KZN KWAZULU-NATAL
B155: KZN436 Dr Nkosazana Dlamini Zuma | C155: KZN KWAZULU-NATAL
B156: DC43 Harry Gwala | C156: KZN KWAZULU-NATAL
B157: LIM331 Greater Giyani | C157: LIM LIMPOPO
B158: LIM332 Greater Letaba | C158: LIM LIMPOPO
B159: LIM333 Greater Tzaneen | C159: LIM LIMPOPO
B160: LIM334 Ba-Phalaborwa | C160: LIM LIMPOPO
B161: LIM335 Maruleng | C161: LIM LIMPOPO
B162: DC33 Mopani | C162: LIM LIMPOPO
B163: LIM341 Musina | C163: LIM LIMPOPO
B164: LIM343 Thulamela | C164: LIM LIMPOPO
B165: LIM344 Makhado | C165: LIM LIMPOPO
B166: LIM345 Collins Chabane | C166: LIM LIMPOPO
B167: DC34 Vhembe | C167: LIM LIMPOPO
B168: LIM351 Blouberg | C168: LIM LIMPOPO
B169: LIM353 Molemole | C169: LIM LIMPOPO
B170: LIM354 Polokwane | C170: LIM LIMPOPO
B171: LIM355 Lepelle-Nkumpi | C171: LIM LIMPOPO
B172: DC35 Capricorn | C172: LIM LIMPOPO
B173: LIM361 Thabazimbi | C173: LIM LIMPOPO
B174: LIM362 Lephalale | C174: LIM LIMPOPO
B175: LIM366 Bela Bela | C175: LIM LIMPOPO
B176: LIM367 Mogalakwena | C176: LIM LIMPOPO
B177: LIM368 Modimolle-Mookgopong | C177: LIM LIMPOPO
B178: DC36 Waterberg | C178: LIM LIMPOPO
B179: LIM471 Ephraim Mogale | C179: LIM LIMPOPO
B180: LIM472 Elias Motsoaledi | C180: LIM LIMPOPO
B181: LIM473 Makhuduthamaga | C181: LIM LIMPOPO
B182: LIM476 Tubatse Fetakgomo | C182: LIM LIMPOPO
B183: DC47 Sekhukhune | C183: LIM LIMPOPO
B184: MP301 Albert Luthuli | C184: MP MPUMALANGA
B185: MP302 Msukaligwa | C185: MP MPUMALANGA
B186: MP303 Mkhondo | C186: MP MPUMALANGA
B187: MP304 Pixley Ka Seme (MP) | C187: MP MPUMALANGA
B188: MP305 Lekwa | C188: MP MPUMALANGA
B189: MP306 Dipaleseng | C189: MP MPUMALANGA
B190: MP307 Govan Mbeki | C190: MP MPUMALANGA
B191: DC30 Gert Sibande | C191: MP MPUMALANGA
B192: MP311 Victor Khanye | C192: MP MPUMALANGA
B193: MP312 Emalahleni (Mp) | C193: MP MPUMALANGA
B194: MP313 Steve Tshwete | C194: MP MPUMALANGA
B195: MP314 Emakhazeni | C195: MP MPUMALANGA
B196: MP315 Thembisile Hani | C196: MP MPUMALANGA
B197: MP316 Dr J.S. Moroka | C197: MP MPUMALANGA
B198: DC31 Nkangala | C198: MP MPUMALANGA
B199: MP321 Thaba Chweu | C199: MP MPUMALANGA
B200: MP324 Nkomazi | C200: MP MPUMALANGA
B201: MP325 Bushbuckridge | C201: MP MPUMALANGA
B202: MP326 City of Mbombela | C202: MP MPUMALANGA
B203: DC32 Ehlanzeni | C203: MP MPUMALANGA
... 84 more rows

Sheet Org structure
A1: Organisational Structure Votes | C1: Organisational Structure Sub-Votes | E1: Display Sub-Votes
A2: =B2&" - "&C2 -> Vote 01 - Speakers Office | B2: Vote 01 | C2: Speakers Office
A3: =B5&" - "&C5 -> Vote 02 - Executive Mayor's Office | B3: 01.1 | C3: Office Of The Speaker | D3: =CONCATENATE(B3, " - ", C3) -> 01.1 - Office Of The Speaker | E3: 01.1 - Office Of The Speaker
A4: =B7&" - "&C7 -> Vote 03 - Municipal Manager Office | B4: 01.2 | C4: Office Of The Chief Whip | D4: =CONCATENATE(B4, " - ", C4) -> 01.2 - Office Of The Chief Whip | E4: 01.2 - Office Of The Chief Whip
A5: =B9&" - "&C9 -> Vote 04 - Budget And Treasury | B5: Vote 02 | C5: Executive Mayor's Office
A6: =B12&" - "&C12 -> Vote 05 - Infrustracture And Water Services | B6: 02.1 | C6: Executive Mayor's Office | D6: =CONCATENATE(B6, " - ", C6) -> 02.1 - Executive Mayor's Office | E6: 02.1 - Executive Mayor's Office
A7: =B16&" - "&C16 -> Vote 06 - Planning And Economic Development | B7: Vote 03 | C7: Municipal Manager Office
A8: =B18&" - "&C18 -> Vote 07 - Community Services | B8: 03.1 | C8: Municipal Manager Admin | D8: =CONCATENATE(B8, " - ", C8) -> 03.1 - Municipal Manager Admin | E8: 03.1 - Municipal Manager Admin
A9: =B20&" - "&C20 -> Vote 08 - Sekhukhune Development Angancy | B9: Vote 04 | C9: Budget And Treasury
A10: =B22&" - "&C22 -> Vote 09 - Corporate Services | B10: 04.1 | C10: Budget & Treasury Admin | D10: =CONCATENATE(B10, " - ", C10) -> 04.1 - Budget & Treasury Admin | E10: 04.1 - Budget & Treasury Admin
A11: =B24&" - "&C24 -> Vote 10 - | B11: 04.2 | C11: Budget & Treasury Admin | D11: =CONCATENATE(B11, " - ", C11) -> 04.2 - Budget & Treasury Admin | E11: 04.2 - Budget & Treasury Admin
A12: Vote 11 - | B12: Vote 05 | C12: Infrustracture And Water Services
A13: Vote 12 - | B13: 05.1 | C13: Technical Services Admin | D13: =CONCATENATE(B13, " - ", C13) -> 05.1 - Technical Services Admin | E13: 05.1 - Technical Services Admin
A14: Vote 13 - | B14: 05.2 | C14: Water Services | D14: =CONCATENATE(B14, " - ", C14) -> 05.2 - Water Services | E14: 05.2 - Water Services
A15: Vote 14 - | B15: 05.3 | C15: Sanitation Services | D15: =CONCATENATE(B15, " - ", C15) -> 05.3 - Sanitation Services | E15: 05.3 - Sanitation Services
A16: Vote 15 - Other | B16: Vote 06 | C16: Planning And Economic Development
B17: 06.1 | C17: Planning & Economic Dev Admin | D17: =CONCATENATE(B17, " - ", C17) -> 06.1 - Planning & Economic Dev Admin | E17: 06.1 - Planning & Economic Dev Admin
B18: Vote 07 | C18: Community Services
B19: 07.1 | C19: Community Services Admin | D19: =CONCATENATE(B19, " - ", C19) -> 07.1 - Community Services Admin | E19: 07.1 - Community Services Admin
B20: Vote 08 | C20: Sekhukhune Development Angancy
B21: 08.1 | C21: Sekhukhune Development Agency | D21: =CONCATENATE(B21, " - ", C21) -> 08.1 - Sekhukhune Development Agency | E21: 08.1 - Sekhukhune Development Agency
B22: Vote 09 | C22: Corporate Services
B23: 09.1 | C23: Corporate Services Admin | D23: =CONCATENATE(B23, " - ", C23) -> 09.1 - Corporate Services Admin | E23: 09.1 - Corporate Services Admin
B24: Vote 10
B25: Vote 11
B26: Vote 12
B27: Vote 13
B28: Vote 14
B29: Vote 15 | C29: Other
B30: 15.1 | C30: Electricity Reporting Function | D30: =CONCATENATE(B30, " - ", C30) -> 15.1 - Electricity Reporting Function | E30: 15.1 - Electricity Reporting Function

Sheet Contacts
A1: ='Template names'!$B$63&" - "&" Contact Information" -> DC47 Sekhukhune - Contact Information
A3: A. GENERAL INFORMATION
A4: Municipality | B4: ='Template names'!$B$63 -> DC47 Sekhukhune | C4: Set name on 'Instructions' sheet
A6: Grade | B6: grade 4 | C6: 1 Grade in terms of the Remuneration of Public Office Bearers Act.
A8: Province | B8: =IF(B4>" ",VLOOKUP(B4,'Lookup and lists'!B29:C312,2, FALSE)," ") -> LIM LIMPOPO
A10: Web Address | B10: www.sekhukhune.gov.za
A12: e-mail Address | B12: www.sekhukhune.gov.za
A14: B. CONTACT INFORMATION
A15: Postal address:
A16: P.O. Box | B16: 8611
A17: City / Town | B17: Groblersdal
A18: Postal Code | B18: 0470
A20: Street address
A21: Building | B21: Bareki Mall
A22: Street No. & Name | B22: Cnr Van Rebeck and Cris Wild
A23: City / Town | B23: groblersdal
A24: Postal Code | B24: 0470
A26: General Contacts
A27: Telephone number | B27: 0132627000
A28: Fax number | B28: 0132623688
A30: C. POLITICAL LEADERSHIP
A31: Speaker: | C31: Secretary/PA to the Speaker:
A32: ID Number | B32: 6902027028084 | C32: ID Number | D32: 7612010524085
A33: Title | B33: Mr | C33: Title | D33: Ms
A34: Name | B34: Chego David Kgwediebotse | C34: Name | D34: Patricia Madibane
A35: Telephone number | B35: 0132627300 | C35: Telephone number | D35: 0132627301
A36: Cell number | B36: 0721852639 | C36: Cell number | D36: 0727496229
A37: Fax number | B37: 0132623688 | C37: Fax number | D37: 0132627300
A38: E-mail address | B38: chegod@sekhukhune.gov.za | C38: E-mail address | D38: madibanep@sekhukhune.gov.za
A40: Mayor/Executive Mayor: | C40: Secretary/PA to the Mayor/Executive Mayor:
A41: ID Number | B41: 5903060683083 | C41: ID Number | D41: 8207020769082
A42: Title | B42: Mrs | C42: Title | D42: Ms
A43: Name | B43: MJ Mokganyetjie | C43: Name | D43: Mpai Rammupudu
A44: Telephone number | B44: 0132627459 | C44: Telephone number | D44: 0132627300
A45: Cell number | B45: 0828575625 | C45: Cell number | D45: 0727496336
A46: Fax number | B46: 0132623688 | C46: Fax number | D46: 0132623688
A47: E-mail address | B47: mokganyetjiem@Sekhukhune.gov.za | C47: E-mail address | D47: rammupudum@sekhukhune.gov.za
A49: Deputy Mayor/Executive Mayor: | C49: Secretary/PA to the Deputy Mayor/Executive Mayor:
A50: ID Number | C50: ID Number
A51: Title | C51: Title
A52: Name | C52: Name
A53: Telephone number | C53: Telephone number
A54: Cell number | C54: Cell number
A55: Fax number | C55: Fax number
A56: E-mail address | C56: E-mail address
A58: D. MANAGEMENT LEADERSHIP
A59: Municipal Manager: | C59: Secretary/PA to the Municipal Manager:
A60: ID Number | B60: 7306250526088 | C60: ID Number | D60: 8705310747080
A61: Title | B61: Ms | C61: Title | D61: Ms
A62: Name | B62: Nancy Rampedi | C62: Name | D62: Rachel Maunatlala
A63: Telephone number | B63: 0132627312 | C63: Telephone number | D63: 0132627312
A64: Cell number | B64: 0825780196 | C64: Cell number | D64: 0728168285
A65: Fax number | B65: 0132623688 | C65: Fax number | D65: 0132623688
A66: E-mail address | B66: rampedin@sekhukhune.gov.za | C66: E-mail address | D66: Maunatlalar@sekhukhune.gov.za
A68: Chief Financial Officer | C68: Secretary/PA to the Chief Financial Officer
A69: ID Number | B69: 8602245736082 | C69: ID Number | D69: 9503010837080
A70: Title | B70: Mr | C70: Title | D70: Ms
A71: Name | B71: Hendrick Legamane Nkadimeng | C71: Name | D71: Lethabo Matlala
A72: Telephone number | B72: 0132627584 | C72: Telephone number | D72: 0132627584
A73: Cell number | B73: 0832691411 | C73: Cell number | D73: 0723790629
A74: Fax number | B74: 013 262 4303 | C74: Fax number | D74: 0132623688
A75: E-mail address | B75: nkadimengh@sekhukhune.gov.za | C75: E-mail address | D75: Matlalalm@sekhukhune.gov.za
A77: Official responsible for submitting financial information | C77: Official responsible for submitting financial information
A78: ID Number | B78: 8612040651089 | C78: ID Number | D78: 7809030373085
A79: Title | B79: Ms | C79: Title | D79: Ms
A80: Name | B80: MAPHOKENG PETUNIA PITJO | C80: Name | D80: MATHUNG MATLALA
A81: Telephone number | B81: 0132627666 | C81: Telephone number | D81: 013 262 7522
A82: Cell number | B82: 0605269306 | C82: Cell number | D82: 0828529934
A83: Fax number | B83: 0132623688 | C83: Fax number | D83: 013 262 4303
A84: E-mail address | B84: pitjom@sekhukhune.gov.za | C84: E-mail address | D84: matlalam@Sekhukhune.gov.za
A85: Official responsible for submitting financial information | C85: Official responsible for submitting financial information
A86: ID Number | B86: 910712 0452 008 | C86: ID Number
A87: Title | B87: Ms | C87: Title
A88: Name | B88: SENZILE MASEKO | C88: Name
A89: Telephone number | B89: 013 262 7670 | C89: Telephone number
A90: Cell number | B90: 073 985 1961 | C90: Cell number
A91: Fax number | B91: 013 262 4303 | C91: Fax number
A92: E-mail address | B92: masekos@sekhukhune.gov.za | C92: E-mail address
A93: Official responsible for submitting financial information | C93: Official responsible for submitting financial information
A94: ID Number | C94: ID Number
A95: Title | C95: Title
A96: Name | C96: Name
A97: Telephone number | C97: Telephone number
A98: Cell number | C98: Cell number
A99: Fax number | C99: Fax number
A100: E-mail address | C100: E-mail address
A101: Official responsible for submitting financial information | C101: Official responsible for submitting financial information
A102: ID Number | C102: ID Number
A103: Title | C103: Title
A104: Name | C104: Name
A105: Telephone number | C105: Telephone number
A106: Cell number | C106: Cell number
A107: Fax number | C107: Fax number
A108: E-mail address | C108: E-mail address
A109: Official responsible for submitting financial information | C109: Official responsible for submitting financial information
A110: ID Number | C110: ID Number
A111: Title | C111: Title
A112: Name | C112: Name
A113: Telephone number | C113: Telephone number
A114: Cell number | C114: Cell number
A115: Fax number | C115: Fax number
A116: E-mail address | C116: E-mail address
A117: Official responsible for submitting financial information | C117: Official responsible for submitting financial information
A118: ID Number | C118: ID Number
A119: Title | C119: Title
A120: Name | C120: Name
A121: Telephone number | C121: Telephone number
A122: Cell number | C122: Cell number
A123: Fax number | C123: Fax number
A124: E-mail address | C124: E-mail address
A125: Official responsible for submitting financial information | C125: Official responsible for submitting financial information
A126: ID Number | C126: ID Number
A127: Title | C127: Title
A128: Name | C128: Name
A129: Telephone number | C129: Telephone number
A130: Cell number | C130: Cell number
A131: Fax number | C131: Fax number
A132: E-mail address | C132: E-mail address
A133: Official responsible for submitting financial information
A134: ID Number
A135: Title
A136: Name
A137: Telephone number
A138: Cell number
A139: Fax number
A140: E-mail address
H170: 28/02/2024

Sheet B1-Sum
A1: =muni&" - "&adjsum&" - "&Date -> DC47 Sekhukhune - Table B1 Adjustments Budget Summary - 28/02/2024
A2: =desc -> Description | B2: =Head2 -> Budget Year 2023/24 | K2: =Head10 -> Budget Year +1 2024/25 | L2: =Head11 -> Budget Year +2 2025/26
B3: =Head6 -> Original Budget | C3: =Head54 -> Prior Adjusted | D3: =Head51 -> Accum. Funds | E3: =Head52 -> Multi-year capital | F3: =Head53 -> Unfore. Unavoid. | G3: =Head55 -> Nat. or Prov. Govt | H3: =Head50 -> Other Adjusts. | I3: =Head56 -> Total Adjusts. | J3: =Head7 -> Adjusted Budget | K3: =Head7 -> Adjusted Budget | L3: =Head7 -> Adjusted Budget
C4: 1 | D4: 2 | E4: 3 | F4: 4 | G4: 5 | H4: 6 | I4: 7 | J4: 8
A5: R thousands | B5: A | C5: A1 | D5: B | E5: C | F5: D | G5: E | H5: F | I5: G | J5: H
A6: Financial Performance
A7: Property rates | B7: =SUM('B4-FinPerf RE'!C23) -> 0 | C7: =SUM('B4-FinPerf RE'!D23) -> 0 | D7: =SUM('B4-FinPerf RE'!E23) -> 0 | E7: =SUM('B4-FinPerf RE'!F23) -> 0 | F7: =SUM('B4-FinPerf RE'!G23) -> 0 | G7: =SUM('B4-FinPerf RE'!H23) -> 0 | H7: =SUM('B4-FinPerf RE'!I23) -> 0 | I7: =SUM('B4-FinPerf RE'!J23) -> 0 | J7: =SUM('B4-FinPerf RE'!K23) -> 0 | K7: =SUM('B4-FinPerf RE'!L23) -> 0 | L7: =SUM('B4-FinPerf RE'!M23) -> 0
A8: Service charges | B8: =SUM('B4-FinPerf RE'!C8:C11) -> 109059226 | C8: =SUM('B4-FinPerf RE'!D8:D11) -> 0 | D8: =SUM('B4-FinPerf RE'!E8:E11) -> 0 | E8: =SUM('B4-FinPerf RE'!F8:F11) -> 0 | F8: =SUM('B4-FinPerf RE'!G8:G11) -> 0 | G8: =SUM('B4-FinPerf RE'!H8:H11) -> 0 | H8: =SUM('B4-FinPerf RE'!I8:I11) -> -536666 | I8: =SUM('B4-FinPerf RE'!J8:J11) -> -536666 | J8: =SUM('B4-FinPerf RE'!K8:K11) -> 108522560 | K8: =SUM('B4-FinPerf RE'!L8:L11) -> 114403127 | L8: =SUM('B4-FinPerf RE'!M8:M11) -> 119780075
A9: Investment revenue | B9: ='B4-FinPerf RE'!C16 -> 26991908 | C9: ='B4-FinPerf RE'!D16 -> 0 | D9: ='B4-FinPerf RE'!E16 -> 0 | E9: ='B4-FinPerf RE'!F16 -> 0 | F9: ='B4-FinPerf RE'!G16 -> 0 | G9: ='B4-FinPerf RE'!H16 -> 0 | H9: ='B4-FinPerf RE'!I16 -> 42000000 | I9: ='B4-FinPerf RE'!J16 -> 42000000 | J9: ='B4-FinPerf RE'!K16 -> 68991908 | K9: ='B4-FinPerf RE'!L16 -> 31170140 | L9: ='B4-FinPerf RE'!M16 -> 41594349
A10: Transfers recognised - operational | B10: ='B4-FinPerf RE'!C27 -> 1118176990 | C10: ='B4-FinPerf RE'!D27 -> 0 | D10: ='B4-FinPerf RE'!E27 -> 0 | E10: ='B4-FinPerf RE'!F27 -> 0 | F10: ='B4-FinPerf RE'!G27 -> 0 | G10: ='B4-FinPerf RE'!H27 -> 0 | H10: ='B4-FinPerf RE'!I27 -> -3013465 | I10: ='B4-FinPerf RE'!J27 -> -3013465 | J10: ='B4-FinPerf RE'!K27 -> 1115163525 | K10: ='B4-FinPerf RE'!L27 -> 1261384458 | L10: ='B4-FinPerf RE'!M27 -> 1359398233
A11: Other own revenue | B11: =+B12-SUM(B7:B10) -> 18823608 | C11: =+C12-SUM(C7:C10) -> 0 | D11: 0 | E11: 0 | F11: 0 | G11: 0 | H11: 1145409 | I11: 1145409 | J11: 19969017 | K11: 19745964 | L11: 20674027
A12: Total Revenue (excluding capital transfers and contributions) | B12: =+'B4-FinPerf RE'!C34 -> 1273051732 | C12: =+'B4-FinPerf RE'!D34 -> 0 | D12: =+'B4-FinPerf RE'!E34 -> 0 | E12: =+'B4-FinPerf RE'!F34 -> 0 | F12: =+'B4-FinPerf RE'!G34 -> 0 | G12: =+'B4-FinPerf RE'!H34 -> 0 | H12: =+'B4-FinPerf RE'!I34 -> 39595278 | I12: =+'B4-FinPerf RE'!J34 -> 39595278 | J12: =+'B4-FinPerf RE'!K34 -> 1312647010 | K12: =+'B4-FinPerf RE'!L34 -> 1426703689 | L12: =+'B4-FinPerf RE'!M34 -> 1541446684
A13: Employee costs | B13: ='B4-FinPerf RE'!C37 -> 478529270 | C13: ='B4-FinPerf RE'!D37 -> 0 | D13: ='B4-FinPerf RE'!E37 -> 0 | E13: ='B4-FinPerf RE'!F37 -> 0 | F13: ='B4-FinPerf RE'!G37 -> 0 | G13: ='B4-FinPerf RE'!H37 -> 0 | H13: ='B4-FinPerf RE'!I37 -> -14811652 | I13: =SUM(D13:H13) -> -14811652 | J13: =IF(C13=0,B13+I13,C13+I13) -> 463717618 | K13: ='B4-FinPerf RE'!L37 -> 502055610 | L13: ='B4-FinPerf RE'!M37 -> 525652225
A14: Remuneration of councillors | B14: ='B4-FinPerf RE'!C38 -> 19082579 | C14: ='B4-FinPerf RE'!D38 -> 0 | D14: ='B4-FinPerf RE'!E38 -> 0 | E14: ='B4-FinPerf RE'!F38 -> 0 | F14: ='B4-FinPerf RE'!G38 -> 0 | G14: ='B4-FinPerf RE'!H38 -> 0 | H14: ='B4-FinPerf RE'!I38 -> -1800000 | I14: -1800000 | J14: 17282579 | K14: ='B4-FinPerf RE'!L38 -> 20017625 | L14: ='B4-FinPerf RE'!M38 -> 20958453
A15: Depreciation & asset impairment | B15: ='B4-FinPerf RE'!C41+'B4-FinPerf RE'!C42 -> 99840051 | C15: ='B4-FinPerf RE'!D41+'B4-FinPerf RE'!D42 -> 0 | D15: ='B4-FinPerf RE'!E41+'B4-FinPerf RE'!E42 -> 0 | E15: ='B4-FinPerf RE'!F41+'B4-FinPerf RE'!F42 -> 0 | F15: ='B4-FinPerf RE'!G41+'B4-FinPerf RE'!G42 -> 0 | G15: ='B4-FinPerf RE'!H41+'B4-FinPerf RE'!H42 -> 0 | H15: ='B4-FinPerf RE'!I41+'B4-FinPerf RE'!I42 -> -110000 | I15: ='B4-FinPerf RE'!J41+'B4-FinPerf RE'!J42 -> -110000 | J15: ='B4-FinPerf RE'!K41+'B4-FinPerf RE'!K42 -> 99730051 | K15: ='B4-FinPerf RE'!L41+'B4-FinPerf RE'!L42 -> 104732214 | L15: ='B4-FinPerf RE'!M41+'B4-FinPerf RE'!M42 -> 109654628
A16: Finance charges | B16: ='B4-FinPerf RE'!C43 -> 105300 | C16: ='B4-FinPerf RE'!D43 -> 0 | D16: ='B4-FinPerf RE'!E43 -> 0 | E16: ='B4-FinPerf RE'!F43 -> 0 | F16: ='B4-FinPerf RE'!G43 -> 0 | G16: ='B4-FinPerf RE'!H43 -> 0 | H16: ='B4-FinPerf RE'!I43 -> 0 | I16: ='B4-FinPerf RE'!J43 -> 0 | J16: ='B4-FinPerf RE'!K43 -> 105300 | K16: ='B4-FinPerf RE'!L43 -> 110460 | L16: ='B4-FinPerf RE'!M43 -> 115651
A17: Inventory consumed and bulk purchases | B17: =SUM('B4-FinPerf RE'!C39:C40) -> 185066733 | C17: =SUM('B4-FinPerf RE'!D39:D40) -> 0 | D17: =SUM('B4-FinPerf RE'!E39:E40) -> 0 | E17: =SUM('B4-FinPerf RE'!F39:F40) -> 0 | F17: =SUM('B4-FinPerf RE'!G39:G40) -> 0 | G17: =SUM('B4-FinPerf RE'!H39:H40) -> 0 | H17: =SUM('B4-FinPerf RE'!I39:I40) -> 22200001 | I17: =SUM('B4-FinPerf RE'!J39:J40) -> 22200001 | J17: =SUM('B4-FinPerf RE'!K39:K40) -> 207266734 | K17: =SUM('B4-FinPerf RE'!L39:L40) -> 224717503 | L17: =SUM('B4-FinPerf RE'!M39:M40) -> 269084164
A18: Transfers and subsidies | B18: ='B4-FinPerf RE'!C45 -> 20000000 | C18: ='B4-FinPerf RE'!D45 -> 0 | D18: ='B4-FinPerf RE'!E45 -> 0 | E18: ='B4-FinPerf RE'!F45 -> 0 | F18: ='B4-FinPerf RE'!G45 -> 0 | G18: ='B4-FinPerf RE'!H45 -> 0 | H18: ='B4-FinPerf RE'!I45 -> 0 | I18: 0 | J18: 20000000 | K18: ='B4-FinPerf RE'!L45 -> 0 | L18: ='B4-FinPerf RE'!M45 -> 0
A19: Other expenditure | B19: =+B20-SUM(B13:B18) -> 428122870 | C19: =+C20-SUM(C13:C18) -> 0 | D19: 0 | E19: 0 | F19: 0 | G19: 0 | H19: 22286238 | I19: 22286238 | J19: 450409108 | K19: 551626374 | L19: 591286187
A20: Total Expenditure | B20: =+'B4-FinPerf RE'!C50 -> 1230746803 | C20: =+'B4-FinPerf RE'!D50 -> 0 | D20: =+'B4-FinPerf RE'!E50 -> 0 | E20: =+'B4-FinPerf RE'!F50 -> 0 | F20: =+'B4-FinPerf RE'!G50 -> 0 | G20: =+'B4-FinPerf RE'!H50 -> 0 | H20: =+'B4-FinPerf RE'!I50 -> 27764587 | I20: =+'B4-FinPerf RE'!J50 -> 27764587 | J20: =+'B4-FinPerf RE'!K50 -> 1258511390 | K20: =+'B4-FinPerf RE'!L50 -> 1403259786 | L20: =+'B4-FinPerf RE'!M50 -> 1516751308
A21: Surplus/(Deficit) | B21: =B12-B20 -> 42304929 | C21: 0 | D21: 0 | E21: 0 | F21: 0 | G21: 0 | H21: 11830691 | I21: 11830691 | J21: 54135620 | K21: 23443903 | L21: 24695376
A22: ='B4-FinPerf RE'!A53 -> Transfers and subsidies - capital (monetary allocations) | B22: ='B4-FinPerf RE'!C53 -> 551608010 | C22: ='B4-FinPerf RE'!D53 -> 0 | D22: ='B4-FinPerf RE'!E53 -> 0 | E22: ='B4-FinPerf RE'!F53 -> 0 | F22: ='B4-FinPerf RE'!G53 -> 0 | G22: ='B4-FinPerf RE'!H53 -> 0 | H22: ='B4-FinPerf RE'!I53 -> -34451535 | I22: ='B4-FinPerf RE'!J53 -> -34451535 | J22: ='B4-FinPerf RE'!K53 -> 517156475 | K22: ='B4-FinPerf RE'!L53 -> 557785542 | L22: ='B4-FinPerf RE'!M53 -> 572601767
A23: Transfers and subsidies - capital (in-kind - all) | B23: ='B4-FinPerf RE'!C54 -> 0 | C23: ='B4-FinPerf RE'!D54 -> 0 | D23: ='B4-FinPerf RE'!E54 -> 0 | E23: ='B4-FinPerf RE'!F54 -> 0 | F23: ='B4-FinPerf RE'!G54 -> 0 | G23: ='B4-FinPerf RE'!H54 -> 0 | H23: ='B4-FinPerf RE'!I54 -> 0 | I23: ='B4-FinPerf RE'!J54 -> 0 | J23: ='B4-FinPerf RE'!K54 -> 0 | K23: ='B4-FinPerf RE'!L54 -> 0 | L23: ='B4-FinPerf RE'!M54 -> 0
A24: Surplus/(Deficit) after capital transfers & contributions | B24: =B21+SUM(B22:B23) -> 593912939 | C24: 0 | D24: 0 | E24: 0 | F24: 0 | G24: 0 | H24: -22620844 | I24: =SUM(D24:H24) -> -22620844 | J24: =IF(C24=0,B24+I24,C24+I24) -> 571292095 | K24: 581229445 | L24: 597297143
A25: Share of surplus/ (deficit) of associate | B25: ='B4-FinPerf RE'!C61 -> 0 | C25: ='B4-FinPerf RE'!D61 -> 0 | D25: ='B4-FinPerf RE'!E61 -> 0 | E25: ='B4-FinPerf RE'!F61 -> 0 | F25: ='B4-FinPerf RE'!G61 -> 0 | G25: ='B4-FinPerf RE'!H61 -> 0 | H25: ='B4-FinPerf RE'!I61 -> 0 | I25: ='B4-FinPerf RE'!J61 -> 0 | J25: ='B4-FinPerf RE'!K61 -> 0 | K25: ='B4-FinPerf RE'!L61 -> 0 | L25: ='B4-FinPerf RE'!M61 -> 0
A26: Surplus/ (Deficit) for the year | B26: =B24+B25 -> 593912939 | C26: 0 | D26: 0 | E26: 0 | F26: 0 | G26: 0 | H26: -22620844 | I26: -22620844 | J26: 571292095 | K26: 581229445 | L26: 597297143
A28: Capital expenditure & funds sources
A29: Capital expenditure | B29: ='B5-Capex'!C42 -> 593743325 | C29: ='B5-Capex'!D42 -> 0 | D29: ='B5-Capex'!E42 -> 0 | E29: ='B5-Capex'!F42 -> 0 | F29: ='B5-Capex'!G42 -> 0 | G29: ='B5-Capex'!H42 -> 0 | H29: ='B5-Capex'!I42 -> -24125452 | I29: =SUM(D29:H29) -> -24125452 | J29: =IF(C29=0,B29+I29,C29+I29) -> 569617873 | K29: ='B5-Capex'!L42 -> 579118381 | L29: ='B5-Capex'!M42 -> 595086856
A30: Transfers recognised - capital | B30: ='B5-Capex'!C72 -> 551608011 | C30: ='B5-Capex'!D72 -> 0 | D30: ='B5-Capex'!E72 -> 0 | E30: ='B5-Capex'!F72 -> 0 | F30: ='B5-Capex'!G72 -> 0 | G30: ='B5-Capex'!H72 -> 0 | H30: ='B5-Capex'!I72 -> -34451538 | I30: =SUM(D30:H30) -> -34451538 | J30: =IF(C30=0,B30+I30,C30+I30) -> 517156473 | K30: ='B5-Capex'!L72 -> 557785542 | L30: ='B5-Capex'!M72 -> 572601766
A32: Borrowing | B32: ='B5-Capex'!C74 -> 0 | C32: ='B5-Capex'!D74 -> 0 | D32: ='B5-Capex'!E74 -> 0 | E32: ='B5-Capex'!F74 -> 0 | F32: ='B5-Capex'!G74 -> 0 | G32: ='B5-Capex'!H74 -> 0 | H32: ='B5-Capex'!I74 -> 0 | I32: =SUM(D32:H32) -> 0 | J32: =IF(C32=0,B32+I32,C32+I32) -> 0 | K32: ='B5-Capex'!L74 -> 0 | L32: ='B5-Capex'!M74 -> 0
A33: Internally generated funds | B33: ='B5-Capex'!C75 -> 42135314 | C33: ='B5-Capex'!D75 -> 0 | D33: ='B5-Capex'!E75 -> 0 | E33: ='B5-Capex'!F75 -> 0 | F33: ='B5-Capex'!G75 -> 0 | G33: ='B5-Capex'!H75 -> 0 | H33: ='B5-Capex'!I75 -> 10326086 | I33: =SUM(D33:H33) -> 10326086 | J33: =IF(C33=0,B33+I33,C33+I33) -> 52461400 | K33: ='B5-Capex'!L75 -> 21332839 | L33: ='B5-Capex'!M75 -> 22485090
A34: Total sources of capital funds | B34: =+B30+B32+B33 -> 593743325 | C34: =+C30+C32+C33 -> 0 | D34: 0 | E34: 0 | F34: 0 | G34: 0 | H34: -24125452 | I34: =SUM(D34:H34) -> -24125452 | J34: =IF(C34=0,B34+I34,C34+I34) -> 569617873 | K34: 579118381 | L34: 595086856
A36: Financial position
A37: Total current assets | B37: ='B6-FinPos'!C15 -> 1306349435 | C37: ='B6-FinPos'!D15 -> 0 | D37: ='B6-FinPos'!E15 -> 0 | E37: ='B6-FinPos'!F15 -> 0 | F37: ='B6-FinPos'!G15 -> 0 | G37: ='B6-FinPos'!H15 -> 0 | H37: ='B6-FinPos'!I15 -> 410443958 | I37: =SUM(D37:H37) -> 410443958 | J37: =IF(C37=0,B37+I37,C37+I37) -> 1716793393 | K37: ='B6-FinPos'!L15 -> 1251294590 | L37: ='B6-FinPos'!M15 -> 1712193839
A38: Total non current assets | B38: ='B6-FinPos'!C27 -> 3877063470 | C38: ='B6-FinPos'!D27 -> 0 | D38: ='B6-FinPos'!E27 -> 0 | E38: ='B6-FinPos'!F27 -> 0 | F38: ='B6-FinPos'!G27 -> 0 | G38: ='B6-FinPos'!H27 -> 0 | H38: ='B6-FinPos'!I27 -> -24125452 | I38: =SUM(D38:H38) -> -24125452 | J38: =IF(C38=0,B38+I38,C38+I38) -> 3852938018 | K38: ='B6-FinPos'!L27 -> 4023321212 | L38: ='B6-FinPos'!M27 -> 4201639514
A39: Total current liabilities | B39: ='B6-FinPos'!C40 -> 259209180 | C39: ='B6-FinPos'!D40 -> 0 | D39: ='B6-FinPos'!E40 -> 0 | E39: ='B6-FinPos'!F40 -> 0 | F39: ='B6-FinPos'!G40 -> 0 | G39: ='B6-FinPos'!H40 -> 0 | H39: ='B6-FinPos'!I40 -> 100000241 | I39: =SUM(D39:H39) -> 100000241 | J39: =IF(C39=0,B39+I39,C39+I39) -> 359209421 | K39: ='B6-FinPos'!L40 -> 247876205 | L39: ='B6-FinPos'!M40 -> 254497085
A40: Total non current liabilities | B40: ='B6-FinPos'!C47 -> 54002671 | C40: ='B6-FinPos'!D47 -> 0 | D40: ='B6-FinPos'!E47 -> 0 | E40: ='B6-FinPos'!F47 -> 0 | F40: ='B6-FinPos'!G47 -> 0 | G40: ='B6-FinPos'!H47 -> 0 | H40: ='B6-FinPos'!I47 -> 0 | I40: =SUM(D40:H40) -> 0 | J40: =IF(C40=0,B40+I40,C40+I40) -> 54002671 | K40: ='B6-FinPos'!L47 -> 53775000 | L40: ='B6-FinPos'!M47 -> 56690112
A41: Community wealth/Equity | B41: ='B6-FinPos'!C56 -> 4870201054 | C41: ='B6-FinPos'!D56 -> 0 | D41: ='B6-FinPos'!E56 -> 0 | E41: ='B6-FinPos'!F56 -> 0 | F41: ='B6-FinPos'!G56 -> 0 | G41: ='B6-FinPos'!H56 -> 0 | H41: ='B6-FinPos'!I56 -> 286318264 | I41: =SUM(D41:H41) -> 286318264 | J41: =IF(C41=0,B41+I41,C41+I41) -> 5156519318 | K41: ='B6-FinPos'!L56 -> 4972964596 | L41: ='B6-FinPos'!M56 -> 5602646156
A43: Cash flows
A44: Net cash from (used) operating | B44: ='B7-CFlow'!C19 -> 733678265 | C44: ='B7-CFlow'!D19 -> 0 | D44: ='B7-CFlow'!E19 -> 0 | E44: ='B7-CFlow'!F19 -> 0 | F44: ='B7-CFlow'!G19 -> 0 | G44: ='B7-CFlow'!H19 -> 0 | H44: ='B7-CFlow'!I19 -> -124193076 | I44: =SUM(D44:H44) -> -124193076 | J44: =IF(C44=0,B44+I44,C44+I44) -> 609485189 | K44: ='B7-CFlow'!L19 -> 880659165 | L44: ='B7-CFlow'!M19 -> 631829252
A45: Net cash from (used) investing | B45: ='B7-CFlow'!C29 -> -593290513 | C45: ='B7-CFlow'!D29 -> 0 | D45: ='B7-CFlow'!E29 -> 0 | E45: ='B7-CFlow'!F29 -> 0 | F45: ='B7-CFlow'!G29 -> 0 | G45: ='B7-CFlow'!H29 -> 0 | H45: ='B7-CFlow'!I29 -> 24125452 | I45: =SUM(D45:H45) -> 24125452 | J45: =IF(C45=0,B45+I45,C45+I45) -> -569165061 | K45: ='B7-CFlow'!L29 -> -578643381 | L45: ='B7-CFlow'!M29 -> -594589531
A46: Net cash from (used) financing | B46: ='B7-CFlow'!C38 -> 0 | C46: ='B7-CFlow'!D38 -> 0 | D46: ='B7-CFlow'!E38 -> 0 | E46: ='B7-CFlow'!F38 -> 0 | F46: ='B7-CFlow'!G38 -> 0 | G46: ='B7-CFlow'!H38 -> 0 | H46: ='B7-CFlow'!I38 -> 0 | I46: =SUM(D46:H46) -> 0 | J46: =IF(C46=0,B46+I46,C46+I46) -> 0 | K46: ='B7-CFlow'!L38 -> 110755 | L46: ='B7-CFlow'!M38 -> 115961
A47: Cash/cash equivalents at the year end | B47: ='B7-CFlow'!C42 -> 416350061 | C47: ='B7-CFlow'!D42 -> 0 | D47: ='B7-CFlow'!E42 -> 0 | E47: ='B7-CFlow'!F42 -> 0 | F47: ='B7-CFlow'!G42 -> 0 | G47: ='B7-CFlow'!H42 -> 0 | H47: ='B7-CFlow'!I42 -> 552362381 | I47: =SUM(D47:H47) -> 552362381 | J47: =IF(C47=0,B47+I47,C47+I47) -> 968712442 | K47: ='B7-CFlow'!L42 -> 717602669 | L47: ='B7-CFlow'!M42 -> 816154227
A49: Cash backing/surplus reconciliation
A50: Cash and investments available | B50: ='B8-ResRecon'!C10 -> 406789922 | C50: ='B8-ResRecon'!D10 -> 0 | D50: ='B8-ResRecon'!E10 -> 0 | E50: ='B8-ResRecon'!F10 -> 0 | F50: ='B8-ResRecon'!G10 -> 0 | G50: ='B8-ResRecon'!H10 -> 0 | H50: ='B8-ResRecon'!I10 -> 510830688 | I50: =SUM(D50:H50) -> 510830688 | J50: =IF(C50=0,B50+I50,C50+I50) -> 917620610 | K50: ='B8-ResRecon'!L10 -> 508642165 | L50: ='B8-ResRecon'!M10 -> 875822491
A51: Application of cash and investments | B51: ='B8-ResRecon'!C20 -> 226148468 | C51: ='B8-ResRecon'!D20 -> 0 | D51: ='B8-ResRecon'!E20 -> 0 | E51: ='B8-ResRecon'!F20 -> 0 | F51: ='B8-ResRecon'!G20 -> 0 | G51: ='B8-ResRecon'!H20 -> 0 | H51: ='B8-ResRecon'!I20 -> 100358116 | I51: =SUM(D51:H51) -> 100358116 | J51: =IF(C51=0,B51+I51,C51+I51) -> 326506584 | K51: ='B8-ResRecon'!L20 -> 212884312 | L51: ='B8-ResRecon'!M20 -> 221037327
A52: Balance - surplus (shortfall) | B52: =B50-B51 -> 180641454 | C52: 0 | D52: 0 | E52: 0 | F52: 0 | G52: 0 | H52: 410472572 | I52: 410472572 | J52: 591114026 | K52: 295757853 | L52: 654785164
A54: Asset Management
A55: Asset register summary (WDV) | B55: ='B9-Asset'!C180 -> 2751035070 | C55: ='B9-Asset'!D180 -> 0 | D55: ='B9-Asset'!E180 -> 0 | E55: ='B9-Asset'!F180 -> 0 | F55: ='B9-Asset'!G180 -> 0 | G55: ='B9-Asset'!H180 -> 0 | H55: ='B9-Asset'!I180 -> -24125452 | I55: =SUM(D55:H55) -> -24125452 | J55: =IF(C55=0,B55+I55,C55+I55) -> 2726909618 | K55: ='B9-Asset'!L180 -> 2842117420 | L55: ='B9-Asset'!M180 -> 2964919144
A56: Depreciation | B56: ='B9-Asset'!C183 -> 99840051 | C56: ='B9-Asset'!D183 -> 0 | D56: ='B9-Asset'!E183 -> 0 | E56: ='B9-Asset'!F183 -> 0 | F56: ='B9-Asset'!G183 -> 0 | G56: ='B9-Asset'!H183 -> 0 | H56: ='B9-Asset'!I183 -> -110000 | I56: =SUM(D56:H56) -> -110000 | J56: =IF(C56=0,B56+I56,C56+I56) -> 99730051 | K56: ='B9-Asset'!L183 -> 104732214 | L56: ='B9-Asset'!M183 -> 109654628
A57: Renewal and Upgrading of Existing Assets | B57: ='B9-Asset'!C42+'B9-Asset'!C77 -> 8410000 | C57: ='B9-Asset'!D42+'B9-Asset'!D77 -> 0 | D57: ='B9-Asset'!E42+'B9-Asset'!E77 -> 0 | E57: ='B9-Asset'!F42+'B9-Asset'!F77 -> 0 | F57: ='B9-Asset'!G42+'B9-Asset'!G77 -> 0 | G57: ='B9-Asset'!H42+'B9-Asset'!H77 -> 0 | H57: ='B9-Asset'!I42+'B9-Asset'!I77 -> 1522971 | I57: =SUM(D57:H57) -> 1522971 | J57: =IF(C57=0,B57+I57,C57+I57) -> 9932971 | K57: ='B9-Asset'!L42+'B9-Asset'!L77 -> 28213593 | L57: ='B9-Asset'!M42+'B9-Asset'!M77 -> 35911373
A58: Repairs and Maintenance | B58: ='B9-Asset'!C184 -> 68711859 | C58: ='B9-Asset'!D184 -> 0 | D58: ='B9-Asset'!E184 -> 0 | E58: ='B9-Asset'!F184 -> 0 | F58: ='B9-Asset'!G184 -> 0 | G58: ='B9-Asset'!H184 -> 0 | H58: ='B9-Asset'!I184 -> 30100000 | I58: =SUM(D58:H58) -> 30100000 | J58: =IF(C58=0,B58+I58,C58+I58) -> 98811859 | K58: ='B9-Asset'!L184 -> 159351403 | L58: ='B9-Asset'!M184 -> 179321565
A60: Free services
A61: Cost of Free Basic Services provided | B61: ='B10-SerDel'!C62 -> 0 | C61: ='B10-SerDel'!D62 -> 0 | D61: ='B10-SerDel'!E62 -> 0 | E61: ='B10-SerDel'!F62 -> 0 | F61: ='B10-SerDel'!G62 -> 0 | G61: ='B10-SerDel'!H62 -> 0 | H61: ='B10-SerDel'!I62 -> 0 | I61: ='B10-SerDel'!J62 -> 0 | J61: ='B10-SerDel'!K62 -> 0 | K61: ='B10-SerDel'!L62 -> 0 | L61: ='B10-SerDel'!M62 -> 0
A62: Revenue cost of free services provided | B62: ='B10-SerDel'!C81 -> 0 | C62: ='B10-SerDel'!D81 -> 0 | D62: ='B10-SerDel'!E81 -> 0 | E62: ='B10-SerDel'!F81 -> 0 | F62: ='B10-SerDel'!G81 -> 0 | G62: ='B10-SerDel'!H81 -> 0 | H62: ='B10-SerDel'!I81 -> 0 | I62: ='B10-SerDel'!J81 -> 0 | J62: ='B10-SerDel'!K81 -> 0 | K62: ='B10-SerDel'!L81 -> 0 | L62: ='B10-SerDel'!M81 -> 0
A63: Households below minimum service level
A64: Water: | B64: ='B10-SerDel'!C16 -> 15000 | C64: ='B10-SerDel'!D16 -> 0 | D64: ='B10-SerDel'!E16 -> 0 | E64: ='B10-SerDel'!F16 -> 0 | F64: ='B10-SerDel'!G16 -> 0 | G64: ='B10-SerDel'!H16 -> 0 | H64: ='B10-SerDel'!I16 -> 0 | I64: =SUM(D64:H64) -> 0 | J64: =IF(C64=0,B64+I64,C64+I64) -> 15000 | K64: ='B10-SerDel'!L16 -> 0 | L64: ='B10-SerDel'!M16 -> 0
A65: Sanitation/sewerage: | B65: ='B10-SerDel'!C28 -> 10000 | C65: ='B10-SerDel'!D28 -> 0 | D65: ='B10-SerDel'!E28 -> 0 | E65: ='B10-SerDel'!F28 -> 0 | F65: ='B10-SerDel'!G28 -> 0 | G65: ='B10-SerDel'!H28 -> 0 | H65: ='B10-SerDel'!I28 -> 0 | I65: =SUM(D65:H65) -> 0 | J65: =IF(C65=0,B65+I65,C65+I65) -> 10000 | K65: ='B10-SerDel'!L28 -> 15000 | L65: ='B10-SerDel'!M28 -> 0
A66: Energy: | B66: ='B10-SerDel'!C37 -> 0 | C66: ='B10-SerDel'!D37 -> 0 | D66: ='B10-SerDel'!E37 -> 0 | E66: ='B10-SerDel'!F37 -> 0 | F66: ='B10-SerDel'!G37 -> 0 | G66: ='B10-SerDel'!H37 -> 0 | H66: ='B10-SerDel'!I37 -> 0 | I66: =SUM(D66:H66) -> 0 | J66: =IF(C66=0,B66+I66,C66+I66) -> 0 | K66: ='B10-SerDel'!L37 -> 0 | L66: ='B10-SerDel'!M37 -> 0
A67: Refuse: | B67: ='B10-SerDel'!C47 -> 0 | C67: ='B10-SerDel'!D47 -> 0 | D67: ='B10-SerDel'!E47 -> 0 | E67: ='B10-SerDel'!F47 -> 0 | F67: ='B10-SerDel'!G47 -> 0 | G67: ='B10-SerDel'!H47 -> 0 | H67: ='B10-SerDel'!I47 -> 0 | I67: =SUM(D67:H67) -> 0 | J67: =IF(C67=0,B67+I67,C67+I67) -> 0 | K67: ='B10-SerDel'!L47 -> 0 | L67: ='B10-SerDel'!M47 -> 0
A69: References
A70: 1. Only complete if a previous adjusted budget has been approved in the same financial year. Reflect most recent adjusted budget.
A71: 2. Additional cash-backed accumulated funds/unspent funds (MFMA section 18(1)(b) and section 28(2)(e)) identified after the Original Budget approved and after annual financial statements audited (note: only where underspending could not reasonably have been foreseen)
A72: 3. Increases of funds approved under MFMA section 31
A73: 4. Adjustments approved in accordance with MFMA section 29
A74: 5. Adjustments to transfers from National or Provincial Government
A75: 6. Adjusts. = 'Other' Adjustments proposed to be approved; including revenue under-collection (MFMA section 28(2)(a)); additional revenue appropriation on existing programmes (section 28(2))(b); projected savings (section 28(2)(d)); error correction (section 28(2)(f))
A76: 7. G = B + C + D + E + F
A77: 8. Adjusted Budget H = (A or A1/2 etc) + G

Sheet B2-FinPerf SC
A1: =muni&" - "&_ADJ3&" - "&Date -> DC47 Sekhukhune - Table B2 Adjustments Budget Financial Performance (functional classification) - 28/02/2024
A2: ="Standard "&desc -> Standard Description | B2: =head27 -> Ref | C2: =Head2 -> Budget Year 2023/24 | L2: =Head10 -> Budget Year +1 2024/25 | M2: =Head11 -> Budget Year +2 2025/26
C3: =Head6 -> Original Budget | D3: =Head54 -> Prior Adjusted | E3: =Head51 -> Accum. Funds | F3: =Head52 -> Multi-year capital | G3: =Head53 -> Unfore. Unavoid. | H3: =Head55 -> Nat. or Prov. Govt | I3: =Head50 -> Other Adjusts. | J3: =Head56 -> Total Adjusts. | K3: =Head7 -> Adjusted Budget | L3: =Head7 -> Adjusted Budget | M3: =Head7 -> Adjusted Budget
D4: 5 | E4: =D4+1 -> 6 | F4: 7 | G4: 8 | H4: 9 | I4: 10 | J4: 11 | K4: 12
A5: R thousands | B5: 1, 4 | C5: A | D5: A1 | E5: B | F5: C | G5: D | H5: E | I5: F | J5: G | K5: H
A6: Revenue - Functional
A7: Governance and administration | C7: =SUM(C8:C10) -> 1824659742 | D7: =SUM(D8:D10) -> 0 | E7: 0 | F7: 0 | G7: 0 | H7: 0 | I7: 5143743 | J7: =SUM(J8:J10) -> 5143743 | K7: =SUM(K8:K10) -> 1829803485 | L7: =SUM(L8:L10) -> 1984489231 | M7: =SUM(M8:M10) -> 2114048451
A8: Executive and council | C8: =B2B!C8 -> 0 | D8: =B2B!D8 -> 0 | E8: =B2B!E8 -> 0 | F8: =B2B!F8 -> 0 | G8: =B2B!G8 -> 0 | H8: =B2B!H8 -> 0 | I8: =B2B!I8 -> 0 | J8: =SUM(E8:I8) -> 0 | K8: =IF(D8=0,C8+J8,D8+J8) -> 0 | L8: =B2B!L8 -> 0 | M8: =B2B!M8 -> 0
A9: Finance and administration | C9: =B2B!C11 -> 1824659742 | D9: =B2B!D11 -> 0 | E9: =B2B!E11 -> 0 | F9: =B2B!F11 -> 0 | G9: =B2B!G11 -> 0 | H9: =B2B!H11 -> 0 | I9: =B2B!I11 -> 5143743 | J9: =SUM(E9:I9) -> 5143743 | K9: =IF(D9=0,C9+J9,D9+J9) -> 1829803485 | L9: =B2B!L11 -> 1984489231 | M9: =B2B!M11 -> 2114048451
A10: Internal audit | C10: =B2B!C25 -> 0 | D10: =B2B!D25 -> 0 | E10: =B2B!E25 -> 0 | F10: =B2B!F25 -> 0 | G10: =B2B!G25 -> 0 | H10: =B2B!H25 -> 0 | I10: =B2B!I25 -> 0 | J10: =SUM(E10:I10) -> 0 | K10: =IF(D10=0,C10+J10,D10+J10) -> 0 | L10: =B2B!L25 -> 0 | M10: =B2B!M25 -> 0
A11: Community and public safety | C11: =SUM(C12:C16) -> 0 | D11: =SUM(D12:D16) -> 0 | E11: 0 | F11: 0 | G11: 0 | H11: 0 | I11: 0 | J11: =SUM(J12:J16) -> 0 | K11: =SUM(K12:K16) -> 0 | L11: =SUM(L12:L16) -> 0 | M11: =SUM(M12:M16) -> 0
A12: Community and social services | C12: =B2B!C28 -> 0 | D12: =B2B!D28 -> 0 | E12: =B2B!E28 -> 0 | F12: =B2B!F28 -> 0 | G12: =B2B!G28 -> 0 | H12: =B2B!H28 -> 0 | I12: =B2B!I28 -> 0 | J12: =SUM(E12:I12) -> 0 | K12: =IF(D12=0,C12+J12,D12+J12) -> 0 | L12: =B2B!L28 -> 0 | M12: =B2B!M28 -> 0
A13: Sport and recreation | C13: =B2B!C50 -> 0 | D13: =B2B!D50 -> 0 | E13: =B2B!E50 -> 0 | F13: =B2B!F50 -> 0 | G13: =B2B!G50 -> 0 | H13: =B2B!H50 -> 0 | I13: =B2B!I50 -> 0 | J13: =SUM(E13:I13) -> 0 | K13: =IF(D13=0,C13+J13,D13+J13) -> 0 | L13: =B2B!L50 -> 0 | M13: =B2B!M50 -> 0
A14: Public safety | C14: =B2B!C56 -> 0 | D14: =B2B!D56 -> 0 | E14: =B2B!E56 -> 0 | F14: =B2B!F56 -> 0 | G14: =B2B!G56 -> 0 | H14: =B2B!H56 -> 0 | I14: =B2B!I56 -> 0 | J14: =SUM(E14:I14) -> 0 | K14: =IF(D14=0,C14+J14,D14+J14) -> 0 | L14: =B2B!L56 -> 0 | M14: =B2B!M56 -> 0
A15: Housing | C15: =B2B!C65 -> 0 | D15: =B2B!D65 -> 0 | E15: =B2B!E65 -> 0 | F15: =B2B!F65 -> 0 | G15: =B2B!G65 -> 0 | H15: =B2B!H65 -> 0 | I15: =B2B!I65 -> 0 | J15: =SUM(E15:I15) -> 0 | K15: =IF(D15=0,C15+J15,D15+J15) -> 0 | L15: =B2B!L65 -> 0 | M15: =B2B!M65 -> 0
A16: Health | C16: =B2B!C68 -> 0 | D16: =B2B!D68 -> 0 | E16: =B2B!E68 -> 0 | F16: =B2B!F68 -> 0 | G16: =B2B!G68 -> 0 | H16: =B2B!H68 -> 0 | I16: =B2B!I68 -> 0 | J16: =SUM(E16:I16) -> 0 | K16: =IF(D16=0,C16+J16,D16+J16) -> 0 | L16: =B2B!L68 -> 0 | M16: =B2B!M68 -> 0
A17: Economic and environmental services | C17: =SUM(C18:C20) -> 0 | D17: =SUM(D18:D20) -> 0 | E17: 0 | F17: 0 | G17: 0 | H17: 0 | I17: 0 | J17: =SUM(J18:J20) -> 0 | K17: =SUM(K18:K20) -> 0 | L17: =SUM(L18:L20) -> 0 | M17: =SUM(M18:M20) -> 0
A18: Planning and development | C18: =B2B!C77 -> 0 | D18: =B2B!D77 -> 0 | E18: =B2B!E77 -> 0 | F18: =B2B!F77 -> 0 | G18: =B2B!G77 -> 0 | H18: =B2B!H77 -> 0 | I18: =B2B!I77 -> 0 | J18: =SUM(E18:I18) -> 0 | K18: =IF(D18=0,C18+J18,D18+J18) -> 0 | L18: =B2B!L77 -> 0 | M18: =B2B!M77 -> 0
A19: Road transport | C19: =B2B!C88 -> 0 | D19: =B2B!D88 -> 0 | E19: =B2B!E88 -> 0 | F19: =B2B!F88 -> 0 | G19: =B2B!G88 -> 0 | H19: =B2B!H88 -> 0 | I19: =B2B!I88 -> 0 | J19: =SUM(E19:I19) -> 0 | K19: =IF(D19=0,C19+J19,D19+J19) -> 0 | L19: =B2B!L88 -> 0 | M19: =B2B!M88 -> 0
A20: Environmental protection | C20: =B2B!C93 -> 0 | D20: =B2B!D93 -> 0 | E20: =B2B!E93 -> 0 | F20: =B2B!F93 -> 0 | G20: =B2B!G93 -> 0 | H20: =B2B!H93 -> 0 | I20: =B2B!I93 -> 0 | J20: =SUM(E20:I20) -> 0 | K20: =IF(D20=0,C20+J20,D20+J20) -> 0 | L20: =B2B!L93 -> 0 | M20: =B2B!M93 -> 0
A21: Trading services | C21: =SUM(C22:C25) -> 0 | D21: =SUM(D22:D25) -> 0 | E21: 0 | F21: 0 | G21: 0 | H21: 0 | I21: 0 | J21: 0 | K21: 0 | L21: 0 | M21: 0
A22: Energy sources | C22: =B2B!C101 -> 0 | D22: =B2B!D101 -> 0 | E22: =B2B!E101 -> 0 | F22: =B2B!F101 -> 0 | G22: =B2B!G101 -> 0 | H22: =B2B!H101 -> 0 | I22: =B2B!I101 -> 0 | J22: =SUM(E22:I22) -> 0 | K22: =IF(D22=0,C22+J22,D22+J22) -> 0 | L22: =B2B!L101 -> 0 | M22: =B2B!M101 -> 0
A23: Water management | C23: =B2B!C105 -> 0 | D23: =B2B!D105 -> 0 | E23: =B2B!E105 -> 0 | F23: =B2B!F105 -> 0 | G23: =B2B!G105 -> 0 | H23: =B2B!H105 -> 0 | I23: =B2B!I105 -> 0 | J23: =SUM(E23:I23) -> 0 | K23: =IF(D23=0,C23+J23,D23+J23) -> 0 | L23: =B2B!L105 -> 0 | M23: =B2B!M105 -> 0
A24: Waste water management | C24: =B2B!C109 -> 0 | D24: =B2B!D109 -> 0 | E24: =B2B!E109 -> 0 | F24: =B2B!F109 -> 0 | G24: =B2B!G109 -> 0 | H24: =B2B!H109 -> 0 | I24: =B2B!I109 -> 0 | J24: =SUM(E24:I24) -> 0 | K24: =IF(D24=0,C24+J24,D24+J24) -> 0 | L24: =B2B!L109 -> 0 | M24: =B2B!M109 -> 0
A25: Waste management | C25: =B2B!C114 -> 0 | D25: =B2B!D114 -> 0 | E25: =B2B!E114 -> 0 | F25: =B2B!F114 -> 0 | G25: =B2B!G114 -> 0 | H25: =B2B!H114 -> 0 | I25: =B2B!I114 -> 0 | J25: =SUM(E25:I25) -> 0 | K25: =IF(D25=0,C25+J25,D25+J25) -> 0 | L25: =B2B!L114 -> 0 | M25: =B2B!M114 -> 0
A26: Other | C26: =B2B!C119 -> 0 | D26: =B2B!D119 -> 0 | E26: =B2B!E119 -> 0 | F26: =B2B!F119 -> 0 | G26: =B2B!G119 -> 0 | H26: =B2B!H119 -> 0 | I26: =B2B!I119 -> 0 | J26: =SUM(E26:I26) -> 0 | K26: =IF(D26=0,C26+J26,D26+J26) -> 0 | L26: =B2B!L119 -> 0 | M26: =B2B!M119 -> 0
A27: ="Total "&A6 -> Total Revenue - Functional | B27: 2 | C27: =C7+C11+C17+C21+C26 -> 1824659742 | D27: =D7+D11+D17+D21+D26 -> 0 | E27: 0 | F27: 0 | G27: 0 | H27: 0 | I27: 5143743 | J27: 5143743 | K27: 1829803485 | L27: 1984489231 | M27: 2114048451
A29: Expenditure - Functional
A30: Governance and administration | C30: =SUM(C31:C33) -> 659530647 | D30: =SUM(D31:D33) -> 0 | E30: 0 | F30: 0 | G30: 0 | H30: 0 | I30: -3033968 | J30: =SUM(J31:J33) -> -3033968 | K30: =SUM(K31:K33) -> 656496679 | L30: =SUM(L31:L33) -> 709950203 | M30: =SUM(M31:M33) -> 743731873
A31: Executive and council | C31: =B2B!C130 -> 196780010 | D31: =B2B!D130 -> 0 | E31: =B2B!E130 -> 0 | F31: =B2B!F130 -> 0 | G31: =B2B!G130 -> 0 | H31: =B2B!H130 -> 0 | I31: =B2B!I130 -> 16876500 | J31: =SUM(E31:I31) -> 16876500 | K31: =IF(D31=0,C31+J31,D31+J31) -> 213656510 | L31: =B2B!L130 -> 223096018 | M31: =B2B!M130 -> 232452362
A32: Finance and administration | C32: =B2B!C133 -> 462750637 | D32: =B2B!D133 -> 0 | E32: =B2B!E133 -> 0 | F32: =B2B!F133 -> 0 | G32: =B2B!G133 -> 0 | H32: =B2B!H133 -> 0 | I32: =B2B!I133 -> -19910468 | J32: =SUM(E32:I32) -> -19910468 | K32: =IF(D32=0,C32+J32,D32+J32) -> 442840169 | L32: =B2B!L133 -> 486854185 | M32: =B2B!M133 -> 511279511
A33: Internal audit | C33: =B2B!C147 -> 0 | D33: =B2B!D147 -> 0 | E33: =B2B!E147 -> 0 | F33: =B2B!F147 -> 0 | G33: =B2B!G147 -> 0 | H33: =B2B!H147 -> 0 | I33: =B2B!I147 -> 0 | J33: =SUM(E33:I33) -> 0 | K33: =IF(D33=0,C33+J33,D33+J33) -> 0 | L33: =B2B!L147 -> 0 | M33: =B2B!M147 -> 0
A34: Community and public safety | C34: =SUM(C35:C39) -> 0 | D34: =SUM(D35:D39) -> 0 | E34: 0 | F34: 0 | G34: 0 | H34: 0 | I34: 0 | J34: =SUM(J35:J39) -> 0 | K34: =SUM(K35:K39) -> 0 | L34: =SUM(L35:L39) -> 0 | M34: =SUM(M35:M39) -> 0
A35: Community and social services | C35: =B2B!C150 -> 0 | D35: =B2B!D150 -> 0 | E35: =B2B!E150 -> 0 | F35: =B2B!F150 -> 0 | G35: =B2B!G150 -> 0 | H35: =B2B!H150 -> 0 | I35: =B2B!I150 -> 0 | J35: =SUM(E35:I35) -> 0 | K35: =IF(D35=0,C35+J35,D35+J35) -> 0 | L35: =B2B!L150 -> 0 | M35: =B2B!M150 -> 0
A36: Sport and recreation | C36: =B2B!C172 -> 0 | D36: =B2B!D172 -> 0 | E36: =B2B!E172 -> 0 | F36: =B2B!F172 -> 0 | G36: =B2B!G172 -> 0 | H36: =B2B!H172 -> 0 | I36: =B2B!I172 -> 0 | J36: =SUM(E36:I36) -> 0 | K36: =IF(D36=0,C36+J36,D36+J36) -> 0 | L36: =B2B!L172 -> 0 | M36: =B2B!M172 -> 0
A37: Public safety | C37: =B2B!C178 -> 0 | D37: =B2B!D178 -> 0 | E37: =B2B!E178 -> 0 | F37: =B2B!F178 -> 0 | G37: =B2B!G178 -> 0 | H37: =B2B!H178 -> 0 | I37: =B2B!I178 -> 0 | J37: =SUM(E37:I37) -> 0 | K37: =IF(D37=0,C37+J37,D37+J37) -> 0 | L37: =B2B!L178 -> 0 | M37: =B2B!M178 -> 0
A38: Housing | C38: =B2B!C187 -> 0 | D38: =B2B!D187 -> 0 | E38: =B2B!E187 -> 0 | F38: =B2B!F187 -> 0 | G38: =B2B!G187 -> 0 | H38: =B2B!H187 -> 0 | I38: =B2B!I187 -> 0 | J38: =SUM(E38:I38) -> 0 | K38: =IF(D38=0,C38+J38,D38+J38) -> 0 | L38: =B2B!L187 -> 0 | M38: =B2B!M187 -> 0
A39: Health | C39: =B2B!C190 -> 0 | D39: =B2B!D190 -> 0 | E39: =B2B!E190 -> 0 | F39: =B2B!F190 -> 0 | G39: =B2B!G190 -> 0 | H39: =B2B!H190 -> 0 | I39: =B2B!I190 -> 0 | J39: =SUM(E39:I39) -> 0 | K39: =IF(D39=0,C39+J39,D39+J39) -> 0 | L39: =B2B!L190 -> 0 | M39: =B2B!M190 -> 0
A40: Economic and environmental services | C40: =SUM(C41:C43) -> 31241887 | D40: =SUM(D41:D43) -> 0 | E40: 0 | F40: 0 | G40: 0 | H40: 0 | I40: -490000 | J40: =SUM(J41:J43) -> -490000 | K40: =SUM(K41:K43) -> 30751887 | L40: =SUM(L41:L43) -> 36861617 | M40: =SUM(M41:M43) -> 40186528
A41: Planning and development | C41: =B2B!C199 -> 31241887 | D41: =B2B!D199 -> 0 | E41: =B2B!E199 -> 0 | F41: =B2B!F199 -> 0 | G41: =B2B!G199 -> 0 | H41: =B2B!H199 -> 0 | I41: =B2B!I199 -> -490000 | J41: =SUM(E41:I41) -> -490000 | K41: =IF(D41=0,C41+J41,D41+J41) -> 30751887 | L41: =B2B!L199 -> 36861617 | M41: =B2B!M199 -> 40186528
A42: Road transport | C42: =B2B!C210 -> 0 | D42: =B2B!D210 -> 0 | E42: =B2B!E210 -> 0 | F42: =B2B!F210 -> 0 | G42: =B2B!G210 -> 0 | H42: =B2B!H210 -> 0 | I42: =B2B!I210 -> 0 | J42: =SUM(E42:I42) -> 0 | K42: =IF(D42=0,C42+J42,D42+J42) -> 0 | L42: =B2B!L210 -> 0 | M42: =B2B!M210 -> 0
A43: Environmental protection | C43: =B2B!C215 -> 0 | D43: =B2B!D215 -> 0 | E43: =B2B!E215 -> 0 | F43: =B2B!F215 -> 0 | G43: =B2B!G215 -> 0 | H43: =B2B!H215 -> 0 | I43: =B2B!I215 -> 0 | J43: =SUM(E43:I43) -> 0 | K43: =IF(D43=0,C43+J43,D43+J43) -> 0 | L43: =B2B!L215 -> 0 | M43: =B2B!M215 -> 0
A44: Trading services | C44: =SUM(C45:C48) -> 539974269 | D44: =SUM(D45:D48) -> 0 | E44: 0 | F44: 0 | G44: 0 | H44: 0 | I44: 31288554 | J44: 31288554 | K44: 571262823 | L44: 656447965 | M44: 732832907
A45: Energy sources | C45: =B2B!C223 -> 0 | D45: =B2B!D223 -> 0 | E45: =B2B!E223 -> 0 | F45: =B2B!F223 -> 0 | G45: =B2B!G223 -> 0 | H45: =B2B!H223 -> 0 | I45: =B2B!I223 -> 0 | J45: =SUM(E45:I45) -> 0 | K45: =IF(D45=0,C45+J45,D45+J45) -> 0 | L45: =B2B!L223 -> 0 | M45: =B2B!M223 -> 0
A46: Water management | C46: =B2B!C227 -> 537507902 | D46: =B2B!D227 -> 0 | E46: =B2B!E227 -> 0 | F46: =B2B!F227 -> 0 | G46: =B2B!G227 -> 0 | H46: =B2B!H227 -> 0 | I46: =B2B!I227 -> 32688554 | J46: =SUM(E46:I46) -> 32688554 | K46: =IF(D46=0,C46+J46,D46+J46) -> 570196456 | L46: =B2B!L227 -> 653860746 | M46: =B2B!M227 -> 730124088
A47: Waste water management | C47: =B2B!C231 -> 2466367 | D47: =B2B!D231 -> 0 | E47: =B2B!E231 -> 0 | F47: =B2B!F231 -> 0 | G47: =B2B!G231 -> 0 | H47: =B2B!H231 -> 0 | I47: =B2B!I231 -> -1400000 | J47: =SUM(E47:I47) -> -1400000 | K47: =IF(D47=0,C47+J47,D47+J47) -> 1066367 | L47: =B2B!L231 -> 2587219 | M47: =B2B!M231 -> 2708819
A48: Waste management | C48: =B2B!C236 -> 0 | D48: =B2B!D236 -> 0 | E48: =B2B!E236 -> 0 | F48: =B2B!F236 -> 0 | G48: =B2B!G236 -> 0 | H48: =B2B!H236 -> 0 | I48: =B2B!I236 -> 0 | J48: =SUM(E48:I48) -> 0 | K48: =IF(D48=0,C48+J48,D48+J48) -> 0 | L48: =B2B!L236 -> 0 | M48: =B2B!M236 -> 0
A49: Other | C49: =B2B!C241 -> 0 | D49: =B2B!D241 -> 0 | E49: =B2B!E241 -> 0 | F49: =B2B!F241 -> 0 | G49: =B2B!G241 -> 0 | H49: =B2B!H241 -> 0 | I49: =B2B!I241 -> 0 | J49: =SUM(E49:I49) -> 0 | K49: =IF(D49=0,C49+J49,D49+J49) -> 0 | L49: =B2B!L241 -> 0 | M49: =B2B!M241 -> 0
A50: ="Total "&A29 -> Total Expenditure - Functional | B50: 3 | C50: =C30+C34+C40+C44+C49 -> 1230746803 | D50: =D30+D34+D40+D44+D49 -> 0 | E50: 0 | F50: 0 | G50: 0 | H50: 0 | I50: 27764586 | J50: 27764586 | K50: 1258511389 | L50: 1403259785 | M50: 1516751308
A51: Surplus/ (Deficit) for the year | C51: =C27-C50 -> 593912939 | D51: 0 | E51: 0 | F51: 0 | G51: 0 | H51: 0 | I51: -22620843 | J51: -22620843 | K51: 571292096 | L51: 581229446 | M51: 597297143
A52: =head27a -> References
A53: 1. Government Finance Statistics Functions and Sub-functions are standardised to assist the compilation of national and international accounts for comparison purposes
A54: 2. Total Revenue by standard classification must reconcile to Total Operating Revenue shown in the Adjustments Budget Financial Performance (revenue and expenditure)
A55: 3. Total Operating Expenditure by standard classification must reconcile to Total Operating Expenditure shown in the Adjustments Budget Financial Performance (revenue and expenditure)
A56: 4. All amounts must be classified under a standard classification (modified GFS). The GFS function 'Other' is only for Abbatoirs, Air Transport, Markets and Tourism - and if used must be supported by footnotes. Nothing else may be placed under 'Other'. Assign associate share to relevant classification
A57: 5. Only complete if a previous adjusted budget has been approved in the same financial year. Reflect most recent adjusted budget.
A58: 6. Additional cash-backed accumulated funds/unspent funds (MFMA section 18(1)(b) and section 28(2)(e)) identified after the Original Budget approved and after annual financial statements audited (note: only where underspending could not reasonably have been foreseen)
A59: 7. Increases of funds approved under MFMA section 31
A60: 8. Adjustments approved in accordance with MFMA section 29
A61: 9. Adjustments to transfers from National or Provincial Government
A62: 10. Adjusts. = 'Other' Adjustments proposed to be approved; including revenue under-collection (MFMA section 28(2)(a)); additional revenue appropriation on existing programmes (section 28(2))(b); projected savings (section 28(2)(d)); error correction (section 28(2)(f))
A63: 11. G = B + C + D + E + F
A64: 12. Adjusted Budget H = (A or A1/2 etc) + G

Sheet B2B
A1: =muni&" - "&_ADJ3&" - B"&" - "&Date -> DC47 Sekhukhune - Table B2 Adjustments Budget Financial Performance (functional classification) - B - 28/02/2024
A2: ="Standard Classification "&desc -> Standard Classification Description | B2: =head27 -> Ref | C2: =Head2 -> Budget Year 2023/24 | L2: =Head10 -> Budget Year +1 2024/25 | M2: =Head11 -> Budget Year +2 2025/26
C3: =Head6 -> Original Budget | D3: =Head54 -> Prior Adjusted | E3: =Head51 -> Accum. Funds | F3: =Head52 -> Multi-year capital | G3: =Head53 -> Unfore. Unavoid. | H3: =Head55 -> Nat. or Prov. Govt | I3: =Head50 -> Other Adjusts. | J3: =Head56 -> Total Adjusts. | K3: =Head7 -> Adjusted Budget | L3: =Head7 -> Adjusted Budget | M3: =Head7 -> Adjusted Budget
D4: 5 | E4: =D4+1 -> 6 | F4: 7 | G4: 8 | H4: 9 | I4: 10 | J4: 11 | K4: 12
A5: R thousand | B5: 1 | C5: A | D5: A1 | E5: B | F5: C | G5: D | H5: E | I5: F | J5: G | K5: H
A6: Revenue - Functional
A7: Municipal governance and administration | C7: =C8+C11+C25 -> 1824659742 | D7: 0 | E7: 0 | F7: 0 | G7: 0 | H7: 0 | I7: 5143743 | J7: =SUM(E7:I7) -> 5143743 | K7: =IF(D7=0,C7+J7,D7+J7) -> 1829803485 | L7: =L8+L11+L25 -> 1984489231 | M7: =M8+M11+M25 -> 2114048451
A8: Executive and council | C8: =SUM(C9:C10) -> 0 | D8: =SUM(D9:D10) -> 0 | E8: 0 | F8: 0 | G8: 0 | H8: 0 | I8: 0 | J8: =SUM(E8:I8) -> 0 | K8: =IF(D8=0,C8+J8,D8+J8) -> 0 | L8: =SUM(L9:L10) -> 0 | M8: =SUM(M9:M10) -> 0
A9: Mayor and Council | C9: 0 | D9: 0 | E9: 0 | F9: 0 | G9: 0 | H9: 0 | I9: 0 | J9: =SUM(E9:I9) -> 0 | K9: =IF(D9=0,C9+J9,D9+J9) -> 0 | L9: 0 | M9: 0
A10: Municipal Manager, Town Secretary and Chief Executive | C10: 0 | D10: 0 | E10: 0 | F10: 0 | G10: 0 | H10: 0 | I10: 0 | J10: =SUM(E10:I10) -> 0 | K10: =IF(D10=0,C10+J10,D10+J10) -> 0 | L10: 0 | M10: 0
A11: Finance and administration | C11: =SUM(C12:C24) -> 1824659742 | D11: 0 | E11: 0 | F11: 0 | G11: 0 | H11: 0 | I11: 5143743 | J11: 5143743 | K11: 1829803485 | L11: =SUM(L12:L24) -> 1984489231 | M11: =SUM(M12:M24) -> 2114048451
A12: Administrative and Corporate Support | C12: 0 | D12: 0 | E12: 0 | F12: 0 | G12: 0 | H12: 0 | I12: 0 | J12: 0 | K12: 0 | L12: 0 | M12: 0
A13: Asset Management | J13: 0 | K13: 0
A14: Finance | C14: 1824659742 | D14: 0 | E14: 0 | F14: 0 | G14: 0 | H14: 0 | I14: 5143743 | J14: 5143743 | K14: 1829803485 | L14: 1984489231 | M14: 2114048451
A15: Fleet Management | J15: 0 | K15: 0
A16: Human Resources | J16: 0 | K16: 0
A17: Information Technology | J17: 0 | K17: 0
A18: Legal Services | J18: 0 | K18: 0
A19: Marketing, Customer Relations, Publicity and Media Co-ordination | J19: 0 | K19: 0
A20: Property Services | J20: 0 | K20: 0
A21: Risk Management | J21: 0 | K21: 0
A22: Security Services | J22: 0 | K22: 0
A23: Supply Chain Management | J23: 0 | K23: 0
A24: Valuation Service | J24: 0 | K24: 0
A25: Internal audit | C25: =SUM(C26:C26) -> 0 | D25: 0 | E25: 0 | F25: 0 | G25: 0 | H25: 0 | I25: 0 | J25: 0 | K25: 0 | L25: 0 | M25: 0
A26: Governance Function | J26: 0 | K26: 0
A27: Community and public safety | C27: =C28+C50+C56+C65+C68 -> 0 | D27: 0 | E27: 0 | F27: 0 | G27: 0 | H27: 0 | I27: 0 | J27: 0 | K27: 0 | L27: =L28+L50+L56+L65+L68 -> 0 | M27: =M28+M50+M56+M65+M68 -> 0
A28: Community and social services | C28: =SUM(C29:C49) -> 0 | D28: 0 | E28: 0 | F28: 0 | G28: 0 | H28: 0 | I28: 0 | J28: 0 | K28: 0 | L28: 0 | M28: 0
A29: Aged Care | J29: 0 | K29: 0
A30: Agricultural | J30: 0 | K30: 0
A31: Animal Care and Diseases | J31: 0 | K31: 0
A32: Cemeteries, Funeral Parlours and Crematoriums | J32: 0 | K32: 0
A33: Child Care Facilities | J33: 0 | K33: 0
A34: Community Halls and Facilities | J34: 0 | K34: 0
A35: Consumer Protection | J35: 0 | K35: 0
A36: Cultural Matters | J36: 0 | K36: 0
A37: Disaster Management | J37: 0 | K37: 0
A38: Education | J38: 0 | K38: 0
A39: Indigenous and Customary Law | J39: 0 | K39: 0
A40: Industrial Promotion | J40: 0 | K40: 0
A41: Language Policy | J41: 0 | K41: 0
A42: Libraries and Archives | J42: 0 | K42: 0
A43: Literacy Programmes | J43: 0 | K43: 0
A44: Media Services | J44: 0 | K44: 0
A45: Museums and Art Galleries | J45: 0 | K45: 0
A46: Population Development | J46: 0 | K46: 0
A47: Provincial Cultural Matters | J47: 0 | K47: 0
A48: Theatres | J48: 0 | K48: 0
A49: Zoo's | J49: 0 | K49: 0
A50: Sport and recreation | C50: =SUM(C51:C55) -> 0 | D50: 0 | E50: 0 | F50: 0 | G50: 0 | H50: 0 | I50: 0 | J50: 0 | K50: 0 | L50: 0 | M50: 0
A51: Beaches and Jetties | J51: 0 | K51: 0
A52: Casinos, Racing, Gambling, Wagering | J52: 0 | K52: 0
A53: Community Parks (including Nurseries) | J53: 0 | K53: 0
A54: Recreational Facilities | J54: 0 | K54: 0
A55: Sports Grounds and Stadiums | J55: 0 | K55: 0
A56: Public safety | C56: =SUM(C57:C64) -> 0 | D56: 0 | E56: 0 | F56: 0 | G56: 0 | H56: 0 | I56: 0 | J56: 0 | K56: 0 | L56: 0 | M56: 0
A57: Civil Defence | J57: 0 | K57: 0
A58: Cleansing | J58: 0 | K58: 0
A59: Control of Public Nuisances | J59: 0 | K59: 0
A60: Fencing and Fences | J60: 0 | K60: 0
A61: Fire Fighting and Protection | J61: 0 | K61: 0
A62: Licensing and Control of Animals | J62: 0 | K62: 0
A63: Police Forces, Traffic and Street Parking Control | J63: =SUM(E63:I63) -> 0 | K63: =IF(D63=0,C63+J63,D63+J63) -> 0
A64: Pounds | J64: 0 | K64: 0
A65: Housing | C65: =SUM(C66:C67) -> 0 | D65: =SUM(D66:D67) -> 0 | E65: 0 | F65: 0 | G65: 0 | H65: 0 | I65: 0 | J65: 0 | K65: 0 | L65: =SUM(L66:L67) -> 0 | M65: =SUM(M66:M67) -> 0
A66: Housing | J66: 0 | K66: 0
A67: Informal Settlements | J67: 0 | K67: 0
A68: Health | C68: =SUM(C69:C75) -> 0 | D68: =SUM(D69:D75) -> 0 | E68: 0 | F68: 0 | G68: 0 | H68: 0 | I68: 0 | J68: 0 | K68: 0 | L68: =SUM(L69:L75) -> 0 | M68: =SUM(M69:M75) -> 0
A69: Ambulance | J69: 0 | K69: 0
A70: Health Services | J70: 0 | K70: 0
A71: Laboratory Services | J71: 0 | K71: 0
A72: Food Control | J72: 0 | K72: 0
A73: Health Surveillance and Prevention of Communicable Diseases including immunizations | J73: 0 | K73: 0
A74: Vector Control | J74: 0 | K74: 0
A75: Chemical Safety | J75: =SUM(E75:I75) -> 0 | K75: =IF(D75=0,C75+J75,D75+J75) -> 0
A76: Economic and environmental services | C76: =C77+C88+C93 -> 0 | D76: 0 | E76: 0 | F76: 0 | G76: 0 | H76: 0 | I76: 0 | J76: 0 | K76: 0 | L76: =L77+L88+L93 -> 0 | M76: =M77+M88+M93 -> 0
A77: Planning and development | C77: =SUM(C78:C87) -> 0 | D77: =SUM(D78:D87) -> 0 | E77: 0 | F77: 0 | G77: 0 | H77: 0 | I77: 0 | J77: 0 | K77: 0 | L77: =SUM(L78:L87) -> 0 | M77: =SUM(M78:M87) -> 0
A78: Billboards | J78: 0 | K78: 0
A79: Corporate Wide Strategic Planning (IDPs, LEDs) | J79: 0 | K79: 0
A80: Central City Improvement District | J80: 0 | K80: 0
A81: Development Facilitation | J81: 0 | K81: 0
A82: Economic Development/Planning | C82: 0 | D82: 0 | E82: 0 | F82: 0 | G82: 0 | H82: 0 | I82: 0 | J82: 0 | K82: 0 | L82: 0 | M82: 0
A83: Regional Planning and Development | J83: 0 | K83: 0
A84: Town Planning, Building Regulations and Enforcement, and City Engineer | J84: 0 | K84: 0
A85: Project Management Unit | J85: 0 | K85: 0
A86: Provincial Planning | J86: 0 | K86: 0
A87: Support to Local Municipalities | C87: 0 | D87: 0 | E87: 0 | F87: 0 | G87: 0 | H87: 0 | I87: 0 | J87: 0 | K87: 0 | L87: 0 | M87: 0
A88: Road transport | C88: =SUM(C89:C92) -> 0 | D88: 0 | E88: 0 | F88: 0 | G88: 0 | H88: 0 | I88: 0 | J88: 0 | K88: 0 | L88: =SUM(L89:L92) -> 0 | M88: =SUM(M89:M92) -> 0
A89: Public Transport | J89: 0 | K89: 0
A90: Road and Traffic Regulation | J90: 0 | K90: 0
A91: Roads | J91: 0 | K91: 0
A92: Taxi Ranks | J92: 0 | K92: 0
A93: Environmental protection | C93: =SUM(C94:C99) -> 0 | D93: =SUM(D94:D99) -> 0 | E93: 0 | F93: 0 | G93: 0 | H93: 0 | I93: 0 | J93: 0 | K93: 0 | L93: =SUM(L94:L99) -> 0 | M93: =SUM(M94:M99) -> 0
A94: Biodiversity and Landscape | J94: 0 | K94: 0
A95: Coastal Protection | J95: 0 | K95: 0
A96: Indigenous Forests | J96: 0 | K96: 0
A97: Nature Conservation | J97: 0 | K97: 0
A98: Pollution Control | J98: 0 | K98: 0
A99: Soil Conservation | J99: 0 | K99: 0
A100: Trading services | C100: =C101+C105+C109+C114 -> 0 | D100: =D101+D105+D109+D114 -> 0 | E100: 0 | F100: 0 | G100: 0 | H100: 0 | I100: 0 | J100: 0 | K100: 0 | L100: 0 | M100: 0
A101: Energy sources | C101: =SUM(C102:C104) -> 0 | D101: =SUM(D102:D104) -> 0 | E101: 0 | F101: 0 | G101: 0 | H101: 0 | I101: 0 | J101: 0 | K101: 0 | L101: =SUM(L102:L104) -> 0 | M101: =SUM(M102:M104) -> 0
A102: Electricity | J102: 0 | K102: 0
A103: Street Lighting and Signal Systems | J103: 0 | K103: 0
A104: Nonelectric Energy | J104: 0 | K104: 0
A105: Water management | C105: =SUM(C106:C108) -> 0 | D105: =SUM(D106:D108) -> 0 | E105: 0 | F105: 0 | G105: 0 | H105: 0 | I105: 0 | J105: 0 | K105: 0 | L105: =SUM(L106:L108) -> 0 | M105: =SUM(M106:M108) -> 0
A106: Water Treatment | J106: 0 | K106: 0
A107: Water Distribution | C107: 0 | D107: 0 | E107: 0 | F107: 0 | G107: 0 | H107: 0 | I107: 0 | J107: 0 | K107: 0 | L107: 0 | M107: 0
A108: Water Storage | J108: 0 | K108: 0
A109: Waste water management | C109: =SUM(C110:C113) -> 0 | D109: =SUM(D110:D113) -> 0 | E109: 0 | F109: 0 | G109: 0 | H109: 0 | I109: 0 | J109: 0 | K109: 0 | L109: =SUM(L110:L113) -> 0 | M109: =SUM(M110:M113) -> 0
A110: Public Toilets | J110: 0 | K110: 0
A111: Sewerage | J111: 0 | K111: 0
A112: Storm Water Management | J112: 0 | K112: 0
A113: Waste Water Treatment | C113: 0 | D113: 0 | E113: 0 | F113: 0 | G113: 0 | H113: 0 | I113: 0 | J113: 0 | K113: 0 | L113: 0 | M113: 0
A114: Waste management | C114: =SUM(C115:C118) -> 0 | D114: =SUM(D115:D118) -> 0 | E114: 0 | F114: 0 | G114: 0 | H114: 0 | I114: 0 | J114: 0 | K114: 0 | L114: 0 | M114: =SUM(M115:M118) -> 0
A115: Recycling | J115: 0 | K115: 0
A116: Solid Waste Disposal (Landfill Sites) | J116: 0 | K116: 0
A117: Solid Waste Removal | J117: 0 | K117: 0
A118: Street Cleaning | J118: 0 | K118: 0
A119: Other | C119: =SUM(C120:C125) -> 0 | D119: 0 | E119: 0 | F119: 0 | G119: 0 | H119: 0 | I119: 0 | J119: 0 | K119: 0 | L119: 0 | M119: 0
A120: Abattoirs | J120: 0 | K120: 0
A121: Air Transport | J121: 0 | K121: 0
A122: Forestry | J122: 0 | K122: 0
A123: Licensing and Regulation | J123: 0 | K123: 0
A124: Markets | J124: 0 | K124: 0
A125: Tourism | J125: 0 | K125: 0
A126: ="Total "&A6 -> Total Revenue - Functional | B126: 2 | C126: =C7+C27+C76+C100+C119 -> 1824659742 | D126: 0 | E126: 0 | F126: 0 | G126: 0 | H126: 0 | I126: 5143743 | J126: 5143743 | K126: 1829803485 | L126: =L7+L27+L76+L100+L119 -> 1984489231 | M126: =M7+M27+M76+M100+M119 -> 2114048451
J127: 0 | K127: 0
A128: Expenditure - Functional | J128: 0 | K128: 0
A129: =A7 -> Municipal governance and administration | C129: =C130+C133+C147 -> 659530647 | D129: 0 | E129: 0 | F129: 0 | G129: 0 | H129: 0 | I129: -3033968 | J129: -3033968 | K129: 656496679 | L129: =L130+L133+L147 -> 709950203 | M129: =M130+M133+M147 -> 743731873
A130: Executive and council | C130: =SUM(C131:C132) -> 196780010 | D130: 0 | E130: 0 | F130: 0 | G130: 0 | H130: 0 | I130: 16876500 | J130: 16876500 | K130: 213656510 | L130: =SUM(L131:L132) -> 223096018 | M130: =SUM(M131:M132) -> 232452362
A131: Mayor and Council | C131: 98736304 | D131: 0 | E131: 0 | F131: 0 | G131: 0 | H131: 0 | I131: 6926500 | J131: 6926500 | K131: 105662804 | L131: 104377941 | M131: 109657032
A132: Municipal Manager, Town Secretary and Chief Executive | C132: 98043706 | D132: 0 | E132: 0 | F132: 0 | G132: 0 | H132: 0 | I132: 9950000 | J132: 9950000 | K132: 107993706 | L132: 118718077 | M132: 122795330
A133: Finance and administration | C133: =SUM(C134:C146) -> 462750637 | D133: 0 | E133: 0 | F133: 0 | G133: 0 | H133: 0 | I133: -19910468 | J133: -19910468 | K133: 442840169 | L133: =SUM(L134:L146) -> 486854185 | M133: =SUM(M134:M146) -> 511279511
A134: Administrative and Corporate Support | C134: 269502086 | D134: 0 | E134: 0 | F134: 0 | G134: 0 | H134: 0 | I134: -7410468 | J134: -7410468 | K134: 262091618 | L134: 284527864 | M134: 299216302
A135: Asset Management | J135: 0 | K135: 0
A136: Finance | C136: 193248551 | D136: 0 | E136: 0 | F136: 0 | G136: 0 | H136: 0 | I136: -12500000 | J136: -12500000 | K136: 180748551 | L136: 202326321 | M136: 212063209
A137: Fleet Management | J137: 0 | K137: 0
A138: Human Resources | J138: 0 | K138: 0
A139: Information Technology | J139: =SUM(E139:I139) -> 0 | K139: =IF(D139=0,C139+J139,D139+J139) -> 0
A140: Legal Services | J140: 0 | K140: 0
A141: Marketing, Customer Relations, Publicity and Media Co-ordination | J141: 0 | K141: 0
A142: Property Services | J142: 0 | K142: 0
A143: Risk Management | J143: 0 | K143: 0
A144: Security Services | J144: 0 | K144: 0
A145: Supply Chain Management | J145: 0 | K145: 0
A146: Valuation Service | J146: 0 | K146: 0
A147: Internal audit | C147: =SUM(C148:C148) -> 0 | D147: 0 | E147: 0 | F147: 0 | G147: 0 | H147: 0 | I147: 0 | J147: 0 | K147: 0 | L147: 0 | M147: 0
A148: Governance Function | J148: 0 | K148: 0
A149: Community and public safety | C149: =C150+C172+C178+C187+C190 -> 0 | D149: 0 | E149: 0 | F149: 0 | G149: 0 | H149: 0 | I149: 0 | J149: 0 | K149: 0 | L149: =L150+L172+L178+L187+L190 -> 0 | M149: =M150+M172+M178+M187+M190 -> 0
A150: Community and social services | C150: =SUM(C151:C171) -> 0 | D150: 0 | E150: 0 | F150: 0 | G150: 0 | H150: 0 | I150: 0 | J150: 0 | K150: 0 | L150: =SUM(L151:L171) -> 0 | M150: =SUM(M151:M171) -> 0
A151: Aged Care | J151: 0 | K151: 0
A152: Agricultural | J152: 0 | K152: 0
A153: Animal Care and Diseases | J153: 0 | K153: 0
A154: Cemeteries, Funeral Parlours and Crematoriums | J154: 0 | K154: 0
A155: Child Care Facilities | J155: 0 | K155: 0
A156: Community Halls and Facilities | J156: 0 | K156: 0
A157: Consumer Protection | J157: 0 | K157: 0
A158: Cultural Matters | J158: 0 | K158: 0
A159: Disaster Management | J159: 0 | K159: 0
A160: Education | J160: 0 | K160: 0
A161: Indigenous and Customary Law | J161: 0 | K161: 0
A162: Industrial Promotion | J162: 0 | K162: 0
A163: Language Policy | J163: 0 | K163: 0
A164: Libraries and Archives | J164: 0 | K164: 0
A165: Literacy Programmes | J165: 0 | K165: 0
A166: Media Services | J166: 0 | K166: 0
A167: Museums and Art Galleries | J167: 0 | K167: 0
A168: Population Development | J168: 0 | K168: 0
A169: Provincial Cultural Matters | J169: 0 | K169: 0
A170: Theatres | J170: 0 | K170: 0
A171: Zoo's | J171: 0 | K171: 0
A172: Sport and recreation | C172: =SUM(C173:C177) -> 0 | D172: 0 | E172: 0 | F172: 0 | G172: 0 | H172: 0 | I172: 0 | J172: 0 | K172: 0 | L172: =SUM(L173:L177) -> 0 | M172: =SUM(M173:M177) -> 0
A173: Beaches and Jetties | J173: 0 | K173: 0
A174: Casinos, Racing, Gambling, Wagering | J174: 0 | K174: 0
A175: Community Parks (including Nurseries) | J175: 0 | K175: 0
A176: Recreational Facilities | J176: 0 | K176: 0
A177: Sports Grounds and Stadiums | J177: 0 | K177: 0
A178: Public safety | C178: =SUM(C179:C186) -> 0 | D178: 0 | E178: 0 | F178: 0 | G178: 0 | H178: 0 | I178: 0 | J178: 0 | K178: 0 | L178: =SUM(L179:L186) -> 0 | M178: =SUM(M179:M186) -> 0
A179: Civil Defence | J179: 0 | K179: 0
A180: Cleansing | J180: 0 | K180: 0
A181: Control of Public Nuisances | J181: 0 | K181: 0
A182: Fencing and Fences | J182: 0 | K182: 0
A183: Fire Fighting and Protection | J183: 0 | K183: 0
A184: Licensing and Control of Animals | J184: =SUM(E184:I184) -> 0 | K184: =IF(D184=0,C184+J184,D184+J184) -> 0
A185: Police Forces, Traffic and Street Parking Control | J185: =SUM(E185:I185) -> 0 | K185: =IF(D185=0,C185+J185,D185+J185) -> 0
A186: Pounds | J186: 0 | K186: 0
A187: Housing | C187: =SUM(C188:C189) -> 0 | D187: =SUM(D188:D189) -> 0 | E187: 0 | F187: 0 | G187: 0 | H187: 0 | I187: 0 | J187: 0 | K187: 0 | L187: 0 | M187: 0
A188: Housing | J188: 0 | K188: 0
A189: Informal Settlements | J189: 0 | K189: 0
A190: Health | C190: =SUM(C191:C197) -> 0 | D190: 0 | E190: 0 | F190: 0 | G190: 0 | H190: 0 | I190: 0 | J190: 0 | K190: 0 | L190: =SUM(L191:L197) -> 0 | M190: =SUM(M191:M197) -> 0
A191: Ambulance | J191: 0 | K191: 0
A192: Health Services | J192: 0 | K192: 0
A193: =A71 -> Laboratory Services | J193: 0 | K193: 0
A194: Food Control | J194: 0 | K194: 0
A195: Health Surveillance and Prevention of Communicable Diseases including immunizations | J195: 0 | K195: 0
A196: Vector Control | J196: 0 | K196: 0
A197: Chemical Safety | J197: 0 | K197: 0
A198: Economic and environmental services | C198: =C199+C210+C215 -> 31241887 | D198: 0 | E198: 0 | F198: 0 | G198: 0 | H198: 0 | I198: -490000 | J198: -490000 | K198: 30751887 | L198: =L199+L210+L215 -> 36861617 | M198: =M199+M210+M215 -> 40186528
A199: Planning and development | C199: =SUM(C200:C209) -> 31241887 | D199: 0 | E199: 0 | F199: 0 | G199: 0 | H199: 0 | I199: -490000 | J199: -490000 | K199: 30751887 | L199: =SUM(L200:L209) -> 36861617 | M199: =SUM(M200:M209) -> 40186528
A200: Billboards | J200: 0 | K200: 0
... 54 more rows

Sheet B3-FinPerf V
A1: =muni&" - "&_ADJ2&" - "&Date -> DC47 Sekhukhune - Table B3 Adjustments Budget Financial Performance (revenue and expenditure by municipal vote) - 28/02/2024
A2: =Vdesc -> Vote Description | B2: =head27 -> Ref | C2: =Head2 -> Budget Year 2023/24 | L2: =Head10 -> Budget Year +1 2024/25 | M2: =Head11 -> Budget Year +2 2025/26
C3: =Head6 -> Original Budget | D3: =Head54 -> Prior Adjusted | E3: =Head51 -> Accum. Funds | F3: =Head52 -> Multi-year capital | G3: =Head53 -> Unfore. Unavoid. | H3: =Head55 -> Nat. or Prov. Govt | I3: =Head50 -> Other Adjusts. | J3: =Head56 -> Total Adjusts. | K3: =Head7 -> Adjusted Budget | L3: =Head7 -> Adjusted Budget | M3: =Head7 -> Adjusted Budget
A4: [Insert departmental structure etc] | D4: 3 | E4: 4 | F4: 5 | G4: 6 | H4: 7 | I4: 8 | J4: 9 | K4: 10
A5: R thousands | C5: A | D5: A1 | E5: B | F5: C | G5: D | H5: E | I5: F | J5: G | K5: H
A6: Revenue by Vote | B6: 1
A7: =B3B!A7 -> Vote 01 - Speakers Office | C7: =B3B!C7 -> 0 | D7: =B3B!D7 -> 0 | E7: =B3B!E7 -> 0 | F7: =B3B!F7 -> 0 | G7: =B3B!G7 -> 0 | H7: =B3B!H7 -> 0 | I7: =B3B!I7 -> 0 | J7: =B3B!J7 -> 0 | K7: =B3B!K7 -> 0 | L7: =B3B!L7 -> 0 | M7: =B3B!M7 -> 0
A8: =B3B!A10 -> Vote 02 - Executive Mayor's Office | C8: =B3B!C10 -> 0 | D8: =B3B!D10 -> 0 | E8: =B3B!E10 -> 0 | F8: =B3B!F10 -> 0 | G8: =B3B!G10 -> 0 | H8: =B3B!H10 -> 0 | I8: =B3B!I10 -> 0 | J8: =B3B!J10 -> 0 | K8: =B3B!K10 -> 0 | L8: =B3B!L10 -> 0 | M8: =B3B!M10 -> 0
A9: =B3B!A12 -> Vote 03 - Municipal Manager Office | C9: =B3B!C12 -> 0 | D9: =B3B!D12 -> 0 | E9: =B3B!E12 -> 0 | F9: =B3B!F12 -> 0 | G9: =B3B!G12 -> 0 | H9: =B3B!H12 -> 0 | I9: =B3B!I12 -> 0 | J9: =B3B!J12 -> 0 | K9: =B3B!K12 -> 0 | L9: =B3B!L12 -> 0 | M9: =B3B!M12 -> 0
A10: =B3B!A14 -> Vote 04 - Budget And Treasury | C10: =B3B!C14 -> 1824659742 | D10: =B3B!D14 -> 0 | E10: =B3B!E14 -> 0 | F10: =B3B!F14 -> 0 | G10: =B3B!G14 -> 0 | H10: =B3B!H14 -> 0 | I10: =B3B!I14 -> 5143743 | J10: =B3B!J14 -> 5143743 | K10: =B3B!K14 -> 1829803485 | L10: =B3B!L14 -> 1984489231 | M10: =B3B!M14 -> 2114048451
A11: =B3B!A17 -> Vote 05 - Infrustracture And Water Services | C11: =B3B!C17 -> 0 | D11: =B3B!D17 -> 0 | E11: =B3B!E17 -> 0 | F11: =B3B!F17 -> 0 | G11: =B3B!G17 -> 0 | H11: =B3B!H17 -> 0 | I11: =B3B!I17 -> 0 | J11: =B3B!J17 -> 0 | K11: =B3B!K17 -> 0 | L11: =B3B!L17 -> 0 | M11: =B3B!M17 -> 0
A12: =B3B!A21 -> Vote 06 - Planning And Economic Development | C12: =B3B!C21 -> 0 | D12: =B3B!D21 -> 0 | E12: =B3B!E21 -> 0 | F12: =B3B!F21 -> 0 | G12: =B3B!G21 -> 0 | H12: =B3B!H21 -> 0 | I12: =B3B!I21 -> 0 | J12: =B3B!J21 -> 0 | K12: =B3B!K21 -> 0 | L12: =B3B!L21 -> 0 | M12: =B3B!M21 -> 0
A13: =B3B!A23 -> Vote 07 - Community Services | C13: =B3B!C23 -> 0 | D13: =B3B!D23 -> 0 | E13: =B3B!E23 -> 0 | F13: =B3B!F23 -> 0 | G13: =B3B!G23 -> 0 | H13: =B3B!H23 -> 0 | I13: =B3B!I23 -> 0 | J13: =B3B!J23 -> 0 | K13: =B3B!K23 -> 0 | L13: =B3B!L23 -> 0 | M13: =B3B!M23 -> 0
A14: =B3B!A25 -> Vote 08 - Sekhukhune Development Angancy | C14: =B3B!C25 -> 0 | D14: =B3B!D25 -> 0 | E14: =B3B!E25 -> 0 | F14: =B3B!F25 -> 0 | G14: =B3B!G25 -> 0 | H14: =B3B!H25 -> 0 | I14: =B3B!I25 -> 0 | J14: =B3B!J25 -> 0 | K14: =B3B!K25 -> 0 | L14: =B3B!L25 -> 0 | M14: =B3B!M25 -> 0
A15: =B3B!A27 -> Vote 09 - Corporate Services | C15: =B3B!C27 -> 0 | D15: =B3B!D27 -> 0 | E15: =B3B!E27 -> 0 | F15: =B3B!F27 -> 0 | G15: =B3B!G27 -> 0 | H15: =B3B!H27 -> 0 | I15: =B3B!I27 -> 0 | J15: =B3B!J27 -> 0 | K15: =B3B!K27 -> 0 | L15: =B3B!L27 -> 0 | M15: =B3B!M27 -> 0
A16: ='Org structure'!A11 -> Vote 10 - | C16: =B3B!C29 -> 0 | D16: =B3B!D29 -> 0 | E16: =B3B!E29 -> 0 | F16: =B3B!F29 -> 0 | G16: =B3B!G29 -> 0 | H16: =B3B!H29 -> 0 | I16: =B3B!I29 -> 0 | J16: =SUM(E16:I16) -> 0 | K16: =IF(D16=0,C16+J16,D16+J16) -> 0 | L16: =B3B!L29 -> 0 | M16: =B3B!M29 -> 0
A17: ='Org structure'!A12 -> Vote 11 - | C17: =B3B!C30 -> 0 | D17: =B3B!D30 -> 0 | E17: =B3B!E30 -> 0 | F17: =B3B!F30 -> 0 | G17: =B3B!G30 -> 0 | H17: =B3B!H30 -> 0 | I17: =B3B!I30 -> 0 | J17: 0 | K17: 0 | L17: =B3B!L30 -> 0 | M17: =B3B!M30 -> 0
A18: ='Org structure'!A13 -> Vote 12 - | C18: =B3B!C31 -> 0 | D18: =B3B!D31 -> 0 | E18: =B3B!E31 -> 0 | F18: =B3B!F31 -> 0 | G18: =B3B!G31 -> 0 | H18: =B3B!H31 -> 0 | I18: =B3B!I31 -> 0 | J18: 0 | K18: 0 | L18: =B3B!L31 -> 0 | M18: =B3B!M31 -> 0
A19: ='Org structure'!A14 -> Vote 13 - | C19: =B3B!C32 -> 0 | D19: =B3B!D32 -> 0 | E19: =B3B!E32 -> 0 | F19: =B3B!F32 -> 0 | G19: =B3B!G32 -> 0 | H19: =B3B!H32 -> 0 | I19: =B3B!I32 -> 0 | J19: 0 | K19: 0 | L19: =B3B!L32 -> 0 | M19: =B3B!M32 -> 0
A20: ='Org structure'!A15 -> Vote 14 - | C20: =B3B!C33 -> 0 | D20: =B3B!D33 -> 0 | E20: =B3B!E33 -> 0 | F20: =B3B!F33 -> 0 | G20: =B3B!G33 -> 0 | H20: =B3B!H33 -> 0 | I20: =B3B!I33 -> 0 | J20: 0 | K20: 0 | L20: =B3B!L33 -> 0 | M20: =B3B!M33 -> 0
A21: =B3B!A34 -> Vote 15 - Other | C21: =B3B!C34 -> 0 | D21: =B3B!D34 -> 0 | E21: =B3B!E34 -> 0 | F21: =B3B!F34 -> 0 | G21: =B3B!G34 -> 0 | H21: =B3B!H34 -> 0 | I21: =B3B!I34 -> 0 | J21: =B3B!J34 -> 0 | K21: =B3B!K34 -> 0 | L21: =B3B!L34 -> 0 | M21: =B3B!M34 -> 0
A22: Total Revenue by Vote | B22: 2 | C22: =SUM(C7:C21) -> 1824659742 | D22: =SUM(D7:D21) -> 0 | E22: 0 | F22: 0 | G22: 0 | H22: 0 | I22: 5143743 | J22: =SUM(J7:J21) -> 5143743 | K22: 1829803485 | L22: =SUM(L7:L21) -> 1984489231 | M22: =SUM(M7:M21) -> 2114048451
A24: Expenditure by Vote | B24: 1
A25: =B3B!A39 -> Vote 01 - Speakers Office | C25: =B3B!C39 -> 52392012 | D25: =B3B!D39 -> 0 | E25: =B3B!E39 -> 0 | F25: =B3B!F39 -> 0 | G25: =B3B!G39 -> 0 | H25: =B3B!H39 -> 0 | I25: =B3B!I39 -> -4223500 | J25: =B3B!J39 -> -4223500 | K25: =B3B!K39 -> 48168512 | L25: =B3B!L39 -> 55162619 | M25: =B3B!M39 -> 58326488
A26: =B3B!A42 -> Vote 02 - Executive Mayor's Office | C26: =B3B!C42 -> 46344292 | D26: =B3B!D42 -> 0 | E26: =B3B!E42 -> 0 | F26: =B3B!F42 -> 0 | G26: =B3B!G42 -> 0 | H26: =B3B!H42 -> 0 | I26: =B3B!I42 -> 11150000 | J26: =B3B!J42 -> 11150000 | K26: =B3B!K42 -> 57494292 | L26: =B3B!L42 -> 49215322 | M26: =B3B!M42 -> 51330544
A27: =B3B!A44 -> Vote 03 - Municipal Manager Office | C27: =B3B!C44 -> 98043706 | D27: =B3B!D44 -> 0 | E27: =B3B!E44 -> 0 | F27: =B3B!F44 -> 0 | G27: =B3B!G44 -> 0 | H27: =B3B!H44 -> 0 | I27: =B3B!I44 -> 9950000 | J27: =B3B!J44 -> 9950000 | K27: =B3B!K44 -> 107993706 | L27: =B3B!L44 -> 118718077 | M27: =B3B!M44 -> 122795330
A28: =B3B!A46 -> Vote 04 - Budget And Treasury | C28: =B3B!C46 -> 193248551 | D28: =B3B!D46 -> 0 | E28: =B3B!E46 -> 0 | F28: =B3B!F46 -> 0 | G28: =B3B!G46 -> 0 | H28: =B3B!H46 -> 0 | I28: =B3B!I46 -> -12500000 | J28: =B3B!J46 -> -12500000 | K28: =B3B!K46 -> 180748551 | L28: =B3B!L46 -> 202326321 | M28: =B3B!M46 -> 212063209
A29: =B3B!A49 -> Vote 05 - Infrustracture And Water Services | C29: =B3B!C49 -> 539974269 | D29: =B3B!D49 -> 0 | E29: =B3B!E49 -> 0 | F29: =B3B!F49 -> 0 | G29: =B3B!G49 -> 0 | H29: =B3B!H49 -> 0 | I29: =B3B!I49 -> 31288554 | J29: =B3B!J49 -> 31288554 | K29: =B3B!K49 -> 571262823 | L29: =B3B!L49 -> 656447965 | M29: =B3B!M49 -> 732832907
A30: =B3B!A53 -> Vote 06 - Planning And Economic Development | C30: =B3B!C53 -> 21926952 | D30: =B3B!D53 -> 0 | E30: =B3B!E53 -> 0 | F30: =B3B!F53 -> 0 | G30: =B3B!G53 -> 0 | H30: =B3B!H53 -> 0 | I30: =B3B!I53 -> -490000 | J30: =B3B!J53 -> -490000 | K30: =B3B!K53 -> 21436952 | L30: =B3B!L53 -> 24741338 | M30: =B3B!M53 -> 27159422
A31: =B3B!A55 -> Vote 07 - Community Services | C31: =B3B!C55 -> 77608437 | D31: =B3B!D55 -> 0 | E31: =B3B!E55 -> 0 | F31: =B3B!F55 -> 0 | G31: =B3B!G55 -> 0 | H31: =B3B!H55 -> 0 | I31: =B3B!I55 -> -1900000 | J31: =B3B!J55 -> -1900000 | K31: =B3B!K55 -> 75708437 | L31: =B3B!L55 -> 81411250 | M31: =B3B!M55 -> 85237580
A32: =B3B!A57 -> Vote 08 - Sekhukhune Development Angancy | C32: =B3B!C57 -> 9314935 | D32: =B3B!D57 -> 0 | E32: =B3B!E57 -> 0 | F32: =B3B!F57 -> 0 | G32: =B3B!G57 -> 0 | H32: =B3B!H57 -> 0 | I32: =B3B!I57 -> 0 | J32: =B3B!J57 -> 0 | K32: =B3B!K57 -> 9314935 | L32: =B3B!L57 -> 12120279 | M32: =B3B!M57 -> 13027106
A33: =B3B!A59 -> Vote 09 - Corporate Services | C33: =B3B!C59 -> 191893649 | D33: =B3B!D59 -> 0 | E33: =B3B!E59 -> 0 | F33: =B3B!F59 -> 0 | G33: =B3B!G59 -> 0 | H33: =B3B!H59 -> 0 | I33: =B3B!I59 -> -5510468 | J33: =B3B!J59 -> -5510468 | K33: =B3B!K59 -> 186383181 | L33: =B3B!L59 -> 203116614 | M33: =B3B!M59 -> 213978722
A34: ='Org structure'!A11 -> Vote 10 - | C34: =B3B!C61 -> 0 | D34: =B3B!D61 -> 0 | E34: =B3B!E61 -> 0 | F34: =B3B!F61 -> 0 | G34: =B3B!G61 -> 0 | H34: =B3B!H61 -> 0 | I34: =B3B!I61 -> 0 | J34: =SUM(E34:I34) -> 0 | K34: =IF(D34=0,C34+J34,D34+J34) -> 0 | L34: =B3B!L61 -> 0 | M34: =B3B!M61 -> 0
A35: ='Org structure'!A12 -> Vote 11 - | C35: =B3B!C62 -> 0 | D35: =B3B!D62 -> 0 | E35: =B3B!E62 -> 0 | F35: =B3B!F62 -> 0 | G35: =B3B!G62 -> 0 | H35: =B3B!H62 -> 0 | I35: =B3B!I62 -> 0 | J35: 0 | K35: 0 | L35: =B3B!L62 -> 0 | M35: =B3B!M62 -> 0
A36: ='Org structure'!A13 -> Vote 12 - | C36: =B3B!C63 -> 0 | D36: =B3B!D63 -> 0 | E36: =B3B!E63 -> 0 | F36: =B3B!F63 -> 0 | G36: =B3B!G63 -> 0 | H36: =B3B!H63 -> 0 | I36: =B3B!I63 -> 0 | J36: 0 | K36: 0 | L36: =B3B!L63 -> 0 | M36: =B3B!M63 -> 0
A37: ='Org structure'!A14 -> Vote 13 - | C37: =B3B!C64 -> 0 | D37: =B3B!D64 -> 0 | E37: =B3B!E64 -> 0 | F37: =B3B!F64 -> 0 | G37: =B3B!G64 -> 0 | H37: =B3B!H64 -> 0 | I37: =B3B!I64 -> 0 | J37: 0 | K37: 0 | L37: =B3B!L64 -> 0 | M37: =B3B!M64 -> 0
A38: ='Org structure'!A15 -> Vote 14 - | C38: =B3B!C65 -> 0 | D38: =B3B!D65 -> 0 | E38: =B3B!E65 -> 0 | F38: =B3B!F65 -> 0 | G38: =B3B!G65 -> 0 | H38: =B3B!H65 -> 0 | I38: =B3B!I65 -> 0 | J38: 0 | K38: 0 | L38: =B3B!L65 -> 0 | M38: =B3B!M65 -> 0
A39: =B3B!A66 -> Vote 15 - Other | C39: =B3B!C66 -> 0 | D39: =B3B!D66 -> 0 | E39: =B3B!E66 -> 0 | F39: =B3B!F66 -> 0 | G39: =B3B!G66 -> 0 | H39: =B3B!H66 -> 0 | I39: =B3B!I66 -> 0 | J39: =B3B!J66 -> 0 | K39: =B3B!K66 -> 0 | L39: =B3B!L66 -> 0 | M39: =B3B!M66 -> 0
A40: Total Expenditure by Vote | B40: 2 | C40: =SUM(C25:C39) -> 1230746803 | D40: =SUM(D25:D39) -> 0 | E40: 0 | F40: 0 | G40: 0 | H40: 0 | I40: 27764586 | J40: =SUM(J25:J39) -> 27764586 | K40: =SUM(K25:K39) -> 1258511389 | L40: =SUM(L25:L39) -> 1403259785 | M40: =SUM(M25:M39) -> 1516751308
A41: =result -> Surplus/ (Deficit) for the year | B41: 2 | C41: =C22-C40 -> 593912939 | D41: =D22-D40 -> 0 | E41: 0 | F41: 0 | G41: 0 | H41: 0 | I41: -22620843 | J41: -22620843 | K41: 571292096 | L41: 581229446 | M41: 597297143
A42: =head27a -> References
A43: 1. Insert 'Vote'; e.g. Department, if different to standard classification structure
A44: 2. Must reconcile to Budgeted Financial Performance (revenue and expenditure)
A45: 3. Only complete if a previous adjusted budget has been approved in the same financial year. Reflect most recent adjusted budget.
A46: 4. Additional cash-backed accumulated funds/unspent funds (MFMA section 18(1)(b) and section 28(2)(e)) identified after the Original Budget approved and after annual financial statements audited (note: only where underspending could not reasonably have been foreseen)
A47: 5. Increases of funds approved under MFMA section 31
A48: 6. Adjustments approved in accordance with MFMA section 29
A49: 7. Adjustments to transfers from National or Provincial Government
A50: 8. Adjusts. = 'Other' Adjustments proposed to be approved; including revenue under-collection (MFMA section 28(2)(a)); additional revenue appropriation on existing programmes (section 28(2))(b); projected savings (section 28(2)(d)); error correction (section 28(2)(f))
A51: 9. G = B + C + D + E + F
A52: 10. Adjusted Budget H = (A or A1/2 etc) + G
A54: check revenue | C54: =C22-'B4-FinPerf RE'!C76 -> 1824659742 | D54: =D22-'B4-FinPerf RE'!D76 -> 0 | E54: =E22-'B4-FinPerf RE'!E76 -> 0 | F54: =F22-'B4-FinPerf RE'!F76 -> 0 | G54: =G22-'B4-FinPerf RE'!G76 -> 0 | H54: =H22-'B4-FinPerf RE'!H76 -> 0 | I54: =I22-'B4-FinPerf RE'!I76 -> 5143743 | J54: =J22-'B4-FinPerf RE'!J76 -> 5143743 | K54: =K22-'B4-FinPerf RE'!K76 -> 1829803485 | L54: =L22-'B4-FinPerf RE'!L76 -> 1984489231 | M54: =M22-'B4-FinPerf RE'!M76 -> 2114048451
A55: check expenditure | C55: =C40-'B4-FinPerf RE'!C50 -> 0 | D55: =D40-'B4-FinPerf RE'!D50 -> 0 | E55: =E40-'B4-FinPerf RE'!E50 -> 0 | F55: =F40-'B4-FinPerf RE'!F50 -> 0 | G55: =G40-'B4-FinPerf RE'!G50 -> 0 | H55: =H40-'B4-FinPerf RE'!H50 -> 0 | I55: =I40-'B4-FinPerf RE'!I50 -> -1 | J55: =J40-'B4-FinPerf RE'!J50 -> -1 | K55: =K40-'B4-FinPerf RE'!K50 -> -1 | L55: =L40-'B4-FinPerf RE'!L50 -> -1 | M55: =M40-'B4-FinPerf RE'!M50 -> 0

Sheet B3B
A1: =muni&" - "&_ADJ2&" - B"&" - "&Date -> DC47 Sekhukhune - Table B3 Adjustments Budget Financial Performance (revenue and expenditure by municipal vote) - B - 28/02/2024
A2: =Vdesc -> Vote Description | B2: =head27 -> Ref | C2: =Head2 -> Budget Year 2023/24 | L2: =Head10 -> Budget Year +1 2024/25 | M2: =Head11 -> Budget Year +2 2025/26
C3: =Head6 -> Original Budget | D3: =Head54 -> Prior Adjusted | E3: =Head51 -> Accum. Funds | F3: =Head52 -> Multi-year capital | G3: =Head53 -> Unfore. Unavoid. | H3: =Head55 -> Nat. or Prov. Govt | I3: =Head50 -> Other Adjusts. | J3: =Head56 -> Total Adjusts. | K3: =Head7 -> Adjusted Budget | L3: =Head7 -> Adjusted Budget | M3: =Head7 -> Adjusted Budget
A4: [Insert departmental structure etc] | D4: 3 | E4: 4 | F4: 5 | G4: 6 | H4: 7 | I4: 8 | J4: 9 | K4: 10
A5: R thousands | C5: A | D5: A1 | E5: B | F5: C | G5: D | H5: E | I5: F | J5: G | K5: H
A6: Revenue by Vote | B6: 1
A7: ='Org structure'!A2 -> Vote 01 - Speakers Office | C7: =SUM(C8:C9) -> 0 | D7: 0 | E7: 0 | F7: 0 | G7: 0 | H7: 0 | I7: 0 | J7: =SUM(E7:I7) -> 0 | K7: =IF(D7=0,C7+J7,D7+J7) -> 0 | L7: =SUM(L8:L9) -> 0 | M7: =SUM(M8:M9) -> 0
A8: ='Org structure'!E3 -> 01.1 - Office Of The Speaker | C8: 0 | D8: 0 | E8: 0 | F8: 0 | G8: 0 | H8: 0 | I8: 0 | J8: =SUM(E8:I8) -> 0 | K8: =IF(D8=0,C8+J8,D8+J8) -> 0 | L8: 0 | M8: 0
A9: ='Org structure'!E4 -> 01.2 - Office Of The Chief Whip | C9: 0 | D9: 0 | E9: 0 | F9: 0 | G9: 0 | H9: 0 | I9: 0 | J9: =SUM(E9:I9) -> 0 | K9: =IF(D9=0,C9+J9,D9+J9) -> 0 | L9: 0 | M9: 0
A10: ='Org structure'!A3 -> Vote 02 - Executive Mayor's Office | C10: =SUM(C11:C11) -> 0 | D10: 0 | E10: 0 | F10: 0 | G10: 0 | H10: 0 | I10: 0 | J10: =SUM(E10:I10) -> 0 | K10: =IF(D10=0,C10+J10,D10+J10) -> 0 | L10: =SUM(L11:L11) -> 0 | M10: =SUM(M11:M11) -> 0
A11: ='Org structure'!E6 -> 02.1 - Executive Mayor's Office | C11: 0 | D11: 0 | E11: 0 | F11: 0 | G11: 0 | H11: 0 | I11: 0 | J11: =SUM(E11:I11) -> 0 | K11: =IF(D11=0,C11+J11,D11+J11) -> 0 | L11: 0 | M11: 0
A12: ='Org structure'!A4 -> Vote 03 - Municipal Manager Office | C12: =SUM(C13:C13) -> 0 | D12: 0 | E12: 0 | F12: 0 | G12: 0 | H12: 0 | I12: 0 | J12: 0 | K12: 0 | L12: =SUM(L13:L13) -> 0 | M12: =SUM(M13:M13) -> 0
A13: ='Org structure'!E8 -> 03.1 - Municipal Manager Admin | C13: 0 | D13: 0 | E13: 0 | F13: 0 | G13: 0 | H13: 0 | I13: 0 | J13: =SUM(E13:I13) -> 0 | K13: =IF(D13=0,C13+J13,D13+J13) -> 0 | L13: 0 | M13: 0
A14: ='Org structure'!A5 -> Vote 04 - Budget And Treasury | C14: =SUM(C15:C16) -> 1824659742 | D14: 0 | E14: 0 | F14: 0 | G14: 0 | H14: 0 | I14: 5143743 | J14: 5143743 | K14: 1829803485 | L14: =SUM(L15:L16) -> 1984489231 | M14: =SUM(M15:M16) -> 2114048451
A15: ='Org structure'!E10 -> 04.1 - Budget & Treasury Admin | C15: 0 | D15: 0 | E15: 0 | F15: 0 | G15: 0 | H15: 0 | I15: 0 | J15: =SUM(E15:I15) -> 0 | K15: =IF(D15=0,C15+J15,D15+J15) -> 0 | L15: 0 | M15: 0
A16: ='Org structure'!E11 -> 04.2 - Budget & Treasury Admin | C16: 1824659742 | D16: 0 | E16: 0 | F16: 0 | G16: 0 | H16: 0 | I16: 5143743 | J16: =SUM(E16:I16) -> 5143743 | K16: =IF(D16=0,C16+J16,D16+J16) -> 1829803485 | L16: 1984489231 | M16: 2114048451
A17: ='Org structure'!A6 -> Vote 05 - Infrustracture And Water Services | C17: =SUM(C18:C20) -> 0 | D17: 0 | E17: 0 | F17: 0 | G17: 0 | H17: 0 | I17: 0 | J17: 0 | K17: 0 | L17: =SUM(L18:L20) -> 0 | M17: =SUM(M18:M20) -> 0
A18: ='Org structure'!E13 -> 05.1 - Technical Services Admin | C18: 0 | D18: 0 | E18: 0 | F18: 0 | G18: 0 | H18: 0 | I18: 0 | J18: =SUM(E18:I18) -> 0 | K18: =IF(D18=0,C18+J18,D18+J18) -> 0 | L18: 0 | M18: 0
A19: ='Org structure'!E14 -> 05.2 - Water Services | C19: 0 | D19: 0 | E19: 0 | F19: 0 | G19: 0 | H19: 0 | I19: 0 | J19: =SUM(E19:I19) -> 0 | K19: =IF(D19=0,C19+J19,D19+J19) -> 0 | L19: 0 | M19: 0
A20: ='Org structure'!E15 -> 05.3 - Sanitation Services | C20: 0 | D20: 0 | E20: 0 | F20: 0 | G20: 0 | H20: 0 | I20: 0 | J20: =SUM(E20:I20) -> 0 | K20: =IF(D20=0,C20+J20,D20+J20) -> 0 | L20: 0 | M20: 0
A21: ='Org structure'!A7 -> Vote 06 - Planning And Economic Development | C21: =SUM(C22:C22) -> 0 | D21: 0 | E21: 0 | F21: 0 | G21: 0 | H21: 0 | I21: 0 | J21: 0 | K21: 0 | L21: =SUM(L22:L22) -> 0 | M21: =SUM(M22:M22) -> 0
A22: ='Org structure'!E17 -> 06.1 - Planning & Economic Dev Admin | C22: 0 | D22: 0 | E22: 0 | F22: 0 | G22: 0 | H22: 0 | I22: 0 | J22: =SUM(E22:I22) -> 0 | K22: =IF(D22=0,C22+J22,D22+J22) -> 0 | L22: 0 | M22: 0
A23: ='Org structure'!A8 -> Vote 07 - Community Services | C23: =SUM(C24:C24) -> 0 | D23: 0 | E23: 0 | F23: 0 | G23: 0 | H23: 0 | I23: 0 | J23: =SUM(E23:I23) -> 0 | K23: =IF(D23=0,C23+J23,D23+J23) -> 0 | L23: =SUM(L24:L24) -> 0 | M23: =SUM(M24:M24) -> 0
A24: ='Org structure'!E19 -> 07.1 - Community Services Admin | C24: 0 | D24: 0 | E24: 0 | F24: 0 | G24: 0 | H24: 0 | I24: 0 | J24: =SUM(E24:I24) -> 0 | K24: =IF(D24=0,C24+J24,D24+J24) -> 0 | L24: 0 | M24: 0
A25: ='Org structure'!A9 -> Vote 08 - Sekhukhune Development Angancy | C25: =SUM(C26:C26) -> 0 | D25: 0 | E25: 0 | F25: 0 | G25: 0 | H25: 0 | I25: 0 | J25: 0 | K25: 0 | L25: =SUM(L26:L26) -> 0 | M25: =SUM(M26:M26) -> 0
A26: ='Org structure'!E21 -> 08.1 - Sekhukhune Development Agency | C26: 0 | D26: 0 | E26: 0 | F26: 0 | G26: 0 | H26: 0 | I26: 0 | J26: =SUM(E26:I26) -> 0 | K26: =IF(D26=0,C26+J26,D26+J26) -> 0 | L26: 0 | M26: 0
A27: ='Org structure'!A10 -> Vote 09 - Corporate Services | C27: =SUM(C28:C28) -> 0 | D27: 0 | E27: 0 | F27: 0 | G27: 0 | H27: 0 | I27: 0 | J27: 0 | K27: 0 | L27: =SUM(L28:L28) -> 0 | M27: =SUM(M28:M28) -> 0
A28: ='Org structure'!E23 -> 09.1 - Corporate Services Admin | C28: 0 | D28: 0 | E28: 0 | F28: 0 | G28: 0 | H28: 0 | I28: 0 | J28: =SUM(E28:I28) -> 0 | K28: =IF(D28=0,C28+J28,D28+J28) -> 0 | L28: 0 | M28: 0
A29: ='Org structure'!A11 -> Vote 10 - | C29: 0 | D29: 0 | E29: 0 | F29: 0 | G29: 0 | H29: 0 | I29: 0 | J29: 0 | K29: 0 | L29: 0 | M29: 0
A30: ='Org structure'!A12 -> Vote 11 - | C30: 0 | D30: 0 | E30: 0 | F30: 0 | G30: 0 | H30: 0 | I30: 0 | J30: 0 | K30: 0 | L30: 0 | M30: 0
A31: ='Org structure'!A13 -> Vote 12 - | C31: 0 | D31: 0 | E31: 0 | F31: 0 | G31: 0 | H31: 0 | I31: 0 | J31: 0 | K31: 0 | L31: 0 | M31: 0
A32: ='Org structure'!A14 -> Vote 13 - | C32: 0 | D32: 0 | E32: 0 | F32: 0 | G32: 0 | H32: 0 | I32: 0 | J32: =SUM(E32:I32) -> 0 | K32: =IF(D32=0,C32+J32,D32+J32) -> 0 | L32: 0 | M32: 0
A33: ='Org structure'!A15 -> Vote 14 - | C33: 0 | D33: 0 | E33: 0 | F33: 0 | G33: 0 | H33: 0 | I33: 0 | J33: 0 | K33: 0 | L33: 0 | M33: 0
A34: ='Org structure'!A16 -> Vote 15 - Other | C34: =SUM(C35:C35) -> 0 | D34: 0 | E34: 0 | F34: 0 | G34: 0 | H34: 0 | I34: 0 | J34: 0 | K34: 0 | L34: =SUM(L35:L35) -> 0 | M34: =SUM(M35:M35) -> 0
A35: ='Org structure'!E30 -> 15.1 - Electricity Reporting Function | C35: 0 | D35: 0 | E35: 0 | F35: 0 | G35: 0 | H35: 0 | I35: 0 | J35: =SUM(E35:I35) -> 0 | K35: =IF(D35=0,C35+J35,D35+J35) -> 0 | L35: 0 | M35: 0
A36: Total Revenue by Vote | B36: 2 | C36: =C7+C10+C12+C14+C17+C21+C23+C25+C27+C29+C30+C31+C32+C33+C34 -> 1824659742 | D36: 0 | E36: 0 | F36: 0 | G36: 0 | H36: 0 | I36: 5143743 | J36: 5143743 | K36: 1829803485 | L36: 1984489231 | M36: 2114048451
A38: Expenditure by Vote | B38: 1
A39: ='Org structure'!A2 -> Vote 01 - Speakers Office | C39: =SUM(C40:C41) -> 52392012 | D39: 0 | E39: 0 | F39: 0 | G39: 0 | H39: 0 | I39: -4223500 | J39: =SUM(E39:I39) -> -4223500 | K39: =IF(D39=0,C39+J39,D39+J39) -> 48168512 | L39: =SUM(L40:L41) -> 55162619 | M39: =SUM(M40:M41) -> 58326488
A40: ='Org structure'!E3 -> 01.1 - Office Of The Speaker | C40: 52392012 | D40: 0 | E40: 0 | F40: 0 | G40: 0 | H40: 0 | I40: -4223500 | J40: =SUM(E40:I40) -> -4223500 | K40: =IF(D40=0,C40+J40,D40+J40) -> 48168512 | L40: 55162619 | M40: 58326488
A41: ='Org structure'!E4 -> 01.2 - Office Of The Chief Whip | C41: 0 | D41: 0 | E41: 0 | F41: 0 | G41: 0 | H41: 0 | I41: 0 | J41: =SUM(E41:I41) -> 0 | K41: =IF(D41=0,C41+J41,D41+J41) -> 0 | L41: 0 | M41: 0
A42: ='Org structure'!A3 -> Vote 02 - Executive Mayor's Office | C42: =SUM(C43:C43) -> 46344292 | D42: 0 | E42: 0 | F42: 0 | G42: 0 | H42: 0 | I42: 11150000 | J42: =SUM(E42:I42) -> 11150000 | K42: =IF(D42=0,C42+J42,D42+J42) -> 57494292 | L42: =SUM(L43:L43) -> 49215322 | M42: =SUM(M43:M43) -> 51330544
A43: ='Org structure'!E6 -> 02.1 - Executive Mayor's Office | C43: 46344292 | D43: 0 | E43: 0 | F43: 0 | G43: 0 | H43: 0 | I43: 11150000 | J43: =SUM(E43:I43) -> 11150000 | K43: =IF(D43=0,C43+J43,D43+J43) -> 57494292 | L43: 49215322 | M43: 51330544
A44: ='Org structure'!A4 -> Vote 03 - Municipal Manager Office | C44: =SUM(C45:C45) -> 98043706 | D44: 0 | E44: 0 | F44: 0 | G44: 0 | H44: 0 | I44: 9950000 | J44: 9950000 | K44: 107993706 | L44: =SUM(L45:L45) -> 118718077 | M44: =SUM(M45:M45) -> 122795330
A45: ='Org structure'!E8 -> 03.1 - Municipal Manager Admin | C45: 98043706 | D45: 0 | E45: 0 | F45: 0 | G45: 0 | H45: 0 | I45: 9950000 | J45: =SUM(E45:I45) -> 9950000 | K45: =IF(D45=0,C45+J45,D45+J45) -> 107993706 | L45: 118718077 | M45: 122795330
A46: ='Org structure'!A5 -> Vote 04 - Budget And Treasury | C46: =SUM(C47:C48) -> 193248551 | D46: 0 | E46: 0 | F46: 0 | G46: 0 | H46: 0 | I46: -12500000 | J46: -12500000 | K46: 180748551 | L46: =SUM(L47:L48) -> 202326321 | M46: =SUM(M47:M48) -> 212063209
A47: ='Org structure'!E10 -> 04.1 - Budget & Treasury Admin | C47: 0 | D47: 0 | E47: 0 | F47: 0 | G47: 0 | H47: 0 | I47: 0 | J47: =SUM(E47:I47) -> 0 | K47: =IF(D47=0,C47+J47,D47+J47) -> 0 | L47: 0 | M47: 0
A48: ='Org structure'!E11 -> 04.2 - Budget & Treasury Admin | C48: 193248551 | D48: 0 | E48: 0 | F48: 0 | G48: 0 | H48: 0 | I48: -12500000 | J48: =SUM(E48:I48) -> -12500000 | K48: =IF(D48=0,C48+J48,D48+J48) -> 180748551 | L48: 202326321 | M48: 212063209
A49: ='Org structure'!A6 -> Vote 05 - Infrustracture And Water Services | C49: =SUM(C50:C52) -> 539974269 | D49: 0 | E49: 0 | F49: 0 | G49: 0 | H49: 0 | I49: 31288554 | J49: 31288554 | K49: 571262823 | L49: =SUM(L50:L52) -> 656447965 | M49: =SUM(M50:M52) -> 732832907
A50: ='Org structure'!E13 -> 05.1 - Technical Services Admin | C50: 51793553 | D50: 0 | E50: 0 | F50: 0 | G50: 0 | H50: 0 | I50: -7476000 | J50: =SUM(E50:I50) -> -7476000 | K50: =IF(D50=0,C50+J50,D50+J50) -> 44317553 | L50: 98508455 | M50: 114751292
A51: ='Org structure'!E14 -> 05.2 - Water Services | C51: 485714349 | D51: 0 | E51: 0 | F51: 0 | G51: 0 | H51: 0 | I51: 40164554 | J51: =SUM(E51:I51) -> 40164554 | K51: =IF(D51=0,C51+J51,D51+J51) -> 525878903 | L51: 555352291 | M51: 615372796
A52: ='Org structure'!E15 -> 05.3 - Sanitation Services | C52: 2466367 | D52: 0 | E52: 0 | F52: 0 | G52: 0 | H52: 0 | I52: -1400000 | J52: =SUM(E52:I52) -> -1400000 | K52: =IF(D52=0,C52+J52,D52+J52) -> 1066367 | L52: 2587219 | M52: 2708819
A53: ='Org structure'!A7 -> Vote 06 - Planning And Economic Development | C53: =SUM(C54:C54) -> 21926952 | D53: 0 | E53: 0 | F53: 0 | G53: 0 | H53: 0 | I53: -490000 | J53: -490000 | K53: 21436952 | L53: =SUM(L54:L54) -> 24741338 | M53: =SUM(M54:M54) -> 27159422
A54: ='Org structure'!E17 -> 06.1 - Planning & Economic Dev Admin | C54: 21926952 | D54: 0 | E54: 0 | F54: 0 | G54: 0 | H54: 0 | I54: -490000 | J54: =SUM(E54:I54) -> -490000 | K54: =IF(D54=0,C54+J54,D54+J54) -> 21436952 | L54: 24741338 | M54: 27159422
A55: ='Org structure'!A8 -> Vote 07 - Community Services | C55: =SUM(C56:C56) -> 77608437 | D55: 0 | E55: 0 | F55: 0 | G55: 0 | H55: 0 | I55: -1900000 | J55: =SUM(E55:I55) -> -1900000 | K55: =IF(D55=0,C55+J55,D55+J55) -> 75708437 | L55: =SUM(L56:L56) -> 81411250 | M55: =SUM(M56:M56) -> 85237580
A56: ='Org structure'!E19 -> 07.1 - Community Services Admin | C56: 77608437 | D56: 0 | E56: 0 | F56: 0 | G56: 0 | H56: 0 | I56: -1900000 | J56: =SUM(E56:I56) -> -1900000 | K56: =IF(D56=0,C56+J56,D56+J56) -> 75708437 | L56: 81411250 | M56: 85237580
A57: ='Org structure'!A9 -> Vote 08 - Sekhukhune Development Angancy | C57: =SUM(C58:C58) -> 9314935 | D57: 0 | E57: 0 | F57: 0 | G57: 0 | H57: 0 | I57: 0 | J57: 0 | K57: 9314935 | L57: =SUM(L58:L58) -> 12120279 | M57: =SUM(M58:M58) -> 13027106
A58: ='Org structure'!E21 -> 08.1 - Sekhukhune Development Agency | C58: 9314935 | D58: 0 | E58: 0 | F58: 0 | G58: 0 | H58: 0 | I58: 0 | J58: =SUM(E58:I58) -> 0 | K58: =IF(D58=0,C58+J58,D58+J58) -> 9314935 | L58: 12120279 | M58: 13027106
A59: ='Org structure'!A10 -> Vote 09 - Corporate Services | C59: =SUM(C60:C60) -> 191893649 | D59: 0 | E59: 0 | F59: 0 | G59: 0 | H59: 0 | I59: -5510468 | J59: -5510468 | K59: 186383181 | L59: =SUM(L60:L60) -> 203116614 | M59: =SUM(M60:M60) -> 213978722
A60: ='Org structure'!E23 -> 09.1 - Corporate Services Admin | C60: 191893649 | D60: 0 | E60: 0 | F60: 0 | G60: 0 | H60: 0 | I60: -5510468 | J60: =SUM(E60:I60) -> -5510468 | K60: =IF(D60=0,C60+J60,D60+J60) -> 186383181 | L60: 203116614 | M60: 213978722
A61: ='Org structure'!A11 -> Vote 10 - | C61: 0 | D61: 0 | E61: 0 | F61: 0 | G61: 0 | H61: 0 | I61: 0 | J61: 0 | K61: 0 | L61: 0 | M61: 0
A62: ='Org structure'!A12 -> Vote 11 - | C62: 0 | D62: 0 | E62: 0 | F62: 0 | G62: 0 | H62: 0 | I62: 0 | J62: 0 | K62: 0 | L62: 0 | M62: 0
A63: ='Org structure'!A13 -> Vote 12 - | C63: 0 | D63: 0 | E63: 0 | F63: 0 | G63: 0 | H63: 0 | I63: 0 | J63: 0 | K63: 0 | L63: 0 | M63: 0
A64: ='Org structure'!A14 -> Vote 13 - | C64: 0 | D64: 0 | E64: 0 | F64: 0 | G64: 0 | H64: 0 | I64: 0 | J64: =SUM(E64:I64) -> 0 | K64: =IF(D64=0,C64+J64,D64+J64) -> 0 | L64: 0 | M64: 0
A65: ='Org structure'!A15 -> Vote 14 - | C65: 0 | D65: 0 | E65: 0 | F65: 0 | G65: 0 | H65: 0 | I65: 0 | J65: 0 | K65: 0 | L65: 0 | M65: 0
A66: ='Org structure'!A16 -> Vote 15 - Other | C66: =SUM(C67:C67) -> 0 | D66: 0 | E66: 0 | F66: 0 | G66: 0 | H66: 0 | I66: 0 | J66: 0 | K66: 0 | L66: =SUM(L67:L67) -> 0 | M66: =SUM(M67:M67) -> 0
A67: ='Org structure'!E30 -> 15.1 - Electricity Reporting Function | C67: 0 | D67: 0 | E67: 0 | F67: 0 | G67: 0 | H67: 0 | I67: 0 | J67: =SUM(E67:I67) -> 0 | K67: =IF(D67=0,C67+J67,D67+J67) -> 0 | L67: 0 | M67: 0
A68: Total Expenditure by Vote | B68: 2 | C68: =C39+C42+C44+C46+C49+C53+C55+C57+C59+C61+C62+C63+C64+C65+C66 -> 1230746803 | D68: 0 | E68: 0 | F68: 0 | G68: 0 | H68: 0 | I68: 27764586 | J68: 27764586 | K68: 1258511389 | L68: 1403259785 | M68: 1516751308
A70: =result -> Surplus/ (Deficit) for the year | B70: 2 | C70: =C36-C68 -> 593912939 | D70: 0 | E70: 0 | F70: 0 | G70: 0 | H70: 0 | I70: -22620843 | J70: =SUM(E70:I70) -> -22620843 | K70: =IF(D70=0,C70+J70,D70+J70) -> 571292096 | L70: =L36-L68 -> 581229446 | M70: =M36-M68 -> 597297143
A71: =head27a -> References
A72: 1. Insert 'Vote'; e.g. Department, if different to standard structure
A73: 2. Must reconcile to Financial Performance ('Revenue and Expenditure by Standard Classification' and 'Revenue and Expenditure')
A74: 3. Assign share in 'associate' to relevant Vote

Sheet B4-FinPerf RE
A1: =muni&" - "&_ADJ4&" - "&Date -> DC47 Sekhukhune - Table B4 Adjustments Budget Financial Performance (revenue and expenditure) - 28/02/2024
A2: =desc -> Description | B2: =head27 -> Ref | C2: =Head2 -> Budget Year 2023/24 | L2: =Head10 -> Budget Year +1 2024/25 | M2: =Head11 -> Budget Year +2 2025/26
C3: =Head6 -> Original Budget | D3: =Head54 -> Prior Adjusted | E3: =Head51 -> Accum. Funds | F3: =Head52 -> Multi-year capital | G3: =Head53 -> Unfore. Unavoid. | H3: =Head55 -> Nat. or Prov. Govt | I3: =Head50 -> Other Adjusts. | J3: =Head56 -> Total Adjusts. | K3: =Head7 -> Adjusted Budget | L3: =Head7 -> Adjusted Budget | M3: =Head7 -> Adjusted Budget
D4: 3 | E4: 4 | F4: 5 | G4: 6 | H4: 7 | I4: 8 | J4: 9 | K4: 10
A5: R thousands | B5: 1 | C5: A | D5: A1 | E5: B | F5: C | G5: D | H5: E | I5: F | J5: G | K5: H
A6: Revenue By Source
A7: Exchange Revenue
A8: Service charges - Electricity | B8: 2 | C8: ='SB1'!C18 -> 0 | D8: ='SB1'!D18 -> 0 | E8: ='SB1'!E18 -> 0 | F8: ='SB1'!F18 -> 0 | G8: ='SB1'!G18 -> 0 | H8: ='SB1'!H18 -> 0 | I8: ='SB1'!I18 -> 0 | J8: =SUM(E8:I8) -> 0 | K8: =IF(D8=0,C8+J8,D8+J8) -> 0 | L8: ='SB1'!L18 -> 0 | M8: ='SB1'!M18 -> 0
A9: Service charges - Water | B9: 2 | C9: ='SB1'!C24 -> 93541801 | D9: ='SB1'!D24 -> 0 | E9: ='SB1'!E24 -> 0 | F9: ='SB1'!F24 -> 0 | G9: ='SB1'!G24 -> 0 | H9: ='SB1'!H24 -> 0 | I9: ='SB1'!I24 -> -536666 | J9: -536666 | K9: 93005135 | L9: ='SB1'!L24 -> 98125349 | M9: ='SB1'!M24 -> 102737241
A10: Service charges - Waste Water Management | B10: 2 | C10: ='SB1'!C30 -> 15517425 | D10: ='SB1'!D30 -> 0 | E10: ='SB1'!E30 -> 0 | F10: ='SB1'!F30 -> 0 | G10: ='SB1'!G30 -> 0 | H10: ='SB1'!H30 -> 0 | I10: ='SB1'!I30 -> 0 | J10: 0 | K10: 15517425 | L10: ='SB1'!L30 -> 16277778 | M10: ='SB1'!M30 -> 17042834
A11: Service charges - Waste Management | B11: 2 | C11: ='SB1'!C37 -> 0 | D11: ='SB1'!D37 -> 0 | E11: ='SB1'!E37 -> 0 | F11: ='SB1'!F37 -> 0 | G11: ='SB1'!G37 -> 0 | H11: ='SB1'!H37 -> 0 | I11: ='SB1'!I37 -> 0 | J11: 0 | K11: 0 | L11: ='SB1'!L37 -> 0 | M11: ='SB1'!M37 -> 0
A12: Sale of Goods and Rendering of Services | C12: 2249415 | D12: 0 | E12: 0 | F12: 0 | G12: 0 | H12: 0 | I12: -943429 | J12: -943429 | K12: 1305986 | L12: 2359637 | M12: 2470540
A13: Agency services | J13: 0 | K13: 0
A14: Interest | J14: 0 | K14: 0
A15: Interest earned from Receivables | C15: 16027930 | D15: 0 | E15: 0 | F15: 0 | G15: 0 | H15: 0 | I15: 2100000 | J15: 2100000 | K15: 18127930 | L15: 16813298 | M15: 17603524
A16: Interest earned from Current and Non Current Assets | C16: 26991908 | D16: 0 | E16: 0 | F16: 0 | G16: 0 | H16: 0 | I16: 42000000 | J16: 42000000 | K16: 68991908 | L16: 31170140 | M16: 41594349
A17: Dividends | C17: 0 | D17: 0 | E17: 0 | F17: 0 | G17: 0 | H17: 0 | I17: 0 | J17: 0 | K17: 0 | L17: 0 | M17: 0
A18: Rent on Land | J18: 0 | K18: 0
A19: Rental from Fixed Assets | J19: 0 | K19: 0
A20: Licence and permits | J20: 0 | K20: 0
A21: Operational Revenue | C21: 37241 | D21: 0 | E21: 0 | F21: 0 | G21: 0 | H21: 0 | I21: -7162 | J21: -7162 | K21: 30079 | L21: 39064 | M21: 40902
A22: Non-Exchange Revenue
A23: Property rates | B23: 2 | C23: ='SB1'!C11 -> 0 | D23: ='SB1'!D11 -> 0 | E23: ='SB1'!E11 -> 0 | F23: ='SB1'!F11 -> 0 | G23: ='SB1'!G11 -> 0 | H23: ='SB1'!H11 -> 0 | I23: ='SB1'!I11 -> 0 | J23: ='SB1'!J11 -> 0 | K23: ='SB1'!K11 -> 0 | L23: ='SB1'!L11 -> 0 | M23: ='SB1'!M11 -> 0
A24: Surcharges and Taxes | C24: 3421 | D24: 0 | E24: 0 | F24: 0 | G24: 0 | H24: 0 | I24: 0 | J24: =SUM(E24:I24) -> 0 | K24: =IF(D24=0,C24+J24,D24+J24) -> 3421 | L24: 3589 | M24: 3758
A25: Fines, penalties and forfeits | C25: 52789 | D25: 0 | E25: 0 | F25: 0 | G25: 0 | H25: 0 | I25: -4000 | J25: =SUM(E25:I25) -> -4000 | K25: =IF(D25=0,C25+J25,D25+J25) -> 48789 | L25: 55376 | M25: 57978
A26: Licences or permits | J26: 0 | K26: 0
A27: Transfer and subsidies - Operational | C27: 1118176990 | D27: 0 | E27: 0 | F27: 0 | G27: 0 | H27: 0 | I27: -3013465 | J27: -3013465 | K27: 1115163525 | L27: 1261384458 | M27: 1359398233
A28: Interest | J28: 0 | K28: 0
A29: Fuel Levy | J29: 0 | K29: 0
A30: Operational Revenue | J30: 0 | K30: 0
A31: Gains on disposal of Assets | C31: 452812 | D31: 0 | E31: 0 | F31: 0 | G31: 0 | H31: 0 | I31: 0 | J31: 0 | K31: 452812 | L31: 475000 | M31: 497325
A32: Other Gains | C32: 0 | D32: 0 | E32: 0 | F32: 0 | G32: 0 | H32: 0 | I32: 0 | J32: 0 | K32: 0 | L32: 0 | M32: 0
A33: Discontinued Operations | J33: =SUM(E33:I33) -> 0 | K33: =IF(D33=0,C33+J33,D33+J33) -> 0
A34: Total Revenue (excluding capital transfers and contributions) | C34: =SUM(C8:C33) -> 1273051732 | D34: =SUM(D8:D33) -> 0 | E34: 0 | F34: 0 | G34: 0 | H34: 0 | I34: 39595278 | J34: 39595278 | K34: 1312647010 | L34: 1426703689 | M34: 1541446684
A36: Expenditure By Type
A37: Employee related costs | C37: ='SB1'!C62 -> 478529270 | D37: ='SB1'!D62 -> 0 | E37: ='SB1'!E62 -> 0 | F37: ='SB1'!F62 -> 0 | G37: ='SB1'!G62 -> 0 | H37: ='SB1'!H62 -> 0 | I37: ='SB1'!I62 -> -14811652 | J37: =SUM(E37:I37) -> -14811652 | K37: =IF(D37=0,C37+J37,D37+J37) -> 463717618 | L37: ='SB1'!L62 -> 502055610 | M37: ='SB1'!M62 -> 525652225
A38: Remuneration of councillors | C38: 19082579 | D38: 0 | E38: 0 | F38: 0 | G38: 0 | H38: 0 | I38: -1800000 | J38: -1800000 | K38: 17282579 | L38: 20017625 | M38: 20958453
A39: Bulk purchases - electricity | C39: =+'SB1'!C83 -> 0 | D39: =+'SB1'!D83 -> 0 | E39: =+'SB1'!E83 -> 0 | F39: =+'SB1'!F83 -> 0 | G39: =+'SB1'!G83 -> 0 | H39: =+'SB1'!H83 -> 0 | I39: =+'SB1'!I83 -> 0 | J39: 0 | K39: 0 | L39: =+'SB1'!L83 -> 0 | M39: =+'SB1'!M83 -> 0
A40: Inventory consumed | C40: ='SB1'!C136 -> 185066733 | D40: ='SB1'!D136 -> 0 | E40: ='SB1'!E136 -> 0 | F40: ='SB1'!F136 -> 0 | G40: ='SB1'!G136 -> 0 | H40: ='SB1'!H136 -> 0 | I40: ='SB1'!I136 -> 22200001 | J40: 22200001 | K40: 207266734 | L40: ='SB1'!L136 -> 224717503 | M40: ='SB1'!M136 -> 269084164
A41: Debt impairment | C41: 0 | D41: 0 | E41: 0 | F41: 0 | G41: 0 | H41: 0 | I41: 0 | J41: 0 | K41: 0 | L41: 0 | M41: 0
A42: Depreciation and amortisation | C42: 99840051 | D42: 0 | E42: 0 | F42: 0 | G42: 0 | H42: 0 | I42: -110000 | J42: =SUM(E42:I42) -> -110000 | K42: =IF(D42=0,C42+J42,D42+J42) -> 99730051 | L42: 104732214 | M42: 109654628
A43: Interest | C43: 105300 | D43: 0 | E43: 0 | F43: 0 | G43: 0 | H43: 0 | I43: 0 | J43: =SUM(E43:I43) -> 0 | K43: =IF(D43=0,C43+J43,D43+J43) -> 105300 | L43: 110460 | M43: 115651
A44: Contracted services | C44: ='SB1'!C94 -> 202768071 | D44: ='SB1'!D94 -> 0 | E44: ='SB1'!E94 -> 0 | F44: ='SB1'!F94 -> 0 | G44: ='SB1'!G94 -> 0 | H44: ='SB1'!H94 -> 0 | I44: ='SB1'!I94 -> 21564006 | J44: 21564006 | K44: 224332077 | L44: ='SB1'!L94 -> 312160886 | M44: ='SB1'!M94 -> 339978922
A45: Transfers and subsidies | C45: 20000000 | D45: 0 | E45: 0 | F45: 0 | G45: 0 | H45: 0 | I45: 0 | J45: 0 | K45: 20000000 | L45: 0 | M45: 0
A46: Irrecoverable debts written off | C46: 5306699 | D46: 0 | E46: 0 | F46: 0 | G46: 0 | H46: 0 | I46: 0 | J46: =SUM(E46:I46) -> 0 | K46: =IF(D46=0,C46+J46,D46+J46) -> 5306699 | L46: 5566727 | M46: 5828363
A47: Operational costs | C47: 220048100 | D47: 0 | E47: 0 | F47: 0 | G47: 0 | H47: 0 | I47: 722232 | J47: =SUM(E47:I47) -> 722232 | K47: =IF(D47=0,C47+J47,D47+J47) -> 220770332 | L47: 233898761 | M47: 245478902
A48: Losses on disposal of Assets | C48: 0 | D48: 0 | E48: 0 | F48: 0 | G48: 0 | H48: 0 | I48: 0 | J48: =SUM(E48:I48) -> 0 | K48: =IF(D48=0,C48+J48,D48+J48) -> 0 | L48: 0 | M48: 0
A49: Other Losses | C49: 0 | D49: 0 | E49: 0 | F49: 0 | G49: 0 | H49: 0 | I49: 0 | J49: =SUM(E49:I49) -> 0 | K49: =IF(D49=0,C49+J49,D49+J49) -> 0 | L49: 0 | M49: 0
A50: Total Expenditure | C50: =SUM(C37:C49) -> 1230746803 | D50: 0 | E50: 0 | F50: 0 | G50: 0 | H50: 0 | I50: 27764587 | J50: 27764587 | K50: 1258511390 | L50: 1403259786 | M50: 1516751308
A52: Surplus/(Deficit) | C52: =C34-C50 -> 42304929 | D52: 0 | E52: 0 | F52: 0 | G52: 0 | H52: 0 | I52: 11830691 | J52: 11830691 | K52: 54135620 | L52: 23443903 | M52: 24695376
A53: Transfers and subsidies - capital (monetary allocations) | C53: 551608010 | D53: 0 | E53: 0 | F53: 0 | G53: 0 | H53: 0 | I53: -34451535 | J53: =SUM(E53:I53) -> -34451535 | K53: =IF(D53=0,C53+J53,D53+J53) -> 517156475 | L53: 557785542 | M53: 572601767
A54: Transfers and subsidies - capital (in-kind - all) | C54: 0 | D54: 0 | E54: 0 | F54: 0 | G54: 0 | H54: 0 | I54: 0 | J54: =SUM(E54:I54) -> 0 | K54: =IF(D54=0,C54+J54,D54+J54) -> 0 | L54: 0 | M54: 0
A55: Surplus/(Deficit) before taxation | C55: =SUM(C52:C54) -> 593912939 | D55: 0 | E55: 0 | F55: 0 | G55: 0 | H55: 0 | I55: -22620844 | J55: -22620844 | K55: 571292095 | L55: 581229445 | M55: 597297143
A56: Income Tax | J56: =SUM(E56:I56) -> 0 | K56: =IF(D56=0,C56+J56,D56+J56) -> 0
A57: Surplus/(Deficit) after taxation | C57: =C55-C56 -> 593912939 | D57: 0 | E57: 0 | F57: 0 | G57: 0 | H57: 0 | I57: -22620844 | J57: -22620844 | K57: 571292095 | L57: 581229445 | M57: 597297143
A58: Share of Surplus/Deficit attributable to Joint Venture
A59: Share of Surplus/Deficit attributable to Minorities | J59: =SUM(E59:I59) -> 0 | K59: =IF(D59=0,C59+J59,D59+J59) -> 0
A60: Surplus/(Deficit) attributable to municipality | C60: =SUM(C57:C59) -> 593912939 | D60: 0 | E60: 0 | F60: 0 | G60: 0 | H60: 0 | I60: -22620844 | J60: -22620844 | K60: 571292095 | L60: 581229445 | M60: 597297143
A61: Share of Surplus/Deficit attributable to Associate
A62: Intercompany/Parent subsidiary transactions | C62: 0 | D62: 0 | E62: 0 | F62: 0 | G62: 0 | H62: 0 | I62: 0 | J62: =SUM(E62:I62) -> 0 | K62: =IF(D62=0,C62+J62,D62+J62) -> 0 | L62: 0 | M62: 0
A63: Surplus/ (Deficit) for the year | B63: 1 | C63: =C60+C62 -> 593912939 | D63: 0 | E63: 0 | F63: =SUM(F60:F62) -> 0 | G63: =SUM(G60:G62) -> 0 | H63: 0 | I63: -22620844 | J63: -22620844 | K63: 571292095 | L63: 581229445 | M63: 597297143
A64: =head27a -> References
A65: 1. Classifications are revenue sources and expenditure type
A66: 2. Detail to be provided in Table SB1
A67: 3. Only complete if a previous adjusted budget has been approved in the same financial year. Reflect most recent adjusted budget.
A68: 4. Additional cash-backed accumulated funds/unspent funds (MFMA section 18(1)(b) and section 28(2)(e)) identified after the Original Budget approved and after annual financial statements audited (note: only where underspending could not reasonably have been foreseen)
A69: 5. Increases of funds approved under MFMA section 31
A70: 6. Adjustments approved in accordance with MFMA section 29
A71: 7. Adjustments to transfers from National or Provincial Government
A72: 8. Adjusts. = 'Other' Adjustments proposed to be approved; including revenue under-collection (MFMA section 28(2)(a)); additional revenue appropriation on existing programmes (section 28(2))(b); projected savings (section 28(2)(d)); error correction (section 28(2)(f))
A73: 9. G = B + C + D + E + F
A74: 10. Adjusted Budget H = (A or A1/2 etc) + G

Sheet B5-Capex
A1: =muni&" - "&_ADJ5&" - "&Date -> DC47 Sekhukhune - Table B5 Adjustments Capital Expenditure Budget by vote and funding - 28/02/2024
A2: =desc -> Description | B2: =head27 -> Ref | C2: =Head2 -> Budget Year 2023/24 | L2: =Head10 -> Budget Year +1 2024/25 | M2: =Head11 -> Budget Year +2 2025/26
C3: =Head6 -> Original Budget | D3: =Head54 -> Prior Adjusted | E3: =Head51 -> Accum. Funds | F3: =Head52 -> Multi-year capital | G3: =Head53 -> Unfore. Unavoid. | H3: =Head55 -> Nat. or Prov. Govt | I3: =Head50 -> Other Adjusts. | J3: =Head56 -> Total Adjusts. | K3: =Head7 -> Adjusted Budget | L3: =Head7 -> Adjusted Budget | M3: =Head7 -> Adjusted Budget
D4: 5 | E4: 6 | F4: 7 | G4: 8 | H4: 9 | I4: 10 | J4: 11 | K4: 12
A5: R thousands | C5: A | D5: A1 | E5: B | F5: C | G5: D | H5: E | I5: F | J5: G | K5: H
A6: Capital expenditure - Vote
A7: Multi-year expenditure to be adjusted | B7: 2
A8: =B5B!A8 -> Vote 01 - Speakers Office | C8: =B5B!C8 -> 0 | D8: =B5B!D8 -> 0 | E8: =B5B!E8 -> 0 | F8: =B5B!F8 -> 0 | G8: =B5B!G8 -> 0 | H8: =B5B!H8 -> 0 | I8: =B5B!I8 -> 0 | J8: =B5B!J8 -> 0 | K8: =B5B!K8 -> 0 | L8: =B5B!L8 -> 0 | M8: =B5B!M8 -> 0
A9: =B5B!A11 -> Vote 02 - Executive Mayor's Office | C9: =B5B!C11 -> 0 | D9: =B5B!D11 -> 0 | E9: =B5B!E11 -> 0 | F9: =B5B!F11 -> 0 | G9: =B5B!G11 -> 0 | H9: =B5B!H11 -> 0 | I9: =B5B!I11 -> 0 | J9: =B5B!J11 -> 0 | K9: =B5B!K11 -> 0 | L9: =B5B!L11 -> 0 | M9: =B5B!M11 -> 0
A10: =B5B!A13 -> Vote 03 - Municipal Manager Office | C10: =B5B!C13 -> 0 | D10: =B5B!D13 -> 0 | E10: =B5B!E13 -> 0 | F10: =B5B!F13 -> 0 | G10: =B5B!G13 -> 0 | H10: =B5B!H13 -> 0 | I10: =B5B!I13 -> 0 | J10: =B5B!J13 -> 0 | K10: =B5B!K13 -> 0 | L10: =B5B!L13 -> 0 | M10: =B5B!M13 -> 0
A11: =B5B!A15 -> Vote 04 - Budget And Treasury | C11: =B5B!C15 -> 0 | D11: =B5B!D15 -> 0 | E11: =B5B!E15 -> 0 | F11: =B5B!F15 -> 0 | G11: =B5B!G15 -> 0 | H11: =B5B!H15 -> 0 | I11: =B5B!I15 -> 0 | J11: =B5B!J15 -> 0 | K11: =B5B!K15 -> 0 | L11: =B5B!L15 -> 0 | M11: =B5B!M15 -> 0
A12: =B5B!A18 -> Vote 05 - Infrustracture And Water Services | C12: =B5B!C18 -> 0 | D12: =B5B!D18 -> 0 | E12: =B5B!E18 -> 0 | F12: =B5B!F18 -> 0 | G12: =B5B!G18 -> 0 | H12: =B5B!H18 -> 0 | I12: =B5B!I18 -> 0 | J12: =B5B!J18 -> 0 | K12: =B5B!K18 -> 0 | L12: =B5B!L18 -> 0 | M12: =B5B!M18 -> 0
A13: =B5B!A22 -> Vote 06 - Planning And Economic Development | C13: =B5B!C22 -> 0 | D13: =B5B!D22 -> 0 | E13: =B5B!E22 -> 0 | F13: =B5B!F22 -> 0 | G13: =B5B!G22 -> 0 | H13: =B5B!H22 -> 0 | I13: =B5B!I22 -> 0 | J13: =B5B!J22 -> 0 | K13: =B5B!K22 -> 0 | L13: =B5B!L22 -> 0 | M13: =B5B!M22 -> 0
A14: =B5B!A24 -> Vote 07 - Community Services | C14: =B5B!C24 -> 0 | D14: =B5B!D24 -> 0 | E14: =B5B!E24 -> 0 | F14: =B5B!F24 -> 0 | G14: =B5B!G24 -> 0 | H14: =B5B!H24 -> 0 | I14: =B5B!I24 -> 0 | J14: =B5B!J24 -> 0 | K14: =B5B!K24 -> 0 | L14: =B5B!L24 -> 0 | M14: =B5B!M24 -> 0
A15: =B5B!A26 -> Vote 08 - Sekhukhune Development Angancy | C15: =B5B!C26 -> 0 | D15: =B5B!D26 -> 0 | E15: =B5B!E26 -> 0 | F15: =B5B!F26 -> 0 | G15: =B5B!G26 -> 0 | H15: =B5B!H26 -> 0 | I15: =B5B!I26 -> 0 | J15: =B5B!J26 -> 0 | K15: =B5B!K26 -> 0 | L15: =B5B!L26 -> 0 | M15: =B5B!M26 -> 0
A16: =B5B!A28 -> Vote 09 - Corporate Services | C16: =B5B!C28 -> 0 | D16: =B5B!D28 -> 0 | E16: =B5B!E28 -> 0 | F16: =B5B!F28 -> 0 | G16: =B5B!G28 -> 0 | H16: =B5B!H28 -> 0 | I16: =B5B!I28 -> 0 | J16: =B5B!J28 -> 0 | K16: =B5B!K28 -> 0 | L16: =B5B!L28 -> 0 | M16: =B5B!M28 -> 0
A17: ='Org structure'!A11 -> Vote 10 - | C17: =B5B!C30 -> 0 | D17: =B5B!D30 -> 0 | E17: =B5B!E30 -> 0 | F17: =B5B!F30 -> 0 | G17: =B5B!G30 -> 0 | H17: =B5B!H30 -> 0 | I17: =B5B!I30 -> 0 | J17: =SUM(E17:I17) -> 0 | K17: =IF(D17=0,C17+J17,D17+J17) -> 0 | L17: =B5B!L30 -> 0 | M17: =B5B!M30 -> 0
A18: ='Org structure'!A12 -> Vote 11 - | C18: =B5B!C31 -> 0 | D18: =B5B!D31 -> 0 | E18: =B5B!E31 -> 0 | F18: =B5B!F31 -> 0 | G18: =B5B!G31 -> 0 | H18: =B5B!H31 -> 0 | I18: =B5B!I31 -> 0 | J18: 0 | K18: 0 | L18: =B5B!L31 -> 0 | M18: =B5B!M31 -> 0
A19: ='Org structure'!A13 -> Vote 12 - | C19: =B5B!C32 -> 0 | D19: =B5B!D32 -> 0 | E19: =B5B!E32 -> 0 | F19: =B5B!F32 -> 0 | G19: =B5B!G32 -> 0 | H19: =B5B!H32 -> 0 | I19: =B5B!I32 -> 0 | J19: 0 | K19: 0 | L19: =B5B!L32 -> 0 | M19: =B5B!M32 -> 0
A20: ='Org structure'!A14 -> Vote 13 - | C20: =B5B!C33 -> 0 | D20: =B5B!D33 -> 0 | E20: =B5B!E33 -> 0 | F20: =B5B!F33 -> 0 | G20: =B5B!G33 -> 0 | H20: =B5B!H33 -> 0 | I20: =B5B!I33 -> 0 | J20: 0 | K20: 0 | L20: =B5B!L33 -> 0 | M20: =B5B!M33 -> 0
A21: ='Org structure'!A15 -> Vote 14 - | C21: =B5B!C34 -> 0 | D21: =B5B!D34 -> 0 | E21: =B5B!E34 -> 0 | F21: =B5B!F34 -> 0 | G21: =B5B!G34 -> 0 | H21: =B5B!H34 -> 0 | I21: =B5B!I34 -> 0 | J21: 0 | K21: 0 | L21: =B5B!L34 -> 0 | M21: =B5B!M34 -> 0
A22: =B5B!A35 -> Vote 15 - Other | C22: =B5B!C35 -> 0 | D22: =B5B!D35 -> 0 | E22: =B5B!E35 -> 0 | F22: =B5B!F35 -> 0 | G22: =B5B!G35 -> 0 | H22: =B5B!H35 -> 0 | I22: =B5B!I35 -> 0 | J22: =B5B!J35 -> 0 | K22: =B5B!K35 -> 0 | L22: =B5B!L35 -> 0 | M22: =B5B!M35 -> 0
A23: Capital multi-year expenditure sub-total | B23: 3 | C23: =SUM(C8:C22) -> 0 | D23: =SUM(D8:D22) -> 0 | E23: 0 | F23: 0 | G23: 0 | H23: 0 | I23: 0 | J23: =SUM(J8:J22) -> 0 | K23: =SUM(K8:K22) -> 0 | L23: =SUM(L8:L22) -> 0 | M23: =SUM(M8:M22) -> 0
A25: Single-year expenditure to be adjusted | B25: 2
A26: =B5B!A41 -> Vote 01 - Speakers Office | C26: =B5B!C41 -> 0 | D26: =B5B!D41 -> 0 | E26: =B5B!E41 -> 0 | F26: =B5B!F41 -> 0 | G26: =B5B!G41 -> 0 | H26: =B5B!H41 -> 0 | I26: =B5B!I41 -> 0 | J26: =B5B!J41 -> 0 | K26: =B5B!K41 -> 0 | L26: =B5B!L41 -> 0 | M26: =B5B!M41 -> 0
A27: =B5B!A44 -> Vote 02 - Executive Mayor's Office | C27: =B5B!C44 -> 0 | D27: =B5B!D44 -> 0 | E27: =B5B!E44 -> 0 | F27: =B5B!F44 -> 0 | G27: =B5B!G44 -> 0 | H27: =B5B!H44 -> 0 | I27: =B5B!I44 -> 0 | J27: =B5B!J44 -> 0 | K27: =B5B!K44 -> 0 | L27: =B5B!L44 -> 0 | M27: =B5B!M44 -> 0
A28: =B5B!A46 -> Vote 03 - Municipal Manager Office | C28: =B5B!C46 -> 0 | D28: =B5B!D46 -> 0 | E28: =B5B!E46 -> 0 | F28: =B5B!F46 -> 0 | G28: =B5B!G46 -> 0 | H28: =B5B!H46 -> 0 | I28: =B5B!I46 -> 0 | J28: =B5B!J46 -> 0 | K28: =B5B!K46 -> 0 | L28: =B5B!L46 -> 0 | M28: =B5B!M46 -> 0
A29: =B5B!A48 -> Vote 04 - Budget And Treasury | C29: =B5B!C48 -> 28450000 | D29: =B5B!D48 -> 0 | E29: =B5B!E48 -> 0 | F29: =B5B!F48 -> 0 | G29: =B5B!G48 -> 0 | H29: =B5B!H48 -> 0 | I29: =B5B!I48 -> 2000000 | J29: =B5B!J48 -> 2000000 | K29: =B5B!K48 -> 30450000 | L29: =B5B!L48 -> 8160000 | M29: =B5B!M48 -> 8600000
A30: =B5B!A51 -> Vote 05 - Infrustracture And Water Services | C30: =B5B!C51 -> 563293325 | D30: =B5B!D51 -> 0 | E30: =B5B!E51 -> 0 | F30: =B5B!F51 -> 0 | G30: =B5B!G51 -> 0 | H30: =B5B!H51 -> 0 | I30: =B5B!I51 -> -26625452 | J30: =B5B!J51 -> -26625452 | K30: =B5B!K51 -> 536667873 | L30: =B5B!L51 -> 570008381 | M30: =B5B!M51 -> 585386856
A31: =B5B!A55 -> Vote 06 - Planning And Economic Development | C31: =B5B!C55 -> 0 | D31: =B5B!D55 -> 0 | E31: =B5B!E55 -> 0 | F31: =B5B!F55 -> 0 | G31: =B5B!G55 -> 0 | H31: =B5B!H55 -> 0 | I31: =B5B!I55 -> 0 | J31: =B5B!J55 -> 0 | K31: =B5B!K55 -> 0 | L31: =B5B!L55 -> 0 | M31: =B5B!M55 -> 0
A32: =B5B!A57 -> Vote 07 - Community Services | C32: =B5B!C57 -> 200000 | D32: =B5B!D57 -> 0 | E32: =B5B!E57 -> 0 | F32: =B5B!F57 -> 0 | G32: =B5B!G57 -> 0 | H32: =B5B!H57 -> 0 | I32: =B5B!I57 -> 0 | J32: =B5B!J57 -> 0 | K32: =B5B!K57 -> 200000 | L32: =B5B!L57 -> 250000 | M32: =B5B!M57 -> 300000
A33: =B5B!A59 -> Vote 08 - Sekhukhune Development Angancy | C33: =B5B!C59 -> 1500000 | D33: =B5B!D59 -> 0 | E33: =B5B!E59 -> 0 | F33: =B5B!F59 -> 0 | G33: =B5B!G59 -> 0 | H33: =B5B!H59 -> 0 | I33: =B5B!I59 -> 0 | J33: =B5B!J59 -> 0 | K33: =B5B!K59 -> 1500000 | L33: =B5B!L59 -> 700000 | M33: =B5B!M59 -> 800000
A34: =B5B!A61 -> Vote 09 - Corporate Services | C34: =B5B!C61 -> 300000 | D34: =B5B!D61 -> 0 | E34: =B5B!E61 -> 0 | F34: =B5B!F61 -> 0 | G34: =B5B!G61 -> 0 | H34: =B5B!H61 -> 0 | I34: =B5B!I61 -> 500000 | J34: =B5B!J61 -> 500000 | K34: =B5B!K61 -> 800000 | L34: =B5B!L61 -> 0 | M34: =B5B!M61 -> 0
A35: ='Org structure'!A11 -> Vote 10 - | C35: =B5B!C63 -> 0 | D35: =B5B!D63 -> 0 | E35: =B5B!E63 -> 0 | F35: =B5B!F63 -> 0 | G35: =B5B!G63 -> 0 | H35: =B5B!H63 -> 0 | I35: =B5B!I63 -> 0 | J35: =SUM(E35:I35) -> 0 | K35: =IF(D35=0,C35+J35,D35+J35) -> 0 | L35: =B5B!L63 -> 0 | M35: =B5B!M63 -> 0
A36: ='Org structure'!A12 -> Vote 11 - | C36: =B5B!C64 -> 0 | D36: =B5B!D64 -> 0 | E36: =B5B!E64 -> 0 | F36: =B5B!F64 -> 0 | G36: =B5B!G64 -> 0 | H36: =B5B!H64 -> 0 | I36: =B5B!I64 -> 0 | J36: 0 | K36: 0 | L36: =B5B!L64 -> 0 | M36: =B5B!M64 -> 0
A37: ='Org structure'!A13 -> Vote 12 - | C37: =B5B!C65 -> 0 | D37: =B5B!D65 -> 0 | E37: =B5B!E65 -> 0 | F37: =B5B!F65 -> 0 | G37: =B5B!G65 -> 0 | H37: =B5B!H65 -> 0 | I37: =B5B!I65 -> 0 | J37: 0 | K37: =IF(D37=0,C37+J37,D37+J37) -> 0 | L37: =B5B!L65 -> 0 | M37: =B5B!M65 -> 0
A38: ='Org structure'!A14 -> Vote 13 - | C38: =B5B!C66 -> 0 | D38: =B5B!D66 -> 0 | E38: =B5B!E66 -> 0 | F38: =B5B!F66 -> 0 | G38: =B5B!G66 -> 0 | H38: =B5B!H66 -> 0 | I38: =B5B!I66 -> 0 | J38: 0 | K38: 0 | L38: =B5B!L66 -> 0 | M38: =B5B!M66 -> 0
A39: ='Org structure'!A15 -> Vote 14 - | C39: =B5B!C67 -> 0 | D39: =B5B!D67 -> 0 | E39: =B5B!E67 -> 0 | F39: =B5B!F67 -> 0 | G39: =B5B!G67 -> 0 | H39: =B5B!H67 -> 0 | I39: =B5B!I67 -> 0 | J39: 0 | K39: 0 | L39: =B5B!L67 -> 0 | M39: =B5B!M67 -> 0
A40: =B5B!A68 -> Vote 15 - Other | C40: =B5B!C68 -> 0 | D40: =B5B!D68 -> 0 | E40: =B5B!E68 -> 0 | F40: =B5B!F68 -> 0 | G40: =B5B!G68 -> 0 | H40: =B5B!H68 -> 0 | I40: =B5B!I68 -> 0 | J40: =B5B!J68 -> 0 | K40: =B5B!K68 -> 0 | L40: =B5B!L68 -> 0 | M40: =B5B!M68 -> 0
A41: Capital single-year expenditure sub-total | C41: =SUM(C26:C40) -> 593743325 | D41: =SUM(D26:D40) -> 0 | E41: 0 | F41: 0 | G41: 0 | H41: 0 | I41: -24125452 | J41: =SUM(J26:J40) -> -24125452 | K41: =SUM(K26:K40) -> 569617873 | L41: =SUM(L26:L40) -> 579118381 | M41: =SUM(M26:M40) -> 595086856
A42: Total Capital Expenditure - Vote | C42: =C41+C23 -> 593743325 | D42: =D41+D23 -> 0 | E42: 0 | F42: 0 | G42: 0 | H42: 0 | I42: -24125452 | J42: =J23+J41 -> -24125452 | K42: =K23+K41 -> 569617873 | L42: =L41+L23 -> 579118381 | M42: =M41+M23 -> 595086856
A44: Capital Expenditure - Functional
A45: Governance and administration | C45: =SUM(C46:C48) -> 28950000 | D45: 0 | E45: 0 | F45: 0 | G45: 0 | H45: 0 | I45: 2500000 | J45: =SUM(J46:J48) -> 2500000 | K45: 31450000 | L45: 8410000 | M45: 8900000
A46: Executive and council | C46: 0 | D46: 0 | E46: 0 | F46: 0 | G46: 0 | H46: 0 | I46: 0 | J46: =SUM(E46:I46) -> 0 | K46: =IF(D46=0,C46+J46,D46+J46) -> 0 | L46: 0 | M46: 0
A47: Finance and administration | C47: 28950000 | D47: 0 | E47: 0 | F47: 0 | G47: 0 | H47: 0 | I47: 2500000 | J47: =SUM(E47:I47) -> 2500000 | K47: =IF(D47=0,C47+J47,D47+J47) -> 31450000 | L47: 8410000 | M47: 8900000
A48: Internal audit | J48: =SUM(E48:I48) -> 0 | K48: =IF(D48=0,C48+J48,D48+J48) -> 0
A49: Community and public safety | C49: =SUM(C50:C54) -> 0 | D49: 0 | E49: 0 | F49: 0 | G49: 0 | H49: 0 | I49: 0 | J49: =SUM(J50:J54) -> 0 | K49: 0 | L49: 0 | M49: 0
A50: Community and social services | J50: =SUM(E50:I50) -> 0 | K50: =IF(D50=0,C50+J50,D50+J50) -> 0
A51: Sport and recreation | J51: =SUM(E51:I51) -> 0 | K51: =IF(D51=0,C51+J51,D51+J51) -> 0
A52: Public safety | J52: =SUM(E52:I52) -> 0 | K52: =IF(D52=0,C52+J52,D52+J52) -> 0
A53: Housing | J53: =SUM(E53:I53) -> 0 | K53: =IF(D53=0,C53+J53,D53+J53) -> 0
A54: Health | J54: =SUM(E54:I54) -> 0 | K54: =IF(D54=0,C54+J54,D54+J54) -> 0
A55: Economic and environmental services | C55: =SUM(C56:C58) -> 1500000 | D55: 0 | E55: 0 | F55: 0 | G55: 0 | H55: 0 | I55: 0 | J55: 0 | K55: 1500000 | L55: 700000 | M55: 800000
A56: Planning and development | C56: 1500000 | D56: 0 | E56: 0 | F56: 0 | G56: 0 | H56: 0 | I56: 0 | J56: =SUM(E56:I56) -> 0 | K56: =IF(D56=0,C56+J56,D56+J56) -> 1500000 | L56: 700000 | M56: 800000
A57: Road transport | J57: =SUM(E57:I57) -> 0 | K57: =IF(D57=0,C57+J57,D57+J57) -> 0
A58: Environmental protection | J58: =SUM(E58:I58) -> 0 | K58: =IF(D58=0,C58+J58,D58+J58) -> 0
A59: Trading services | C59: =SUM(C60:C63) -> 563293325 | D59: =SUM(D60:D63) -> 0 | E59: 0 | F59: 0 | G59: 0 | H59: 0 | I59: =SUM(I60:I63) -> -26625452 | J59: =SUM(J60:J63) -> -26625452 | K59: 536667873 | L59: 570008381 | M59: 585386856
A60: Energy sources | J60: =SUM(E60:I60) -> 0 | K60: =IF(D60=0,C60+J60,D60+J60) -> 0
A61: Water management | C61: 563293325 | D61: 0 | E61: 0 | F61: 0 | G61: 0 | H61: 0 | I61: -26625452 | J61: =SUM(E61:I61) -> -26625452 | K61: =IF(D61=0,C61+J61,D61+J61) -> 536667873 | L61: 570008381 | M61: 585386856
A62: Waste water management | C62: 0 | D62: 0 | E62: 0 | F62: 0 | G62: 0 | H62: 0 | I62: 0 | J62: =SUM(E62:I62) -> 0 | K62: =IF(D62=0,C62+J62,D62+J62) -> 0 | L62: 0 | M62: 0
A63: Waste management | J63: =SUM(E63:I63) -> 0 | K63: =IF(D63=0,C63+J63,D63+J63) -> 0
A64: Other | J64: =SUM(E64:I64) -> 0 | K64: =IF(D64=0,C64+J64,D64+J64) -> 0
A65: Total Capital Expenditure - Functional | B65: 3 | C65: =C45+C49+C55+C59+C64 -> 593743325 | D65: =D45+D49+D55+D59+D64 -> 0 | E65: 0 | F65: 0 | G65: 0 | H65: 0 | I65: =I45+I49+I55+I59+I64 -> -24125452 | J65: -24125452 | K65: 569617873 | L65: 579118381 | M65: 595086856
A67: Funded by:
A68: National Government | C68: 551608011 | D68: 0 | E68: 0 | F68: 0 | G68: 0 | H68: 0 | I68: -34451538 | J68: =SUM(E68:I68) -> -34451538 | K68: =IF(D68=0,C68+J68,D68+J68) -> 517156473 | L68: 557785542 | M68: 572601766
A69: Provincial Government | J69: =SUM(E69:I69) -> 0 | K69: =IF(D69=0,C69+J69,D69+J69) -> 0
A70: District Municipality | J70: =SUM(E70:I70) -> 0 | K70: =IF(D70=0,C70+J70,D70+J70) -> 0
A71: Transfers and subsidies - capital (in-kind) | J71: =SUM(E71:I71) -> 0 | K71: =IF(D71=0,C71+J71,D71+J71) -> 0
A72: Transfers recognised - capital | B72: 4 | C72: =SUM(C68:C71) -> 551608011 | D72: 0 | E72: 0 | F72: 0 | G72: 0 | H72: 0 | I72: -34451538 | J72: -34451538 | K72: 517156473 | L72: 557785542 | M72: 572601766
A74: Borrowing | J74: =SUM(E74:I74) -> 0 | K74: =IF(D74=0,C74+J74,D74+J74) -> 0
A75: Internally generated funds | C75: 42135314 | D75: 0 | E75: 0 | F75: 0 | G75: 0 | H75: 0 | I75: 10326086 | J75: =SUM(E75:I75) -> 10326086 | K75: =IF(D75=0,C75+J75,D75+J75) -> 52461400 | L75: 21332839 | M75: 22485090
A76: Total Capital Funding | C76: =+C72+C74+C75 -> 593743325 | D76: =+D72+D74+D75 -> 0 | E76: 0 | F76: 0 | G76: 0 | H76: 0 | I76: -24125452 | J76: -24125452 | K76: 569617873 | L76: 579118381 | M76: 595086856
A77: =head27a -> References
A78: 1. Municipalities may choose to appropriate for capital expenditure for three years or for one year (if one year appropriation projected expenditure required for yr2 and yr3).
A79: 2. Include capital component of PPP unitary payment. Note that capital transfers are only appropriated to municipalities for the budget year
A80: 3. Capital expenditure by standard classification must reconcile to the appropriations by vote
A81: 4. Must reconcile to supporting table SB7 and to Adjustments Budget Financial Performance (revenue and expenditure)
A82: 5. Only complete if a previous adjusted budget has been approved in the same financial year. Reflect most recent adjusted budget.
A83: 6. Additional cash-backed accumulated funds/unspent funds (MFMA section 18(1)(b) and section 28(2)(e)) identified after the Original Budget approved and after annual financial statements audited (note: only where underspending could not reasonably have been foreseen)
A84: 7. Increases of funds approved under MFMA section 31
A85: 8. Adjustments approved in accordance with MFMA section 29
A86: 9. Adjustments to transfers from National or Provincial Government
A87: 10. Adjusts. = 'Other' Adjustments proposed to be approved; including revenue under-collection (MFMA section 28(2)(a)); additional revenue appropriation on existing programmes (section 28(2))(b); projected savings (section 28(2)(d)); error correction (section 28(2)(f))
A88: 11. G = B + C + D + E + F
A89: 12. Adjusted Budget H = (A or A1/2 etc) + G
A91: check balance | C91: =C65-C76 -> 0 | D91: =D65-D76 -> 0 | E91: =E65-E76 -> 0 | H91: =H65-H76 -> 0 | I91: =I65-I76 -> 0 | J91: =J65-J76 -> 0 | K91: =K65-K76 -> 0 | L91: =L65-L76 -> 0 | M91: =K23-K76 -> -569617873

Sheet B5B
A1: =muni&" - "&_ADJ5&" - B"&" - "&Date -> DC47 Sekhukhune - Table B5 Adjustments Capital Expenditure Budget by vote and funding - B - 28/02/2024
A2: =Vdesc -> Vote Description | B2: =head27 -> Ref | C2: =Head2 -> Budget Year 2023/24 | L2: =Head10 -> Budget Year +1 2024/25 | M2: =Head11 -> Budget Year +2 2025/26
C3: =Head6 -> Original Budget | D3: =Head54 -> Prior Adjusted | E3: =Head51 -> Accum. Funds | F3: =Head52 -> Multi-year capital | G3: =Head53 -> Unfore. Unavoid. | H3: =Head55 -> Nat. or Prov. Govt | I3: =Head50 -> Other Adjusts. | J3: =Head56 -> Total Adjusts. | K3: =Head7 -> Adjusted Budget | L3: =Head7 -> Adjusted Budget | M3: =Head7 -> Adjusted Budget
A4: [Insert departmental structure etc] | D4: 3 | E4: 4 | F4: 5 | G4: 6 | H4: 7 | I4: 8 | J4: 9 | K4: 10
A5: R thousands | C5: A | D5: A1 | E5: B | F5: C | G5: D | H5: E | I5: F | J5: G | K5: H
A6: Capital expenditure - Municipal Vote
A7: Multi-year expenditure appropriation | B7: 2
A8: ='Org structure'!A2 -> Vote 01 - Speakers Office | C8: =SUM(C9:C10) -> 0 | D8: 0 | E8: 0 | F8: 0 | G8: 0 | H8: 0 | I8: 0 | J8: =SUM(E8:I8) -> 0 | K8: =IF(D8=0,C8+J8,D8+J8) -> 0 | L8: =SUM(L9:L10) -> 0 | M8: =SUM(M9:M10) -> 0
A9: ='Org structure'!E3 -> 01.1 - Office Of The Speaker | J9: 0 | K9: 0 | L9: 0 | M9: 0
A10: ='Org structure'!E4 -> 01.2 - Office Of The Chief Whip | J10: 0 | K10: 0 | L10: 0 | M10: 0
A11: ='Org structure'!A3 -> Vote 02 - Executive Mayor's Office | C11: =SUM(C12:C12) -> 0 | D11: 0 | E11: 0 | F11: 0 | G11: 0 | H11: 0 | I11: 0 | J11: 0 | K11: 0 | L11: =SUM(L12:L12) -> 0 | M11: =SUM(M12:M12) -> 0
A12: ='Org structure'!E6 -> 02.1 - Executive Mayor's Office | J12: 0 | K12: 0 | L12: 0 | M12: 0
A13: ='Org structure'!A4 -> Vote 03 - Municipal Manager Office | C13: =SUM(C14:C14) -> 0 | D13: 0 | E13: 0 | F13: 0 | G13: 0 | H13: 0 | I13: 0 | J13: 0 | K13: 0 | L13: =SUM(L14:L14) -> 0 | M13: =SUM(M14:M14) -> 0
A14: ='Org structure'!E8 -> 03.1 - Municipal Manager Admin | J14: 0 | K14: 0 | L14: 0 | M14: 0
A15: ='Org structure'!A5 -> Vote 04 - Budget And Treasury | C15: =SUM(C16:C17) -> 0 | D15: 0 | E15: 0 | F15: 0 | G15: 0 | H15: 0 | I15: 0 | J15: 0 | K15: 0 | L15: =SUM(L16:L17) -> 0 | M15: =SUM(M16:M17) -> 0
A16: ='Org structure'!E10 -> 04.1 - Budget & Treasury Admin | J16: 0 | K16: 0 | L16: 0 | M16: 0
A17: ='Org structure'!E11 -> 04.2 - Budget & Treasury Admin | J17: 0 | K17: 0 | L17: 0 | M17: 0
A18: ='Org structure'!A6 -> Vote 05 - Infrustracture And Water Services | C18: =SUM(C19:C21) -> 0 | D18: 0 | E18: 0 | F18: 0 | G18: 0 | H18: 0 | I18: 0 | J18: 0 | K18: 0 | L18: =SUM(L19:L21) -> 0 | M18: =SUM(M19:M21) -> 0
A19: ='Org structure'!E13 -> 05.1 - Technical Services Admin | J19: 0 | K19: 0 | L19: 0 | M19: 0
A20: ='Org structure'!E14 -> 05.2 - Water Services | J20: 0 | K20: 0 | L20: 0 | M20: 0
A21: ='Org structure'!E15 -> 05.3 - Sanitation Services | J21: 0 | K21: 0 | L21: 0 | M21: 0
A22: ='Org structure'!A7 -> Vote 06 - Planning And Economic Development | C22: =SUM(C23:C23) -> 0 | D22: 0 | E22: 0 | F22: 0 | G22: 0 | H22: 0 | I22: 0 | J22: 0 | K22: 0 | L22: =SUM(L23:L23) -> 0 | M22: =SUM(M23:M23) -> 0
A23: ='Org structure'!E17 -> 06.1 - Planning & Economic Dev Admin | J23: 0 | K23: 0 | L23: 0 | M23: 0
A24: ='Org structure'!A8 -> Vote 07 - Community Services | C24: =SUM(C25:C25) -> 0 | D24: 0 | E24: 0 | F24: 0 | G24: 0 | H24: 0 | I24: 0 | J24: =SUM(E24:I24) -> 0 | K24: =IF(D24=0,C24+J24,D24+J24) -> 0 | L24: =SUM(L25:L25) -> 0 | M24: =SUM(M25:M25) -> 0
A25: ='Org structure'!E19 -> 07.1 - Community Services Admin | J25: 0 | K25: 0 | L25: 0 | M25: 0
A26: ='Org structure'!A9 -> Vote 08 - Sekhukhune Development Angancy | C26: =SUM(C27:C27) -> 0 | D26: 0 | E26: 0 | F26: 0 | G26: 0 | H26: 0 | I26: 0 | J26: 0 | K26: 0 | L26: =SUM(L27:L27) -> 0 | M26: =SUM(M27:M27) -> 0
A27: ='Org structure'!E21 -> 08.1 - Sekhukhune Development Agency | J27: 0 | K27: 0 | L27: 0 | M27: 0
A28: ='Org structure'!A10 -> Vote 09 - Corporate Services | C28: =SUM(C29:C29) -> 0 | D28: 0 | E28: 0 | F28: 0 | G28: 0 | H28: 0 | I28: 0 | J28: 0 | K28: 0 | L28: =SUM(L29:L29) -> 0 | M28: =SUM(M29:M29) -> 0
A29: ='Org structure'!E23 -> 09.1 - Corporate Services Admin | J29: 0 | K29: 0 | L29: 0 | M29: 0
A30: ='Org structure'!A11 -> Vote 10 - | C30: 0 | D30: 0 | E30: 0 | F30: 0 | G30: 0 | H30: 0 | I30: 0 | J30: 0 | K30: 0 | L30: 0 | M30: 0
A31: ='Org structure'!A12 -> Vote 11 - | C31: 0 | D31: 0 | E31: 0 | F31: 0 | G31: 0 | H31: 0 | I31: 0 | J31: 0 | K31: 0 | L31: 0 | M31: 0
A32: ='Org structure'!A13 -> Vote 12 - | C32: 0 | D32: 0 | E32: 0 | F32: 0 | G32: 0 | H32: 0 | I32: 0 | J32: 0 | K32: 0 | L32: 0 | M32: 0
A33: ='Org structure'!A14 -> Vote 13 - | C33: 0 | D33: 0 | E33: 0 | F33: 0 | G33: 0 | H33: 0 | I33: 0 | J33: =SUM(E33:I33) -> 0 | K33: =IF(D33=0,C33+J33,D33+J33) -> 0 | L33: 0 | M33: 0
A34: ='Org structure'!A15 -> Vote 14 - | C34: 0 | D34: 0 | E34: 0 | F34: 0 | G34: 0 | H34: 0 | I34: 0 | J34: 0 | K34: 0 | L34: 0 | M34: 0
A35: ='Org structure'!A16 -> Vote 15 - Other | C35: =SUM(C36:C36) -> 0 | D35: 0 | E35: 0 | F35: 0 | G35: 0 | H35: 0 | I35: 0 | J35: 0 | K35: 0 | L35: =SUM(L36:L36) -> 0 | M35: =SUM(M36:M36) -> 0
A36: ='Org structure'!E30 -> 15.1 - Electricity Reporting Function | J36: 0 | K36: 0 | L36: 0 | M36: 0
A37: Capital multi-year expenditure sub-total | C37: =C8+C11+C13+C15+C18+C22+C24+C26+C28+C30+C31+C32+C33+C34+C35 -> 0 | D37: 0 | E37: 0 | F37: 0 | G37: 0 | H37: 0 | I37: 0 | J37: 0 | K37: 0 | L37: 0 | M37: 0
A39: Capital expenditure - Municipal Vote | B39: 2
A40: Single-year expenditure appropriation
A41: ='Org structure'!A2 -> Vote 01 - Speakers Office | C41: =SUM(C42:C43) -> 0 | D41: 0 | E41: 0 | F41: 0 | G41: 0 | H41: 0 | I41: 0 | J41: =SUM(E41:I41) -> 0 | K41: =IF(D41=0,C41+J41,D41+J41) -> 0 | L41: =SUM(L42:L43) -> 0 | M41: =SUM(M42:M43) -> 0
A42: ='Org structure'!E3 -> 01.1 - Office Of The Speaker | C42: 0 | D42: 0 | E42: 0 | F42: 0 | G42: 0 | H42: 0 | I42: 0 | J42: =SUM(E42:I42) -> 0 | K42: =IF(D42=0,C42+J42,D42+J42) -> 0 | L42: 0 | M42: 0
A43: ='Org structure'!E4 -> 01.2 - Office Of The Chief Whip | C43: 0 | D43: 0 | E43: 0 | F43: 0 | G43: 0 | H43: 0 | I43: 0 | J43: 0 | K43: 0 | L43: 0 | M43: 0
A44: ='Org structure'!A3 -> Vote 02 - Executive Mayor's Office | C44: =SUM(C45:C45) -> 0 | D44: 0 | E44: 0 | F44: 0 | G44: 0 | H44: 0 | I44: 0 | J44: 0 | K44: 0 | L44: =SUM(L45:L45) -> 0 | M44: =SUM(M45:M45) -> 0
A45: ='Org structure'!E6 -> 02.1 - Executive Mayor's Office | C45: 0 | D45: 0 | E45: 0 | F45: 0 | G45: 0 | H45: 0 | I45: 0 | J45: =SUM(E45:I45) -> 0 | K45: =IF(D45=0,C45+J45,D45+J45) -> 0 | L45: 0 | M45: 0
A46: ='Org structure'!A4 -> Vote 03 - Municipal Manager Office | C46: =SUM(C47:C47) -> 0 | D46: 0 | E46: 0 | F46: 0 | G46: 0 | H46: 0 | I46: 0 | J46: 0 | K46: 0 | L46: =SUM(L47:L47) -> 0 | M46: =SUM(M47:M47) -> 0
A47: ='Org structure'!E8 -> 03.1 - Municipal Manager Admin | C47: 0 | D47: 0 | E47: 0 | F47: 0 | G47: 0 | H47: 0 | I47: 0 | J47: 0 | K47: 0 | L47: 0 | M47: 0
A48: ='Org structure'!A5 -> Vote 04 - Budget And Treasury | C48: =SUM(C49:C50) -> 28450000 | D48: 0 | E48: 0 | F48: 0 | G48: 0 | H48: 0 | I48: 2000000 | J48: 2000000 | K48: 30450000 | L48: =SUM(L49:L50) -> 8160000 | M48: =SUM(M49:M50) -> 8600000
A49: ='Org structure'!E10 -> 04.1 - Budget & Treasury Admin | C49: 0 | D49: 0 | E49: 0 | F49: 0 | G49: 0 | H49: 0 | I49: 0 | J49: 0 | K49: 0 | L49: 0 | M49: 0
A50: ='Org structure'!E11 -> 04.2 - Budget & Treasury Admin | C50: 28450000 | D50: 0 | E50: 0 | F50: 0 | G50: 0 | H50: 0 | I50: 2000000 | J50: =SUM(E50:I50) -> 2000000 | K50: =IF(D50=0,C50+J50,D50+J50) -> 30450000 | L50: 8160000 | M50: 8600000
A51: ='Org structure'!A6 -> Vote 05 - Infrustracture And Water Services | C51: =SUM(C52:C54) -> 563293325 | D51: 0 | E51: 0 | F51: 0 | G51: 0 | H51: 0 | I51: -26625452 | J51: -26625452 | K51: 536667873 | L51: =SUM(L52:L54) -> 570008381 | M51: =SUM(M52:M54) -> 585386856
A52: ='Org structure'!E13 -> 05.1 - Technical Services Admin | C52: 0 | D52: 0 | E52: 0 | F52: 0 | G52: 0 | H52: 0 | I52: 0 | J52: 0 | K52: 0 | L52: 0 | M52: 0
A53: ='Org structure'!E14 -> 05.2 - Water Services | C53: 563293325 | D53: 0 | E53: 0 | F53: 0 | G53: 0 | H53: 0 | I53: -26625452 | J53: =SUM(E53:I53) -> -26625452 | K53: =IF(D53=0,C53+J53,D53+J53) -> 536667873 | L53: 570008381 | M53: 585386856
A54: ='Org structure'!E15 -> 05.3 - Sanitation Services | C54: 0 | D54: 0 | E54: 0 | F54: 0 | G54: 0 | H54: 0 | I54: 0 | J54: =SUM(E54:I54) -> 0 | K54: =IF(D54=0,C54+J54,D54+J54) -> 0 | L54: 0 | M54: 0
A55: ='Org structure'!A7 -> Vote 06 - Planning And Economic Development | C55: =SUM(C56:C56) -> 0 | D55: 0 | E55: 0 | F55: 0 | G55: 0 | H55: 0 | I55: 0 | J55: 0 | K55: 0 | L55: =SUM(L56:L56) -> 0 | M55: =SUM(M56:M56) -> 0
A56: ='Org structure'!E17 -> 06.1 - Planning & Economic Dev Admin | C56: 0 | D56: 0 | E56: 0 | F56: 0 | G56: 0 | H56: 0 | I56: 0 | J56: 0 | K56: 0 | L56: 0 | M56: 0
A57: ='Org structure'!A8 -> Vote 07 - Community Services | C57: =SUM(C58:C58) -> 200000 | D57: 0 | E57: 0 | F57: 0 | G57: 0 | H57: 0 | I57: 0 | J57: =SUM(E57:I57) -> 0 | K57: =IF(D57=0,C57+J57,D57+J57) -> 200000 | L57: =SUM(L58:L58) -> 250000 | M57: =SUM(M58:M58) -> 300000
A58: ='Org structure'!E19 -> 07.1 - Community Services Admin | C58: 200000 | D58: 0 | E58: 0 | F58: 0 | G58: 0 | H58: 0 | I58: 0 | J58: =SUM(E58:I58) -> 0 | K58: =IF(D58=0,C58+J58,D58+J58) -> 200000 | L58: 250000 | M58: 300000
A59: ='Org structure'!A9 -> Vote 08 - Sekhukhune Development Angancy | C59: =SUM(C60:C60) -> 1500000 | D59: 0 | E59: 0 | F59: 0 | G59: 0 | H59: 0 | I59: 0 | J59: 0 | K59: 1500000 | L59: =SUM(L60:L60) -> 700000 | M59: =SUM(M60:M60) -> 800000
A60: ='Org structure'!E21 -> 08.1 - Sekhukhune Development Agency | C60: 1500000 | D60: 0 | E60: 0 | F60: 0 | G60: 0 | H60: 0 | I60: 0 | J60: =SUM(E60:I60) -> 0 | K60: =IF(D60=0,C60+J60,D60+J60) -> 1500000 | L60: 700000 | M60: 800000
A61: ='Org structure'!A10 -> Vote 09 - Corporate Services | C61: =SUM(C62:C62) -> 300000 | D61: 0 | E61: 0 | F61: 0 | G61: 0 | H61: 0 | I61: 500000 | J61: 500000 | K61: 800000 | L61: =SUM(L62:L62) -> 0 | M61: =SUM(M62:M62) -> 0
A62: ='Org structure'!E23 -> 09.1 - Corporate Services Admin | C62: 300000 | D62: 0 | E62: 0 | F62: 0 | G62: 0 | H62: 0 | I62: 500000 | J62: =SUM(E62:I62) -> 500000 | K62: =IF(D62=0,C62+J62,D62+J62) -> 800000 | L62: 0 | M62: 0
A63: ='Org structure'!A11 -> Vote 10 - | C63: 0 | D63: 0 | E63: 0 | F63: 0 | G63: 0 | H63: 0 | I63: 0 | J63: 0 | K63: 0 | L63: 0 | M63: 0
A64: ='Org structure'!A12 -> Vote 11 - | C64: 0 | D64: 0 | E64: 0 | F64: 0 | G64: 0 | H64: 0 | I64: 0 | J64: 0 | K64: 0 | L64: 0 | M64: 0
A65: ='Org structure'!A13 -> Vote 12 - | C65: 0 | D65: 0 | E65: 0 | F65: 0 | G65: 0 | H65: 0 | I65: 0 | J65: 0 | K65: 0 | L65: 0 | M65: 0
A66: ='Org structure'!A14 -> Vote 13 - | C66: 0 | D66: 0 | E66: 0 | F66: 0 | G66: 0 | H66: 0 | I66: 0 | J66: =SUM(E66:I66) -> 0 | K66: =IF(D66=0,C66+J66,D66+J66) -> 0 | L66: 0 | M66: 0
A67: ='Org structure'!A15 -> Vote 14 - | C67: 0 | D67: 0 | E67: 0 | F67: 0 | G67: 0 | H67: 0 | I67: 0 | J67: 0 | K67: 0 | L67: 0 | M67: 0
A68: ='Org structure'!A16 -> Vote 15 - Other | C68: =SUM(C69:C69) -> 0 | D68: 0 | E68: 0 | F68: 0 | G68: 0 | H68: 0 | I68: 0 | J68: 0 | K68: 0 | L68: =SUM(L69:L69) -> 0 | M68: =SUM(M69:M69) -> 0
A69: ='Org structure'!E30 -> 15.1 - Electricity Reporting Function | C69: 0 | D69: 0 | E69: 0 | F69: 0 | G69: 0 | H69: 0 | I69: 0 | J69: 0 | K69: 0 | L69: 0 | M69: 0
A70: Capital single-year expenditure sub-total | C70: =C41+C44+C46+C48+C51+C55+C57+C59+C61+C63+C64+C65+C66+C67+C68 -> 593743325 | D70: 0 | E70: 0 | F70: 0 | G70: 0 | H70: 0 | I70: -24125452 | J70: -24125452 | K70: 569617873 | L70: 579118381 | M70: 595086856
A71: Total Capital Expenditure | C71: =C70+C37 -> 593743325 | D71: 0 | E71: 0 | F71: 0 | G71: 0 | H71: 0 | I71: -24125452 | J71: =SUM(E71:I71) -> -24125452 | K71: =IF(D71=0,C71+J71,D71+J71) -> 569617873 | L71: =L70+L37 -> 579118381 | M71: =M70+M37 -> 595086856
A74: =head27a -> References
A75: 1. Insert 'Vote'; e.g. Department, if different to standard structure
A76: 2. Must reconcile to Financial Performance ('Revenue and Expenditure by Standard Classification' and 'Revenue and Expenditure')
A77: 3. Assign share in 'associate' to relevant Vote

Sheet B6-FinPos
A1: =muni&" - "&_ADJ6&" - "&Date -> DC47 Sekhukhune - Table B6 Adjustments Budget Financial Position - 28/02/2024
A2: =desc -> Description | B2: =head27 -> Ref | C2: =Head2 -> Budget Year 2023/24 | L2: =Head10 -> Budget Year +1 2024/25 | M2: =Head11 -> Budget Year +2 2025/26
C3: =Head6 -> Original Budget | D3: =Head54 -> Prior Adjusted | E3: =Head51 -> Accum. Funds | F3: =Head52 -> Multi-year capital | G3: =Head53 -> Unfore. Unavoid. | H3: =Head55 -> Nat. or Prov. Govt | I3: =Head50 -> Other Adjusts. | J3: =Head56 -> Total Adjusts. | K3: =Head7 -> Adjusted Budget | L3: =Head7 -> Adjusted Budget | M3: =Head7 -> Adjusted Budget
D4: 3 | E4: 4 | F4: 5 | G4: 6 | H4: 7 | I4: 8 | J4: 9 | K4: 10
A5: R thousands | C5: A | D5: A1 | E5: B | F5: C | G5: D | H5: E | I5: F | J5: G | K5: H
A6: ASSETS
A7: Current assets
A8: Cash and cash equivalents | C8: 406789922 | D8: 0 | E8: 0 | F8: 0 | G8: 0 | H8: 0 | I8: 510830688 | J8: =SUM(E8:I8) -> 510830688 | K8: =IF(D8=0,C8+J8,D8+J8) -> 917620610 | L8: 508642165 | M8: 875822491
A9: Trade and other receivables from exchange transactions | B9: 1 | C9: ='SB2'!C20 -> 544395263 | D9: ='SB2'!D20 -> 0 | E9: ='SB2'!E20 -> 0 | F9: ='SB2'!F20 -> 0 | G9: ='SB2'!G20 -> 0 | H9: ='SB2'!H20 -> 0 | I9: ='SB2'!I20 -> -401092 | J9: -401092 | K9: 543994171 | L9: ='SB2'!L20 -> 537525028 | M9: ='SB2'!M20 -> 508117446
A10: Receivables from non-exchange transactions | B10: 1 | C10: ='SB2'!C29 -> 0 | D10: ='SB2'!D29 -> 0 | E10: ='SB2'!E29 -> 0 | F10: ='SB2'!F29 -> 0 | G10: ='SB2'!G29 -> 0 | H10: ='SB2'!H29 -> 0 | I10: ='SB2'!I29 -> 0 | J10: 0 | K10: 0 | L10: ='SB2'!L29 -> 0 | M10: ='SB2'!M29 -> 0
A11: Current portion of non-current receivables | B11: 2 | J11: 0 | K11: 0
A12: Inventory | C12: ='SB2'!C124 -> 212731334 | D12: ='SB2'!D124 -> 0 | E12: ='SB2'!E124 -> 0 | F12: ='SB2'!F124 -> 0 | G12: ='SB2'!G124 -> 0 | H12: ='SB2'!H124 -> 0 | I12: ='SB2'!I124 -> -99985638 | J12: -99985638 | K12: 112745696 | L12: ='SB2'!L124 -> 73258034 | M12: ='SB2'!M124 -> 203400030
A13: VAT | C13: 50850653 | D13: 0 | E13: 0 | F13: 0 | G13: 0 | H13: 0 | I13: 0 | J13: 0 | K13: 50850653 | L13: 53342335 | M13: 55849425
A14: Other current assets | C14: 91582263 | D14: 0 | E14: 0 | F14: 0 | G14: 0 | H14: 0 | I14: 0 | J14: 0 | K14: 91582263 | L14: 78527028 | M14: 69004447
A15: Total current assets | C15: =SUM(C8:C14) -> 1306349435 | D15: 0 | E15: 0 | F15: 0 | G15: 0 | H15: 0 | I15: 410443958 | J15: 410443958 | K15: 1716793393 | L15: 1251294590 | M15: 1712193839
A16: Non current assets
A17: Investments | C17: 0 | D17: 0 | E17: 0 | F17: 0 | G17: 0 | H17: 0 | I17: 0 | J17: =SUM(E17:I17) -> 0 | K17: =IF(D17=0,C17+J17,D17+J17) -> 0 | L17: 0 | M17: 0
A18: Investment property | J18: =SUM(E18:I18) -> 0 | K18: =IF(D18=0,C18+J18,D18+J18) -> 0
A19: Property, plant and equipment | B19: 3 | C19: =+'SB2'!C130 -> 3875563470 | D19: =+'SB2'!D130 -> 0 | E19: =+'SB2'!E130 -> 0 | F19: =+'SB2'!F130 -> 0 | G19: =+'SB2'!G130 -> 0 | H19: =+'SB2'!H130 -> 0 | I19: =+'SB2'!I130 -> -24125452 | J19: -24125452 | K19: 3851438018 | L19: =+'SB2'!L130 -> 4022621212 | M19: =+'SB2'!M130 -> 4200839514
A20: Biological assets | J20: 0 | K20: 0
A21: Living and non-living resources | J21: 0 | K21: 0
A22: Heritage assets | C22: 0 | D22: 0 | E22: 0 | F22: 0 | G22: 0 | H22: 0 | I22: 0 | J22: =SUM(E22:I22) -> 0 | K22: =IF(D22=0,C22+J22,D22+J22) -> 0 | L22: 0 | M22: 0
A23: Intangible assets | C23: 1500000 | D23: 0 | E23: 0 | F23: 0 | G23: 0 | H23: 0 | I23: 0 | J23: =SUM(E23:I23) -> 0 | K23: =IF(D23=0,C23+J23,D23+J23) -> 1500000 | L23: 700000 | M23: 800000
A24: Trade and other receivables from exchange transactions | J24: 0 | K24: 0
A25: Non-current receivables from non-exchange transactions | J25: 0 | K25: 0
A26: Other non-current assets | J26: 0 | K26: 0
A27: Total non current assets | C27: =SUM(C17:C26) -> 3877063470 | D27: =SUM(D17:D26) -> 0 | E27: 0 | F27: 0 | G27: 0 | H27: 0 | I27: -24125452 | J27: -24125452 | K27: 3852938018 | L27: =SUM(L17:L26) -> 4023321212 | M27: 4201639514
A28: TOTAL ASSETS | C28: =C15+C27 -> 5183412905 | D28: 0 | E28: 0 | F28: 0 | G28: 0 | H28: 0 | I28: 386318506 | J28: 386318506 | K28: 5569731411 | L28: 5274615802 | M28: 5913833353
A30: LIABILITIES
A31: Current liabilities
A32: Bank overdraft | J32: =SUM(E32:I32) -> 0 | K32: =IF(D32=0,C32+J32,D32+J32) -> 0
A33: Financial liabilities | C33: ='SB2'!C136 -> 0 | D33: ='SB2'!D136 -> 0 | E33: ='SB2'!E136 -> 0 | F33: ='SB2'!F136 -> 0 | G33: ='SB2'!G136 -> 0 | H33: ='SB2'!H136 -> 0 | I33: ='SB2'!I136 -> 0 | J33: =SUM(E33:I33) -> 0 | K33: =IF(D33=0,C33+J33,D33+J33) -> 0 | L33: ='SB2'!L136 -> 0 | M33: ='SB2'!M136 -> 0
A34: Consumer deposits | C34: 4209180 | D34: 0 | E34: 0 | F34: 0 | G34: 0 | H34: 0 | I34: 0 | J34: =SUM(E34:I34) -> 0 | K34: =IF(D34=0,C34+J34,D34+J34) -> 4209180 | L34: 4425517 | M34: 4738916
A35: Trade and other payables from exchange transactions | C35: =+'SB2'!C139+'SB2'!C140 -> 155000000 | D35: =+'SB2'!D139+'SB2'!D140 -> 0 | E35: =+'SB2'!E139+'SB2'!E140 -> 0 | F35: =+'SB2'!F139+'SB2'!F140 -> 0 | G35: =+'SB2'!G139+'SB2'!G140 -> 0 | H35: =+'SB2'!H139+'SB2'!H140 -> 0 | I35: =+'SB2'!I139+'SB2'!I140 -> 100000241 | J35: =SUM(E35:I35) -> 100000241 | K35: =IF(D35=0,C35+J35,D35+J35) -> 255000241 | L35: =+'SB2'!L139+'SB2'!L140 -> 138550688 | M35: =+'SB2'!M139+'SB2'!M140 -> 139927869
A36: Trade and other payables from non-exchange transactions | C36: =+'SB2'!C141+'SB2'!C142 -> 100000000 | D36: =+'SB2'!D141+'SB2'!D142 -> 0 | E36: =+'SB2'!E141+'SB2'!E142 -> 0 | F36: =+'SB2'!F141+'SB2'!F142 -> 0 | G36: =+'SB2'!G141+'SB2'!G142 -> 0 | H36: =+'SB2'!H141+'SB2'!H142 -> 0 | I36: =+'SB2'!I141+'SB2'!I142 -> 0 | J36: 0 | K36: 100000000 | L36: =+'SB2'!L141+'SB2'!L142 -> 104900000 | M36: =+'SB2'!M141+'SB2'!M142 -> 109830300
A37: Provisions | C37: 0 | D37: 0 | E37: 0 | F37: 0 | G37: 0 | H37: 0 | I37: 0 | J37: 0 | K37: 0 | L37: 0 | M37: 0
A38: VAT | C38: 0 | D38: 0 | E38: 0 | F38: 0 | G38: 0 | H38: 0 | I38: 0 | J38: 0 | K38: 0 | L38: 0 | M38: 0
A39: Other current liabilities | J39: 0 | K39: 0
A40: Total current liabilities | C40: =SUM(C32:C39) -> 259209180 | D40: =SUM(D32:D39) -> 0 | E40: 0 | F40: 0 | G40: 0 | H40: 0 | I40: 100000241 | J40: =SUM(J32:J37) -> 100000241 | K40: 359209421 | L40: =SUM(L32:L39) -> 247876205 | M40: 254497085
A42: Non current liabilities
A43: Borrowing | B43: 1 | C43: ='SB2'!C146 -> 0 | D43: ='SB2'!D146 -> 0 | E43: ='SB2'!E146 -> 0 | F43: ='SB2'!F146 -> 0 | G43: ='SB2'!G146 -> 0 | H43: ='SB2'!H146 -> 0 | I43: ='SB2'!I146 -> 0 | J43: =SUM(E43:I43) -> 0 | K43: =IF(D43=0,C43+J43,D43+J43) -> 0 | L43: ='SB2'!L146 -> 0 | M43: ='SB2'!M146 -> 0
A44: Provisions | B44: 1 | C44: ='SB2'!C155 -> 54002671 | D44: ='SB2'!D155 -> 0 | E44: ='SB2'!E155 -> 0 | F44: ='SB2'!F155 -> 0 | G44: ='SB2'!G155 -> 0 | H44: ='SB2'!H155 -> 0 | I44: ='SB2'!I155 -> 0 | J44: =SUM(E44:I44) -> 0 | K44: =IF(D44=0,C44+J44,D44+J44) -> 54002671 | L44: ='SB2'!L155 -> 53775000 | M44: ='SB2'!M155 -> 56690112
A45: Long term portion of trade payables | J45: =SUM(E45:I45) -> 0 | K45: =IF(D45=0,C45+J45,D45+J45) -> 0
A46: Other non-current liabilities | J46: =SUM(E46:I46) -> 0 | K46: =IF(D46=0,C46+J46,D46+J46) -> 0
A47: Total non current liabilities | C47: =SUM(C43:C46) -> 54002671 | D47: =SUM(D43:D46) -> 0 | E47: 0 | F47: 0 | G47: 0 | H47: 0 | I47: 0 | J47: 0 | K47: 54002671 | L47: 53775000 | M47: 56690112
A48: TOTAL LIABILITIES | C48: =C40+C47 -> 313211851 | D48: 0 | E48: 0 | F48: 0 | G48: 0 | H48: 0 | I48: 100000241 | J48: 100000241 | K48: 413212092 | L48: 301651205 | M48: 311187197
A50: NET ASSETS | B50: 2 | C50: =C28-C48 -> 4870201054 | D50: 0 | E50: 0 | F50: 0 | G50: 0 | H50: 0 | I50: 286318265 | J50: 286318265 | K50: 5156519319 | L50: 4972964597 | M50: 5602646156
A52: COMMUNITY WEALTH/EQUITY
A53: Accumulated Surplus/(Deficit) | C53: ='SB2'!C167 -> 4870201054 | D53: ='SB2'!D167 -> 0 | E53: ='SB2'!E167 -> 0 | F53: ='SB2'!F167 -> 0 | G53: ='SB2'!G167 -> 0 | H53: ='SB2'!H167 -> 0 | I53: ='SB2'!I167 -> 286318264 | J53: =SUM(E53:I53) -> 286318264 | K53: =IF(D53=0,C53+J53,D53+J53) -> 5156519318 | L53: ='SB2'!L167 -> 4972964596 | M53: ='SB2'!M167 -> 5602646156
A54: Funds and Reserves | C54: ='SB2'!C174 -> 0 | D54: ='SB2'!D174 -> 0 | E54: ='SB2'!E174 -> 0 | F54: ='SB2'!F174 -> 0 | G54: ='SB2'!G174 -> 0 | H54: ='SB2'!H174 -> 0 | I54: ='SB2'!I174 -> 0 | J54: =SUM(E54:I54) -> 0 | K54: =IF(D54=0,C54+J54,D54+J54) -> 0 | L54: ='SB2'!L174 -> 0 | M54: ='SB2'!M174 -> 0
A55: Other | J55: =SUM(E55:I55) -> 0 | K55: =IF(D55=0,C55+J55,D55+J55) -> 0
A56: TOTAL COMMUNITY WEALTH/EQUITY | C56: =SUM(C53:C55) -> 4870201054 | D56: =SUM(D53:D55) -> 0 | E56: 0 | F56: 0 | G56: 0 | H56: 0 | I56: 286318264 | J56: 286318264 | K56: 5156519318 | L56: 4972964596 | M56: 5602646156
A57: =head27a -> References
A58: 1. Detail to be provided in Table SA3
A59: 2. Net assets must balance with Total Community Wealth/Equity
A60: 3. Only complete if a previous adjusted budget has been approved in the same financial year. Reflect most recent adjusted budget.
A61: 4. Additional cash-backed accumulated funds/unspent funds (MFMA section 18(1)(b) and section 28(2)(e)) identified after the Original Budget approved and after annual financial statements audited (note: only where underspending could not reasonably have been foreseen)
A62: 5. Increases of funds approved under MFMA section 31
A63: 6. Adjustments approved in accordance with MFMA section 29
A64: 7. Adjustments to transfers from National or Provincial Government
A65: 8. Adjusts. = 'Other' Adjustments proposed to be approved; including revenue under-collection (MFMA section 28(2)(a)); additional revenue appropriation on existing programmes (section 28(2))(b); projected savings (section 28(2)(d)); error correction (section 28(2)(f))
A66: 9. G = B + C + D + E + F
A67: 10. Adjusted Budget H = (A or A1/2 etc) + G
A69: check balance | C69: =C50-C56 -> 0 | D69: 0 | E69: 0 | F69: 0 | G69: 0 | H69: 0 | I69: 1 | J69: 1 | K69: 1 | L69: 1 | M69: 0

Sheet B7-CFlow
A1: =muni&" - "&_ADJ7&" - "&Date -> DC47 Sekhukhune - Table B7 Adjustments Budget Cash Flows - 28/02/2024
A2: =desc -> Description | B2: =head27 -> Ref | C2: =Head2 -> Budget Year 2023/24 | L2: =Head10 -> Budget Year +1 2024/25 | M2: =Head11 -> Budget Year +2 2025/26
C3: =Head6 -> Original Budget | D3: =Head54 -> Prior Adjusted | E3: =Head51 -> Accum. Funds | F3: =Head52 -> Multi-year capital | G3: =Head53 -> Unfore. Unavoid. | H3: =Head55 -> Nat. or Prov. Govt | I3: =Head50 -> Other Adjusts. | J3: =Head56 -> Total Adjusts. | K3: =Head7 -> Adjusted Budget | L3: =Head7 -> Adjusted Budget | M3: =Head7 -> Adjusted Budget
D4: 3 | E4: 4 | F4: 5 | G4: 6 | H4: 7 | I4: 8 | J4: 9 | K4: 10
A5: R thousands | C5: A | D5: A1 | E5: B | F5: C | G5: D | H5: E | I5: F | J5: G | K5: H
A6: CASH FLOW FROM OPERATING ACTIVITIES
A7: Receipts
A8: Property rates | C8: 0 | D8: 0 | E8: 0 | F8: 0 | G8: 0 | H8: 0 | I8: 0 | J8: =SUM(E8:I8) -> 0 | K8: =IF(D8=0,C8+J8,D8+J8) -> 0 | L8: 0 | M8: 0
A9: Service charges | C9: 65249109 | D9: 0 | E9: 0 | F9: 0 | G9: 0 | H9: 0 | I9: -135574 | J9: =SUM(E9:I9) -> -135574 | K9: =IF(D9=0,C9+J9,D9+J9) -> 65113535 | L9: 78793982 | M9: 84467129
A10: Other revenue | C10: 2219319 | D10: 0 | E10: 0 | F10: 0 | G10: 0 | H10: 0 | I10: 1421769 | J10: 1421769 | K10: 3641088 | L10: 2335565 | M10: 2661637
A11: Transfers and Subsidies - Operational | B11: 1 | C11: 1118176990 | D11: 0 | E11: 0 | F11: 0 | G11: 0 | H11: 0 | I11: -4813466 | J11: -4813466 | K11: 1113363524 | L11: 1261384458 | M11: 1359398233
A12: Transfers and Subsidies - Capital | B12: 1 | C12: 551608010 | D12: 0 | E12: 0 | F12: 0 | G12: 0 | H12: 0 | I12: -34451536 | J12: -34451536 | K12: 517156474 | L12: 557785541 | M12: 569339489
A13: Interest | C13: 22612418 | D13: 0 | E13: 0 | F13: 0 | G13: 0 | H13: 0 | I13: 46379490 | J13: 46379490 | K13: 68991908 | L13: 23629977 | M13: 23788588
A14: Dividends | J14: 0 | K14: 0
A15: Payments
A16: Suppliers and employees | C16: -1026187581 | D16: 0 | E16: 0 | F16: 0 | G16: 0 | H16: 0 | I16: -132593759 | J16: =SUM(E16:I16) -> -132593759 | K16: =IF(D16=0,C16+J16,D16+J16) -> -1158781340 | L16: =-('SB15'!Q36+'SB15'!Q37+'SB15'!Q39+'SB15'!Q40+'SB15'!Q41+'SB15'!Q42+'SB15'!Q45+'SB15'!Q51) -> -1043270358 | M16: =-('SB15'!R36+'SB15'!R37+'SB15'!R39+'SB15'!R40+'SB15'!R41+'SB15'!R42+'SB15'!R45+'SB15'!R51) -> -1407825824
A17: Finance charges | J17: =SUM(E17:I17) -> 0 | K17: =IF(D17=0,C17+J17,D17+J17) -> 0
A18: Transfers and Subsidies | B18: 1 | J18: =SUM(E18:I18) -> 0 | K18: =IF(D18=0,C18+J18,D18+J18) -> 0
A19: NET CASH FROM/(USED) OPERATING ACTIVITIES | C19: =SUM(C8:C14)+SUM(C16:C18) -> 733678265 | D19: =SUM(D8:D14)+SUM(D16:D18) -> 0 | E19: 0 | F19: 0 | G19: 0 | H19: 0 | I19: -124193076 | J19: =SUM(J8:J18) -> -124193076 | K19: =SUM(K8:K18) -> 609485189 | L19: =SUM(L8:L14)+SUM(L16:L18) -> 880659165 | M19: =SUM(M8:M14)+SUM(M16:M18) -> 631829252
A21: CASH FLOWS FROM INVESTING ACTIVITIES
A22: Receipts
A23: Proceeds on disposal of PPE | C23: 452812 | D23: 0 | E23: 0 | F23: 0 | G23: 0 | H23: 0 | I23: 0 | J23: =SUM(E23:I23) -> 0 | K23: =IF(D23=0,C23+J23,D23+J23) -> 452812 | L23: 475000 | M23: 497325
A25: Decrease (increase) in non-current receivables | J25: =SUM(E25:I25) -> 0 | K25: =IF(D25=0,C25+J25,D25+J25) -> 0
A26: Decrease (increase) in non-current investments | C26: 0 | D26: 0 | E26: 0 | F26: 0 | G26: 0 | H26: 0 | I26: 0 | J26: =SUM(E26:I26) -> 0 | K26: =IF(D26=0,C26+J26,D26+J26) -> 0 | L26: 0 | M26: 0
A27: Payments
A28: Capital assets | C28: -593743325 | D28: 0 | E28: 0 | F28: 0 | G28: 0 | H28: 0 | I28: 24125452 | J28: =SUM(E28:I28) -> 24125452 | K28: =IF(D28=0,C28+J28,D28+J28) -> -569617873 | L28: -579118381 | M28: -595086856
A29: NET CASH FROM/(USED) INVESTING ACTIVITIES | C29: =+C23+C25+C26+C28 -> -593290513 | D29: =+D23+D25+D26+D28 -> 0 | E29: 0 | F29: 0 | G29: 0 | H29: 0 | I29: 24125452 | J29: 24125452 | K29: -569165061 | L29: -578643381 | M29: -594589531
A31: CASH FLOWS FROM FINANCING ACTIVITIES
A32: Receipts
A33: Short term loans | J33: =SUM(E33:I33) -> 0 | K33: =IF(D33=0,C33+J33,D33+J33) -> 0
A34: Borrowing long term/refinancing | J34: =SUM(E34:I34) -> 0 | K34: =IF(D34=0,C34+J34,D34+J34) -> 0
A35: Increase (decrease) in consumer deposits | C35: 0 | D35: 0 | E35: 0 | F35: 0 | G35: 0 | H35: 0 | I35: 0 | J35: =SUM(E35:I35) -> 0 | K35: =IF(D35=0,C35+J35,D35+J35) -> 0 | L35: 110755 | M35: 115961
A36: Payments
A37: Repayment of borrowing | J37: =SUM(E37:I37) -> 0 | K37: =IF(D37=0,C37+J37,D37+J37) -> 0
A38: NET CASH FROM/(USED) FINANCING ACTIVITIES | C38: =SUM(C33:C35)+C37 -> 0 | D38: =SUM(D33:D35)+D37 -> 0 | E38: 0 | F38: 0 | G38: 0 | H38: 0 | I38: 0 | J38: =SUM(J33:J37) -> 0 | K38: =SUM(K33:K37) -> 0 | L38: =SUM(L33:L35)+L37 -> 110755 | M38: =SUM(M33:M35)+M37 -> 115961
A40: NET INCREASE/ (DECREASE) IN CASH HELD | C40: =C19+C29+C38 -> 140387752 | D40: =D19+D29+D38 -> 0 | E40: 0 | F40: 0 | G40: 0 | H40: 0 | I40: -100067624 | J40: -100067624 | K40: 40320128 | L40: 302126539 | M40: 37355682
A41: Cash/cash equivalents at the year begin: | B41: 2 | C41: 275962309 | D41: 0 | E41: 0 | F41: 0 | G41: 0 | H41: 0 | I41: 652430005 | J41: =SUM(E41:I41) -> 652430005 | K41: =IF(D41=0,C41+J41,D41+J41) -> 928392314 | L41: 415476130 | M41: 778798545
A42: Cash/cash equivalents at the year end: | B42: 2 | C42: =C40+C41 -> 416350061 | D42: =D40+D41 -> 0 | E42: 0 | F42: 0 | G42: 0 | H42: 0 | I42: 552362381 | J42: 552362381 | K42: =K40+K41 -> 968712442 | L42: =L40+L41 -> 717602669 | M42: =M40+M41 -> 816154227
A43: =head27a -> References
A44: 1. Local/District municipalities to include transfers from/to District/Local Municipalities
A45: 2. Cash equivalents includes investments with maturities of 3 months or less
A46: 3. Only complete if a previous adjusted budget has been approved in the same financial year. Reflect most recent adjusted budget.
A47: 4. Additional cash-backed accumulated funds/unspent funds (MFMA section 18(1)(b) and section 28(2)(e)) identified after the Original Budget approved and after annual financial statements audited (note: only where underspending could not reasonably have been foreseen)
A48: 5. Increases of funds approved under MFMA section 31
A49: 6. Adjustments approved in accordance with MFMA section 29
A50: 7. Adjustments to transfers from National or Provincial Government
A51: 8. Adjusts. = 'Other' Adjustments proposed to be approved; including revenue under-collection (MFMA section 28(2)(a)); additional revenue appropriation on existing programmes (section 28(2))(b); projected savings (section 28(2)(d)); error correction (section 28(2)(f))
A52: 9. G = B + C + D + E + F
A53: 10. Adjusted Budget H = (A or A1) + G

Sheet B8-ResRecon
A1: =muni&" - "&_ADJ8&" - "&Date -> DC47 Sekhukhune - Table B8 Cash backed reserves/accumulated surplus reconciliation - 28/02/2024
A2: =desc -> Description | B2: =head27 -> Ref | C2: =Head2 -> Budget Year 2023/24 | L2: =Head10 -> Budget Year +1 2024/25 | M2: =Head11 -> Budget Year +2 2025/26
C3: =Head6 -> Original Budget | D3: =Head54 -> Prior Adjusted | E3: =Head51 -> Accum. Funds | F3: =Head52 -> Multi-year capital | G3: =Head53 -> Unfore. Unavoid. | H3: =Head55 -> Nat. or Prov. Govt | I3: =Head50 -> Other Adjusts. | J3: =Head56 -> Total Adjusts. | K3: =Head7 -> Adjusted Budget | L3: =Head7 -> Adjusted Budget | M3: =Head7 -> Adjusted Budget
D4: 3 | E4: 4 | F4: 5 | G4: 6 | H4: 7 | I4: 8 | J4: 9 | K4: 10
A5: R thousands | C5: A | D5: A1 | E5: B | F5: C | G5: D | H5: E | I5: F | J5: G | K5: H
A6: Cash and investments available
A7: Cash/cash equivalents at the year end | B7: 1 | C7: ='B7-CFlow'!C42 -> 416350061 | D7: ='B7-CFlow'!D42 -> 0 | E7: ='B7-CFlow'!E42 -> 0 | F7: ='B7-CFlow'!F42 -> 0 | G7: ='B7-CFlow'!G42 -> 0 | H7: ='B7-CFlow'!H42 -> 0 | I7: ='B7-CFlow'!I42 -> 552362381 | J7: =SUM(E7:I7) -> 552362381 | K7: =IF(D7=0,C7+J7,D7+J7) -> 968712442 | L7: ='B7-CFlow'!L42 -> 717602669 | M7: ='B7-CFlow'!M42 -> 816154227
A8: Other current investments > 90 days | C8: ='B6-FinPos'!C8+'B6-FinPos'!C10-'B6-FinPos'!C32-'B8-ResRecon'!C7 -> -9560139 | D8: ='B6-FinPos'!D8+'B6-FinPos'!D10-'B6-FinPos'!D32-'B8-ResRecon'!D7 -> 0 | E8: ='B6-FinPos'!E8+'B6-FinPos'!E10-'B6-FinPos'!E32-'B8-ResRecon'!E7 -> 0 | F8: ='B6-FinPos'!F8+'B6-FinPos'!F10-'B6-FinPos'!F32-'B8-ResRecon'!F7 -> 0 | G8: ='B6-FinPos'!G8+'B6-FinPos'!G10-'B6-FinPos'!G32-'B8-ResRecon'!G7 -> 0 | H8: ='B6-FinPos'!H8+'B6-FinPos'!H10-'B6-FinPos'!H32-'B8-ResRecon'!H7 -> 0 | I8: ='B6-FinPos'!I8+'B6-FinPos'!I10-'B6-FinPos'!I32-'B8-ResRecon'!I7 -> -41531693 | J8: =SUM(E8:I8) -> -41531693 | K8: =IF(D8=0,C8+J8,D8+J8) -> -51091832 | L8: ='B6-FinPos'!L8+'B6-FinPos'!L10-'B6-FinPos'!L32-'B8-ResRecon'!L7 -> -208960504 | M8: ='B6-FinPos'!M8+'B6-FinPos'!M10-'B6-FinPos'!M32-'B8-ResRecon'!M7 -> 59668264
A9: Non current assets - Investments | B9: 1 | C9: ='B6-FinPos'!C17 -> 0 | D9: ='B6-FinPos'!D17 -> 0 | E9: ='B6-FinPos'!E17 -> 0 | F9: ='B6-FinPos'!F17 -> 0 | G9: ='B6-FinPos'!G17 -> 0 | H9: ='B6-FinPos'!H17 -> 0 | I9: ='B6-FinPos'!I17 -> 0 | J9: =SUM(E9:I9) -> 0 | K9: =IF(D9=0,C9+J9,D9+J9) -> 0 | L9: ='B6-FinPos'!L17 -> 0 | M9: ='B6-FinPos'!M17 -> 0
A10: Cash and investments available: | C10: =SUM(C7:C9) -> 406789922 | D10: 0 | E10: 0 | F10: 0 | G10: 0 | H10: 0 | I10: 510830688 | J10: 510830688 | K10: 917620610 | L10: 508642165 | M10: 875822491
A12: Applications of cash and investments
A13: Unspent conditional transfers | C13: ='SB2'!C141 -> 100000000 | D13: ='SB2'!D141 -> 0 | E13: ='SB2'!E141 -> 0 | F13: ='SB2'!F141 -> 0 | G13: ='SB2'!G141 -> 0 | H13: ='SB2'!H141 -> 0 | I13: ='SB2'!I141 -> 0 | J13: =SUM(E13:I13) -> 0 | K13: =IF(D13=0,C13+J13,D13+J13) -> 100000000 | L13: ='SB2'!L141 -> 104900000 | M13: ='SB2'!M141 -> 109830300
A14: Unspent borrowing | J14: 0 | K14: =IF(D14=0,C14+J14,D14+J14) -> 0
A15: Statutory requirements | J15: 0 | K15: =IF(D15=0,C15+J15,D15+J15) -> 0
A16: Other working capital requirements | B16: 2 | C16: =-C40 -> 126148468 | D16: =-D40 -> 0 | I16: =IF(D16=0,(K16-C16)-SUM(E16:H16),(K16-D16)-SUM(E16:H16)) -> 100358116 | J16: 100358116 | K16: =-K40 -> 226506584 | L16: =-L40 -> 107984312 | M16: =-M40 -> 111207027
A17: Other provisions | J17: 0 | K17: =IF(D17=0,C17+J17,D17+J17) -> 0
A18: Long term investments committed | C18: =C55 -> 0 | D18: =D55 -> 0 | E18: 0 | F18: 0 | G18: 0 | H18: 0 | I18: =IF(D18=0,(K18-C18)-SUM(E18:H18),(K18-D18)-SUM(E18:H18)) -> 0 | J18: 0 | K18: =K55 -> 0 | L18: =L55 -> 0 | M18: =M55 -> 0
A19: Reserves to be backed by cash/investments | C19: =C70 -> 0 | D19: =D70 -> 0 | I19: =IF(D19=0,(K19-C19)-SUM(E19:H19),(K19-D19)-SUM(E19:H19)) -> 0 | J19: 0 | K19: =K70 -> 0 | L19: =L70 -> 0 | M19: =M70 -> 0
A20: Total Application of cash and investments: | C20: =SUM(C13:C19) -> 226148468 | D20: 0 | E20: 0 | F20: 0 | G20: 0 | H20: 0 | I20: 100358116 | J20: 100358116 | K20: 326506584 | L20: 212884312 | M20: 221037327
A21: Surplus(shortfall) | C21: =C10-C20 -> 180641454 | D21: 0 | E21: 0 | F21: 0 | G21: 0 | H21: 0 | I21: 410472572 | J21: 410472572 | K21: 591114026 | L21: 295757853 | M21: 654785164
A22: =head27a -> References
A23: 1. Must reconcile with the Adjustments Budget Cash Flow and Adjustements Budget Financial Position
A24: 2. Council approval for policy required - include sufficient working capital (e.g. allowing for a % of current debtors > 90 days as uncollectable)
A25: 3. Only complete if a previous adjusted budget has been approved in the same financial year. Reflect most recent adjusted budget.
A26: 4. Additional cash-backed accumulated funds/unspent funds (MFMA section 18(1)(b) and section 28(2)(e)) identified after the Original Budget approved and after annual financial statements audited (note: only where underspending could not reasonably have been foreseen)
A27: 5. Increases of funds approved under MFMA section 31
A28: 6. Adjustments approved in accordance with MFMA section 29
A29: 7. Adjustments to transfers from National or Provincial Government
A30: 8. Adjusts. = 'Other' Adjustments proposed to be approved; including revenue under-collection (MFMA section 28(2)(a)); additional revenue appropriation on existing programmes (section 28(2))(b); projected savings (section 28(2)(d)); error correction (section 28(2)(f))
A31: 9. G = B + C + D + E + F
A32: 10. Adjusted Budget H = (A or A1) + G
A37: =A16 -> Other working capital requirements
A38: Debtors | C38: =IF(ISERROR(ROUND(C43*C44,0)),0,(ROUND(C43*C44,0))) -> 28851532 | D38: =IF(ISERROR(ROUND(D43*D44,0)),0,(ROUND(D43*D44,0))) -> 0 | K38: =IF(ISERROR(ROUND(K43*K44,0)),0,(ROUND(K43*K44,0))) -> 28493657 | L38: =IF(ISERROR(ROUND(L43*L44,0)),0,(ROUND(L43*L44,0))) -> 30566376 | M38: =IF(ISERROR(ROUND(M43*M44,0)),0,(ROUND(M43*M44,0))) -> 28720842
A39: Creditors due | C39: ='SB2'!C139 -> 155000000 | D39: ='SB2'!D139 -> 0 | K39: ='SB2'!K139 -> 255000241 | L39: ='SB2'!L139 -> 138550688 | M39: ='SB2'!M139 -> 139927869
A40: Total | C40: =C38-C39 -> -126148468 | D40: =D38-D39 -> 0 | K40: =K38-K39 -> -226506584 | L40: =L38-L39 -> -107984312 | M40: =M38-M39 -> -111207027
A42: Debtors collection assumptions:
A43: Balance outstanding - debtors | C43: ='B6-FinPos'!C9+'B6-FinPos'!C10+'B6-FinPos'!C11+'B6-FinPos'!C24+'B6-FinPos'!C25 -> 544395263 | D43: ='B6-FinPos'!D9+'B6-FinPos'!D10+'B6-FinPos'!D11+'B6-FinPos'!D24+'B6-FinPos'!D25 -> 0 | K43: ='B6-FinPos'!K9+'B6-FinPos'!K10+'B6-FinPos'!K11+'B6-FinPos'!K24+'B6-FinPos'!K25 -> 543994171 | L43: ='B6-FinPos'!L9+'B6-FinPos'!L10+'B6-FinPos'!L11+'B6-FinPos'!L24+'B6-FinPos'!L25 -> 537525028 | M43: ='B6-FinPos'!M9+'B6-FinPos'!M10+'B6-FinPos'!M11+'B6-FinPos'!M24+'B6-FinPos'!M25 -> 508117446
A44: Estimate of debtors collection rate | C44: =IF(ISERROR('SB6'!G10),0,('SB6'!G10)) -> 0.05299739697 | D44: =IF(ISERROR('SB6'!H10),0,('SB6'!H10)) -> 0 | K44: =IF(ISERROR('SB6'!I10),0,('SB6'!I10)) -> 0.05237860786 | L44: =IF(ISERROR('SB6'!J10),0,('SB6'!J10)) -> 0.05686502925 | M44: =IF(ISERROR('SB6'!K10),0,('SB6'!K10)) -> 0.05652402182
A46: =A18 -> Long term investments committed
A47: (Insert description; eg sinking fund)
C55: =SUM(C47:C54) -> 0 | D55: =SUM(D47:D54) -> 0 | K55: =SUM(K47:K54) -> 0 | L55: =SUM(L47:L54) -> 0 | M55: =SUM(M47:M54) -> 0
A57: =A19 -> Reserves to be backed by cash/investments
A58: Housing Development Fund | C58: =+'SB2'!C169 -> 0 | D58: =+'SB2'!D169 -> 0 | K58: =+'SB2'!K169 -> 0 | L58: =+'SB2'!L169 -> 0 | M58: =+'SB2'!M169 -> 0
A59: Capital replacement | C59: ='SB2'!C170 -> 0 | D59: ='SB2'!D170 -> 0 | K59: ='SB2'!K170 -> 0 | L59: ='SB2'!L170 -> 0 | M59: ='SB2'!M170 -> 0
A60: Self-insurance | C60: ='SB2'!C171 -> 0 | D60: ='SB2'!D171 -> 0 | K60: ='SB2'!K171 -> 0 | L60: ='SB2'!L171 -> 0 | M60: ='SB2'!M171 -> 0
A61: Compensation for Occupational Injuries and Diseases
A62: Employee Benefit
A63: Non-current Provisions
A64: Valuation | C64: ='SB2'!C173 -> 0 | D64: ='SB2'!D173 -> 0 | K64: ='SB2'!K173 -> 0 | L64: ='SB2'!L173 -> 0 | M64: ='SB2'!M173 -> 0
A65: Investment in associate account
A66: Capitalisation
C67: ='SB2'!C172 -> 0 | D67: ='SB2'!D172 -> 0 | K67: ='SB2'!K172 -> 0 | L67: ='SB2'!L172 -> 0 | M67: ='SB2'!M172 -> 0
C69: ='SB2'!C172 -> 0 | D69: ='SB2'!D172 -> 0 | K69: ='SB2'!K172 -> 0 | L69: ='SB2'!L172 -> 0 | M69: ='SB2'!M172 -> 0
C70: =SUM(C58:C69) -> 0 | D70: =SUM(D58:D69) -> 0 | K70: =SUM(K58:K69) -> 0 | L70: 0 | M70: 0

Sheet B9-Asset
A1: =muni&" - "&_ADJ9&" - "&Date -> DC47 Sekhukhune - Table B9 Asset Management - 28/02/2024
A2: =desc -> Description | B2: =head27 -> Ref | C2: =Head2 -> Budget Year 2023/24 | L2: =Head10 -> Budget Year +1 2024/25 | M2: =Head11 -> Budget Year +2 2025/26
C3: =Head6 -> Original Budget | D3: =Head54 -> Prior Adjusted | E3: =Head51 -> Accum. Funds | F3: =Head52 -> Multi-year capital | G3: =Head53 -> Unfore. Unavoid. | H3: =Head55 -> Nat. or Prov. Govt | I3: =Head50 -> Other Adjusts. | J3: =Head56 -> Total Adjusts. | K3: =Head7 -> Adjusted Budget | L3: =Head7 -> Adjusted Budget | M3: =Head7 -> Adjusted Budget
D4: 7 | E4: 8 | F4: 9 | G4: 10 | H4: 11 | I4: 12 | J4: 13 | K4: 14
A5: R thousands | C5: A | D5: A1 | E5: B | F5: C | G5: D | H5: E | I5: F | J5: G | K5: H
A6: CAPITAL EXPENDITURE
A7: Total New Assets to be adjusted | B7: 1 | C7: =C17+C20+C21+C24+C27+C28+SUM(C31:C37)+C40 -> 585333325 | D7: =D17+D20+D21+D24+D27+D28+SUM(D31:D37)+D40 -> 0 | E7: 0 | F7: 0 | G7: 0 | H7: 0 | I7: -25648423 | J7: -25648423 | K7: 559684902 | L7: 550904788 | M7: 559175483
A8: Roads Infrastructure | C8: =SB18a!C9 -> 0 | D8: =SB18a!D9 -> 0 | E8: =SB18a!E9 -> 0 | F8: =SB18a!F9 -> 0 | G8: =SB18a!G9 -> 0 | H8: =SB18a!H9 -> 0 | I8: =SB18a!I9 -> 0 | J8: =SB18a!J9 -> 0 | K8: =SB18a!K9 -> 0 | L8: =SB18a!L9 -> 0 | M8: =SB18a!M9 -> 0
A9: Storm water Infrastructure | C9: =SB18a!C14 -> 0 | D9: =SB18a!D14 -> 0 | E9: =SB18a!E14 -> 0 | F9: =SB18a!F14 -> 0 | G9: =SB18a!G14 -> 0 | H9: =SB18a!H14 -> 0 | I9: =SB18a!I14 -> 0 | J9: =SB18a!J14 -> 0 | K9: =SB18a!K14 -> 0 | L9: =SB18a!L14 -> 0 | M9: =SB18a!M14 -> 0
A10: Electrical Infrastructure | C10: =SB18a!C18 -> 0 | D10: =SB18a!D18 -> 0 | E10: =SB18a!E18 -> 0 | F10: =SB18a!F18 -> 0 | G10: =SB18a!G18 -> 0 | H10: =SB18a!H18 -> 0 | I10: =SB18a!I18 -> 0 | J10: =SB18a!J18 -> 0 | K10: =SB18a!K18 -> 0 | L10: =SB18a!L18 -> 0 | M10: =SB18a!M18 -> 0
A11: Water Supply Infrastructure | C11: =SB18a!C28 -> 580833325 | D11: =SB18a!D28 -> 0 | E11: =SB18a!E28 -> 0 | F11: =SB18a!F28 -> 0 | G11: =SB18a!G28 -> 0 | H11: =SB18a!H28 -> 0 | I11: =SB18a!I28 -> -29148423 | J11: =SB18a!J28 -> -29148423 | K11: =SB18a!K28 -> 551684902 | L11: =SB18a!L28 -> 549954788 | M11: =SB18a!M28 -> 558075483
A12: Sanitation Infrastructure | C12: =SB18a!C39 -> 0 | D12: =SB18a!D39 -> 0 | E12: =SB18a!E39 -> 0 | F12: =SB18a!F39 -> 0 | G12: =SB18a!G39 -> 0 | H12: =SB18a!H39 -> 0 | I12: =SB18a!I39 -> 0 | J12: =SB18a!J39 -> 0 | K12: =SB18a!K39 -> 0 | L12: =SB18a!L39 -> 0 | M12: =SB18a!M39 -> 0
A13: Solid Waste Infrastructure | C13: =SB18a!C46 -> 0 | D13: =SB18a!D46 -> 0 | E13: =SB18a!E46 -> 0 | F13: =SB18a!F46 -> 0 | G13: =SB18a!G46 -> 0 | H13: =SB18a!H46 -> 0 | I13: =SB18a!I46 -> 0 | J13: =SB18a!J46 -> 0 | K13: =SB18a!K46 -> 0 | L13: =SB18a!L46 -> 0 | M13: =SB18a!M46 -> 0
A14: Rail Infrastructure | C14: =SB18a!C54 -> 0 | D14: =SB18a!D54 -> 0 | E14: =SB18a!E54 -> 0 | F14: =SB18a!F54 -> 0 | G14: =SB18a!G54 -> 0 | H14: =SB18a!H54 -> 0 | I14: =SB18a!I54 -> 0 | J14: =SB18a!J54 -> 0 | K14: =SB18a!K54 -> 0 | L14: =SB18a!L54 -> 0 | M14: =SB18a!M54 -> 0
A15: Coastal Infrastructure | C15: =SB18a!C64 -> 0 | D15: =SB18a!D64 -> 0 | E15: =SB18a!E64 -> 0 | F15: =SB18a!F64 -> 0 | G15: =SB18a!G64 -> 0 | H15: =SB18a!H64 -> 0 | I15: =SB18a!I64 -> 0 | J15: =SB18a!J64 -> 0 | K15: =SB18a!K64 -> 0 | L15: =SB18a!L64 -> 0 | M15: =SB18a!M64 -> 0
A16: Information and Communication Infrastructure | C16: =SB18a!C70 -> 0 | D16: =SB18a!D70 -> 0 | E16: =SB18a!E70 -> 0 | F16: =SB18a!F70 -> 0 | G16: =SB18a!G70 -> 0 | H16: =SB18a!H70 -> 0 | I16: =SB18a!I70 -> 0 | J16: =SB18a!J70 -> 0 | K16: =SB18a!K70 -> 0 | L16: =SB18a!L70 -> 0 | M16: =SB18a!M70 -> 0
A17: Infrastructure | C17: =SUM(C8:C16) -> 580833325 | D17: =SUM(D8:D16) -> 0 | E17: 0 | F17: 0 | G17: 0 | H17: 0 | I17: -29148423 | J17: -29148423 | K17: 551684902 | L17: 549954788 | M17: 558075483
A18: Community Facilities | C18: =SB18a!C77 -> 0 | D18: =SB18a!D77 -> 0 | E18: =SB18a!E77 -> 0 | F18: =SB18a!F77 -> 0 | G18: =SB18a!G77 -> 0 | H18: =SB18a!H77 -> 0 | I18: =SB18a!I77 -> 0 | J18: =SB18a!J77 -> 0 | K18: =SB18a!K77 -> 0 | L18: =SB18a!L77 -> 0 | M18: =SB18a!M77 -> 0
A19: Sport and Recreation Facilities | C19: =SB18a!C100 -> 0 | D19: =SB18a!D100 -> 0 | E19: =SB18a!E100 -> 0 | F19: =SB18a!F100 -> 0 | G19: =SB18a!G100 -> 0 | H19: =SB18a!H100 -> 0 | I19: =SB18a!I100 -> 0 | J19: =SB18a!J100 -> 0 | K19: =SB18a!K100 -> 0 | L19: =SB18a!L100 -> 0 | M19: =SB18a!M100 -> 0
A20: Community Assets | C20: =SUM(C18:C19) -> 0 | D20: =SUM(D18:D19) -> 0 | E20: 0 | F20: 0 | G20: 0 | H20: 0 | I20: 0 | J20: 0 | K20: 0 | L20: 0 | M20: 0
A21: Heritage Assets | C21: =SB18a!C105 -> 0 | D21: =SB18a!D105 -> 0 | E21: =SB18a!E105 -> 0 | F21: =SB18a!F105 -> 0 | G21: =SB18a!G105 -> 0 | H21: =SB18a!H105 -> 0 | I21: =SB18a!I105 -> 0 | J21: =SB18a!J105 -> 0 | K21: =SB18a!K105 -> 0 | L21: =SB18a!L105 -> 0 | M21: =SB18a!M105 -> 0
A22: Revenue Generating | C22: =SB18a!C113 -> 0 | D22: =SB18a!D113 -> 0 | E22: =SB18a!E113 -> 0 | F22: =SB18a!F113 -> 0 | G22: =SB18a!G113 -> 0 | H22: =SB18a!H113 -> 0 | I22: =SB18a!I113 -> 0 | J22: =SB18a!J113 -> 0 | K22: =SB18a!K113 -> 0 | L22: =SB18a!L113 -> 0 | M22: =SB18a!M113 -> 0
A23: Non-revenue Generating | C23: =SB18a!C116 -> 0 | D23: =SB18a!D116 -> 0 | E23: =SB18a!E116 -> 0 | F23: =SB18a!F116 -> 0 | G23: =SB18a!G116 -> 0 | H23: =SB18a!H116 -> 0 | I23: =SB18a!I116 -> 0 | J23: =SB18a!J116 -> 0 | K23: =SB18a!K116 -> 0 | L23: =SB18a!L116 -> 0 | M23: =SB18a!M116 -> 0
A24: Investment properties | C24: =SUM(C22:C23) -> 0 | D24: =SUM(D22:D23) -> 0 | E24: 0 | F24: 0 | G24: 0 | H24: 0 | I24: 0 | J24: 0 | K24: 0 | L24: 0 | M24: 0
A25: Operational Buildings | C25: =SB18a!C121 -> 0 | D25: =SB18a!D121 -> 0 | E25: =SB18a!E121 -> 0 | F25: =SB18a!F121 -> 0 | G25: =SB18a!G121 -> 0 | H25: =SB18a!H121 -> 0 | I25: =SB18a!I121 -> 0 | J25: =SB18a!J121 -> 0 | K25: =SB18a!K121 -> 0 | L25: =SB18a!L121 -> 0 | M25: =SB18a!M121 -> 0
A26: Housing | C26: =SB18a!C133 -> 0 | D26: =SB18a!D133 -> 0 | E26: =SB18a!E133 -> 0 | F26: =SB18a!F133 -> 0 | G26: =SB18a!G133 -> 0 | H26: =SB18a!H133 -> 0 | I26: =SB18a!I133 -> 0 | J26: =SB18a!J133 -> 0 | K26: =SB18a!K133 -> 0 | L26: =SB18a!L133 -> 0 | M26: =SB18a!M133 -> 0
A27: Other Assets | B27: 6 | C27: =SUM(C25:C26) -> 0 | D27: =SUM(D25:D26) -> 0 | E27: 0 | F27: 0 | G27: 0 | H27: 0 | I27: 0 | J27: 0 | K27: 0 | L27: 0 | M27: 0
A28: Biological or Cultivated Assets | C28: =SB18a!C138 -> 0 | D28: =SB18a!D138 -> 0 | E28: =SB18a!E138 -> 0 | F28: =SB18a!F138 -> 0 | G28: =SB18a!G138 -> 0 | H28: =SB18a!H138 -> 0 | I28: =SB18a!I138 -> 0 | J28: =SB18a!J138 -> 0 | K28: =SB18a!K138 -> 0 | L28: =SB18a!L138 -> 0 | M28: =SB18a!M138 -> 0
A29: Servitudes | C29: =SB18a!C142 -> 0 | D29: =SB18a!D142 -> 0 | E29: =SB18a!E142 -> 0 | F29: =SB18a!F142 -> 0 | G29: =SB18a!G142 -> 0 | H29: =SB18a!H142 -> 0 | I29: =SB18a!I142 -> 0 | J29: =SB18a!J142 -> 0 | K29: =SB18a!K142 -> 0 | L29: =SB18a!L142 -> 0 | M29: =SB18a!M142 -> 0
A30: Licences and Rights | C30: =SB18a!C143 -> 1500000 | D30: =SB18a!D143 -> 0 | E30: =SB18a!E143 -> 0 | F30: =SB18a!F143 -> 0 | G30: =SB18a!G143 -> 0 | H30: =SB18a!H143 -> 0 | I30: =SB18a!I143 -> 0 | J30: =SB18a!J143 -> 0 | K30: =SB18a!K143 -> 1500000 | L30: =SB18a!L143 -> 700000 | M30: =SB18a!M143 -> 800000
A31: Intangible Assets | C31: =SUM(C29:C30) -> 1500000 | D31: =SUM(D29:D30) -> 0 | E31: 0 | F31: 0 | G31: 0 | H31: 0 | I31: 0 | J31: 0 | K31: 1500000 | L31: 700000 | M31: 800000
A32: Computer Equipment | C32: =SB18a!C151 -> 1300000 | D32: =SB18a!D151 -> 0 | E32: =SB18a!E151 -> 0 | F32: =SB18a!F151 -> 0 | G32: =SB18a!G151 -> 0 | H32: =SB18a!H151 -> 0 | I32: =SB18a!I151 -> 1500000 | J32: =SB18a!J151 -> 1500000 | K32: =SB18a!K151 -> 2800000 | L32: =SB18a!L151 -> 0 | M32: =SB18a!M151 -> 0
A33: Furniture and Office Equipment | C33: =SB18a!C154 -> 1700000 | D33: =SB18a!D154 -> 0 | E33: =SB18a!E154 -> 0 | F33: =SB18a!F154 -> 0 | G33: =SB18a!G154 -> 0 | H33: =SB18a!H154 -> 0 | I33: =SB18a!I154 -> 2000000 | J33: =SB18a!J154 -> 2000000 | K33: =SB18a!K154 -> 3700000 | L33: =SB18a!L154 -> 250000 | M33: =SB18a!M154 -> 300000
A34: Machinery and Equipment | C34: =SB18a!C157 -> 0 | D34: =SB18a!D157 -> 0 | E34: =SB18a!E157 -> 0 | F34: =SB18a!F157 -> 0 | G34: =SB18a!G157 -> 0 | H34: =SB18a!H157 -> 0 | I34: =SB18a!I157 -> 0 | J34: =SB18a!J157 -> 0 | K34: =SB18a!K157 -> 0 | L34: =SB18a!L157 -> 0 | M34: =SB18a!M157 -> 0
A35: Transport Assets | C35: =SB18a!C160 -> 0 | D35: =SB18a!D160 -> 0 | E35: =SB18a!E160 -> 0 | F35: =SB18a!F160 -> 0 | G35: =SB18a!G160 -> 0 | H35: =SB18a!H160 -> 0 | I35: =SB18a!I160 -> 0 | J35: =SB18a!J160 -> 0 | K35: =SB18a!K160 -> 0 | L35: =SB18a!L160 -> 0 | M35: =SB18a!M160 -> 0
A36: Land | C36: =SB18a!C163 -> 0 | D36: =SB18a!D163 -> 0 | E36: =SB18a!E163 -> 0 | F36: =SB18a!F163 -> 0 | G36: =SB18a!G163 -> 0 | H36: =SB18a!H163 -> 0 | I36: =SB18a!I163 -> 0 | J36: =SB18a!J163 -> 0 | K36: =SB18a!K163 -> 0 | L36: =SB18a!L163 -> 0 | M36: =SB18a!M163 -> 0
A37: Zoo's, Marine and Non-biological Animals | C37: =SB18a!C166 -> 0 | D37: =SB18a!D166 -> 0 | E37: =SB18a!E166 -> 0 | F37: =SB18a!F166 -> 0 | G37: =SB18a!G166 -> 0 | H37: =SB18a!H166 -> 0 | I37: =SB18a!I166 -> 0 | J37: =SB18a!J166 -> 0 | K37: =SB18a!K166 -> 0 | L37: =SB18a!L166 -> 0 | M37: =SB18a!M166 -> 0
A38: Mature | C38: =+SB18a!C170 -> 0 | D38: =+SB18a!D170 -> 0 | E38: =+SB18a!E170 -> 0 | F38: =+SB18a!F170 -> 0 | G38: =+SB18a!G170 -> 0 | H38: =+SB18a!H170 -> 0 | I38: =+SB18a!I170 -> 0 | J38: =+SB18a!J170 -> 0 | K38: =+SB18a!K170 -> 0 | L38: =+SB18a!L170 -> 0 | M38: =+SB18a!M170 -> 0
A39: Immature | C39: =+SB18a!C173 -> 0 | D39: =+SB18a!D173 -> 0 | E39: =+SB18a!E173 -> 0 | F39: =+SB18a!F173 -> 0 | G39: =+SB18a!G173 -> 0 | H39: =+SB18a!H173 -> 0 | I39: =+SB18a!I173 -> 0 | J39: =+SB18a!J173 -> 0 | K39: =+SB18a!K173 -> 0 | L39: =+SB18a!L173 -> 0 | M39: =+SB18a!M173 -> 0
A40: Living Resources | C40: =+C38+C39 -> 0 | D40: =+D38+D39 -> 0 | E40: 0 | F40: 0 | G40: 0 | H40: 0 | I40: 0 | J40: 0 | K40: 0 | L40: 0 | M40: 0
A42: Total Renewal of Existing Assets to be adjusted | B42: 2 | C42: =C52+C55+C56+C59+C62+C63+SUM(C66:C72)+C75 -> 5750000 | D42: =D52+D55+D56+D59+D62+D63+SUM(D66:D72)+D75 -> 0 | E42: 0 | F42: 0 | G42: 0 | H42: 0 | I42: 1522971 | J42: 1522971 | K42: 7272971 | L42: 25392593 | M42: 32925373
A43: Roads Infrastructure | C43: =SB18b!C9 -> 0 | D43: =SB18b!D9 -> 0 | E43: =SB18b!E9 -> 0 | F43: =SB18b!F9 -> 0 | G43: =SB18b!G9 -> 0 | H43: =SB18b!H9 -> 0 | I43: =SB18b!I9 -> 0 | J43: =SB18b!J9 -> 0 | K43: =SB18b!K9 -> 0 | L43: =SB18b!L9 -> 0 | M43: =SB18b!M9 -> 0
A44: Storm water Infrastructure | C44: =SB18b!C14 -> 0 | D44: =SB18b!D14 -> 0 | E44: =SB18b!E14 -> 0 | F44: =SB18b!F14 -> 0 | G44: =SB18b!G14 -> 0 | H44: =SB18b!H14 -> 0 | I44: =SB18b!I14 -> 0 | J44: =SB18b!J14 -> 0 | K44: =SB18b!K14 -> 0 | L44: =SB18b!L14 -> 0 | M44: =SB18b!M14 -> 0
A45: Electrical Infrastructure | C45: =SB18b!C18 -> 0 | D45: =SB18b!D18 -> 0 | E45: =SB18b!E18 -> 0 | F45: =SB18b!F18 -> 0 | G45: =SB18b!G18 -> 0 | H45: =SB18b!H18 -> 0 | I45: =SB18b!I18 -> 0 | J45: =SB18b!J18 -> 0 | K45: =SB18b!K18 -> 0 | L45: =SB18b!L18 -> 0 | M45: =SB18b!M18 -> 0
A46: Water Supply Infrastructure | C46: =SB18b!C28 -> 0 | D46: =SB18b!D28 -> 0 | E46: =SB18b!E28 -> 0 | F46: =SB18b!F28 -> 0 | G46: =SB18b!G28 -> 0 | H46: =SB18b!H28 -> 0 | I46: =SB18b!I28 -> 1522971 | J46: =SB18b!J28 -> 1522971 | K46: =SB18b!K28 -> 1522971 | L46: =SB18b!L28 -> 19482593 | M46: =SB18b!M28 -> 26625373
A47: Sanitation Infrastructure | C47: =SB18b!C39 -> 0 | D47: =SB18b!D39 -> 0 | E47: =SB18b!E39 -> 0 | F47: =SB18b!F39 -> 0 | G47: =SB18b!G39 -> 0 | H47: =SB18b!H39 -> 0 | I47: =SB18b!I39 -> 0 | J47: =SB18b!J39 -> 0 | K47: =SB18b!K39 -> 0 | L47: =SB18b!L39 -> 0 | M47: =SB18b!M39 -> 0
A48: Solid Waste Infrastructure | C48: =SB18b!C46 -> 0 | D48: =SB18b!D46 -> 0 | E48: =SB18b!E46 -> 0 | F48: =SB18b!F46 -> 0 | G48: =SB18b!G46 -> 0 | H48: =SB18b!H46 -> 0 | I48: =SB18b!I46 -> 0 | J48: =SB18b!J46 -> 0 | K48: =SB18b!K46 -> 0 | L48: =SB18b!L46 -> 0 | M48: =SB18b!M46 -> 0
A49: Rail Infrastructure | C49: =SB18b!C54 -> 0 | D49: =SB18b!D54 -> 0 | E49: =SB18b!E54 -> 0 | F49: =SB18b!F54 -> 0 | G49: =SB18b!G54 -> 0 | H49: =SB18b!H54 -> 0 | I49: =SB18b!I54 -> 0 | J49: =SB18b!J54 -> 0 | K49: =SB18b!K54 -> 0 | L49: =SB18b!L54 -> 0 | M49: =SB18b!M54 -> 0
A50: Coastal Infrastructure | C50: =SB18b!C64 -> 0 | D50: =SB18b!D64 -> 0 | E50: =SB18b!E64 -> 0 | F50: =SB18b!F64 -> 0 | G50: =SB18b!G64 -> 0 | H50: =SB18b!H64 -> 0 | I50: =SB18b!I64 -> 0 | J50: =SB18b!J64 -> 0 | K50: =SB18b!K64 -> 0 | L50: =SB18b!L64 -> 0 | M50: =SB18b!M64 -> 0
A51: Information and Communication Infrastructure | C51: =SB18b!C70 -> 0 | D51: =SB18b!D70 -> 0 | E51: =SB18b!E70 -> 0 | F51: =SB18b!F70 -> 0 | G51: =SB18b!G70 -> 0 | H51: =SB18b!H70 -> 0 | I51: =SB18b!I70 -> 0 | J51: =SB18b!J70 -> 0 | K51: =SB18b!K70 -> 0 | L51: =SB18b!L70 -> 0 | M51: =SB18b!M70 -> 0
A52: Infrastructure | C52: =SUM(C43:C51) -> 0 | D52: =SUM(D43:D51) -> 0 | E52: 0 | F52: 0 | G52: 0 | H52: 0 | I52: 1522971 | J52: 1522971 | K52: 1522971 | L52: 19482593 | M52: 26625373
A53: Community Facilities | C53: =SB18b!C77 -> 0 | D53: =SB18b!D77 -> 0 | E53: =SB18b!E77 -> 0 | F53: =SB18b!F77 -> 0 | G53: =SB18b!G77 -> 0 | H53: =SB18b!H77 -> 0 | I53: =SB18b!I77 -> 0 | J53: =SB18b!J77 -> 0 | K53: =SB18b!K77 -> 0 | L53: =SB18b!L77 -> 0 | M53: =SB18b!M77 -> 0
A54: Sport and Recreation Facilities | C54: =SB18b!C100 -> 0 | D54: =SB18b!D100 -> 0 | E54: =SB18b!E100 -> 0 | F54: =SB18b!F100 -> 0 | G54: =SB18b!G100 -> 0 | H54: =SB18b!H100 -> 0 | I54: =SB18b!I100 -> 0 | J54: =SB18b!J100 -> 0 | K54: =SB18b!K100 -> 0 | L54: =SB18b!L100 -> 0 | M54: =SB18b!M100 -> 0
A55: Community Assets | C55: =SUM(C53:C54) -> 0 | D55: =SUM(D53:D54) -> 0 | E55: 0 | F55: 0 | G55: 0 | H55: 0 | I55: 0 | J55: 0 | K55: 0 | L55: 0 | M55: 0
A56: Heritage Assets | C56: =SB18b!C105 -> 0 | D56: =SB18b!D105 -> 0 | E56: =SB18b!E105 -> 0 | F56: =SB18b!F105 -> 0 | G56: =SB18b!G105 -> 0 | H56: =SB18b!H105 -> 0 | I56: =SB18b!I105 -> 0 | J56: =SB18b!J105 -> 0 | K56: =SB18b!K105 -> 0 | L56: =SB18b!L105 -> 0 | M56: =SB18b!M105 -> 0
A57: Revenue Generating | C57: =SB18b!C113 -> 0 | D57: =SB18b!D113 -> 0 | E57: =SB18b!E113 -> 0 | F57: =SB18b!F113 -> 0 | G57: =SB18b!G113 -> 0 | H57: =SB18b!H113 -> 0 | I57: =SB18b!I113 -> 0 | J57: =SB18b!J113 -> 0 | K57: =SB18b!K113 -> 0 | L57: =SB18b!L113 -> 0 | M57: =SB18b!M113 -> 0
A58: Non-revenue Generating | C58: =SB18b!C116 -> 0 | D58: =SB18b!D116 -> 0 | E58: =SB18b!E116 -> 0 | F58: =SB18b!F116 -> 0 | G58: =SB18b!G116 -> 0 | H58: =SB18b!H116 -> 0 | I58: =SB18b!I116 -> 0 | J58: =SB18b!J116 -> 0 | K58: =SB18b!K116 -> 0 | L58: =SB18b!L116 -> 0 | M58: =SB18b!M116 -> 0
A59: Investment properties | C59: =SUM(C57:C58) -> 0 | D59: =SUM(D57:D58) -> 0 | E59: 0 | F59: 0 | G59: 0 | H59: 0 | I59: 0 | J59: 0 | K59: 0 | L59: 0 | M59: 0
A60: Operational Buildings | C60: =SB18b!C121 -> 0 | D60: =SB18b!D121 -> 0 | E60: =SB18b!E121 -> 0 | F60: =SB18b!F121 -> 0 | G60: =SB18b!G121 -> 0 | H60: =SB18b!H121 -> 0 | I60: =SB18b!I121 -> 0 | J60: =SB18b!J121 -> 0 | K60: =SB18b!K121 -> 0 | L60: =SB18b!L121 -> 0 | M60: =SB18b!M121 -> 0
A61: Housing | C61: =SB18b!C133 -> 0 | D61: =SB18b!D133 -> 0 | E61: =SB18b!E133 -> 0 | F61: =SB18b!F133 -> 0 | G61: =SB18b!G133 -> 0 | H61: =SB18b!H133 -> 0 | I61: =SB18b!I133 -> 0 | J61: =SB18b!J133 -> 0 | K61: =SB18b!K133 -> 0 | L61: =SB18b!L133 -> 0 | M61: =SB18b!M133 -> 0
A62: Other Assets | B62: 6 | C62: =SUM(C60:C61) -> 0 | D62: =SUM(D60:D61) -> 0 | E62: 0 | F62: 0 | G62: 0 | H62: 0 | I62: 0 | J62: 0 | K62: 0 | L62: 0 | M62: 0
A63: Biological or Cultivated Assets | C63: =SB18b!C138 -> 0 | D63: =SB18b!D138 -> 0 | E63: =SB18b!E138 -> 0 | F63: =SB18b!F138 -> 0 | G63: =SB18b!G138 -> 0 | H63: =SB18b!H138 -> 0 | I63: =SB18b!I138 -> 0 | J63: =SB18b!J138 -> 0 | K63: =SB18b!K138 -> 0 | L63: =SB18b!L138 -> 0 | M63: =SB18b!M138 -> 0
A64: Servitudes | C64: =SB18b!C142 -> 0 | D64: =SB18b!D142 -> 0 | E64: =SB18b!E142 -> 0 | F64: =SB18b!F142 -> 0 | G64: =SB18b!G142 -> 0 | H64: =SB18b!H142 -> 0 | I64: =SB18b!I142 -> 0 | J64: =SB18b!J142 -> 0 | K64: =SB18b!K142 -> 0 | L64: =SB18b!L142 -> 0 | M64: =SB18b!M142 -> 0
A65: Licences and Rights | C65: =SB18b!C143 -> 0 | D65: =SB18b!D143 -> 0 | E65: =SB18b!E143 -> 0 | F65: =SB18b!F143 -> 0 | G65: =SB18b!G143 -> 0 | H65: =SB18b!H143 -> 0 | I65: =SB18b!I143 -> 0 | J65: =SB18b!J143 -> 0 | K65: =SB18b!K143 -> 0 | L65: =SB18b!L143 -> 0 | M65: =SB18b!M143 -> 0
A66: Intangible Assets | C66: =SUM(C64:C65) -> 0 | D66: =SUM(D64:D65) -> 0 | E66: 0 | F66: 0 | G66: 0 | H66: 0 | I66: 0 | J66: 0 | K66: 0 | L66: 0 | M66: 0
A67: Computer Equipment | C67: =SB18b!C151 -> 0 | D67: =SB18b!D151 -> 0 | E67: =SB18b!E151 -> 0 | F67: =SB18b!F151 -> 0 | G67: =SB18b!G151 -> 0 | H67: =SB18b!H151 -> 0 | I67: =SB18b!I151 -> 0 | J67: =SB18b!J151 -> 0 | K67: =SB18b!K151 -> 0 | L67: =SB18b!L151 -> 0 | M67: =SB18b!M151 -> 0
A68: Furniture and Office Equipment | C68: =SB18b!C154 -> 0 | D68: =SB18b!D154 -> 0 | E68: =SB18b!E154 -> 0 | F68: =SB18b!F154 -> 0 | G68: =SB18b!G154 -> 0 | H68: =SB18b!H154 -> 0 | I68: =SB18b!I154 -> 0 | J68: =SB18b!J154 -> 0 | K68: =SB18b!K154 -> 0 | L68: =SB18b!L154 -> 0 | M68: =SB18b!M154 -> 0
A69: Machinery and Equipment | C69: =SB18b!C157 -> 0 | D69: =SB18b!D157 -> 0 | E69: =SB18b!E157 -> 0 | F69: =SB18b!F157 -> 0 | G69: =SB18b!G157 -> 0 | H69: =SB18b!H157 -> 0 | I69: =SB18b!I157 -> 0 | J69: =SB18b!J157 -> 0 | K69: =SB18b!K157 -> 0 | L69: =SB18b!L157 -> 0 | M69: =SB18b!M157 -> 0
A70: Transport Assets | C70: =SB18b!C160 -> 5750000 | D70: =SB18b!D160 -> 0 | E70: =SB18b!E160 -> 0 | F70: =SB18b!F160 -> 0 | G70: =SB18b!G160 -> 0 | H70: =SB18b!H160 -> 0 | I70: =SB18b!I160 -> 0 | J70: =SB18b!J160 -> 0 | K70: =SB18b!K160 -> 5750000 | L70: =SB18b!L160 -> 5910000 | M70: =SB18b!M160 -> 6300000
A71: Land | C71: =SB18b!C163 -> 0 | D71: =SB18b!D163 -> 0 | E71: =SB18b!E163 -> 0 | F71: =SB18b!F163 -> 0 | G71: =SB18b!G163 -> 0 | H71: =SB18b!H163 -> 0 | I71: =SB18b!I163 -> 0 | J71: =SB18b!J163 -> 0 | K71: =SB18b!K163 -> 0 | L71: =SB18b!L163 -> 0 | M71: =SB18b!M163 -> 0
A72: Zoo's, Marine and Non-biological Animals | C72: =SB18b!C166 -> 0 | D72: =SB18b!D166 -> 0 | E72: =SB18b!E166 -> 0 | F72: =SB18b!F166 -> 0 | G72: =SB18b!G166 -> 0 | H72: =SB18b!H166 -> 0 | I72: =SB18b!I166 -> 0 | J72: =SB18b!J166 -> 0 | K72: =SB18b!K166 -> 0 | L72: =SB18b!L166 -> 0 | M72: =SB18b!M166 -> 0
A73: Mature | C73: =+SB18b!C170 -> 0 | D73: =+SB18b!D170 -> 0 | E73: =+SB18b!E170 -> 0 | F73: =+SB18b!F170 -> 0 | G73: =+SB18b!G170 -> 0 | H73: =+SB18b!H170 -> 0 | I73: =+SB18b!I170 -> 0 | J73: =+SB18b!J170 -> 0 | K73: =+SB18b!K170 -> 0 | L73: =+SB18b!L170 -> 0 | M73: =+SB18b!M170 -> 0
A74: Immature | C74: =+SB18b!C173 -> 0 | D74: =+SB18b!D173 -> 0 | E74: =+SB18b!E173 -> 0 | F74: =+SB18b!F173 -> 0 | G74: =+SB18b!G173 -> 0 | H74: =+SB18b!H173 -> 0 | I74: =+SB18b!I173 -> 0 | J74: =+SB18b!J173 -> 0 | K74: =+SB18b!K173 -> 0 | L74: =+SB18b!L173 -> 0 | M74: =+SB18b!M173 -> 0
A75: Living Resources | C75: =+C73+C74 -> 0 | D75: 0 | E75: 0 | F75: 0 | G75: 0 | H75: 0 | I75: 0 | J75: 0 | K75: 0 | L75: 0 | M75: 0
A77: Total Upgrading of Existing Assets to be adjusted | B77: 2a | C77: =C87+C90+C91+C94+C97+C98+SUM(C101:C107)+C110 -> 2660000 | D77: =D87+D90+D91+D94+D97+D98+SUM(D101:D107)+D110 -> 0 | E77: 0 | F77: 0 | G77: 0 | H77: 0 | I77: 0 | J77: 0 | K77: 2660000 | L77: 2821000 | M77: 2986000
A78: Roads Infrastructure | C78: =SB18e!C9 -> 2460000 | D78: =SB18e!D9 -> 0 | E78: =SB18e!E9 -> 0 | F78: =SB18e!F9 -> 0 | G78: =SB18e!G9 -> 0 | H78: =SB18e!H9 -> 0 | I78: =SB18e!I9 -> 0 | J78: =SB18e!J9 -> 0 | K78: =SB18e!K9 -> 2460000 | L78: =SB18e!L9 -> 2571000 | M78: =SB18e!M9 -> 2686000
A79: Storm water Infrastructure | C79: =SB18e!C14 -> 0 | D79: =SB18e!D14 -> 0 | E79: =SB18e!E14 -> 0 | F79: =SB18e!F14 -> 0 | G79: =SB18e!G14 -> 0 | H79: =SB18e!H14 -> 0 | I79: =SB18e!I14 -> 0 | J79: =SB18e!J14 -> 0 | K79: =SB18e!K14 -> 0 | L79: =SB18e!L14 -> 0 | M79: =SB18e!M14 -> 0
A80: Electrical Infrastructure | C80: =SB18e!C18 -> 0 | D80: =SB18e!D18 -> 0 | E80: =SB18e!E18 -> 0 | F80: =SB18e!F18 -> 0 | G80: =SB18e!G18 -> 0 | H80: =SB18e!H18 -> 0 | I80: =SB18e!I18 -> 0 | J80: =SB18e!J18 -> 0 | K80: =SB18e!K18 -> 0 | L80: =SB18e!L18 -> 0 | M80: =SB18e!M18 -> 0
A81: Water Supply Infrastructure | C81: =SB18e!C28 -> 0 | D81: =SB18e!D28 -> 0 | E81: =SB18e!E28 -> 0 | F81: =SB18e!F28 -> 0 | G81: =SB18e!G28 -> 0 | H81: =SB18e!H28 -> 0 | I81: =SB18e!I28 -> 0 | J81: =SB18e!J28 -> 0 | K81: =SB18e!K28 -> 0 | L81: =SB18e!L28 -> 0 | M81: =SB18e!M28 -> 0
A82: Sanitation Infrastructure | C82: =SB18e!C39 -> 0 | D82: =SB18e!D39 -> 0 | E82: =SB18e!E39 -> 0 | F82: =SB18e!F39 -> 0 | G82: =SB18e!G39 -> 0 | H82: =SB18e!H39 -> 0 | I82: =SB18e!I39 -> 0 | J82: =SB18e!J39 -> 0 | K82: =SB18e!K39 -> 0 | L82: =SB18e!L39 -> 0 | M82: =SB18e!M39 -> 0
A83: Solid Waste Infrastructure | C83: =SB18e!C46 -> 0 | D83: =SB18e!D46 -> 0 | E83: =SB18e!E46 -> 0 | F83: =SB18e!F46 -> 0 | G83: =SB18e!G46 -> 0 | H83: =SB18e!H46 -> 0 | I83: =SB18e!I46 -> 0 | J83: =SB18e!J46 -> 0 | K83: =SB18e!K46 -> 0 | L83: =SB18e!L46 -> 0 | M83: =SB18e!M46 -> 0
A84: Rail Infrastructure | C84: =SB18e!C54 -> 0 | D84: =SB18e!D54 -> 0 | E84: =SB18e!E54 -> 0 | F84: =SB18e!F54 -> 0 | G84: =SB18e!G54 -> 0 | H84: =SB18e!H54 -> 0 | I84: =SB18e!I54 -> 0 | J84: =SB18e!J54 -> 0 | K84: =SB18e!K54 -> 0 | L84: =SB18e!L54 -> 0 | M84: =SB18e!M54 -> 0
A85: Coastal Infrastructure | C85: =SB18e!C64 -> 0 | D85: =SB18e!D64 -> 0 | E85: =SB18e!E64 -> 0 | F85: =SB18e!F64 -> 0 | G85: =SB18e!G64 -> 0 | H85: =SB18e!H64 -> 0 | I85: =SB18e!I64 -> 0 | J85: =SB18e!J64 -> 0 | K85: =SB18e!K64 -> 0 | L85: =SB18e!L64 -> 0 | M85: =SB18e!M64 -> 0
A86: Information and Communication Infrastructure | C86: =SB18e!C70 -> 0 | D86: =SB18e!D70 -> 0 | E86: =SB18e!E70 -> 0 | F86: =SB18e!F70 -> 0 | G86: =SB18e!G70 -> 0 | H86: =SB18e!H70 -> 0 | I86: =SB18e!I70 -> 0 | J86: =SB18e!J70 -> 0 | K86: =SB18e!K70 -> 0 | L86: =SB18e!L70 -> 0 | M86: =SB18e!M70 -> 0
A87: Infrastructure | C87: =SUM(C78:C86) -> 2460000 | D87: =SUM(D78:D86) -> 0 | E87: 0 | F87: 0 | G87: 0 | H87: 0 | I87: 0 | J87: 0 | K87: 2460000 | L87: 2571000 | M87: 2686000
A88: Community Facilities | C88: =SB18e!C77 -> 0 | D88: =SB18e!D77 -> 0 | E88: =SB18e!E77 -> 0 | F88: =SB18e!F77 -> 0 | G88: =SB18e!G77 -> 0 | H88: =SB18e!H77 -> 0 | I88: =SB18e!I77 -> 0 | J88: =SB18e!J77 -> 0 | K88: =SB18e!K77 -> 0 | L88: =SB18e!L77 -> 0 | M88: =SB18e!M77 -> 0
A89: Sport and Recreation Facilities | C89: =SB18e!C100 -> 0 | D89: =SB18e!D100 -> 0 | E89: =SB18e!E100 -> 0 | F89: =SB18e!F100 -> 0 | G89: =SB18e!G100 -> 0 | H89: =SB18e!H100 -> 0 | I89: =SB18e!I100 -> 0 | J89: =SB18e!J100 -> 0 | K89: =SB18e!K100 -> 0 | L89: =SB18e!L100 -> 0 | M89: =SB18e!M100 -> 0
A90: Community Assets | C90: =SUM(C88:C89) -> 0 | D90: =SUM(D88:D89) -> 0 | E90: 0 | F90: 0 | G90: 0 | H90: 0 | I90: 0 | J90: 0 | K90: 0 | L90: 0 | M90: 0
A91: Heritage Assets | C91: =SB18e!C105 -> 0 | D91: =SB18e!D105 -> 0 | E91: =SB18e!E105 -> 0 | F91: =SB18e!F105 -> 0 | G91: =SB18e!G105 -> 0 | H91: =SB18e!H105 -> 0 | I91: =SB18e!I105 -> 0 | J91: =SB18e!J105 -> 0 | K91: =SB18e!K105 -> 0 | L91: =SB18e!L105 -> 0 | M91: =SB18e!M105 -> 0
A92: Revenue Generating | C92: =SB18e!C113 -> 0 | D92: =SB18e!D113 -> 0 | E92: =SB18e!E113 -> 0 | F92: =SB18e!F113 -> 0 | G92: =SB18e!G113 -> 0 | H92: =SB18e!H113 -> 0 | I92: =SB18e!I113 -> 0 | J92: =SB18e!J113 -> 0 | K92: =SB18e!K113 -> 0 | L92: =SB18e!L113 -> 0 | M92: =SB18e!M113 -> 0
A93: Non-revenue Generating | C93: =SB18e!C116 -> 0 | D93: =SB18e!D116 -> 0 | E93: =SB18e!E116 -> 0 | F93: =SB18e!F116 -> 0 | G93: =SB18e!G116 -> 0 | H93: =SB18e!H116 -> 0 | I93: =SB18e!I116 -> 0 | J93: =SB18e!J116 -> 0 | K93: =SB18e!K116 -> 0 | L93: =SB18e!L116 -> 0 | M93: =SB18e!M116 -> 0
A94: Investment properties | C94: =SUM(C92:C93) -> 0 | D94: =SUM(D92:D93) -> 0 | E94: 0 | F94: 0 | G94: 0 | H94: 0 | I94: 0 | J94: 0 | K94: 0 | L94: 0 | M94: 0
A95: Operational Buildings | C95: =SB18e!C121 -> 200000 | D95: =SB18e!D121 -> 0 | E95: =SB18e!E121 -> 0 | F95: =SB18e!F121 -> 0 | G95: =SB18e!G121 -> 0 | H95: =SB18e!H121 -> 0 | I95: =SB18e!I121 -> 0 | J95: =SB18e!J121 -> 0 | K95: =SB18e!K121 -> 200000 | L95: =SB18e!L121 -> 250000 | M95: =SB18e!M121 -> 300000
A96: Housing | C96: =SB18e!C133 -> 0 | D96: =SB18e!D133 -> 0 | E96: =SB18e!E133 -> 0 | F96: =SB18e!F133 -> 0 | G96: =SB18e!G133 -> 0 | H96: =SB18e!H133 -> 0 | I96: =SB18e!I133 -> 0 | J96: =SB18e!J133 -> 0 | K96: =SB18e!K133 -> 0 | L96: =SB18e!L133 -> 0 | M96: =SB18e!M133 -> 0
A97: Other Assets | B97: 6 | C97: =SUM(C95:C96) -> 200000 | D97: =SUM(D95:D96) -> 0 | E97: 0 | F97: 0 | G97: 0 | H97: 0 | I97: 0 | J97: 0 | K97: 200000 | L97: 250000 | M97: 300000
A98: Biological or Cultivated Assets | C98: =SB18e!C138 -> 0 | D98: =SB18e!D138 -> 0 | E98: =SB18e!E138 -> 0 | F98: =SB18e!F138 -> 0 | G98: =SB18e!G138 -> 0 | H98: =SB18e!H138 -> 0 | I98: =SB18e!I138 -> 0 | J98: =SB18e!J138 -> 0 | K98: =SB18e!K138 -> 0 | L98: =SB18e!L138 -> 0 | M98: =SB18e!M138 -> 0
A99: Servitudes | C99: =SB18e!C142 -> 0 | D99: =SB18e!D142 -> 0 | E99: =SB18e!E142 -> 0 | F99: =SB18e!F142 -> 0 | G99: =SB18e!G142 -> 0 | H99: =SB18e!H142 -> 0 | I99: =SB18e!I142 -> 0 | J99: =SB18e!J142 -> 0 | K99: =SB18e!K142 -> 0 | L99: =SB18e!L142 -> 0 | M99: =SB18e!M142 -> 0
A100: Licences and Rights | C100: =SB18e!C143 -> 0 | D100: =SB18e!D143 -> 0 | E100: =SB18e!E143 -> 0 | F100: =SB18e!F143 -> 0 | G100: =SB18e!G143 -> 0 | H100: =SB18e!H143 -> 0 | I100: =SB18e!I143 -> 0 | J100: =SB18e!J143 -> 0 | K100: =SB18e!K143 -> 0 | L100: =SB18e!L143 -> 0 | M100: =SB18e!M143 -> 0
A101: Intangible Assets | C101: =SUM(C99:C100) -> 0 | D101: =SUM(D99:D100) -> 0 | E101: 0 | F101: 0 | G101: 0 | H101: 0 | I101: 0 | J101: 0 | K101: 0 | L101: 0 | M101: 0
A102: Computer Equipment | C102: =SB18e!C151 -> 0 | D102: =SB18e!D151 -> 0 | E102: =SB18e!E151 -> 0 | F102: =SB18e!F151 -> 0 | G102: =SB18e!G151 -> 0 | H102: =SB18e!H151 -> 0 | I102: =SB18e!I151 -> 0 | J102: =SB18e!J151 -> 0 | K102: =SB18e!K151 -> 0 | L102: =SB18e!L151 -> 0 | M102: =SB18e!M151 -> 0
A103: Furniture and Office Equipment | C103: =SB18e!C154 -> 0 | D103: =SB18e!D154 -> 0 | E103: =SB18e!E154 -> 0 | F103: =SB18e!F154 -> 0 | G103: =SB18e!G154 -> 0 | H103: =SB18e!H154 -> 0 | I103: =SB18e!I154 -> 0 | J103: =SB18e!J154 -> 0 | K103: =SB18e!K154 -> 0 | L103: =SB18e!L154 -> 0 | M103: =SB18e!M154 -> 0
A104: Machinery and Equipment | C104: =SB18e!C157 -> 0 | D104: =SB18e!D157 -> 0 | E104: =SB18e!E157 -> 0 | F104: =SB18e!F157 -> 0 | G104: =SB18e!G157 -> 0 | H104: =SB18e!H157 -> 0 | I104: =SB18e!I157 -> 0 | J104: =SB18e!J157 -> 0 | K104: =SB18e!K157 -> 0 | L104: =SB18e!L157 -> 0 | M104: =SB18e!M157 -> 0
A105: Transport Assets | C105: =SB18e!C160 -> 0 | D105: =SB18e!D160 -> 0 | E105: =SB18e!E160 -> 0 | F105: =SB18e!F160 -> 0 | G105: =SB18e!G160 -> 0 | H105: =SB18e!H160 -> 0 | I105: =SB18e!I160 -> 0 | J105: =SB18e!J160 -> 0 | K105: =SB18e!K160 -> 0 | L105: =SB18e!L160 -> 0 | M105: =SB18e!M160 -> 0
A106: Land | C106: =SB18e!C163 -> 0 | D106: =SB18e!D163 -> 0 | E106: =SB18e!E163 -> 0 | F106: =SB18e!F163 -> 0 | G106: =SB18e!G163 -> 0 | H106: =SB18e!H163 -> 0 | I106: =SB18e!I163 -> 0 | J106: =SB18e!J163 -> 0 | K106: =SB18e!K163 -> 0 | L106: =SB18e!L163 -> 0 | M106: =SB18e!M163 -> 0
A107: Zoo's, Marine and Non-biological Animals | C107: =SB18e!C166 -> 0 | D107: =SB18e!D166 -> 0 | E107: =SB18e!E166 -> 0 | F107: =SB18e!F166 -> 0 | G107: =SB18e!G166 -> 0 | H107: =SB18e!H166 -> 0 | I107: =SB18e!I166 -> 0 | J107: =SB18e!J166 -> 0 | K107: =SB18e!K166 -> 0 | L107: =SB18e!L166 -> 0 | M107: =SB18e!M166 -> 0
A108: Mature | C108: =SB18e!C170 -> 0 | D108: =SB18e!D170 -> 0 | E108: =SB18e!E170 -> 0 | F108: =SB18e!F170 -> 0 | G108: =SB18e!G170 -> 0 | H108: =SB18e!H170 -> 0 | I108: =SB18e!I170 -> 0 | J108: =SB18e!J170 -> 0 | K108: =SB18e!K170 -> 0 | L108: =SB18e!L170 -> 0 | M108: =SB18e!M170 -> 0
A109: Immature | C109: =SB18e!C173 -> 0 | D109: =SB18e!D173 -> 0 | E109: =SB18e!E173 -> 0 | F109: =SB18e!F173 -> 0 | G109: =SB18e!G173 -> 0 | H109: =SB18e!H173 -> 0 | I109: =SB18e!I173 -> 0 | J109: =SB18e!J173 -> 0 | K109: =SB18e!K173 -> 0 | L109: =SB18e!L173 -> 0 | M109: =SB18e!M173 -> 0
A110: Living Resources | C110: =+C108+C109 -> 0 | D110: 0 | E110: 0 | F110: 0 | G110: 0 | H110: 0 | I110: 0 | J110: 0 | K110: 0 | L110: 0 | M110: 0
A112: Total Capital Expenditure to be adjusted | B112: 4 | C112: =C7+C42+C77 -> 593743325 | D112: 0 | E112: 0 | F112: 0 | G112: 0 | H112: 0 | I112: -24125452 | J112: -24125452 | K112: 569617873 | L112: 579118381 | M112: 595086856
A113: Roads Infrastructure | C113: =C8+C43+C78 -> 2460000 | D113: 0 | E113: 0 | F113: 0 | G113: 0 | H113: 0 | I113: 0 | J113: 0 | K113: 2460000 | L113: 2571000 | M113: 2686000
A114: Storm water Infrastructure | C114: =C9+C44+C79 -> 0 | D114: 0 | E114: 0 | F114: 0 | G114: 0 | H114: 0 | I114: 0 | J114: 0 | K114: 0 | L114: 0 | M114: 0
A115: Electrical Infrastructure | C115: =C10+C45+C80 -> 0 | D115: 0 | E115: 0 | F115: 0 | G115: 0 | H115: 0 | I115: 0 | J115: 0 | K115: 0 | L115: 0 | M115: 0
A116: Water Supply Infrastructure | C116: =C11+C46+C81 -> 580833325 | D116: 0 | E116: 0 | F116: 0 | G116: 0 | H116: 0 | I116: -27625452 | J116: -27625452 | K116: 553207873 | L116: 569437381 | M116: 584700856
A117: Sanitation Infrastructure | C117: =C12+C47+C82 -> 0 | D117: 0 | E117: 0 | F117: 0 | G117: 0 | H117: 0 | I117: 0 | J117: 0 | K117: 0 | L117: 0 | M117: 0
A118: Solid Waste Infrastructure | C118: =C13+C48+C83 -> 0 | D118: 0 | E118: 0 | F118: 0 | G118: 0 | H118: 0 | I118: 0 | J118: 0 | K118: 0 | L118: 0 | M118: 0
A119: Rail Infrastructure | C119: =C14+C49+C84 -> 0 | D119: 0 | E119: 0 | F119: 0 | G119: 0 | H119: 0 | I119: 0 | J119: 0 | K119: 0 | L119: 0 | M119: 0
A120: Coastal Infrastructure | C120: =C15+C50+C85 -> 0 | D120: 0 | E120: 0 | F120: 0 | G120: 0 | H120: 0 | I120: 0 | J120: 0 | K120: 0 | L120: 0 | M120: 0
A121: Information and Communication Infrastructure | C121: =C16+C51+C86 -> 0 | D121: 0 | E121: 0 | F121: 0 | G121: 0 | H121: 0 | I121: 0 | J121: 0 | K121: 0 | L121: 0 | M121: 0
A122: Infrastructure | C122: =C17+C52+C87 -> 583293325 | D122: 0 | E122: 0 | F122: 0 | G122: 0 | H122: 0 | I122: -27625452 | J122: -27625452 | K122: 555667873 | L122: 572008381 | M122: 587386856
A123: Community Facilities | C123: =C18+C53+C88 -> 0 | D123: 0 | E123: 0 | F123: 0 | G123: 0 | H123: 0 | I123: 0 | J123: 0 | K123: 0 | L123: 0 | M123: 0
A124: Sport and Recreation Facilities | C124: =C19+C54+C89 -> 0 | D124: 0 | E124: 0 | F124: 0 | G124: 0 | H124: 0 | I124: 0 | J124: 0 | K124: 0 | L124: 0 | M124: 0
A125: Community Assets | C125: =C20+C55+C90 -> 0 | D125: 0 | E125: 0 | F125: 0 | G125: 0 | H125: 0 | I125: 0 | J125: 0 | K125: 0 | L125: 0 | M125: 0
A126: Heritage Assets | C126: =C21+C56+C91 -> 0 | D126: 0 | E126: 0 | F126: 0 | G126: 0 | H126: 0 | I126: 0 | J126: 0 | K126: 0 | L126: 0 | M126: 0
A127: Revenue Generating | C127: =C22+C57+C92 -> 0 | D127: 0 | E127: 0 | F127: 0 | G127: 0 | H127: 0 | I127: 0 | J127: 0 | K127: 0 | L127: 0 | M127: 0
A128: Non-revenue Generating | C128: =C23+C58+C93 -> 0 | D128: =D23+D58+D93 -> 0 | E128: 0 | F128: 0 | G128: 0 | H128: 0 | I128: 0 | J128: 0 | K128: 0 | L128: 0 | M128: 0
A129: Investment properties | C129: 0 | D129: =D24+D59+D94 -> 0 | E129: 0 | F129: 0 | G129: 0 | H129: 0 | I129: 0 | J129: 0 | K129: 0 | L129: 0 | M129: 0
A130: Operational Buildings | C130: 200000 | D130: =D25+D60+D95 -> 0 | E130: 0 | F130: 0 | G130: 0 | H130: 0 | I130: 0 | J130: 0 | K130: 200000 | L130: 250000 | M130: 300000
A131: Housing | C131: 0 | D131: =D26+D61+D96 -> 0 | E131: 0 | F131: 0 | G131: 0 | H131: 0 | I131: 0 | J131: 0 | K131: 0 | L131: 0 | M131: 0
A132: Other Assets | C132: 200000 | D132: =D27+D62+D97 -> 0 | E132: 0 | F132: 0 | G132: 0 | H132: 0 | I132: 0 | J132: 0 | K132: 200000 | L132: 250000 | M132: 300000
A133: Biological or Cultivated Assets | C133: 0 | D133: =D28+D63+D98 -> 0 | E133: 0 | F133: 0 | G133: 0 | H133: 0 | I133: 0 | J133: 0 | K133: 0 | L133: 0 | M133: 0
A134: Servitudes | C134: 0 | D134: =D29+D64+D99 -> 0 | E134: 0 | F134: 0 | G134: 0 | H134: 0 | I134: 0 | J134: 0 | K134: 0 | L134: 0 | M134: 0
A135: Licences and Rights | C135: 1500000 | D135: =D30+D65+D100 -> 0 | E135: 0 | F135: 0 | G135: 0 | H135: 0 | I135: 0 | J135: 0 | K135: 1500000 | L135: 700000 | M135: 800000
A136: Intangible Assets | C136: 1500000 | D136: =D31+D66+D101 -> 0 | E136: 0 | F136: 0 | G136: 0 | H136: 0 | I136: 0 | J136: 0 | K136: 1500000 | L136: 700000 | M136: 800000
A137: Computer Equipment | C137: 1300000 | D137: =D32+D67+D102 -> 0 | E137: 0 | F137: 0 | G137: 0 | H137: 0 | I137: 1500000 | J137: 1500000 | K137: 2800000 | L137: 0 | M137: 0
A138: Furniture and Office Equipment | C138: 1700000 | D138: =D33+D68+D103 -> 0 | E138: 0 | F138: 0 | G138: 0 | H138: 0 | I138: 2000000 | J138: 2000000 | K138: 3700000 | L138: 250000 | M138: 300000
A139: Machinery and Equipment | C139: 0 | D139: =D34+D69+D104 -> 0 | E139: 0 | F139: 0 | G139: 0 | H139: 0 | I139: 0 | J139: 0 | K139: 0 | L139: 0 | M139: 0
A140: Transport Assets | C140: 5750000 | D140: =D35+D70+D105 -> 0 | E140: 0 | F140: 0 | G140: 0 | H140: 0 | I140: 0 | J140: 0 | K140: 5750000 | L140: 5910000 | M140: 6300000
A141: Land | C141: 0 | D141: =D36+D71+D106 -> 0 | E141: 0 | F141: 0 | G141: 0 | H141: 0 | I141: 0 | J141: 0 | K141: 0 | L141: 0 | M141: 0
A142: Zoo's, Marine and Non-biological Animals | C142: 0 | D142: =D37+D72+D107 -> 0 | E142: 0 | F142: 0 | G142: 0 | H142: 0 | I142: 0 | J142: 0 | K142: 0 | L142: 0 | M142: 0
A143: Mature | C143: 0 | D143: 0 | E143: 0 | F143: 0 | G143: 0 | H143: 0 | I143: 0 | J143: 0 | K143: 0 | L143: 0 | M143: 0
A144: Immature | C144: 0 | D144: 0 | E144: 0 | F144: 0 | G144: 0 | H144: 0 | I144: 0 | J144: 0 | K144: 0 | L144: 0 | M144: 0
A145: Living Resources | C145: =+C40+C75+C110 -> 0 | D145: =+D40+D75+D110 -> 0 | E145: 0 | F145: 0 | G145: 0 | H145: 0 | I145: 0 | J145: 0 | K145: 0 | L145: 0 | M145: 0
A146: TOTAL CAPITAL EXPENDITURE to be adjusted | B146: 4 | C146: =C7+C42+C77 -> 593743325 | D146: =D7+D42+D77 -> 0 | E146: 0 | F146: 0 | G146: 0 | H146: 0 | I146: -24125452 | J146: -24125452 | K146: 569617873 | L146: 579118381 | M146: 595086856
A148: ASSET REGISTER SUMMARY - PPE (WDV) | B148: 5 | C148: =C158+C161+C162+C165+C168+C169+SUM(C172:C179) -> 2751035070 | D148: =D158+D161+D162+D165+D168+D169+SUM(D172:D179) -> 0 | E148: 0 | F148: 0 | G148: 0 | H148: 0 | I148: -24125452 | J148: -24125452 | K148: 2726909618 | L148: 2842117420 | M148: 2964919144
A149: =+A8 -> Roads Infrastructure | C149: 31366761 | D149: 0 | E149: 0 | F149: 0 | G149: 0 | H149: 0 | I149: 0 | J149: =SUM(E149:I149) -> 0 | K149: =IF(D149=0,C149+J149,D149+J149) -> 31366761 | L149: 32894191 | M149: 34434382
A150: Storm water Infrastructure | C150: 0 | D150: 0 | E150: 0 | F150: 0 | G150: 0 | H150: 0 | I150: 0 | J150: 0 | K150: =IF(D150=0,C150+J150,D150+J150) -> 0 | L150: 0 | M150: 0
A151: Electrical Infrastructure | J151: 0 | K151: =IF(D151=0,C151+J151,D151+J151) -> 0
A152: Water Supply Infrastructure | C152: 2654474064 | D152: 0 | E152: 0 | F152: 0 | G152: 0 | H152: 0 | I152: -27625452 | J152: -27625452 | K152: =IF(D152=0,C152+J152,D152+J152) -> 2626848612 | L152: 2744686516 | M152: 2862186700
A153: Sanitation Infrastructure | C153: 48398333 | D153: 0 | E153: 0 | F153: 0 | G153: 0 | H153: 0 | I153: 0 | J153: 0 | K153: =IF(D153=0,C153+J153,D153+J153) -> 48398333 | L153: 50769851 | M153: 53156034
A154: Solid Waste Infrastructure | C154: 0 | D154: 0 | E154: 0 | F154: 0 | G154: 0 | H154: 0 | I154: 0 | J154: 0 | K154: 0 | L154: 0 | M154: 0
A155: Rail Infrastructure | J155: 0 | K155: 0
A156: Coastal Infrastructure | J156: 0 | K156: 0
A157: Information and Communication Infrastructure | J157: 0 | K157: 0
A158: Infrastructure | C158: =SUM(C149:C157) -> 2734239158 | D158: 0 | E158: 0 | F158: 0 | G158: 0 | H158: 0 | I158: -27625452 | J158: -27625452 | K158: 2706613706 | L158: =SUM(L149:L157) -> 2828350558 | M158: =SUM(M149:M157) -> 2949777116
A161: =+A20 -> Community Assets | C161: 35182078 | D161: 0 | E161: 0 | F161: 0 | G161: 0 | H161: 0 | I161: 0 | J161: =SUM(E161:I161) -> 0 | K161: =IF(D161=0,C161+J161,D161+J161) -> 35182078 | L161: 36906001 | M161: 39112874
A162: =+A21 -> Heritage Assets | C162: 1500000 | D162: 0 | E162: 0 | F162: 0 | G162: 0 | H162: 0 | I162: 0 | J162: =SUM(E162:I162) -> 0 | K162: 1500000 | L162: 700000 | M162: 800000
A165: =+A24 -> Investment properties | J165: =SUM(E165:I165) -> 0 | K165: =IF(D165=0,C165+J165,D165+J165) -> 0
A168: =+A27 -> Other Assets | C168: -15208026 | D168: 0 | E168: 0 | F168: 0 | G168: 0 | H168: 0 | I168: 0 | J168: =SUM(E168:I168) -> 0 | K168: =IF(D168=0,C168+J168,D168+J168) -> -15208026 | L168: -15913019 | M168: -16622681
A169: =+A28 -> Biological or Cultivated Assets | J169: =SUM(E169:I169) -> 0 | K169: =IF(D169=0,C169+J169,D169+J169) -> 0
A172: =+A31 -> Intangible Assets | J172: =SUM(E172:I172) -> 0 | K172: =IF(D172=0,C172+J172,D172+J172) -> 0
A173: Computer Equipment | C173: -21176705 | D173: 0 | E173: 0 | F173: 0 | G173: 0 | H173: 0 | I173: 1500000 | J173: =SUM(E173:I173) -> 1500000 | K173: =IF(D173=0,C173+J173,D173+J173) -> -19676705 | L173: -23578065 | M173: -24686232
A174: Furniture and Office Equipment | C174: 6295334 | D174: 0 | E174: 0 | F174: 0 | G174: 0 | H174: 0 | I174: 2000000 | J174: 2000000 | K174: 8295334 | L174: 5070505 | M174: 5347069
A175: Machinery and Equipment | C175: 3790842 | D175: 0 | E175: 0 | F175: 0 | G175: 0 | H175: 0 | I175: 0 | J175: 0 | K175: 3790842 | L175: 3976593 | M175: 4163494
A176: Transport Assets | C176: 6412389 | D176: 0 | E176: 0 | F176: 0 | G176: 0 | H176: 0 | I176: 0 | J176: 0 | K176: 6412389 | L176: 6604847 | M176: 7027504
A177: Land | C177: 0 | D177: 0 | E177: 0 | F177: 0 | G177: 0 | H177: 0 | I177: 0 | J177: 0 | K177: 0 | L177: 0 | M177: 0
A178: Zoo's, Marine and Non-biological Animals | J178: 0 | K178: 0
A179: Living Resources
A180: TOTAL ASSET REGISTER SUMMARY - PPE (WDV) | B180: 5 | C180: =C158+C161+C162+C165+C168+C169+SUM(C172:C179) -> 2751035070 | D180: =D158+D161+D162+D165+D168+D169+SUM(D172:D179) -> 0 | E180: 0 | F180: 0 | G180: 0 | H180: 0 | I180: -24125452 | J180: -24125452 | K180: 2726909618 | L180: 2842117420 | M180: 2964919144
A182: EXPENDITURE OTHER ITEMS
A183: Depreciation & asset impairment | C183: =SB18d!C177 -> 99840051 | D183: =SB18d!D177 -> 0 | E183: =SB18d!E177 -> 0 | F183: =SB18d!F177 -> 0 | G183: =SB18d!G177 -> 0 | H183: =SB18d!H177 -> 0 | I183: =SB18d!I177 -> -110000 | J183: =SB18d!J177 -> -110000 | K183: =SB18d!K177 -> 99730051 | L183: =SB18d!L177 -> 104732214 | M183: =SB18d!M177 -> 109654628
A184: Repairs and Maintenance by asset class | B184: 3 | C184: =C194+C197+C198+C201+C204+C205+SUM(C208:C214)+C217 -> 68711859 | D184: =D194+D197+D198+D201+D204+D205+SUM(D208:D214)+D217 -> 0 | E184: 0 | F184: 0 | G184: 0 | H184: 0 | I184: 30100000 | J184: 30100000 | K184: 98811859 | L184: 159351403 | M184: 179321565
A185: =+A8 -> Roads Infrastructure | C185: =SB18c!C9 -> 0 | D185: =SB18c!D9 -> 0 | E185: =SB18c!E9 -> 0 | F185: =SB18c!F9 -> 0 | G185: =SB18c!G9 -> 0 | H185: =SB18c!H9 -> 0 | I185: =SB18c!I9 -> 0 | J185: =SB18c!J9 -> 0 | K185: =SB18c!K9 -> 0 | L185: =SB18c!L9 -> 0 | M185: =SB18c!M9 -> 0
A186: Storm water Infrastructure | C186: =SB18c!C14 -> 0 | D186: =SB18c!D14 -> 0 | E186: =SB18c!E14 -> 0 | F186: =SB18c!F14 -> 0 | G186: =SB18c!G14 -> 0 | H186: =SB18c!H14 -> 0 | I186: =SB18c!I14 -> 0 | J186: =SB18c!J14 -> 0 | K186: =SB18c!K14 -> 0 | L186: =SB18c!L14 -> 0 | M186: =SB18c!M14 -> 0
A187: Electrical Infrastructure | C187: =SB18c!C18 -> 0 | D187: =SB18c!D18 -> 0 | E187: =SB18c!E18 -> 0 | F187: =SB18c!F18 -> 0 | G187: =SB18c!G18 -> 0 | H187: =SB18c!H18 -> 0 | I187: =SB18c!I18 -> 0 | J187: =SB18c!J18 -> 0 | K187: =SB18c!K18 -> 0 | L187: =SB18c!L18 -> 0 | M187: =SB18c!M18 -> 0
A188: Water Supply Infrastructure | C188: =SB18c!C28 -> 31902467 | D188: =SB18c!D28 -> 0 | E188: =SB18c!E28 -> 0 | F188: =SB18c!F28 -> 0 | G188: =SB18c!G28 -> 0 | H188: =SB18c!H28 -> 0 | I188: =SB18c!I28 -> 3500000 | J188: =SB18c!J28 -> 3500000 | K188: =SB18c!K28 -> 35402467 | L188: =SB18c!L28 -> 44059980 | M188: =SB18c!M28 -> 46316740
A189: Sanitation Infrastructure | C189: =SB18c!C39 -> 10093185 | D189: =SB18c!D39 -> 0 | E189: =SB18c!E39 -> 0 | F189: =SB18c!F39 -> 0 | G189: =SB18c!G39 -> 0 | H189: =SB18c!H39 -> 0 | I189: =SB18c!I39 -> 24200000 | J189: =SB18c!J39 -> 24200000 | K189: =SB18c!K39 -> 34293185 | L189: =SB18c!L39 -> 87311443 | M189: =SB18c!M39 -> 103037667
A190: Solid Waste Infrastructure | C190: =SB18c!C46 -> 1247700 | D190: =SB18c!D46 -> 0 | E190: =SB18c!E46 -> 0 | F190: =SB18c!F46 -> 0 | G190: =SB18c!G46 -> 0 | H190: =SB18c!H46 -> 0 | I190: =SB18c!I46 -> 0 | J190: =SB18c!J46 -> 0 | K190: =SB18c!K46 -> 1247700 | L190: =SB18c!L46 -> 994137 | M190: =SB18c!M46 -> 1040862
A191: Rail Infrastructure | C191: =SB18c!C54 -> 0 | D191: =SB18c!D54 -> 0 | E191: =SB18c!E54 -> 0 | F191: =SB18c!F54 -> 0 | G191: =SB18c!G54 -> 0 | H191: =SB18c!H54 -> 0 | I191: =SB18c!I54 -> 0 | J191: =SB18c!J54 -> 0 | K191: =SB18c!K54 -> 0 | L191: =SB18c!L54 -> 0 | M191: =SB18c!M54 -> 0
A192: Coastal Infrastructure | C192: =SB18c!C64 -> 0 | D192: =SB18c!D64 -> 0 | E192: =SB18c!E64 -> 0 | F192: =SB18c!F64 -> 0 | G192: =SB18c!G64 -> 0 | H192: =SB18c!H64 -> 0 | I192: =SB18c!I64 -> 0 | J192: =SB18c!J64 -> 0 | K192: =SB18c!K64 -> 0 | L192: =SB18c!L64 -> 0 | M192: =SB18c!M64 -> 0
A193: Information and Communication Infrastructure | C193: =SB18c!C70 -> 0 | D193: =SB18c!D70 -> 0 | E193: =SB18c!E70 -> 0 | F193: =SB18c!F70 -> 0 | G193: =SB18c!G70 -> 0 | H193: =SB18c!H70 -> 0 | I193: =SB18c!I70 -> 0 | J193: =SB18c!J70 -> 0 | K193: =SB18c!K70 -> 0 | L193: =SB18c!L70 -> 0 | M193: =SB18c!M70 -> 0
A194: Infrastructure | C194: =SUM(C185:C193) -> 43243352 | D194: =SUM(D185:D193) -> 0 | E194: 0 | F194: 0 | G194: 0 | H194: 0 | I194: 27700000 | J194: 27700000 | K194: 70943352 | L194: 132365560 | M194: 150395269
A195: Community Facilities | C195: =SB18c!C77 -> 0 | D195: =SB18c!D77 -> 0 | E195: =SB18c!E77 -> 0 | F195: =SB18c!F77 -> 0 | G195: =SB18c!G77 -> 0 | H195: =SB18c!H77 -> 0 | I195: =SB18c!I77 -> 0 | J195: =SB18c!J77 -> 0 | K195: =SB18c!K77 -> 0 | L195: =SB18c!L77 -> 0 | M195: =SB18c!M77 -> 0
A196: Sport and Recreation Facilities | C196: =SB18c!C100 -> 0 | D196: =SB18c!D100 -> 0 | E196: =SB18c!E100 -> 0 | F196: =SB18c!F100 -> 0 | G196: =SB18c!G100 -> 0 | H196: =SB18c!H100 -> 0 | I196: =SB18c!I100 -> 0 | J196: =SB18c!J100 -> 0 | K196: =SB18c!K100 -> 0 | L196: =SB18c!L100 -> 0 | M196: =SB18c!M100 -> 0
A197: Community Assets | C197: =SUM(C195:C196) -> 0 | D197: =SUM(D195:D196) -> 0 | E197: 0 | F197: 0 | G197: 0 | H197: 0 | I197: 0 | J197: 0 | K197: 0 | L197: 0 | M197: 0
A198: Heritage Assets | C198: =SB18c!C105 -> 500000 | D198: =SB18c!D105 -> 0 | E198: =SB18c!E105 -> 0 | F198: =SB18c!F105 -> 0 | G198: =SB18c!G105 -> 0 | H198: =SB18c!H105 -> 0 | I198: =SB18c!I105 -> 500000 | J198: =SB18c!J105 -> 500000 | K198: =SB18c!K105 -> 1000000 | L198: =SB18c!L105 -> 522000 | M198: =SB18c!M105 -> 545549
A199: Revenue Generating | C199: =SB18c!C113 -> 0 | D199: =SB18c!D113 -> 0 | E199: =SB18c!E113 -> 0 | F199: =SB18c!F113 -> 0 | G199: =SB18c!G113 -> 0 | H199: =SB18c!H113 -> 0 | I199: =SB18c!I113 -> 0 | J199: =SB18c!J113 -> 0 | K199: =SB18c!K113 -> 0 | L199: =SB18c!L113 -> 0 | M199: =SB18c!M113 -> 0
A200: Non-revenue Generating | C200: =SB18c!C116 -> 0 | D200: =SB18c!D116 -> 0 | E200: =SB18c!E116 -> 0 | F200: =SB18c!F116 -> 0 | G200: =SB18c!G116 -> 0 | H200: =SB18c!H116 -> 0 | I200: =SB18c!I116 -> 0 | J200: =SB18c!J116 -> 0 | K200: =SB18c!K116 -> 0 | L200: =SB18c!L116 -> 0 | M200: =SB18c!M116 -> 0
A201: Investment properties | C201: =SUM(C199:C200) -> 0 | D201: =SUM(D199:D200) -> 0 | E201: 0 | F201: 0 | G201: 0 | H201: 0 | I201: 0 | J201: 0 | K201: 0 | L201: 0 | M201: 0
A202: Operational Buildings | C202: =SB18c!C121 -> 3057940 | D202: =SB18c!D121 -> 0 | E202: =SB18c!E121 -> 0 | F202: =SB18c!F121 -> 0 | G202: =SB18c!G121 -> 0 | H202: =SB18c!H121 -> 0 | I202: =SB18c!I121 -> 0 | J202: =SB18c!J121 -> 0 | K202: =SB18c!K121 -> 3057940 | L202: =SB18c!L121 -> 3473166 | M202: =SB18c!M121 -> 3589275
A203: Housing | C203: =SB18c!C133 -> 0 | D203: =SB18c!D133 -> 0 | E203: =SB18c!E133 -> 0 | F203: =SB18c!F133 -> 0 | G203: =SB18c!G133 -> 0 | H203: =SB18c!H133 -> 0 | I203: =SB18c!I133 -> 0 | J203: =SB18c!J133 -> 0 | K203: =SB18c!K133 -> 0 | L203: =SB18c!L133 -> 0 | M203: =SB18c!M133 -> 0
A204: Other Assets | C204: =SUM(C202:C203) -> 3057940 | D204: =SUM(D202:D203) -> 0 | E204: 0 | F204: 0 | G204: 0 | H204: 0 | I204: 0 | J204: 0 | K204: 3057940 | L204: 3473166 | M204: 3589275
A205: Biological or Cultivated Assets | C205: =SB18c!C138 -> 0 | D205: =SB18c!D138 -> 0 | E205: =SB18c!E138 -> 0 | F205: =SB18c!F138 -> 0 | G205: =SB18c!G138 -> 0 | H205: =SB18c!H138 -> 0 | I205: =SB18c!I138 -> 0 | J205: =SB18c!J138 -> 0 | K205: =SB18c!K138 -> 0 | L205: =SB18c!L138 -> 0 | M205: =SB18c!M138 -> 0
A206: Servitudes | C206: =SB18c!C142 -> 0 | D206: =SB18c!D142 -> 0 | E206: =SB18c!E142 -> 0 | F206: =SB18c!F142 -> 0 | G206: =SB18c!G142 -> 0 | H206: =SB18c!H142 -> 0 | I206: =SB18c!I142 -> 0 | J206: =SB18c!J142 -> 0 | K206: =SB18c!K142 -> 0 | L206: =SB18c!L142 -> 0 | M206: =SB18c!M142 -> 0
A207: Licences and Rights | C207: =SB18c!C143 -> 0 | D207: =SB18c!D143 -> 0 | E207: =SB18c!E143 -> 0 | F207: =SB18c!F143 -> 0 | G207: =SB18c!G143 -> 0 | H207: =SB18c!H143 -> 0 | I207: =SB18c!I143 -> 0 | J207: =SB18c!J143 -> 0 | K207: =SB18c!K143 -> 0 | L207: =SB18c!L143 -> 0 | M207: =SB18c!M143 -> 0
A208: Intangible Assets | C208: =SUM(C206:C207) -> 0 | D208: =SUM(D206:D207) -> 0 | E208: 0 | F208: 0 | G208: 0 | H208: 0 | I208: 0 | J208: 0 | K208: 0 | L208: 0 | M208: 0
A209: Computer Equipment | C209: =SB18c!C151 -> 636012 | D209: =SB18c!D151 -> 0 | E209: =SB18c!E151 -> 0 | F209: =SB18c!F151 -> 0 | G209: =SB18c!G151 -> 0 | H209: =SB18c!H151 -> 0 | I209: =SB18c!I151 -> 0 | J209: =SB18c!J151 -> 0 | K209: =SB18c!K151 -> 636012 | L209: =SB18c!L151 -> 667177 | M209: =SB18c!M151 -> 698534
A210: Furniture and Office Equipment | C210: =SB18c!C154 -> 2106000 | D210: =SB18c!D154 -> 0 | E210: =SB18c!E154 -> 0 | F210: =SB18c!F154 -> 0 | G210: =SB18c!G154 -> 0 | H210: =SB18c!H154 -> 0 | I210: =SB18c!I154 -> 0 | J210: =SB18c!J154 -> 0 | K210: =SB18c!K154 -> 2106000 | L210: =SB18c!L154 -> 2209194 | M210: =SB18c!M154 -> 2313026
A211: Machinery and Equipment | C211: =SB18c!C157 -> 9668555 | D211: =SB18c!D157 -> 0 | E211: =SB18c!E157 -> 0 | F211: =SB18c!F157 -> 0 | G211: =SB18c!G157 -> 0 | H211: =SB18c!H157 -> 0 | I211: =SB18c!I157 -> -100000 | J211: =SB18c!J157 -> -100000 | K211: =SB18c!K157 -> 9568555 | L211: =SB18c!L157 -> 10114306 | M211: =SB18c!M157 -> 10579912
A212: Transport Assets | C212: =SB18c!C160 -> 9500000 | D212: =SB18c!D160 -> 0 | E212: =SB18c!E160 -> 0 | F212: =SB18c!F160 -> 0 | G212: =SB18c!G160 -> 0 | H212: =SB18c!H160 -> 0 | I212: =SB18c!I160 -> 2000000 | J212: =SB18c!J160 -> 2000000 | K212: =SB18c!K160 -> 11500000 | L212: =SB18c!L160 -> 10000000 | M212: =SB18c!M160 -> 11200000
A213: Land | C213: =SB18c!C163 -> 0 | D213: =SB18c!D163 -> 0 | E213: =SB18c!E163 -> 0 | F213: =SB18c!F163 -> 0 | G213: =SB18c!G163 -> 0 | H213: =SB18c!H163 -> 0 | I213: =SB18c!I163 -> 0 | J213: =SB18c!J163 -> 0 | K213: =SB18c!K163 -> 0 | L213: =SB18c!L163 -> 0 | M213: =SB18c!M163 -> 0
... 26 more rows

Sheet B10-SerDel
A1: =muni&" - "&_ADJ10&" - "&Date -> DC47 Sekhukhune - Table B10 Basic service delivery measurement - 28/02/2024
A2: =desc -> Description | B2: =head27 -> Ref | C2: =Head2 -> Budget Year 2023/24 | L2: =Head10 -> Budget Year +1 2024/25 | M2: =Head11 -> Budget Year +2 2025/26
C3: =Head6 -> Original Budget | D3: =Head54 -> Prior Adjusted | E3: =Head51 -> Accum. Funds | F3: =Head52 -> Multi-year capital | G3: =Head53 -> Unfore. Unavoid. | H3: =Head55 -> Nat. or Prov. Govt | I3: =Head50 -> Other Adjusts. | J3: =Head56 -> Total Adjusts. | K3: =Head7 -> Adjusted Budget | L3: =Head7 -> Adjusted Budget | M3: =Head7 -> Adjusted Budget
D4: 7 | E4: 8 | F4: 9 | G4: 10 | H4: 11 | I4: 12 | J4: 13 | K4: 14
C5: A | D5: A1 | E5: B | F5: C | G5: D | H5: E | I5: F | J5: G | K5: H
A6: Household service targets | B6: 1
A7: Water:
A8: Piped water inside dwelling | C8: 20000 | D8: 0 | E8: 0 | F8: 0 | G8: 0 | H8: 0 | I8: 0 | J8: =SUM(E8:I8) -> 0 | K8: =IF(D8=0,C8+J8,D8+J8) -> 20000 | L8: 0 | M8: 0
A9: Piped water inside yard (but not in dwelling) | C9: 15000 | D9: 0 | E9: 0 | F9: 0 | G9: 0 | H9: 0 | I9: 0 | J9: 0 | K9: 15000 | L9: 0 | M9: 0
A10: Using public tap (at least min.service level) | B10: 2 | C10: 469235 | D10: 0 | E10: 0 | F10: 0 | G10: 0 | H10: 0 | I10: 0 | J10: 0 | K10: 469235 | L10: 500880 | M10: 0
A11: Other water supply (at least min.service level) | C11: 119597 | D11: 0 | E11: 0 | F11: 0 | G11: 0 | H11: 0 | I11: 0 | J11: 0 | K11: 119597 | L11: 146028 | M11: 0
A12: Minimum Service Level and Above sub-total | C12: =SUM(C8:C11) -> 623832 | D12: 0 | E12: 0 | F12: 0 | G12: 0 | H12: 0 | I12: 0 | J12: 0 | K12: 623832 | L12: 646908 | M12: 0
A13: Using public tap (< min.service level) | B13: 3 | J13: 0 | K13: 0
A14: Other water supply (< min.service level) | B14: 3,4 | C14: 10000 | D14: 0 | E14: 0 | F14: 0 | G14: 0 | H14: 0 | I14: 0 | J14: 0 | K14: 10000 | L14: 0 | M14: 0
A15: No water supply | C15: 5000 | D15: 0 | E15: 0 | F15: 0 | G15: 0 | H15: 0 | I15: 0 | J15: 0 | K15: 5000 | L15: 0 | M15: 0
A16: Below Minimum Servic Level sub-total | C16: =SUM(C13:C15) -> 15000 | D16: 0 | E16: 0 | F16: 0 | G16: 0 | H16: 0 | I16: 0 | J16: 0 | K16: 15000 | L16: 0 | M16: 0
A17: Total number of households | B17: 5 | C17: =C12+C16 -> 638832 | D17: 0 | E17: 0 | F17: 0 | G17: 0 | H17: 0 | I17: 0 | J17: 0 | K17: 638832 | L17: 646908 | M17: 0
A18: Sanitation/sewerage:
A19: Flush toilet (connected to sewerage) | C19: 0 | D19: 0 | E19: 0 | F19: 0 | G19: 0 | H19: 0 | I19: 0 | J19: =SUM(E19:I19) -> 0 | K19: =IF(D19=0,C19+J19,D19+J19) -> 0 | L19: 0 | M19: 0
A20: Flush toilet (with septic tank) | C20: 15000 | D20: 0 | E20: 0 | F20: 0 | G20: 0 | H20: 0 | I20: 0 | J20: 0 | K20: 15000 | L20: 20000 | M20: 0
A21: Chemical toilet | J21: 0 | K21: 0
A22: Pit toilet (ventilated) | C22: 48000 | D22: 0 | E22: 0 | F22: 0 | G22: 0 | H22: 0 | I22: 0 | J22: 0 | K22: 48000 | L22: 0 | M22: 0
A23: Other toilet provisions (> min.service level) | J23: 0 | K23: 0
A24: =$A$12 -> Minimum Service Level and Above sub-total | C24: =SUM(C19:C23) -> 63000 | D24: 0 | E24: 0 | F24: 0 | G24: 0 | H24: 0 | I24: 0 | J24: 0 | K24: 63000 | L24: 20000 | M24: 0
A25: Bucket toilet | J25: 0 | K25: 0
A26: Other toilet provisions (< min.service level) | C26: 10000 | D26: 0 | E26: 0 | F26: 0 | G26: 0 | H26: 0 | I26: 0 | J26: 0 | K26: 10000 | L26: 15000 | M26: 0
A27: No toilet provisions | J27: 0 | K27: 0
A28: =$A$16 -> Below Minimum Servic Level sub-total | C28: =SUM(C25:C27) -> 10000 | D28: 0 | E28: 0 | F28: 0 | G28: 0 | H28: 0 | I28: 0 | J28: 0 | K28: 10000 | L28: 15000 | M28: 0
A29: =$A$17 -> Total number of households | B29: =$B$17 -> 5 | C29: =C24+C28 -> 73000 | D29: 0 | E29: 0 | F29: 0 | G29: 0 | H29: 0 | I29: 0 | J29: 0 | K29: 73000 | L29: 35000 | M29: 0
A30: Energy:
A31: Electricity (at least min. service level) | J31: =SUM(E31:I31) -> 0 | K31: =IF(D31=0,C31+J31,D31+J31) -> 0
A32: Electricity - prepaid (> min.service level) | J32: 0 | K32: 0
A33: =$A$12 -> Minimum Service Level and Above sub-total | C33: =SUM(C31:C32) -> 0 | D33: 0 | E33: 0 | F33: 0 | G33: 0 | H33: 0 | I33: 0 | J33: 0 | K33: 0 | L33: 0 | M33: 0
A34: Electricity (< min.service level) | J34: 0 | K34: 0
A35: Electricity - prepaid (< min. service level) | J35: 0 | K35: 0
A36: Other energy sources | J36: 0 | K36: 0
A37: =$A$16 -> Below Minimum Servic Level sub-total | C37: =SUM(C34:C36) -> 0 | D37: 0 | E37: 0 | F37: 0 | G37: 0 | H37: 0 | I37: 0 | J37: 0 | K37: 0 | L37: 0 | M37: 0
A38: =$A$17 -> Total number of households | B38: =$B$17 -> 5 | C38: =C33+C37 -> 0 | D38: 0 | E38: 0 | F38: 0 | G38: 0 | H38: 0 | I38: 0 | J38: 0 | K38: 0 | L38: 0 | M38: 0
A39: Refuse:
A40: Removed at least once a week (min.service) | J40: =SUM(E40:I40) -> 0 | K40: =IF(D40=0,C40+J40,D40+J40) -> 0
A41: =$A$12 -> Minimum Service Level and Above sub-total | C41: =SUM(C40) -> 0 | D41: 0 | E41: 0 | F41: 0 | G41: 0 | H41: 0 | I41: 0 | J41: =SUM(E41:I41) -> 0 | K41: 0 | L41: =SUM(L40) -> 0 | M41: =SUM(M40) -> 0
A42: Removed less frequently than once a week | J42: 0 | K42: 0
A43: Using communal refuse dump | J43: 0 | K43: 0
A44: Using own refuse dump | J44: 0 | K44: 0
A45: Other rubbish disposal | J45: 0 | K45: 0
A46: No rubbish disposal | J46: 0 | K46: 0
A47: =$A$16 -> Below Minimum Servic Level sub-total | C47: =SUM(C42:C46) -> 0 | D47: 0 | E47: 0 | F47: 0 | G47: 0 | H47: 0 | I47: 0 | J47: 0 | K47: 0 | L47: 0 | M47: 0
A48: =$A$17 -> Total number of households | B48: =$B$17 -> 5 | C48: =C41+C47 -> 0 | D48: 0 | E48: 0 | F48: 0 | G48: 0 | H48: 0 | I48: 0 | J48: =J40+J47 -> 0 | K48: =K40+K47 -> 0 | L48: =L41+L47 -> 0 | M48: =M41+M47 -> 0
A50: Households receiving Free Basic Service | B50: 15
A51: Water (6 kilolitres per household per month) | C51: ='SB5'!E263 -> 52180 | D51: ='SB5'!F263 -> 0 | E51: ='SB5'!G263 -> 0 | F51: ='SB5'!H263 -> 0 | G51: ='SB5'!I263 -> 0 | H51: ='SB5'!J263 -> 0 | I51: ='SB5'!K263 -> 0 | J51: =SUM(E51:I51) -> 0 | K51: =IF(D51=0,C51+J51,D51+J51) -> 52180 | L51: ='SB5'!N263 -> 57398 | M51: ='SB5'!O263 -> 0
A52: Sanitation (free minimum level service) | C52: ='SB5'!E275 -> 46054 | D52: ='SB5'!F275 -> 0 | E52: ='SB5'!G275 -> 0 | F52: ='SB5'!H275 -> 0 | G52: ='SB5'!I275 -> 0 | H52: ='SB5'!J275 -> 0 | I52: ='SB5'!K275 -> 0 | J52: =SUM(E52:I52) -> 0 | K52: =IF(D52=0,C52+J52,D52+J52) -> 46054 | L52: ='SB5'!N275 -> 50660 | M52: ='SB5'!O275 -> 0
A53: Electricity/other energy (50kwh per household per month) | C53: ='SB5'!E251 -> 0 | D53: ='SB5'!F251 -> 0 | E53: ='SB5'!G251 -> 0 | F53: ='SB5'!H251 -> 0 | G53: ='SB5'!I251 -> 0 | H53: ='SB5'!J251 -> 0 | I53: ='SB5'!K251 -> 0 | J53: =SUM(E53:I53) -> 0 | K53: =IF(D53=0,C53+J53,D53+J53) -> 0 | L53: ='SB5'!N251 -> 0 | M53: ='SB5'!O251 -> 0
A54: Refuse (removed at least once a week) | C54: ='SB5'!E287 -> 0 | D54: ='SB5'!F287 -> 0 | E54: ='SB5'!G287 -> 0 | F54: ='SB5'!H287 -> 0 | G54: ='SB5'!I287 -> 0 | H54: ='SB5'!J287 -> 0 | I54: ='SB5'!K287 -> 0 | J54: ='SB5'!L287 -> 0 | K54: ='SB5'!M287 -> 0 | L54: ='SB5'!N287 -> 0 | M54: ='SB5'!O287 -> 0
A55: Informal Settlements | C55: ='SB5'!E251+'SB5'!E253+'SB5'!E255+'SB5'!E257 +'SB5'!E259+'SB5'!E263+'SB5'!E265+'SB5'!E267+'SB5'!E269+'SB5'!E271 + 'SB5'!E275+'SB5'!E277+'SB5'!E279+'SB5'!E281 +'SB5'!E283+'SB5'!E287+'SB5'!E289+'SB5'!E291+'SB5'!E293+'SB5'!E295 -> 98234 | D55: ='SB5'!F251+'SB5'!F253+'SB5'!F255+'SB5'!F257 +'SB5'!F259+'SB5'!F263+'SB5'!F265+'SB5'!F267+'SB5'!F269+'SB5'!F271 + 'SB5'!F275+'SB5'!F277+'SB5'!F279+'SB5'!F281 +'SB5'!F283+'SB5'!F287+'SB5'!F289+'SB5'!F291+'SB5'!F293+'SB5'!F295 -> 0 | E55: ='SB5'!G251+'SB5'!G253+'SB5'!G255+'SB5'!G257 +'SB5'!G259+'SB5'!G263+'SB5'!G265+'SB5'!G267+'SB5'!G269+'SB5'!G271 + 'SB5'!G275+'SB5'!G277+'SB5'!G279+'SB5'!G281 +'SB5'!G283+'SB5'!G287+'SB5'!G289+'SB5'!G291+'SB5'!G293+'SB5'!G295 -> 0 | F55: ='SB5'!H251+'SB5'!H253+'SB5'!H255+'SB5'!H257 +'SB5'!H259+'SB5'!H263+'SB5'!H265+'SB5'!H267+'SB5'!H269+'SB5'!H271 + 'SB5'!H275+'SB5'!H277+'SB5'!H279+'SB5'!H281 +'SB5'!H283+'SB5'!H287+'SB5'!H289+'SB5'!H291+'SB5'!H293+'SB5'!H295 -> 0 | G55: ='SB5'!I251+'SB5'!I253+'SB5'!I255+'SB5'!I257 +'SB5'!I259+'SB5'!I263+'SB5'!I265+'SB5'!I267+'SB5'!I269+'SB5'!I271 + 'SB5'!I275+'SB5'!I277+'SB5'!I279+'SB5'!I281 +'SB5'!I283+'SB5'!I287+'SB5'!I289+'SB5'!I291+'SB5'!I293+'SB5'!I295 -> 0
A56: Cost of Free Basic Services provided (R'000) | B56: 16
A57: Water (6 kilolitres per indigent household per month) | C57: ='SB1'!C23 -> 0 | D57: ='SB1'!D23 -> 0 | E57: ='SB1'!E23 -> 0 | F57: ='SB1'!F23 -> 0 | G57: ='SB1'!G23 -> 0 | H57: ='SB1'!H23 -> 0 | I57: ='SB1'!I23 -> 0 | J57: =SUM(E57:I57) -> 0 | K57: =IF(D57=0,C57+J57,D57+J57) -> 0 | L57: ='SB1'!L23 -> 0 | M57: ='SB1'!M23 -> 0
A58: Sanitation (free sanitation service to indigent households) | C58: ='SB1'!C29 -> 0 | D58: ='SB1'!D29 -> 0 | E58: ='SB1'!E29 -> 0 | F58: ='SB1'!F29 -> 0 | G58: ='SB1'!G29 -> 0 | H58: ='SB1'!H29 -> 0 | I58: ='SB1'!I29 -> 0 | J58: =SUM(E58:I58) -> 0 | K58: =IF(D58=0,C58+J58,D58+J58) -> 0 | L58: ='SB1'!L29 -> 0 | M58: ='SB1'!M29 -> 0
A59: Electricity/other energy (50kwh per indigent household per month) | C59: ='SB1'!C17 -> 0 | D59: ='SB1'!D17 -> 0 | E59: ='SB1'!E17 -> 0 | F59: ='SB1'!F17 -> 0 | G59: ='SB1'!G17 -> 0 | H59: ='SB1'!H17 -> 0 | I59: ='SB1'!I17 -> 0 | J59: =SUM(E59:I59) -> 0 | K59: =IF(D59=0,C59+J59,D59+J59) -> 0 | L59: ='SB1'!L17 -> 0 | M59: ='SB1'!M17 -> 0
A60: Refuse (removed once a week for indigent households) | C60: ='SB1'!C36 -> 0 | D60: ='SB1'!D36 -> 0 | E60: ='SB1'!E36 -> 0 | F60: ='SB1'!F36 -> 0 | G60: ='SB1'!G36 -> 0 | H60: ='SB1'!H36 -> 0 | I60: ='SB1'!I36 -> 0 | J60: =SUM(E60:I60) -> 0 | K60: =IF(D60=0,C60+J60,D60+J60) -> 0 | L60: ='SB1'!L36 -> 0 | M60: ='SB1'!M36 -> 0
A61: Cost of Free Basic Services provided - Informal Formal Settlements (R'000) | C61: ='SB5'!E260+'SB5'!E272+'SB5'!E284+'SB5'!E296 -> 0 | D61: ='SB5'!F260+'SB5'!F272+'SB5'!F284+'SB5'!F296 -> 0 | E61: ='SB5'!G260+'SB5'!G272+'SB5'!G284+'SB5'!G296 -> 0 | F61: ='SB5'!H260+'SB5'!H272+'SB5'!H284+'SB5'!H296 -> 0 | G61: ='SB5'!I260+'SB5'!I272+'SB5'!I284+'SB5'!I296 -> 0 | H61: ='SB5'!J260+'SB5'!J272+'SB5'!J284+'SB5'!J296 -> 0 | I61: ='SB5'!K260+'SB5'!K272+'SB5'!K284+'SB5'!K296 -> 0 | J61: =SUM(E61:I61) -> 0 | K61: =IF(D61=0,C61+J61,D61+J61) -> 0 | L61: ='SB5'!N260+'SB5'!N272+'SB5'!N284+'SB5'!N296 -> 0 | M61: ='SB5'!O260+'SB5'!O272+'SB5'!O284+'SB5'!O296 -> 0
A62: Total cost of FBS provided | C62: =SUM(C57:C61) -> 0 | D62: =SUM(D57:D61) -> 0 | E62: 0 | F62: 0 | G62: 0 | H62: 0 | I62: 0 | J62: 0 | K62: 0 | L62: 0 | M62: 0
A64: Highest level of free service provided
A65: Property rates (R'000 value threshold) | J65: =SUM(E65:I65) -> 0 | K65: =IF(D65=0,C65+J65,D65+J65) -> 0
A66: Water (kilolitres per household per month) | C66: 28000 | D66: 0 | E66: 0 | F66: 0 | G66: 0 | H66: 0 | I66: 0 | J66: 0 | K66: 28000 | L66: 35000 | M66: 0
A67: Sanitation (kilolitres per household per month) | C67: 15000 | D67: 0 | E67: 0 | F67: 0 | G67: 0 | H67: 0 | I67: 0 | J67: 0 | K67: 15000 | L67: 20000 | M67: 0
A68: Sanitation (Rand per household per month) | C68: 10000 | D68: 0 | E68: 0 | F68: 0 | G68: 0 | H68: 0 | I68: 0 | J68: 0 | K68: 10000 | L68: 15000 | M68: 0
A69: Electricity (kw per household per month) | J69: 0 | K69: 0
A70: Refuse (average litres per week) | J70: 0 | K70: 0
A71: Revenue cost of free services provided (R'000) | B71: 17
A72: Property rates (tariff adjustment) ( impermissable values per section 17 of MPRA) | J72: =SUM(E72:I72) -> 0 | K72: =IF(D72=0,C72+J72,D72+J72) -> 0
A73: Property rates exemptions, reductions and rebates and impermissable values in excess of section 17 of MPRA) | C73: ='SB1'!C10 -> 0 | D73: ='SB1'!D10 -> 0 | E73: ='SB1'!E10 -> 0 | F73: ='SB1'!F10 -> 0 | G73: ='SB1'!G10 -> 0 | H73: ='SB1'!H10 -> 0 | I73: ='SB1'!I10 -> 0 | J73: 0 | K73: 0 | L73: ='SB1'!L10 -> 0 | M73: ='SB1'!M10 -> 0
A74: Water (in excess of 6 kilolitres per indigent household per month) | C74: ='SB1'!C22 -> 0 | D74: ='SB1'!D22 -> 0 | E74: ='SB1'!E22 -> 0 | F74: ='SB1'!F22 -> 0 | G74: ='SB1'!G22 -> 0 | H74: ='SB1'!H22 -> 0 | I74: ='SB1'!I22 -> 0 | J74: 0 | K74: 0 | L74: ='SB1'!L22 -> 0 | M74: ='SB1'!M22 -> 0
A75: Sanitation (in excess of free sanitation service to indigent households) | C75: ='SB1'!C28 -> 0 | D75: ='SB1'!D28 -> 0 | E75: ='SB1'!E28 -> 0 | F75: ='SB1'!F28 -> 0 | G75: ='SB1'!G28 -> 0 | H75: ='SB1'!H28 -> 0 | I75: ='SB1'!I28 -> 0 | J75: 0 | K75: 0 | L75: ='SB1'!L28 -> 0 | M75: ='SB1'!M28 -> 0
A76: Electricity/other energy (in excess of 50 kwh per indigent household per month) | C76: ='SB1'!C16 -> 0 | D76: ='SB1'!D16 -> 0 | E76: ='SB1'!E16 -> 0 | F76: ='SB1'!F16 -> 0 | G76: ='SB1'!G16 -> 0 | H76: ='SB1'!H16 -> 0 | I76: ='SB1'!I16 -> 0 | J76: 0 | K76: 0 | L76: ='SB1'!L16 -> 0 | M76: ='SB1'!M16 -> 0
A77: Refuse (in excess of one removal a week for indigent households) | C77: ='SB1'!C35 -> 0 | D77: ='SB1'!D35 -> 0 | E77: ='SB1'!E35 -> 0 | F77: ='SB1'!F35 -> 0 | G77: ='SB1'!G35 -> 0 | H77: ='SB1'!H35 -> 0 | I77: ='SB1'!I35 -> 0 | J77: 0 | K77: 0 | L77: ='SB1'!L35 -> 0 | M77: ='SB1'!M35 -> 0
A78: Municipal Housing - rental rebates | J78: 0 | K78: 0
A79: Housing - top structure subsidies | B79: 6 | J79: 0 | K79: 0
A80: Other | J80: 0 | K80: 0
A81: Total revenue cost of subsidised services provided | C81: =SUM(C72:C80) -> 0 | D81: =SUM(D72:D80) -> 0 | E81: 0 | F81: 0 | G81: 0 | H81: 0 | I81: 0 | J81: 0 | K81: 0 | L81: 0 | M81: 0
A82: =head27a -> References
A83: 1. Include services provided by another entity; e.g. Eskom
A84: 2. Stand distance > 200m from dwelling
A85: 3. Stand distance <= 200m from dwelling
A86: 4. Borehole, spring, rain-water tank etc.
A87: 5. Must agree to total number of households in municipal area
A88: 6. Include value of subsidy provided by municipality above provincial subsidy level
A89: 7. Only complete if a previous adjusted budget has been approved in the same financial year. Reflect most recent adjusted budget.
A90: 8. Additional cash-backed accumulated funds/unspent funds (MFMA section 18(1)(b) and section 28(2)(e)) identified after the Original Budget approved and after annual financial statements audited (note: only where underspending could not reasonably have been foreseen)
A91: 9. Increases of funds approved under MFMA section 31
A92: 10. Adjustments approved in accordance with MFMA section 29
A93: 11. Adjustments to transfers from National or Provincial Government
A94: 12. Adjusts. = 'Other' Adjustments proposed to be approved; including revenue under-collection (MFMA section 28(2)(a)); additional revenue appropriation on existing programmes (section 28(2))(b); projected savings (section 28(2)(d)); error correction (section 28(2)(f))
A95: 13. G = B + C + D + E + F
A96: 14. Adjusted Budget H = (A or A1) + G
A97: 15. Show number of households receiving at least these levels of services completely free
A98: 16. Must reflect the cost to the municipality of providing the Free Basic Service
A99: 17.Reflect the cost of free or subsidised services in excess to the National policy that are not funded from the Free Basic Services component of the Equitable Share

Sheet SB1
A1: =muni&" - "&ADJB1&" - "&Date -> DC47 Sekhukhune - Supporting Table SB1 Supporting detail to 'Budgeted Financial Performance' - 28/02/2024
A2: =desc -> Description | B2: =head27 -> Ref | C2: =Head2 -> Budget Year 2023/24 | L2: =Head10 -> Budget Year +1 2024/25 | M2: =Head11 -> Budget Year +2 2025/26
C3: =Head6 -> Original Budget | D3: =Head54 -> Prior Adjusted | E3: =Head51 -> Accum. Funds | F3: =Head52 -> Multi-year capital | G3: =Head53 -> Unfore. Unavoid. | H3: =Head55 -> Nat. or Prov. Govt | I3: =Head50 -> Other Adjusts. | J3: =Head56 -> Total Adjusts. | K3: =Head7 -> Adjusted Budget | L3: =Head7 -> Adjusted Budget | M3: =Head7 -> Adjusted Budget
D4: 6 | E4: 7 | F4: 8 | G4: 9 | H4: 10 | I4: 11 | J4: 12 | K4: 13
A5: R thousands | C5: A | D5: A1 | E5: B | F5: C | G5: D | H5: E | I5: F | J5: G | K5: H
A6: REVENUE ITEMS
A7: Non-exchange revenue by source
A8: Property rates
A9: Total Property Rates | J9: =SUM(E9:I9) -> 0 | K9: =IF(D9=0,C9+J9,D9+J9) -> 0
A10: Less Revenue Foregone (exemptions, reductions and rebates and impermissable values in excess of section 17 of MPRA) | J10: =SUM(E10:I10) -> 0 | K10: =IF(D10=0,C10+J10,D10+J10) -> 0
A11: Net Property Rates | C11: =C9-C10 -> 0 | D11: =D9-D10 -> 0 | E11: 0 | F11: 0 | G11: 0 | H11: 0 | I11: 0 | J11: 0 | K11: 0 | L11: 0 | M11: 0
A13: Exchange revenue service charges
A14: Service charges - Electricity
A15: Total Service charges - Electricity | C15: 0 | D15: 0 | E15: 0 | F15: 0 | G15: 0 | H15: 0 | I15: 0 | J15: =SUM(E15:I15) -> 0 | K15: =IF(D15=0,C15+J15,D15+J15) -> 0 | L15: 0 | M15: 0
A16: Less Revenue Foregone (in excess of 50 kwh per indigent household per month) | J16: =SUM(E16:I16) -> 0 | K16: =IF(D16=0,C16+J16,D16+J16) -> 0
A17: Less Cost of Free Basis Services (50 kwh per indigent household per month) | C17: ='SB5'!E250 -> 0 | D17: ='SB5'!F250 -> 0 | E17: ='SB5'!G250 -> 0 | F17: ='SB5'!H250 -> 0 | G17: ='SB5'!I250 -> 0 | H17: ='SB5'!J250 -> 0 | I17: ='SB5'!K250 -> 0 | J17: =SUM(E17:I17) -> 0 | K17: =IF(D17=0,C17+J17,D17+J17) -> 0 | L17: ='SB5'!N250 -> 0 | M17: ='SB5'!O250 -> 0
A18: Net Service charges - Electricity | C18: =C15-C16-C17 -> 0 | D18: =D15-D16-D17 -> 0 | E18: 0 | F18: 0 | G18: 0 | H18: 0 | I18: 0 | J18: 0 | K18: 0 | L18: 0 | M18: 0
A20: Service charges - Water
A21: Total Service charges - water | C21: 93541801 | D21: 0 | E21: 0 | F21: 0 | G21: 0 | H21: 0 | I21: -536666 | J21: =SUM(E21:I21) -> -536666 | K21: =IF(D21=0,C21+J21,D21+J21) -> 93005135 | L21: 98125349 | M21: 102737241
A22: Less Revenue Foregone (in excess of 6 kilolitres per indigent household per month) | J22: =SUM(E22:I22) -> 0 | K22: =IF(D22=0,C22+J22,D22+J22) -> 0
A23: Less Cost of Free Basis Services (6 kilolitres per indigent household per month) | C23: ='SB5'!E262 -> 0 | D23: ='SB5'!F262 -> 0 | E23: ='SB5'!G262 -> 0 | F23: ='SB5'!H262 -> 0 | G23: ='SB5'!I262 -> 0 | H23: ='SB5'!J262 -> 0 | I23: ='SB5'!K262 -> 0 | J23: =SUM(E23:I23) -> 0 | K23: =IF(D23=0,C23+J23,D23+J23) -> 0 | L23: ='SB5'!N262 -> 0 | M23: ='SB5'!O262 -> 0
A24: Net Service charges - Water | C24: =C21-C22-C23 -> 93541801 | D24: =D21-D22-D23 -> 0 | E24: 0 | F24: 0 | G24: 0 | H24: 0 | I24: -536666 | J24: =J21-J22-J23 -> -536666 | K24: 93005135 | L24: 98125349 | M24: 102737241
A26: Service charges - Waste Water Management
A27: Total Service charges - Waste Water Management | C27: 15517425 | D27: 0 | E27: 0 | F27: 0 | G27: 0 | H27: 0 | I27: 0 | J27: =SUM(E27:I27) -> 0 | K27: =IF(D27=0,C27+J27,D27+J27) -> 15517425 | L27: 16277778 | M27: 17042834
A28: Less Revenue Foregone (in excess of free sanitation service to indigent households) | J28: =SUM(E28:I28) -> 0 | K28: =IF(D28=0,C28+J28,D28+J28) -> 0
A29: Less Cost of Free Basis Services (free sanitation service to indigent households) | C29: ='SB5'!E274 -> 0 | D29: ='SB5'!F274 -> 0 | E29: ='SB5'!G274 -> 0 | F29: ='SB5'!H274 -> 0 | G29: ='SB5'!I274 -> 0 | H29: ='SB5'!J274 -> 0 | I29: ='SB5'!K274 -> 0 | J29: =SUM(E29:I29) -> 0 | K29: =IF(D29=0,C29+J29,D29+J29) -> 0 | L29: ='SB5'!N274 -> 0 | M29: ='SB5'!O274 -> 0
A30: Net Service charges - Waste Water Management | C30: =C27-C28-C29 -> 15517425 | D30: =D27-D28-D29 -> 0 | E30: 0 | F30: 0 | G30: 0 | H30: 0 | I30: 0 | J30: 0 | K30: 15517425 | L30: 16277778 | M30: 17042834
C31: .
A32: Service charges - Waste Management
A33: Total refuse removal revenue | J33: =SUM(E33:I33) -> 0 | K33: =IF(D33=0,C33+J33,D33+J33) -> 0
A34: Total landfill revenue | J34: =SUM(E34:I34) -> 0 | K34: =IF(D34=0,C34+J34,D34+J34) -> 0
A35: Less Revenue Foregone (in excess of one removal a week to indigent households) | J35: =SUM(E35:I35) -> 0 | K35: =IF(D35=0,C35+J35,D35+J35) -> 0
A36: Less Cost of Free Basis Services (removed once a week to indigent households) | C36: ='SB5'!E286 -> 0 | D36: ='SB5'!F286 -> 0 | E36: ='SB5'!G286 -> 0 | F36: ='SB5'!H286 -> 0 | G36: ='SB5'!I286 -> 0 | H36: ='SB5'!J286 -> 0 | I36: ='SB5'!K286 -> 0 | J36: =SUM(E36:I36) -> 0 | K36: =IF(D36=0,C36+J36,D36+J36) -> 0 | L36: ='SB5'!N286 -> 0 | M36: ='SB5'!O286 -> 0
A37: Service charges - Waste Management | C37: =SUM(C33:C34)-SUM(C35:C36) -> 0 | D37: =SUM(D33:D34)-SUM(D35:D36) -> 0 | E37: 0 | F37: 0 | G37: 0 | H37: 0 | I37: 0 | J37: 0 | K37: 0 | L37: 0 | M37: 0
A42: EXPENDITURE ITEMS
A43: Employee related costs
A44: Basic Salaries and Wages | C44: 334432006 | D44: 0 | E44: 0 | F44: 0 | G44: 0 | H44: 0 | I44: -13538285 | J44: =SUM(E44:I44) -> -13538285 | K44: =IF(D44=0,C44+J44,D44+J44) -> 320893721 | L44: 359582394 | M44: 376482768
A45: Pension and UIF Contributions | C45: 49637000 | D45: 0 | E45: 0 | F45: 0 | G45: 0 | H45: 0 | I45: -1245796 | J45: -1245796 | K45: 48391204 | L45: 52069278 | M45: 54516532
A46: Medical Aid Contributions | C46: 15192638 | D46: 0 | E46: 0 | F46: 0 | G46: 0 | H46: 0 | I46: 1092000 | J46: 1092000 | K46: 16284638 | L46: 15937078 | M46: 16686120
A47: Overtime | C47: 19989819 | D47: 0 | E47: 0 | F47: 0 | G47: 0 | H47: 0 | I47: -4112424 | J47: -4112424 | K47: 15877395 | L47: 20969322 | M47: 21954879
A48: Performance Bonus | C48: 0 | D48: 0 | E48: 0 | F48: 0 | G48: 0 | H48: 0 | I48: 520000 | J48: 520000 | K48: 520000 | L48: 0 | M48: 0
A49: Motor Vehicle Allowance | C49: 29012377 | D49: 0 | E49: 0 | F49: 0 | G49: 0 | H49: 0 | I49: -490000 | J49: =SUM(E49:I49) -> -490000 | K49: =IF(D49=0,C49+J49,D49+J49) -> 28522377 | L49: 30433984 | M49: 31864380
A50: Cellphone Allowance | C50: 19212344 | D50: 0 | E50: 0 | F50: 0 | G50: 0 | H50: 0 | I50: 432000 | J50: =SUM(E50:I50) -> 432000 | K50: =IF(D50=0,C50+J50,D50+J50) -> 19644344 | L50: 11468868 | M50: 12007905
A51: Housing Allowances | C51: 3671900 | D51: 0 | E51: 0 | F51: 0 | G51: 0 | H51: 0 | I51: -1065887 | J51: =SUM(E51:I51) -> -1065887 | K51: =IF(D51=0,C51+J51,D51+J51) -> 2606013 | L51: 3851824 | M51: 4032862
A52: Other benefits and allowances | C52: 1402457 | D52: 0 | E52: 0 | F52: 0 | G52: 0 | H52: 0 | I52: 3051559 | J52: 3051559 | K52: 4454016 | L52: 1471176 | M52: 1540324
A53: Payments in lieu of leave | C53: 4259040 | D53: 0 | E53: 0 | F53: 0 | G53: 0 | H53: 0 | I53: -50000 | J53: -50000 | K53: 4209040 | L53: 4467734 | M53: 4677716
A54: Long service awards | C54: 1440345 | D54: 0 | E54: 0 | F54: 0 | G54: 0 | H54: 0 | I54: 647181 | J54: 647181 | K54: 2087526 | L54: 1510920 | M54: 1581934
A55: Post-retirement benefit obligations | B55: 4 | C55: 212983 | D55: 0 | E55: 0 | F55: 0 | G55: 0 | H55: 0 | I55: 0 | J55: =SUM(E55:I55) -> 0 | K55: =IF(D55=0,C55+J55,D55+J55) -> 212983 | L55: 223419 | M55: 233920
A56: Entertainment | C56: 0 | D56: 0 | E56: 0 | F56: 0 | G56: 0 | H56: 0 | I56: 0 | J56: =SUM(E56:I56) -> 0 | K56: =IF(D56=0,C56+J56,D56+J56) -> 0 | L56: 0 | M56: 0
A57: Scarcity | C57: 0 | D57: 0 | E57: 0 | F57: 0 | G57: 0 | H57: 0 | I57: 0 | J57: =SUM(E57:I57) -> 0 | K57: =IF(D57=0,C57+J57,D57+J57) -> 0 | L57: 0 | M57: 0
A58: Acting and post related allowance | C58: 66361 | D58: 0 | E58: 0 | F58: 0 | G58: 0 | H58: 0 | I58: -52000 | J58: =SUM(E58:I58) -> -52000 | K58: =IF(D58=0,C58+J58,D58+J58) -> 14361 | L58: 69613 | M58: 72885
A59: In kind benefits | C59: 0 | D59: 0 | E59: 0 | F59: 0 | G59: 0 | H59: 0 | I59: 0 | J59: =SUM(E59:I59) -> 0 | K59: =IF(D59=0,C59+J59,D59+J59) -> 0 | L59: 0 | M59: 0
A60: sub-total | C60: =SUM(C44:C59) -> 478529270 | D60: 0 | E60: 0 | F60: 0 | G60: 0 | H60: 0 | I60: -14811652 | J60: =SUM(J44:J59) -> -14811652 | K60: =SUM(K44:K59) -> 463717618 | L60: =SUM(L44:L59) -> 502055610 | M60: 525652225
A61: Less: Employees costs capitalised to PPE | C61: 0 | D61: 0 | E61: 0 | F61: 0 | G61: 0 | H61: 0 | I61: 0 | J61: =SUM(E61:I61) -> 0 | K61: =IF(D61=0,C61+J61,D61+J61) -> 0 | L61: 0 | M61: 0
A62: ="Total "&A43 -> Total Employee related costs | B62: 1 | C62: =C60-C61 -> 478529270 | D62: =D60-D61 -> 0 | E62: 0 | F62: 0 | G62: 0 | H62: 0 | I62: -14811652 | J62: =SUM(J60:J61) -> -14811652 | K62: =SUM(K60:K61) -> 463717618 | L62: =L60-L61 -> 502055610 | M62: =M60-M61 -> 525652225
A73: Depreciation and amortisation
A74: Depreciation of Property, Plant & Equipment | C74: 99840051 | D74: 0 | E74: 0 | F74: 0 | G74: 0 | H74: 0 | I74: -110000 | J74: =SUM(E74:I74) -> -110000 | K74: =IF(D74=0,C74+J74,D74+J74) -> 99730051 | L74: 104732214 | M74: 109654628
A75: Lease amortisation | C75: 0 | D75: 0 | E75: 0 | F75: 0 | G75: 0 | H75: 0 | I75: 0 | J75: =SUM(E75:I75) -> 0 | K75: =IF(D75=0,C75+J75,D75+J75) -> 0 | L75: 0 | M75: 0
A76: Capital asset impairment | C76: 0 | D76: 0 | E76: 0 | F76: 0 | G76: 0 | H76: 0 | I76: 0 | J76: =SUM(E76:I76) -> 0 | K76: =IF(D76=0,C76+J76,D76+J76) -> 0 | L76: 0 | M76: 0
A78: ="Total "&LEFT(A73,35) -> Total Depreciation and amortisation | B78: 1 | C78: =SUM(C74:C76) -> 99840051 | D78: =SUM(D74:D76) -> 0 | E78: 0 | F78: 0 | G78: 0 | H78: 0 | I78: -110000 | J78: -110000 | K78: 99730051 | L78: 104732214 | M78: 109654628
A80: Bulk purchases
A81: Electricity Bulk Purchases | C81: 0 | D81: 0 | E81: 0 | F81: 0 | G81: 0 | H81: 0 | I81: 0 | J81: =SUM(E81:I81) -> 0 | K81: =IF(D81=0,C81+J81,D81+J81) -> 0 | L81: 0 | M81: 0
A82: Water Bulk Purchases | J82: =SUM(E82:I82) -> 0 | K82: =IF(D82=0,C82+J82,D82+J82) -> 0
A83: Total bulk purchases | B83: 1 | C83: =C81 -> 0 | D83: =D81 -> 0 | E83: 0 | F83: 0 | G83: 0 | H83: 0 | I83: 0 | J83: 0 | K83: 0 | L83: 0 | M83: 0
A85: Transfers and grants
A86: Cash transfers and grants | J86: =SUM(E86:I86) -> 0 | K86: =IF(D86=0,C86+J86,D86+J86) -> 0
A87: Non-cash transfers and grants | C87: 20000000 | D87: 0 | E87: 0 | F87: 0 | G87: 0 | H87: 0 | I87: 0 | J87: =SUM(E87:I87) -> 0 | K87: =IF(D87=0,C87+J87,D87+J87) -> 20000000 | L87: 0 | M87: 0
A88: Total transfers and grants | C88: =SUM(C86:C87) -> 20000000 | D88: 0 | E88: 0 | F88: 0 | G88: 0 | H88: 0 | I88: 0 | J88: =SUM(J86:J87) -> 0 | K88: =SUM(K86:K87) -> 20000000 | L88: =SUM(L86:L87) -> 0 | M88: =SUM(M86:M87) -> 0
A90: Contracted services
A91: Outsourced Services | C91: 44986732 | D91: 0 | E91: 0 | F91: 0 | G91: 0 | H91: 0 | I91: -7010212 | J91: =SUM(E91:I91) -> -7010212 | K91: =IF(D91=0,C91+J91,D91+J91) -> 37976520 | L91: 125140799 | M91: 145101326
A92: Consultants and Professional Services | C92: 59020484 | D92: 0 | E92: 0 | F92: 0 | G92: 0 | H92: 0 | I92: -11000000 | J92: =SUM(E92:I92) -> -11000000 | K92: =IF(D92=0,C92+J92,D92+J92) -> 48020484 | L92: 62890774 | M92: 65171965
A93: Contractors | C93: 98760855 | D93: 0 | E93: 0 | F93: 0 | G93: 0 | H93: 0 | I93: 39574218 | J93: =SUM(E93:I93) -> 39574218 | K93: =IF(D93=0,C93+J93,D93+J93) -> 138335073 | L93: 124129313 | M93: 129705631
A94: Total contracted services | C94: =SUM(C91:C93) -> 202768071 | D94: 0 | E94: 0 | F94: 0 | G94: 0 | H94: 0 | I94: 21564006 | J94: 21564006 | K94: 224332077 | L94: 312160886 | M94: 339978922
A96: Operational Costs
A97: Collection costs | C97: 421200 | D97: 0 | E97: 0 | F97: 0 | G97: 0 | H97: 0 | I97: 420000 | J97: =SUM(E97:I97) -> 420000 | K97: =IF(D97=0,C97+J97,D97+J97) -> 841200 | L97: 441839 | M97: 462605
A98: Contributions to 'other' provisions | J98: =SUM(E98:I98) -> 0 | K98: =IF(D98=0,C98+J98,D98+J98) -> 0
A100: Audit fees | C100: 10900000 | D100: 0 | E100: 0 | F100: 0 | G100: 0 | H100: 0 | I100: -2400000 | J100: =SUM(E100:I100) -> -2400000 | K100: =IF(D100=0,C100+J100,D100+J100) -> 8500000 | L100: 11438907 | M100: 11983036
A103: Other Operational Costs | C103: 208726900 | D103: 0 | E103: 0 | F103: 0 | G103: 0 | H103: 0 | I103: 2702232 | J103: =SUM(E103:I103) -> 2702232 | K103: =IF(D103=0,C103+J103,D103+J103) -> 211429132 | L103: 222018015 | M103: 233033261
A124: Total Other Operational Costs | B124: 1 | C124: =+C97+C98+C100+C103 -> 220048100 | D124: =+D97+D98+D100+D103 -> 0 | E124: 0 | F124: 0 | G124: 0 | H124: 0 | I124: 722232 | J124: 722232 | K124: 220770332 | L124: 233898761 | M124: 245478902
A126: Repairs and Maintenance by Expenditure Item | B126: 14
A127: Employee related costs | J127: =SUM(E127:I127) -> 0 | K127: =IF(D127=0,C127+J127,D127+J127) -> 0
A128: Inventory Consumed (Project Maintenance) | J128: =SUM(E128:I128) -> 0 | K128: =IF(D128=0,C128+J128,D128+J128) -> 0
A129: Contracted Services | C129: 38926189 | D129: 0 | E129: 0 | F129: 0 | G129: 0 | H129: 0 | I129: 33400000 | J129: =SUM(E129:I129) -> 33400000 | K129: =IF(D129=0,C129+J129,D129+J129) -> 72326189 | L129: 123046549 | M129: 141115692
A130: Other Expenditure | C130: 2848200 | D130: 0 | E130: 0 | F130: 0 | G130: 0 | H130: 0 | I130: -1000000 | J130: =SUM(E130:I130) -> -1000000 | K130: =IF(D130=0,C130+J130,D130+J130) -> 1848200 | L130: 2668260 | M130: 2791995
A131: Total Repairs and Maintenance Expenditure | B131: 15 | C131: =SUM(C127:C130) -> 41774389 | D131: =SUM(D127:D130) -> 0 | E131: 0 | F131: 0 | G131: 0 | H131: 0 | I131: 32400000 | J131: 32400000 | K131: 74174389 | L131: 125714809 | M131: 143907687
A133: Inventory Consumed
A134: Inventory Consumed - Water | C134: =-'SB2'!C38 -> -146617831 | D134: =-'SB2'!D38 -> 0 | E134: =-'SB2'!E38 -> 0 | F134: =-'SB2'!F38 -> 0 | G134: =-'SB2'!G38 -> 0 | H134: =-'SB2'!H38 -> 0 | I134: =-'SB2'!I38 -> 0 | J134: =SUM(E134:I134) -> 0 | K134: =IF(D134=0,C134+J134,D134+J134) -> -146617831 | L134: =-'SB2'!L38 -> -153802105 | M134: =-'SB2'!M38 -> -161030804
A135: Inventory Consumed - Other | C135: =-'SB2'!C67-'SB2'!C76-'SB2'!C83-'SB2'!C91-'SB2'!C99 -> 331684564 | D135: =-'SB2'!D67-'SB2'!D76-'SB2'!D83-'SB2'!D91-'SB2'!D99 -> 0 | E135: =-'SB2'!E67-'SB2'!E76-'SB2'!E83-'SB2'!E91-'SB2'!E99 -> 0 | F135: =-'SB2'!F67-'SB2'!F76-'SB2'!F83-'SB2'!F91-'SB2'!F99 -> 0 | G135: =-'SB2'!G67-'SB2'!G76-'SB2'!G83-'SB2'!G91-'SB2'!G99 -> 0 | H135: =-'SB2'!H67-'SB2'!H76-'SB2'!H83-'SB2'!H91-'SB2'!H99 -> 0 | I135: =-'SB2'!I67-'SB2'!I76-'SB2'!I83-'SB2'!I91-'SB2'!I99 -> 22200001 | J135: =SUM(E135:I135) -> 22200001 | K135: =IF(D135=0,C135+J135,D135+J135) -> 353884565 | L135: =-'SB2'!L67-'SB2'!L76-'SB2'!L83-'SB2'!L91-'SB2'!L99 -> 378519608 | M135: =-'SB2'!M67-'SB2'!M76-'SB2'!M83-'SB2'!M91-'SB2'!M99 -> 430114968
A136: Total Inventory Consumed & Other Material | C136: =SUM(C134:C135) -> 185066733 | D136: =SUM(D134:D135) -> 0 | E136: 0 | F136: 0 | G136: 0 | H136: 0 | I136: 22200001 | J136: 22200001 | K136: 207266734 | L136: 224717503 | M136: 269084164
A138: =head27a -> References
A139: 1. Must reconcile with 'Budgeted Financial Performance (Revenue and Expenditure)
A140: 2. Must reconcile to supporting documentation on staff salaries
A142: 4. Expenditure to meet any unfunded obligations
A143: 5. Special consideration may have to be given to including 'goodwill arising' or 'joint venture' budgets where circumstances require this (include separately under relevant notes)
A144: 6. Only complete if a previous adjusted budget has been approved in the same financial year. Reflect most recent adjusted budget.
A145: 7. Additional cash-backed accumulated funds/unspent funds (section 18(1)(b) and section 28(2)(e) MFMA) identified after Original Budget approved and after annual financial statements audited (note: only where underspending could not reasonably be have for
A146: 8. Increases of funds approved under section 31 MFMA
A147: 9. Adjustments approved in accordance with section 29 MFMA
A148: 10. Adjustments to funding allocations from National or Provincial Government
A149: 11. Adjusts. = 'Other' Adjustments proposed to be approved; including revenue under-collection (MFMA section 28(2)(a)); additional revenue appropriation on existing programmes (section 28(2))(b); projected savings (section 28(2)(d)); error correction (sec
A150: 12. G = B + C + D + E + F
A151: 13. Adjusted Budget H = (A or A1) + G
A152: 14. Repairs and Maintenance is not a GRAP item. However to facilitate transparency, municipalities must provide a breakdown of the amounts included in the relevant GRAP items that will be spent on Repairs and Maintenance.
A153: 15. Must reconcile with Repairs and Maintenance by Asset Class (Total Repairs and Maintenance) on Table SA34c.

Sheet SB2
A1: =muni&" - "&ADJB2&" - "&Date -> DC47 Sekhukhune - Supporting Table SB2 Supporting detail to 'Financial Position Budget' - 28/02/2024
A2: =desc -> Description | B2: =head27 -> Ref | C2: =Head2 -> Budget Year 2023/24 | L2: =Head10 -> Budget Year +1 2024/25 | M2: =Head11 -> Budget Year +2 2025/26
C3: =Head6 -> Original Budget | D3: =Head54 -> Prior Adjusted | E3: =Head51 -> Accum. Funds | F3: =Head52 -> Multi-year capital | G3: =Head53 -> Unfore. Unavoid. | H3: =Head55 -> Nat. or Prov. Govt | I3: =Head50 -> Other Adjusts. | J3: =Head56 -> Total Adjusts. | K3: =Head7 -> Adjusted Budget | L3: =Head7 -> Adjusted Budget | M3: =Head7 -> Adjusted Budget
D4: 4 | E4: 5 | F4: 6 | G4: 7 | H4: 8 | I4: 9 | J4: 10 | K4: 11
A5: R thousands | C5: A | D5: A1 | E5: B | F5: C | G5: D | H5: E | I5: F | J5: G | K5: H
A6: ASSETS
A7: Trade and other receivables from exchange transactions
A8: Electricity
A9: Water | C9: 468104105 | D9: 0 | E9: 0 | F9: 0 | G9: 0 | H9: 0 | I9: -401092 | L9: 494428390 | M9: 395605466
A10: Waste
A11: Waste Water | C11: 81142946 | D11: 0 | E11: 0 | F11: 0 | G11: 0 | H11: 0 | I11: 0 | L11: 73383376 | M11: 145307152
A12: Other trade receivables from exchange transactions | C12: 121245021 | D12: 0 | E12: 0 | F12: 0 | G12: 0 | H12: 0 | I12: 0 | L12: 101988814 | M12: 105697331
A13: Gross: Trade and other receivables from exchange transactions | C13: =SUM(C8:C12) -> 670492072 | D13: =SUM(D8:D12) -> 0 | E13: 0 | F13: 0 | G13: 0 | H13: 0 | I13: -401092 | J13: 0 | K13: 0 | L13: 669800580 | M13: 646609949
A14: Less: Impairment for debt | B14: 1 | C14: =SUM(C15:C19) -> -126096809 | D14: =SUM(D15:D19) -> 0 | E14: 0 | F14: 0 | G14: 0 | H14: 0 | I14: 0 | J14: 0 | K14: 0 | L14: -132275552 | M14: -138492503
A15: Impairment for Electricity | C15: 0 | D15: 0 | E15: 0 | F15: 0 | G15: 0 | H15: 0 | I15: 0 | L15: 0 | M15: 0
A16: Impairment for Water | C16: -101016187 | D16: 0 | E16: 0 | F16: 0 | G16: 0 | H16: 0 | I16: 0 | L16: -105965980 | M16: -110946381
A17: Impairment for Waste
A18: Impairment for Waste Water | C18: 0 | D18: 0 | E18: 0 | F18: 0 | G18: 0 | H18: 0 | I18: 0 | L18: 0 | M18: 0
A19: Impairment for other trade receivalbes from exchange transactions | C19: -25080622 | D19: 0 | E19: 0 | F19: 0 | G19: 0 | H19: 0 | I19: 0 | L19: -26309572 | M19: -27546122
A20: Total net Trade and other receivables from Exchange Transactions | C20: =+C13+C14 -> 544395263 | D20: =+D13+D14 -> 0 | E20: 0 | F20: 0 | G20: 0 | H20: 0 | I20: -401092 | J20: 0 | K20: 0 | L20: 537525028 | M20: 508117446
A22: Receivables from non-exchange transactions
A23: Property rates
A24: Less: Impairment of Property rates
A25: Net Property rates | C25: =+C23+C24 -> 0 | D25: =+D23+D24 -> 0 | E25: 0 | F25: 0 | G25: 0 | H25: 0 | I25: 0 | J25: 0 | K25: 0 | L25: 0 | M25: 0
A26: Other receivables from non-exchange transactions | C26: 0 | D26: 0 | E26: 0 | F26: 0 | G26: 0 | H26: 0 | I26: 0 | L26: 0 | M26: 0
A27: Impairment for other receivalbes from non-exchange transactions | C27: 0 | D27: 0 | E27: 0 | F27: 0 | G27: 0 | H27: 0 | I27: 0 | L27: 0 | M27: 0
A28: Net other receivables from non-exchange transactions | C28: =+C26+C27 -> 0 | D28: =+D26+D27 -> 0 | E28: 0 | F28: 0 | G28: 0 | H28: 0 | I28: 0 | J28: 0 | K28: 0 | L28: 0 | M28: 0
A29: Total net Receivables from non-exchange transactions | C29: =+C25+C28 -> 0 | D29: =+D25+D28 -> 0 | E29: 0 | F29: 0 | G29: 0 | H29: 0 | I29: 0 | J29: 0 | K29: 0 | L29: 0 | M29: 0
A31: Inventory
A32: Water
A33: Opening Balance | C33: 119583813 | D33: 0 | E33: 0 | F33: 0 | G33: 0 | H33: 0 | I33: 0 | J33: =SUM(E33:I33) -> 0 | K33: =IF(D33=0,C33+J33,D33+J33) -> 119583813 | L33: 125443420 | M33: 131339261
A34: System Input Volume | C34: =SUM(C35:C37) -> 140743200 | D34: =SUM(D35:D37) -> 0 | E34: =SUM(E35:E37) -> 0 | F34: 0 | G34: 0 | H34: 0 | I34: 0 | J34: 0 | K34: 140743200 | L34: 147639617 | M34: 154578679
A35: Water Treatment Works | C35: 40743200 | D35: 0 | E35: 0 | F35: 0 | G35: 0 | H35: 0 | I35: 0 | J35: =SUM(E35:I35) -> 0 | K35: =IF(D35=0,C35+J35,D35+J35) -> 40743200 | L35: 42739617 | M35: 44748379
A36: Bulk Purchases | C36: 100000000 | D36: 0 | E36: 0 | F36: 0 | G36: 0 | H36: 0 | I36: 0 | J36: =SUM(E36:I36) -> 0 | K36: =IF(D36=0,C36+J36,D36+J36) -> 100000000 | L36: 104900000 | M36: 109830300
A37: Natural Sources | C37: 0 | D37: 0 | E37: 0 | F37: 0 | G37: 0 | H37: 0 | I37: 0 | J37: =SUM(E37:I37) -> 0 | K37: =IF(D37=0,C37+J37,D37+J37) -> 0 | L37: 0 | M37: 0
A38: Authorised Consumption | B38: 12 | C38: =C39+C48 -> 146617831 | D38: =D39+D48 -> 0 | E38: =E39+E48 -> 0 | F38: 0 | G38: 0 | H38: 0 | I38: 0 | J38: 0 | K38: 146617831 | L38: 153802105 | M38: 161030804
A39: Billed Authorised Consumption | C39: =C40+C44 -> 116617831 | D39: =D40+D44 -> 0 | E39: =E40+E44 -> 0 | F39: 0 | G39: 0 | H39: 0 | I39: 0 | J39: 0 | K39: 116617831 | L39: 122332105 | M39: 128081714
A40: Billed Metered Consumption | C40: =SUM(C41:C43) -> 116617831 | D40: =SUM(D41:D43) -> 0 | E40: =SUM(E41:E43) -> 0 | F40: 0 | G40: 0 | H40: 0 | I40: 0 | J40: 0 | K40: 116617831 | L40: 122332105 | M40: 128081714
A41: Free Basic Water | C41: 40000000 | D41: 0 | E41: 0 | F41: 0 | G41: 0 | H41: 0 | I41: 0 | J41: =SUM(E41:I41) -> 0 | K41: =IF(D41=0,C41+J41,D41+J41) -> 40000000 | L41: 41960000 | M41: 43932120
A42: Subsidised Water | C42: 0 | D42: 0 | E42: 0 | F42: 0 | G42: 0 | H42: 0 | I42: 0 | J42: =SUM(E42:I42) -> 0 | K42: =IF(D42=0,C42+J42,D42+J42) -> 0 | L42: 0 | M42: 0
A43: Revenue Water | C43: 76617831 | D43: 0 | E43: 0 | F43: 0 | G43: 0 | H43: 0 | I43: 0 | J43: =SUM(E43:I43) -> 0 | K43: =IF(D43=0,C43+J43,D43+J43) -> 76617831 | L43: 80372105 | M43: 84149594
A44: Billed Unmetered Consumption | C44: =SUM(C45:C47) -> 0 | D44: =SUM(D45:D47) -> 0 | E44: =SUM(E45:E47) -> 0 | F44: 0 | G44: 0 | H44: 0 | I44: 0 | J44: 0 | K44: 0 | L44: 0 | M44: 0
A45: Free Basic Water | C45: 0 | D45: 0 | E45: 0 | F45: 0 | G45: 0 | H45: 0 | I45: 0 | J45: =SUM(E45:I45) -> 0 | K45: =IF(D45=0,C45+J45,D45+J45) -> 0 | L45: 0 | M45: 0
A46: Subsidised Water | C46: 0 | D46: 0 | E46: 0 | F46: 0 | G46: 0 | H46: 0 | I46: 0 | J46: =SUM(E46:I46) -> 0 | K46: =IF(D46=0,C46+J46,D46+J46) -> 0 | L46: 0 | M46: 0
A47: Revenue Water | C47: 0 | D47: 0 | E47: 0 | F47: 0 | G47: 0 | H47: 0 | I47: 0 | J47: =SUM(E47:I47) -> 0 | K47: =IF(D47=0,C47+J47,D47+J47) -> 0 | L47: 0 | M47: 0
A48: UnBilled Authorised Consumption | C48: =SUM(C49:C50) -> 30000000 | D48: =SUM(D49:D50) -> 0 | E48: =SUM(E49:E50) -> 0 | F48: 0 | G48: 0 | H48: 0 | I48: 0 | J48: 0 | K48: 30000000 | L48: 31470000 | M48: 32949090
A49: Unbilled Metered Consumption | C49: 30000000 | D49: 0 | E49: 0 | F49: 0 | G49: 0 | H49: 0 | I49: 0 | J49: =SUM(E49:I49) -> 0 | K49: =IF(D49=0,C49+J49,D49+J49) -> 30000000 | L49: 31470000 | M49: 32949090
A50: Unbilled Unmetered Consumption | C50: 0 | D50: 0 | E50: 0 | F50: 0 | G50: 0 | H50: 0 | I50: 0 | J50: =SUM(E50:I50) -> 0 | K50: =IF(D50=0,C50+J50,D50+J50) -> 0 | L50: 0 | M50: 0
A51: Water Losses | C51: =C52+C55 -> 14074320 | D51: =D52+D55 -> 0 | E51: =E52+E55 -> 0 | F51: 0 | G51: 0 | H51: 0 | I51: 0 | J51: 0 | K51: 14074320 | L51: 14763962 | M51: 15457868
A52: Apparent losses | C52: =SUM(C53:C54) -> 0 | D52: =SUM(D53:D54) -> 0 | E52: =SUM(E53:E54) -> 0 | F52: 0 | G52: 0 | H52: 0 | I52: 0 | J52: 0 | K52: 0 | L52: 0 | M52: 0
A53: Unauthorised Consumption | C53: 0 | D53: 0 | E53: 0 | F53: 0 | G53: 0 | H53: 0 | I53: 0 | J53: =SUM(E53:I53) -> 0 | K53: =IF(D53=0,C53+J53,D53+J53) -> 0 | L53: 0 | M53: 0
A54: Customer Meter Inaccuracies | C54: 0 | D54: 0 | E54: 0 | F54: 0 | G54: 0 | H54: 0 | I54: 0 | J54: =SUM(E54:I54) -> 0 | K54: =IF(D54=0,C54+J54,D54+J54) -> 0 | L54: 0 | M54: 0
A55: Real losses | C55: =SUM(C56:C60) -> 14074320 | D55: =SUM(D56:D60) -> 0 | E55: =SUM(E56:E60) -> 0 | F55: 0 | G55: 0 | H55: 0 | I55: 0 | J55: 0 | K55: 14074320 | L55: 14763962 | M55: 15457868
A56: Leakage on Transmission and Distribution Mains | C56: 14074320 | D56: 0 | E56: 0 | F56: 0 | G56: 0 | H56: 0 | I56: 0 | J56: =SUM(E56:I56) -> 0 | K56: =IF(D56=0,C56+J56,D56+J56) -> 14074320 | L56: 14763962 | M56: 15457868
A57: Leakage and Overflows at Storage Tanks/Reservoirs | C57: 0 | D57: 0 | E57: 0 | F57: 0 | G57: 0 | H57: 0 | I57: 0 | J57: =SUM(E57:I57) -> 0 | K57: =IF(D57=0,C57+J57,D57+J57) -> 0 | L57: 0 | M57: 0
A58: Leakage on Service Connections up to the point of Customer Meter | C58: 0 | D58: 0 | E58: 0 | F58: 0 | G58: 0 | H58: 0 | I58: 0 | J58: =SUM(E58:I58) -> 0 | K58: =IF(D58=0,C58+J58,D58+J58) -> 0 | L58: 0 | M58: 0
A59: Data Transfer and Management Errors | C59: 0 | D59: 0 | E59: 0 | F59: 0 | G59: 0 | H59: 0 | I59: 0 | J59: =SUM(E59:I59) -> 0 | K59: =IF(D59=0,C59+J59,D59+J59) -> 0 | L59: 0 | M59: 0
A60: Unavoidable Annual Real Losses | C60: 0 | D60: 0 | E60: 0 | F60: 0 | G60: 0 | H60: 0 | I60: 0 | J60: =SUM(E60:I60) -> 0 | K60: =IF(D60=0,C60+J60,D60+J60) -> 0 | L60: 0 | M60: 0
A61: Non-revenue Water | C61: =C51+C48 -> 44074320 | D61: =D51+D48 -> 0 | E61: =E51+E48 -> 0 | F61: 0 | G61: 0 | H61: 0 | I61: 0 | J61: 0 | K61: 44074320 | L61: 46233962 | M61: 48406958
A62: Closing Balance Water | C62: =C33+C34+C38+C51 -> 421019164 | D62: =D33+D34+D38+D51 -> 0 | E62: =E33+E34+E38+E51 -> 0 | F62: 0 | G62: 0 | H62: 0 | I62: 0 | J62: 0 | K62: 421019164 | L62: 441649104 | M62: 462406612
A64: Agricultural
A65: Opening Balance | J65: =SUM(E65:I65) -> 0 | K65: =IF(D65=0,C65+J65,D65+J65) -> 0 | L65: =K70 -> 0 | M65: =L70 -> 0
A66: Acquisitions | J66: =SUM(E66:I66) -> 0 | K66: =IF(D66=0,C66+J66,D66+J66) -> 0 | L66: =K66*1.05 -> 0 | M66: =L66*1.06 -> 0
A67: Issues | B67: 13 | J67: =SUM(E67:I67) -> 0 | K67: =IF(D67=0,C67+J67,D67+J67) -> 0 | L67: =K67*1.05 -> 0 | M67: =L67*1.06 -> 0
A68: Adjustments | B68: 14 | J68: =SUM(E68:I68) -> 0 | K68: =IF(D68=0,C68+J68,D68+J68) -> 0 | L68: =K68*1.05 -> 0 | M68: 0
A69: Write-offs | B69: 15 | J69: =SUM(E69:I69) -> 0 | K69: =IF(D69=0,C69+J69,D69+J69) -> 0 | L69: =K69*1.05 -> 0 | M69: 0
A70: Closing balance - Agricultural | C70: =SUM(C65:C69) -> 0 | D70: 0 | E70: 0 | F70: 0 | G70: 0 | H70: 0 | I70: 0 | J70: 0 | K70: 0 | L70: 0 | M70: 0
A72: Consumables
A73: Standard Rated
A74: Opening Balance | C74: 24000790 | D74: 0 | E74: 0 | F74: 0 | G74: 0 | H74: 0 | I74: 0 | J74: =SUM(E74:I74) -> 0 | K74: =IF(D74=0,C74+J74,D74+J74) -> 24000790 | L74: 86687243 | M74: 107250948
A75: Acquisitions | C75: 119563412 | D75: 0 | E75: 0 | F75: 0 | G75: 0 | H75: 0 | I75: -77785637 | J75: =SUM(E75:I75) -> -77785637 | K75: =IF(D75=0,C75+J75,D75+J75) -> 41777775 | L75: 6107384 | M75: 166898237
A76: Issues | B76: 13 | C76: -331684564 | D76: 0 | E76: 0 | F76: 0 | G76: 0 | H76: 0 | I76: -22200001 | J76: =SUM(E76:I76) -> -22200001 | K76: =IF(D76=0,C76+J76,D76+J76) -> -353884565 | L76: -378519608 | M76: -430114968
A77: Adjustments | B77: 14 | C77: -20167468 | D77: 0 | E77: 0 | F77: 0 | G77: 0 | H77: 0 | I77: 0 | J77: =SUM(E77:I77) -> 0 | K77: =IF(D77=0,C77+J77,D77+J77) -> -20167468 | L77: -82666089 | M77: -103040799
A78: Write-offs | B78: 15 | C78: 0 | D78: 0 | E78: 0 | F78: 0 | G78: 0 | H78: 0 | I78: 0 | J78: =SUM(E78:I78) -> 0 | K78: =IF(D78=0,C78+J78,D78+J78) -> 0 | L78: 0 | M78: 0
A79: Closing balance - Consumables Standard Rated | C79: =SUM(C74:C78) -> -208287830 | D79: =SUM(D74:D78) -> 0 | E79: 0 | F79: 0 | G79: 0 | H79: 0 | I79: -99985638 | J79: -99985638 | K79: -308273468 | L79: -368391070 | M79: -259006582
A80: Zero Rated
A81: Opening Balance | C81: 0 | D81: 0 | E81: 0 | F81: 0 | G81: 0 | H81: 0 | I81: 0 | J81: =SUM(E81:I81) -> 0 | K81: =IF(D81=0,C81+J81,D81+J81) -> 0 | L81: 0 | M81: 0
A82: Acquisitions | C82: 0 | D82: 0 | E82: 0 | F82: 0 | G82: 0 | H82: 0 | I82: 0 | J82: =SUM(E82:I82) -> 0 | K82: =IF(D82=0,C82+J82,D82+J82) -> 0 | L82: 0 | M82: 0
A83: Issues | B83: 13 | C83: 0 | D83: 0 | E83: 0 | F83: 0 | G83: 0 | H83: 0 | I83: 0 | J83: =SUM(E83:I83) -> 0 | K83: =IF(D83=0,C83+J83,D83+J83) -> 0 | L83: 0 | M83: 0
A84: Adjustments | B84: 14 | C84: 0 | D84: 0 | E84: 0 | F84: 0 | G84: 0 | H84: 0 | I84: 0 | J84: =SUM(E84:I84) -> 0 | K84: =IF(D84=0,C84+J84,D84+J84) -> 0 | L84: 0 | M84: 0
A85: Write-offs | B85: 15 | C85: 0 | D85: 0 | E85: 0 | F85: 0 | G85: 0 | H85: 0 | I85: 0 | J85: =SUM(E85:I85) -> 0 | K85: =IF(D85=0,C85+J85,D85+J85) -> 0 | L85: 0 | M85: 0
A86: Closing balance - Consumables Zero Rated | C86: =SUM(C81:C85) -> 0 | D86: =SUM(D81:D85) -> 0 | E86: 0 | F86: 0 | G86: 0 | H86: 0 | I86: 0 | J86: 0 | K86: 0 | L86: 0 | M86: 0
A88: Finished Goods
A89: Opening Balance | J89: =SUM(E89:I89) -> 0 | K89: =IF(D89=0,C89+J89,D89+J89) -> 0 | L89: =K94 -> 0 | M89: =L94 -> 0
A90: Acquisitions | J90: =SUM(E90:I90) -> 0 | K90: =IF(D90=0,C90+J90,D90+J90) -> 0 | L90: =K90*1.055 -> 0 | M90: =L90*1.065 -> 0
A91: Issues | B91: 13 | J91: =SUM(E91:I91) -> 0 | K91: =IF(D91=0,C91+J91,D91+J91) -> 0 | L91: =K91*1.055 -> 0 | M91: =L91*1.065 -> 0
A92: Adjustments | B92: 14 | J92: =SUM(E92:I92) -> 0 | K92: =IF(D92=0,C92+J92,D92+J92) -> 0 | L92: =K92*1.055 -> 0 | M92: =L92*1.065 -> 0
A93: Write-offs | B93: 15 | J93: =SUM(E93:I93) -> 0 | K93: =IF(D93=0,C93+J93,D93+J93) -> 0 | L93: =K93*1.055 -> 0 | M93: =L93*1.065 -> 0
A94: Closing balance - Finished Goods | C94: =SUM(C89:C93) -> 0 | D94: =SUM(D89:D93) -> 0 | E94: 0 | F94: 0 | G94: 0 | H94: 0 | I94: 0 | J94: 0 | K94: 0 | L94: 0 | M94: 0
A96: Materials and Supplies
A97: Opening Balance | J97: =SUM(E97:I97) -> 0 | K97: =IF(D97=0,C97+J97,D97+J97) -> 0 | L97: =K102 -> 0 | M97: =L102 -> 0
A98: Acquisitions | J98: =SUM(E98:I98) -> 0 | K98: =IF(D98=0,C98+J98,D98+J98) -> 0 | L98: =K98*1.055 -> 0 | M98: =L98*1.065 -> 0
A99: Issues | B99: 13 | J99: =SUM(E99:I99) -> 0 | K99: =IF(D99=0,C99+J99,D99+J99) -> 0 | L99: =K99*1.055 -> 0 | M99: =L99*1.065 -> 0
A100: Adjustments | B100: 14 | J100: =SUM(E100:I100) -> 0 | K100: =IF(D100=0,C100+J100,D100+J100) -> 0 | L100: =K100*1.055 -> 0 | M100: =L100*1.065 -> 0
A101: Write-offs | B101: 15 | J101: =SUM(E101:I101) -> 0 | K101: =IF(D101=0,C101+J101,D101+J101) -> 0 | L101: =K101*1.055 -> 0 | M101: =L101*1.065 -> 0
A102: Closing balance - Materials and Supplies | C102: =SUM(C97:C101) -> 0 | D102: =SUM(D97:D101) -> 0 | E102: 0 | F102: 0 | G102: 0 | H102: 0 | I102: 0 | J102: 0 | K102: 0 | L102: 0 | M102: 0
A104: Work-in-progress
A105: Opening Balance | J105: =SUM(E105:I105) -> 0 | K105: =IF(D105=0,C105+J105,D105+J105) -> 0 | L105: =K108 -> 0 | M105: =L108 -> 0
A106: Materials | J106: =SUM(E106:I106) -> 0 | K106: =IF(D106=0,C106+J106,D106+J106) -> 0 | L106: =K106*1.055 -> 0 | M106: =L106*1.065 -> 0
A107: Transfers | J107: =SUM(E107:I107) -> 0 | K107: =IF(D107=0,C107+J107,D107+J107) -> 0 | L107: =K107*1.055 -> 0 | M107: =L107*1.065 -> 0
A108: Closing balance - Work-in-progress | C108: =SUM(C105:C107) -> 0 | D108: =SUM(D105:D107) -> 0 | E108: 0 | F108: 0 | G108: 0 | H108: 0 | I108: 0 | J108: 0 | K108: 0 | L108: 0 | M108: 0
A110: Housing Stock
A111: Opening Balance | J111: =SUM(E111:I111) -> 0 | K111: =IF(D111=0,C111+J111,D111+J111) -> 0 | L111: =K115 -> 0 | M111: =L115 -> 0
A112: Acquisitions | J112: =SUM(E112:I112) -> 0 | K112: =IF(D112=0,C112+J112,D112+J112) -> 0 | L112: =K112*1.055 -> 0 | M112: =L112*1.065 -> 0
A113: Transfers | J113: =SUM(E113:I113) -> 0 | K113: =IF(D113=0,C113+J113,D113+J113) -> 0 | L113: =K113*1.055 -> 0 | M113: =L113*1.065 -> 0
A114: Sales | J114: =SUM(E114:I114) -> 0 | K114: =IF(D114=0,C114+J114,D114+J114) -> 0 | L114: =K114*1.055 -> 0 | M114: =L114*1.065 -> 0
A115: Closing Balance - Housing Stock | C115: =SUM(C111:C114) -> 0 | D115: =SUM(D111:D114) -> 0 | E115: 0 | F115: 0 | G115: 0 | H115: 0 | I115: 0 | J115: 0 | K115: 0 | L115: 0 | M115: 0
A117: Land
A118: Opening Balance | J118: =SUM(E118:I118) -> 0 | K118: =IF(D118=0,C118+J118,D118+J118) -> 0 | L118: =K123 -> 0 | M118: =L123 -> 0
A119: Acquisitions | J119: =SUM(E119:I119) -> 0 | K119: =IF(D119=0,C119+J119,D119+J119) -> 0 | L119: =K119*1.055 -> 0 | M119: =L119*1.065 -> 0
A120: Sales | J120: =SUM(E120:I120) -> 0 | K120: =IF(D120=0,C120+J120,D120+J120) -> 0 | L120: =K120*1.055 -> 0 | M120: =L120*1.065 -> 0
A121: Adjustments | J121: =SUM(E121:I121) -> 0 | K121: =IF(D121=0,C121+J121,D121+J121) -> 0 | L121: =K121*1.055 -> 0 | M121: =L121*1.065 -> 0
A122: Correction of Prior period errors | J122: =SUM(E122:I122) -> 0 | K122: =IF(D122=0,C122+J122,D122+J122) -> 0 | L122: =K122*1.055 -> 0 | M122: =L122*1.065 -> 0
A123: Closing Balance - Land | C123: =SUM(C118:C122) -> 0 | D123: =SUM(D118:D122) -> 0 | E123: 0 | F123: 0 | G123: 0 | H123: 0 | I123: 0 | J123: 0 | K123: 0 | L123: 0 | M123: 0
A124: Closing Balance - Inventory & Consumables | C124: =C62+C70+C79+C86+C94+C102+C108+C115+C123 -> 212731334 | D124: =D62+D70+D79+D86+D94+D102+D108+D115+D123 -> 0 | E124: 0 | F124: 0 | G124: 0 | H124: 0 | I124: -99985638 | J124: -99985638 | K124: 112745696 | L124: 73258034 | M124: 203400030
A126: Property, plant & equipment
A127: PPE at cost/valuation (excl. finance leases) | C127: 4598447863 | D127: 0 | E127: 0 | F127: 0 | G127: 0 | H127: 0 | I127: -24125452 | J127: =SUM(E127:I127) -> -24125452 | K127: =IF(D127=0,C127+J127,D127+J127) -> 4574322411 | L127: 4780926940 | M127: 4994313319
A128: Leases recognised as PPE | B128: 2 | C128: 0 | D128: 0 | E128: 0 | F128: 0 | G128: 0 | H128: 0 | I128: 0 | J128: =SUM(E128:I128) -> 0 | K128: =IF(D128=0,C128+J128,D128+J128) -> 0 | L128: 0 | M128: 0
A129: Less: Accumulated depreciation | C129: 722884393 | D129: 0 | E129: 0 | F129: 0 | G129: 0 | H129: 0 | I129: 0 | J129: =SUM(E129:I129) -> 0 | K129: =IF(D129=0,C129+J129,D129+J129) -> 722884393 | L129: 758305728 | M129: 793473805
A130: ="Total "&A126 -> Total Property, plant & equipment | B130: 1 | C130: =SUM(C127:C128)-C129 -> 3875563470 | D130: =SUM(D127:D128)-D129 -> 0 | E130: 0 | F130: 0 | G130: 0 | H130: 0 | I130: -24125452 | J130: -24125452 | K130: 3851438018 | L130: =SUM(L127:L128)-L129 -> 4022621212 | M130: =SUM(M127:M128)-M129 -> 4200839514
A132: LIABILITIES
A133: Current liabilities - Financial liabilities
A134: Short term loans (other than bank overdraft) | J134: =SUM(E134:I134) -> 0 | K134: =IF(D134=0,C134+J134,D134+J134) -> 0
A135: Current portion of long-term liabilities | C135: 0 | D135: 0 | E135: 0 | F135: 0 | G135: 0 | H135: 0 | I135: 0 | J135: =SUM(E135:I135) -> 0 | K135: =IF(D135=0,C135+J135,D135+J135) -> 0 | L135: 0 | M135: 0
A136: ="Total "&A133 -> Total Current liabilities - Financial liabilities | C136: =SUM(C134:C135) -> 0 | D136: 0 | E136: 0 | F136: 0 | G136: 0 | H136: 0 | I136: 0 | J136: 0 | K136: 0 | L136: 0 | M136: 0
A138: Trade and other payables
A139: Trade and other payables from exchange transactions | C139: 155000000 | D139: 0 | E139: 0 | F139: 0 | G139: 0 | H139: 0 | I139: 100000241 | J139: =SUM(E139:I139) -> 100000241 | K139: =IF(D139=0,C139+J139,D139+J139) -> 255000241 | L139: 138550688 | M139: 139927869
A140: Other trade payables from exchange transactions
A141: Trade payables from Non-exchange transactions: Unspent conditional Grants | C141: 100000000 | D141: 0 | E141: 0 | F141: 0 | G141: 0 | H141: 0 | I141: 0 | J141: =SUM(E141:I141) -> 0 | K141: =IF(D141=0,C141+J141,D141+J141) -> 100000000 | L141: 104900000 | M141: 109830300
A142: Trade payables from Non-exchange transactions: Other | J142: =SUM(E142:I142) -> 0 | K142: =IF(D142=0,C142+J142,D142+J142) -> 0
A143: VAT | C143: 0 | D143: 0 | E143: 0 | F143: 0 | G143: 0 | H143: 0 | I143: 0 | J143: =SUM(E143:I143) -> 0 | K143: =IF(D143=0,C143+J143,D143+J143) -> 0 | L143: 0 | M143: 0
A144: Total Trade and other payables | B144: 1 | C144: =SUM(C139:C143) -> 255000000 | D144: 0 | E144: 0 | F144: 0 | G144: 0 | H144: 0 | I144: 100000241 | J144: 100000241 | K144: 355000241 | L144: 243450688 | M144: 249758169
A145: Non current liabilities - Financial liabilities
A146: Borrowing | B146: 3 | C146: 0 | D146: 0 | E146: 0 | F146: 0 | G146: 0 | H146: 0 | I146: 0 | J146: =SUM(E146:I146) -> 0 | K146: =IF(D146=0,C146+J146,D146+J146) -> 0 | L146: 0 | M146: 0
A147: Other financial liabilities | C147: 0 | D147: 0 | E147: 0 | F147: 0 | G147: 0 | H147: 0 | I147: 0 | J147: =SUM(E147:I147) -> 0 | K147: =IF(D147=0,C147+J147,D147+J147) -> 0 | L147: 0 | M147: 0
A148: Total Non current liabilities - Financial liabilities | C148: =SUM(C146:C147) -> 0 | D148: 0 | E148: 0 | F148: 0 | G148: 0 | H148: 0 | I148: 0 | J148: 0 | K148: 0 | L148: 0 | M148: 0
A150: Provisions - non current
A151: Retirement benefits | J151: =SUM(E151:I151) -> 0 | K151: =IF(D151=0,C151+J151,D151+J151) -> 0
A153: Refuse landfill site rehabilitation | C153: 0 | D153: 0 | E153: 0 | F153: 0 | G153: 0 | H153: 0 | I153: 0 | J153: =SUM(E153:I153) -> 0 | K153: =IF(D153=0,C153+J153,D153+J153) -> 0 | L153: 0 | M153: 0
A154: Other | C154: 54002671 | D154: 0 | E154: 0 | F154: 0 | G154: 0 | H154: 0 | I154: 0 | J154: =SUM(E154:I154) -> 0 | K154: =IF(D154=0,C154+J154,D154+J154) -> 54002671 | L154: 53775000 | M154: 56690112
A155: Total Provisions - non current | C155: =+C151+C153+C154 -> 54002671 | D155: =+D151+D153+D154 -> 0 | E155: 0 | F155: 0 | G155: 0 | H155: 0 | I155: 0 | J155: 0 | K155: 54002671 | L155: 53775000 | M155: 56690112
A157: CHANGES IN NET ASSETS
A158: Accumulated surplus/(Deficit)
A159: =A158&" - opening balance" -> Accumulated surplus/(Deficit) - opening balance | C159: 4275752593 | D159: 0 | E159: 0 | F159: 0 | G159: 0 | H159: 0 | I159: 308939108 | J159: =SUM(E159:I159) -> 308939108 | K159: =IF(D159=0,C159+J159,D159+J159) -> 4584691701 | L159: 4391173388 | M159: 5004760848
A160: GRAP adjustments | C160: 0 | D160: 0 | E160: 0 | F160: 0 | G160: 0 | H160: 0 | I160: 0 | J160: =SUM(E160:I160) -> 0 | K160: =IF(D160=0,C160+J160,D160+J160) -> 0 | L160: 0 | M160: 0
A161: Restated balance | C161: =+C159+C160 -> 4275752593 | D161: =+D159+D160 -> 0 | E161: 0 | F161: 0 | G161: 0 | H161: 0 | I161: 308939108 | J161: 308939108 | K161: 4584691701 | L161: 4391173388 | M161: 5004760848
A162: Surplus/(Deficit) | C162: ='B4-FinPerf RE'!C60 -> 593912939 | D162: ='B4-FinPerf RE'!D60 -> 0 | E162: ='B4-FinPerf RE'!E60 -> 0 | F162: ='B4-FinPerf RE'!F60 -> 0 | G162: ='B4-FinPerf RE'!G60 -> 0 | H162: ='B4-FinPerf RE'!H60 -> 0 | I162: ='B4-FinPerf RE'!I60 -> -22620844 | J162: ='B4-FinPerf RE'!J60 -> -22620844 | K162: ='B4-FinPerf RE'!K60 -> 571292095 | L162: ='B4-FinPerf RE'!L60 -> 581229445 | M162: ='B4-FinPerf RE'!M60 -> 597297143
A164: Transfers to/from Reserves | C164: 0 | D164: 0 | E164: 0 | F164: 0 | G164: 0 | H164: 0 | I164: 0 | J164: =SUM(E164:I164) -> 0 | K164: =IF(D164=0,C164+J164,D164+J164) -> 0 | L164: 0 | M164: 0
A165: Depreciation offsets | C165: 0 | D165: 0 | E165: 0 | F165: 0 | G165: 0 | H165: 0 | I165: 0 | J165: =SUM(E165:I165) -> 0 | K165: =IF(D165=0,C165+J165,D165+J165) -> 0 | L165: 0 | M165: 0
A166: Other adjustments | C166: 535522 | D166: 0 | E166: 0 | F166: 0 | G166: 0 | H166: 0 | I166: 0 | J166: =SUM(E166:I166) -> 0 | K166: =IF(D166=0,C166+J166,D166+J166) -> 535522 | L166: 561763 | M166: 588165
A167: Accumulated Surplus/(Deficit) | B167: 1 | C167: =SUM(C161:C166) -> 4870201054 | D167: 0 | E167: 0 | F167: 0 | G167: 0 | H167: 0 | I167: 286318264 | J167: 286318264 | K167: 5156519318 | L167: 4972964596 | M167: 5602646156
A168: Reserves
A169: Housing Development Fund | J169: =SUM(E169:I169) -> 0 | K169: =IF(D169=0,C169+J169,D169+J169) -> 0
A170: Capital replacement | J170: =SUM(E170:I170) -> 0 | K170: =IF(D170=0,C170+J170,D170+J170) -> 0
A171: Self-insurance | J171: =SUM(E171:I171) -> 0 | K171: =IF(D171=0,C171+J171,D171+J171) -> 0
A172: Other reserves | J172: =SUM(E172:I172) -> 0 | K172: =IF(D172=0,C172+J172,D172+J172) -> 0
A173: Revaluation | C173: 0 | D173: 0 | E173: 0 | F173: 0 | G173: 0 | H173: 0 | I173: 0 | J173: =SUM(E173:I173) -> 0 | K173: =IF(D173=0,C173+J173,D173+J173) -> 0 | L173: 0 | M173: 0
A174: Total Reserves | B174: 2 | C174: =SUM(C169:C173) -> 0 | D174: 0 | E174: 0 | F174: 0 | G174: 0 | H174: 0 | I174: 0 | J174: 0 | K174: 0 | L174: 0 | M174: 0
A175: TOTAL COMMUNITY WEALTH/EQUITY | B175: 2 | C175: =C167+C174 -> 4870201054 | D175: 0 | E175: 0 | F175: 0 | G175: 0 | H175: 0 | I175: 286318264 | J175: 286318264 | K175: 5156519318 | L175: 4972964596 | M175: 5602646156
A176: =head27a -> References
A177: 1. Must reconcile with 'Financial Position' budget
A178: 2. Leases treated as assets to be depreciated as the same as purchased/constructed assets. Includes PPP asset element accounted for as finance leases
A179: 3. Borrowing (original budget) must reconcile to Budget Table A16
A180: 4. Only complete if a previous adjusted budget has been approved in the same financial year. Reflect most recent adjusted budget. Column D should be a complete Adjustment Budget which indicates that if some figures were not adjusted the original budget should then be used
A181: 5. Additional cash-backed accumulated funds/unspent funds (section 18(1)(b) and section 28(2)(e) MFMA) identified after Original Budget approved and after annual financial statements audited (note: only where underspending could not reasonably be have for
A182: 6. Increases of funds approved under section 31 MFMA
A183: 7. Adjustments approved in accordance with section 29 MFMA
A184: 8. Adjustments to funding allocations from National or Provincial Government
A185: 9. Adjusts. = 'Other' Adjustments proposed to be approved; including revenue under-collection (MFMA section 28(2)(a)); additional revenue appropriation on existing programmes (section 28(2))(b); projected savings (section 28(2)(d)); error correction (sect
A186: 10. G = B + C + D + E + F
A187: 11. Adjusted Budget H = (A or A1) + G
A188: check | C188: =C175-'B6-FinPos'!C56 -> 0 | M188: =K175-'B6-FinPos'!K56 -> 0
A189: 12. Inventory Consumed - Water - included under "Other materials & inventory " on Table B4 - Detail to be submitted on Table SB1
A190: 13. Inventry Consumed Other materials - included under "Other materials & inventory " on Table B4 - Detail to be submitted on Table SB1
A191: 14. Inventory Transfers/Adjustments (Include under gains/losses on Table A4) - Note that the amount could be positive or negative - please capture according to the sign
A192: 15. Inventory Write-offs (Include under losses on Table A4) - capture Cr amounts

Sheet SB3
A1: =muni&" - "&ADJB3&" - "&Date -> DC47 Sekhukhune - Supporting Table SB3 Adjustments to the SDBIP - performance objectives - 28/02/2024
A2: =desc -> Description | B2: Unit of measurement | C2: =Head2 -> Budget Year 2023/24 | L2: =Head10 -> Budget Year +1 2024/25 | M2: =Head11 -> Budget Year +2 2025/26
C3: =Head6 -> Original Budget | D3: =Head54 -> Prior Adjusted | E3: =Head51 -> Accum. Funds | F3: =Head52 -> Multi-year capital | G3: =Head53 -> Unfore. Unavoid. | H3: =Head55 -> Nat. or Prov. Govt | I3: =Head50 -> Other Adjusts. | J3: =Head56 -> Total Adjusts. | K3: =Head7 -> Adjusted Budget | L3: =Head7 -> Adjusted Budget | M3: =Head7 -> Adjusted Budget
C4: A | D4: A1 | E4: B | F4: C | G4: D | H4: E | I4: F | J4: G | K4: H
A5: 05 - Infrustracture And Water Services
A6: Water Management
A7: Water Distribution
A8: Formal Settlement Households Receiving Water | B8: Households | C8: 52180 | D8: 0 | E8: 0 | F8: 0 | G8: 0 | H8: 0 | I8: 0 | J8: =SUM(E8:I8) -> 0 | K8: =IF(D8=0,C8+J8,D8+J8) -> 52180 | L8: 57398 | M8: 0
A9: No Water Supply | B9: Households | C9: 5000 | D9: 0 | E9: 0 | F9: 0 | G9: 0 | H9: 0 | I9: 0 | J9: 0 | K9: 5000 | L9: 0 | M9: 0
A10: Other Water Supply (< Min.Service Level) | B10: Households | C10: 10000 | D10: 0 | E10: 0 | F10: 0 | G10: 0 | H10: 0 | I10: 0 | J10: 0 | K10: 10000 | L10: 0 | M10: 0
A11: Other Water Supply (At Least Min.Service Level) | B11: Households | C11: 119597 | D11: 0 | E11: 0 | F11: 0 | G11: 0 | H11: 0 | I11: 0 | J11: 0 | K11: 119597 | L11: 146028 | M11: 0
A12: Piped Water Inside Dwelling | B12: Households | C12: 20000 | D12: 0 | E12: 0 | F12: 0 | G12: 0 | H12: 0 | I12: 0 | J12: 0 | K12: 20000 | L12: 0 | M12: 0
A13: Piped Water Inside Yard (But Not In Dwelling) | B13: Households | C13: 15000 | D13: 0 | E13: 0 | F13: 0 | G13: 0 | H13: 0 | I13: 0 | J13: 0 | K13: 15000 | L13: 0 | M13: 0
A14: Using Public Tap (At Least Min.Service Level) | B14: Households | C14: 469235 | D14: 0 | E14: 0 | F14: 0 | G14: 0 | H14: 0 | I14: 0 | J14: 0 | K14: 469235 | L14: 500880 | M14: 0
J15: 0 | K15: 0 | L15: =IF(E15=0,D15+K15,E15+K15) -> 0 | M15: =IF(F15=0,E15+L15,F15+L15) -> 0
A16: =head27a -> References
A17: 1. Include a measurable performance objective for each revenue source (within a relevant function) and each vote (MFMA s17(3)(b))
A18: 2. Include the estimated effect on the target of each component of an adjustment budget (B to G)
A19: 3. Include all Basic Services performance targets from Table A10 to ensure Table SA7 represents all strategic responsibilities
A20: 4. Total target adjustments G = B + C + D + E + F
A21: 5. Adjusted Budget H = (A or A1) + G
A22: 6. NOTE - include adjustsment by 'exception' (only where amended)

Sheet SB4
A1: =muni&" - "&ADJB4&" - "&Date -> DC47 Sekhukhune - Supporting Table SB4 Adjustments to budgeted performance indicators and benchmarks - 28/02/2024
A2: =desc&" of financial indicator" -> Description of financial indicator | B2: Basis of calculation | C2: =Head1B -> 2020/21 | D2: =Head1A -> 2021/22 | E2: =Head1 -> 2022/23 | F2: =Head2 -> Budget Year 2023/24 | I2: =Head10 -> Budget Year +1 2024/25 | J2: =Head11 -> Budget Year +2 2025/26
C3: =Head5 -> Audited Outcome | D3: =Head5 -> Audited Outcome | E3: =Head5 -> Audited Outcome | F3: =Head6 -> Original Budget | G3: =Head54 -> Prior Adjusted | H3: =Head7 -> Adjusted Budget | I3: =Head7 -> Adjusted Budget | J3: =Head7 -> Adjusted Budget
A4: Borrowing Management
A6: Credit Rating | B6: Short term/long term rating
A7: Capital Charges to Operating Expenditure | B7: Interest & Principal Paid /Operating Expenditure | F7: =IF(ISERROR(('B4-FinPerf RE'!C41-'B7-CFlow'!C37)/'B4-FinPerf RE'!C50),0,(('B4-FinPerf RE'!C41-'B7-CFlow'!C37)/'B4-FinPerf RE'!C50)) -> 0 | G7: =IF(ISERROR(('B4-FinPerf RE'!D41-'B7-CFlow'!D37)/'B4-FinPerf RE'!D50),0,(('B4-FinPerf RE'!D41-'B7-CFlow'!D37)/'B4-FinPerf RE'!D50)) -> 0 | H7: =IF(ISERROR(('B4-FinPerf RE'!K41-'B7-CFlow'!K37)/'B4-FinPerf RE'!K50),0,(('B4-FinPerf RE'!K41-'B7-CFlow'!K37)/'B4-FinPerf RE'!K50)) -> 0 | I7: =IF(ISERROR(('B4-FinPerf RE'!L41-'B7-CFlow'!L37)/'B4-FinPerf RE'!L50),0,(('B4-FinPerf RE'!L41-'B7-CFlow'!L37)/'B4-FinPerf RE'!L50)) -> 0 | J7: =IF(ISERROR(('B4-FinPerf RE'!M41-'B7-CFlow'!M37)/'B4-FinPerf RE'!M50),0,(('B4-FinPerf RE'!M41-'B7-CFlow'!M37)/'B4-FinPerf RE'!M50)) -> 0
A8: Capital Charges to Own Revenue | B8: Finance charges & Repayment of borrowing /Own Revenue | F8: =IF(ISERROR(('B4-FinPerf RE'!C42-'B7-CFlow'!C38)/'B4-FinPerf RE'!C51),0,(('B4-FinPerf RE'!C42-'B7-CFlow'!C38)/'B4-FinPerf RE'!C51)) -> 0 | G8: =IF(ISERROR(('B4-FinPerf RE'!D42-'B7-CFlow'!D38)/'B4-FinPerf RE'!D51),0,(('B4-FinPerf RE'!D42-'B7-CFlow'!D38)/'B4-FinPerf RE'!D51)) -> 0 | H8: =IF(ISERROR(('B4-FinPerf RE'!K42-'B7-CFlow'!K38)/'B4-FinPerf RE'!K51),0,(('B4-FinPerf RE'!K42-'B7-CFlow'!K38)/'B4-FinPerf RE'!K51)) -> 0 | I8: =IF(ISERROR(('B4-FinPerf RE'!L42-'B7-CFlow'!L38)/'B4-FinPerf RE'!L51),0,(('B4-FinPerf RE'!L42-'B7-CFlow'!L38)/'B4-FinPerf RE'!L51)) -> 0 | J8: =IF(ISERROR(('B4-FinPerf RE'!M42-'B7-CFlow'!M38)/'B4-FinPerf RE'!M51),0,(('B4-FinPerf RE'!M42-'B7-CFlow'!M38)/'B4-FinPerf RE'!M51)) -> 0
A9: Borrowed funding of 'own' capital expenditure | B9: Borrowing/Capital expenditure excl. transfers and grants | F9: =IF(ISERROR('B5-Capex'!C74/('B5-Capex'!C65-'B5-Capex'!C72)),0,('B5-Capex'!C74/('B5-Capex'!C65-'B5-Capex'!C72))) -> 0 | G9: =IF(ISERROR('B5-Capex'!D74/('B5-Capex'!D65-'B5-Capex'!D72)),0,('B5-Capex'!D74/('B5-Capex'!D65-'B5-Capex'!D72))) -> 0 | H9: =IF(ISERROR('B5-Capex'!K74/('B5-Capex'!K65-'B5-Capex'!L72)),0,('B5-Capex'!K74/('B5-Capex'!K65-'B5-Capex'!L72))) -> 0 | I9: =IF(ISERROR('B5-Capex'!L74/('B5-Capex'!L65-'B5-Capex'!M72)),0,('B5-Capex'!L74/('B5-Capex'!L65-'B5-Capex'!M72))) -> 0 | J9: =IF(ISERROR('B5-Capex'!M74/('B5-Capex'!M65-'B5-Capex'!N72)),0,('B5-Capex'!M74/('B5-Capex'!M65-'B5-Capex'!N72))) -> 0
A10: Safety of Capital
